Workbook

Sheet 資料輸入
B2: 安達人壽永富長紅美元分紅終身壽險_建議書 資料輸入頁
B4: 客戶資料 | L4: PS202601-02 BK-SS
H6: 要保人同被保險人 | J6: 繳費人同要保人 | L6: 繳費人同被保險人
C8: 被保險人 | E8: 被保人 | F8: 小姐 | G8: 要保人 | H8: 要保人 | I8: 先生/小姐 | J8: 繳費人 | K8: 繳費人 | L8: 先生/小姐
C10: 被保險人出生年月日 | E10: 450101 | F10: 格式(yyymmdd) | G10: 要保人出生年月日 | H10: 500101 | I10: 格式(yyymmdd) | J10: 繳費人出生年月日 | K10: 600101 | L10: 格式(yyymmdd)
C12: 性 別 | E12: 女性 | F12: 下拉選單 | G12: 性 別 | H12: 男性 | I12: 下拉選單 | J12: 性 別 | K12: 男性 | L12: 下拉選單
C14: 保險年齡 | E14: =age -> 70 | G14: 保險年齡 | H14: =holderAge -> 65 | J14: 保險年齡 | K14: =payerAge -> 55
B15: 投保內容
C17: 商品名稱 | E17: 永富長紅美元分紅終身壽險
C19: 商品幣別 | E19: 美元
C21: 繳別 | E21: 年繳 | F21: 下拉選單
C23: 保險年期 | E23: 保險年齡達110歲
C25: 繳費期間 | E25: 7年期 | F25: 下拉選單
C27: 繳費方式(首期) | E27: 金融機構自動轉帳 | F27: 下拉選單
C29: 繳費方式(續期) | E29: 金融機構自動轉帳 | F29: 下拉選單
C31: 保險金額(元） | E31: 10000000 | F31: 保險金額:1萬美元～1,000萬美元
B34: 分期保險金給付設定
C36: 分期定期保險金給付期間 | E36: 20 | F36: 請輸入5~20年
C38: 一次給付比例 | E38: 0 | F38: %
C40: 每期給付比例 | E40: 100 | F40: %
B42: 保險費合計
C45: 首期保費 | E45: =TEXT(GP_bf_disc,"###,###,###.00") -> 1,273,000.00 | F45: 元
C47: 首期折扣後保費 | E47: =TEXT(GP_af_disc,"###,###,###.00") -> 1,241,365.95 | F47: ="元 ( " & TEXT(參數!$B$26*100, "0.00") & "% 折扣）" -> 元 ( 2.50% 折扣）
C49: 續期保費 | E49: =TEXT(RP_bf_disc,"###,###,###.00") -> 1,273,000.00 | F49: 元
C51: 續期折扣後保費 | E51: =TEXT(RP_af_disc,"###,###,###.00") -> 1,241,365.95 | F51: ="元 ( " & TEXT(參數!$B$27*100, "0.00") & "% 折扣）" -> 元 ( 2.50% 折扣）
B56: 超過免體檢保額,需體檢。
B63: 錄音提示稿相關資料
B64: 保經代公司名稱： | G64: 請輸入保經代公司名稱，例如: 安達保經
B65: 業務員姓名： | E65: TEST
B66: 業務員登錄證字號： | E66: TEST123456789 | G66: 請輸入登錄證字號，共10碼
B68: 投保目的(可複選) | F68: 保障 | H68: 【適用投保目的】請輸入V，【取消】請空白
F69: 子女教育經費 | H69: 【適用投保目的】請輸入V，【取消】請空白
F70: 退休規劃 | H70: 【適用投保目的】請輸入V，【取消】請空白
F71: 房屋貸款 | H71: 【適用投保目的】請輸入V，【取消】請空白
F72: 其他 (請於右方填入內容) | H72: 【適用投保目的】請輸入V，【取消】請空白
B75: ※ 提醒您，本試算表所提出之部份提領申請為繳費期滿後【減少保險金額】，保險金額減少均會減少保單保障、保單價值準備金及解約金等，客戶必須依照自身的財務及保障需求妥適規劃。
B76: ※ 要保人在本契約有效期間內，得申請減少保險金額，但是減額後的保險金額，不得低於本保險最低承保金額，其減少部分依契約終止之約定處理。
B77: ※ 下列【減少保險金額】之數值為預估值，如投保後需減少保險金額請自行提出契變辦理，詳細規則可參閱保全規則。
B78: ※ 本公司辦理「減少保險金額」，係先減少保險金額。減額後的保險金額，不得低於本保險最低承保金額 10000 美元。
B79: 部分提領
C81: ※減額後的「保險金額」不得低於本保險最低承保金額!
C82: 定額提領(減少保險金額)
E83: ="建議提領試算年齡須至少大投保年齡加"& plan &"歲!" -> 建議提領試算年齡須至少大投保年齡加7歲!
C84: 年齡一 | E84: 40 | F84: 歲起 | G84: 每年提領金額 | H84: 10000 | J84: 美元
E85: =IF(E86="","",IF(定額提領年齡二<=定額提領年齡一,"定額提領試算年齡二需大於定額提領試算年齡一","")) ->  | K85: =IF(COUNTIF(減少保險金影響表!J9:J126, 0) > 0, "提醒，依此方式提領，基本保險金額將於保險契約有效期間內歸零", "") -> 
C86: 年齡二 | F86: 歲起 | G86: 每年提領金額 | J86: 美元
E87: =IF(E88="","",IF(定額提領年齡三<=定額提領年齡二,"定額提領試算年齡三需大於定額提領試算年齡一及年齡二","")) -> 
C88: 年齡三 | F88: 歲起 | G88: 每年提領金額 | J88: 美元
C91: 額外一次提領(減少保險金額)
E92: ="建議提領試算年齡須至少大投保年齡加"& plan &"歲!" -> 建議提領試算年齡須至少大投保年齡加7歲!
C93: 年齡一 | F93: 歲 | G93: 當次提領金額 | J93: 美元
E94: =IF($E95="","",IF($E95<=E93,"定額提領試算年齡二需大於定額提領試算年齡一","")) ->  | K94: =IF(COUNTIF(減少保險金影響表!J9:J126, 0) > 0, "提醒，依此方式提領，基本保險金額將於保險契約有效期間內歸零", "") -> 
C95: 年齡二 | F95: 歲 | G95: 當次提領金額 | J95: 美元
E96: =IF(E97="","",IF(E97<=E95,"定額提領試算年齡三需大於定額提領試算年齡一及年齡二","")) -> 
C97: 年齡三 | F97: 歲 | G97: 當次提領金額 | J97: 美元
B104: 建議書摘要表 (含簽名欄位) | D104: 商品利益說明表 (不含紅利部份) | G104: 商品利益分析表 | I104: 減少保險金額 | L104: 分期定期保險金給付
E105: 建議書列印頁

Sheet 減少保險金影響表 (hidden)
B1: ="安達人壽"&ProductName &" - 減少保險金影響表" -> 安達人壽永富長紅美元分紅終身壽險 - 減少保險金影響表
A2: 商品名稱: 安達人壽永富長紅美元分紅終身壽險 給付項目：身故保險金或喪葬費用保險金、完全失能保險金、祝壽保險金、生命末期提前給付保險金 ※本保險為分紅保險單，保單紅利部分非本保險單之保證給付項目，安達人壽不保證其給付金額(保額)。 ※本保險為以外幣收付之非投資型人身保險契約，不得與以新臺幣收付之人身保險契約辦理契約轉換。 ※本建議書係招攬人員於銷售過程中提供予要保人參考，當建議書所列投保資料與要保書填寫不同時，試算金額也將隨之異動，詳細金額仍須以要保書／保單面頁填寫內容為準。 ※本頁非完整文件，請與(建議書摘要表)併為審閱。
B3: 要保險人： | C3: =參數!H8 -> 被保人 | D3: ="保險年齡： "&age & " 歲" -> 保險年齡： 70 歲 | E3: ="繳 別： "&ChargeMode -> 繳 別： 年繳 | F3: ="首期繳費方式 :"&PayMode1 -> 首期繳費方式 :金融機構自動轉帳 | G3: ="首期保費："&TEXT(GP_bf_disc,"###,###,###.00") & " 美元" -> 首期保費：1,273,000.00 美元 | I3: ="首期折扣後保費："&TEXT(GP_af_disc,"###,###,###.00") & " 美元" -> 首期折扣後保費：1,241,365.95 美元 | K3: ="基本保險金額："&TEXT(SA,"###,###,###.00")&" 美元" -> 基本保險金額：10,000,000.00 美元 | M3: ="高保費折扣:"&TEXT(Prem_disc,"0.00%") -> 高保費折扣:1.50% | Q3: 列印
B4: 被保險人： | C4: =InsName -> 被保人 | D4: ="性 別： "&EntryGender -> 性 別： 女性 | E4: ="繳費年期： "&plan & " 年期" -> 繳費年期： 7 年期 | F4: ="續期繳費方式 :"&PayMode2 -> 續期繳費方式 :金融機構自動轉帳 | G4: ="續期保費："&TEXT(RP_bf_disc,"###,###,###.00") & " 美元" -> 續期保費：1,273,000.00 美元 | I4: ="續期折扣後保費："&TEXT(RP_af_disc,"###,###,###.00") & " 美元" -> 續期折扣後保費：1,241,365.95 美元 | K4: ="繳費方式折扣 : "&IF(PayModeDisc1=1%,TEXT(PayModeDisc1,"0.00%"),IF(PayModeDisc2=1%,TEXT(PayModeDisc2,"0.00%"),TEXT(0,"0.00%"))) -> 繳費方式折扣 : 1.00%
M5: (幣別/單位：美元/元)
B6: 年度 | C6: 年齡 | D6: 折扣後 當年度 所繳保險費 | E6: 折扣後 累計 所繳保險費 | F6: 【非保證給付項目】假設分紅-最可能紅利金額(保額)(中分紅) | Q6: 回到資料輸入
F7: 原保險金額試算 | H7: 減少保險金額試算
F8: 當年度末 壽險保障及 假設紅利_分紅保額 (預估值) (中) | G8: 當年度末 可能領取 解約金總額 (預估值) (中) | H8: 該次減少 基本保險金額 可領取之解約金 (預估值) (年初) | I8: 歷年減少 基本保險金額 領取之解約金總額 (預估值) A | J8: 減少基本保險金額後 當年度末壽險保障及 假設紅利_分紅保額 (預估值) | K8: 減少基本保險金額後 當年度末解約 可能領取之解約金 (預估值) B | L8: 累計至當年度末解約可能總領金額 (預估值) A+B=C
B9: 1 | C9: =IF(B9="","",age+B9-1) -> 70 | D9: =IF(C9="","***以下空白***",IF($B9="","",IF($B9>plan,"",VLOOKUP($B9,formula!$A$15:$BI$124,formula!$AM$9,FALSE)))) -> 1241365.95 | E9: =IF($B9="","",VLOOKUP($B9,formula!$A$15:$BI$124,formula!$AN$9,FALSE)) -> 1241365.95 | F9: =IF($B9="","",VLOOKUP($B9,formula!$A$15:$BI$124,formula!$AD$9+1,FALSE)) -> 10000000 | G9: =IF($B9="","",VLOOKUP($B9,formula!$A$15:$BI$124,formula!$AG$9+1,FALSE)) -> 435590 | H9: =IF($B9="","",VLOOKUP($B9,formula!$A$15:$EV$124,formula!$EM$9,FALSE)) -> 0 | I9: =IF($B9="","",VLOOKUP($B9,formula!$A$15:$EV$124,formula!$EN$9,FALSE)) -> 0 | J9: =IF($B9="","",VLOOKUP($B9,formula!$A$15:$BI$124,formula!$AV$9,FALSE)) -> 10000000 | K9: =IF($B9="","",VLOOKUP($B9,formula!$A$15:$BI$124,formula!$AU$9,FALSE)) -> 435590 | L9: =IF($B9="","",VLOOKUP($B9,formula!$A$15:$BI$124,formula!$AX$9,FALSE)) -> 435590
B10: =IF(B9>=109-age+1,"",B9+1) -> 2 | C10: 71 | D10: =IF(C9=MaxCoverageYear-1,"***以下空白***",IF($B10="","",IF($B10>plan,"",VLOOKUP($B10,formula!$A$15:$BI$124,formula!$AM$9,FALSE)))) -> 1241365.95 | E10: =IF($B10="","",VLOOKUP($B10,formula!$A$15:$BI$124,formula!$AN$9,FALSE)) -> 2482731.9 | F10: =IF($B10="","",VLOOKUP($B10,formula!$A$15:$BI$124,formula!$AD$9+1,FALSE)) -> 10000000 | G10: =IF($B10="","",VLOOKUP($B10,formula!$A$15:$BI$124,formula!$AG$9+1,FALSE)) -> 1230050 | H10: =IF($B10="","",VLOOKUP($B10,formula!$A$15:$EV$124,formula!$EM$9,FALSE)) -> 0 | I10: =IF($B10="","",VLOOKUP($B10,formula!$A$15:$EV$124,formula!$EN$9,FALSE)) -> 0 | J10: =IF($B10="","",VLOOKUP($B10,formula!$A$15:$BI$124,formula!$AV$9,FALSE)) -> 10000000 | K10: =IF($B10="","",VLOOKUP($B10,formula!$A$15:$BI$124,formula!$AU$9,FALSE)) -> 1230050 | L10: =IF($B10="","",VLOOKUP($B10,formula!$A$15:$BI$124,formula!$AX$9,FALSE)) -> 1230050
B11: 3 | C11: 72 | D11: =IF(C10=MaxCoverageYear-1,"***以下空白***",IF($B11="","",IF($B11>plan,"",VLOOKUP($B11,formula!$A$15:$BI$124,formula!$AM$9,FALSE)))) -> 1241365.95 | E11: =IF($B11="","",VLOOKUP($B11,formula!$A$15:$BI$124,formula!$AN$9,FALSE)) -> 3724097.85 | F11: =IF($B11="","",VLOOKUP($B11,formula!$A$15:$BI$124,formula!$AD$9+1,FALSE)) -> 10100000 | G11: =IF($B11="","",VLOOKUP($B11,formula!$A$15:$BI$124,formula!$AG$9+1,FALSE)) -> 2113709.7 | H11: =IF($B11="","",VLOOKUP($B11,formula!$A$15:$EV$124,formula!$EM$9,FALSE)) -> 0 | I11: =IF($B11="","",VLOOKUP($B11,formula!$A$15:$EV$124,formula!$EN$9,FALSE)) -> 0 | J11: =IF($B11="","",VLOOKUP($B11,formula!$A$15:$BI$124,formula!$AV$9,FALSE)) -> 10100000 | K11: =IF($B11="","",VLOOKUP($B11,formula!$A$15:$BI$124,formula!$AU$9,FALSE)) -> 2113709.7 | L11: =IF($B11="","",VLOOKUP($B11,formula!$A$15:$BI$124,formula!$AX$9,FALSE)) -> 2113709.7
B12: 4 | C12: 73 | D12: =IF(C11=MaxCoverageYear-1,"***以下空白***",IF($B12="","",IF($B12>plan,"",VLOOKUP($B12,formula!$A$15:$BI$124,formula!$AM$9,FALSE)))) -> 1241365.95 | E12: =IF($B12="","",VLOOKUP($B12,formula!$A$15:$BI$124,formula!$AN$9,FALSE)) -> 4965463.8 | F12: =IF($B12="","",VLOOKUP($B12,formula!$A$15:$BI$124,formula!$AD$9+1,FALSE)) -> 10200000 | G12: =IF($B12="","",VLOOKUP($B12,formula!$A$15:$BI$124,formula!$AG$9+1,FALSE)) -> 3213450.6 | H12: =IF($B12="","",VLOOKUP($B12,formula!$A$15:$EV$124,formula!$EM$9,FALSE)) -> 0 | I12: =IF($B12="","",VLOOKUP($B12,formula!$A$15:$EV$124,formula!$EN$9,FALSE)) -> 0 | J12: =IF($B12="","",VLOOKUP($B12,formula!$A$15:$BI$124,formula!$AV$9,FALSE)) -> 10200000 | K12: =IF($B12="","",VLOOKUP($B12,formula!$A$15:$BI$124,formula!$AU$9,FALSE)) -> 3213450.6 | L12: =IF($B12="","",VLOOKUP($B12,formula!$A$15:$BI$124,formula!$AX$9,FALSE)) -> 3213450.6
B13: 5 | C13: 74 | D13: =IF(C12=MaxCoverageYear-1,"***以下空白***",IF($B13="","",IF($B13>plan,"",VLOOKUP($B13,formula!$A$15:$BI$124,formula!$AM$9,FALSE)))) -> 1241365.95 | E13: =IF($B13="","",VLOOKUP($B13,formula!$A$15:$BI$124,formula!$AN$9,FALSE)) -> 6206829.75 | F13: =IF($B13="","",VLOOKUP($B13,formula!$A$15:$BI$124,formula!$AD$9+1,FALSE)) -> 10300000 | G13: =IF($B13="","",VLOOKUP($B13,formula!$A$15:$BI$124,formula!$AG$9+1,FALSE)) -> 4703816.5 | H13: =IF($B13="","",VLOOKUP($B13,formula!$A$15:$EV$124,formula!$EM$9,FALSE)) -> 0 | I13: =IF($B13="","",VLOOKUP($B13,formula!$A$15:$EV$124,formula!$EN$9,FALSE)) -> 0 | J13: =IF($B13="","",VLOOKUP($B13,formula!$A$15:$BI$124,formula!$AV$9,FALSE)) -> 10300000 | K13: =IF($B13="","",VLOOKUP($B13,formula!$A$15:$BI$124,formula!$AU$9,FALSE)) -> 4703816.5 | L13: =IF($B13="","",VLOOKUP($B13,formula!$A$15:$BI$124,formula!$AX$9,FALSE)) -> 4703816.5
B14: 6 | C14: 75 | D14: =IF(C13=MaxCoverageYear-1,"***以下空白***",IF($B14="","",IF($B14>plan,"",VLOOKUP($B14,formula!$A$15:$BI$124,formula!$AM$9,FALSE)))) -> 1241365.95 | E14: =IF($B14="","",VLOOKUP($B14,formula!$A$15:$BI$124,formula!$AN$9,FALSE)) -> 7448195.7 | F14: =IF($B14="","",VLOOKUP($B14,formula!$A$15:$BI$124,formula!$AD$9+1,FALSE)) -> 11800000 | G14: =IF($B14="","",VLOOKUP($B14,formula!$A$15:$BI$124,formula!$AG$9+1,FALSE)) -> 6718049.2 | H14: =IF($B14="","",VLOOKUP($B14,formula!$A$15:$EV$124,formula!$EM$9,FALSE)) -> 0 | I14: =IF($B14="","",VLOOKUP($B14,formula!$A$15:$EV$124,formula!$EN$9,FALSE)) -> 0 | J14: =IF($B14="","",VLOOKUP($B14,formula!$A$15:$BI$124,formula!$AV$9,FALSE)) -> 11800000 | K14: =IF($B14="","",VLOOKUP($B14,formula!$A$15:$BI$124,formula!$AU$9,FALSE)) -> 6718049.2 | L14: =IF($B14="","",VLOOKUP($B14,formula!$A$15:$BI$124,formula!$AX$9,FALSE)) -> 6718049.2
B15: 7 | C15: 76 | D15: =IF(C14=MaxCoverageYear-1,"***以下空白***",IF($B15="","",IF($B15>plan,"",VLOOKUP($B15,formula!$A$15:$BI$124,formula!$AM$9,FALSE)))) -> 1241365.95 | E15: =IF($B15="","",VLOOKUP($B15,formula!$A$15:$BI$124,formula!$AN$9,FALSE)) -> 8689561.65 | F15: =IF($B15="","",VLOOKUP($B15,formula!$A$15:$BI$124,formula!$AD$9+1,FALSE)) -> 12100000 | G15: =IF($B15="","",VLOOKUP($B15,formula!$A$15:$BI$124,formula!$AG$9+1,FALSE)) -> 8116969.5 | H15: =IF($B15="","",VLOOKUP($B15,formula!$A$15:$EV$124,formula!$EM$9,FALSE)) -> 0 | I15: =IF($B15="","",VLOOKUP($B15,formula!$A$15:$EV$124,formula!$EN$9,FALSE)) -> 0 | J15: =IF($B15="","",VLOOKUP($B15,formula!$A$15:$BI$124,formula!$AV$9,FALSE)) -> 12100000 | K15: =IF($B15="","",VLOOKUP($B15,formula!$A$15:$BI$124,formula!$AU$9,FALSE)) -> 8116969.5 | L15: =IF($B15="","",VLOOKUP($B15,formula!$A$15:$BI$124,formula!$AX$9,FALSE)) -> 8116969.5
B16: 8 | C16: 77 | D16: =IF(C15=MaxCoverageYear-1,"***以下空白***",IF($B16="","",IF($B16>plan,"",VLOOKUP($B16,formula!$A$15:$BI$124,formula!$AM$9,FALSE)))) ->  | E16: =IF($B16="","",VLOOKUP($B16,formula!$A$15:$BI$124,formula!$AN$9,FALSE)) -> 8689561.65 | F16: =IF($B16="","",VLOOKUP($B16,formula!$A$15:$BI$124,formula!$AD$9+1,FALSE)) -> 12400000 | G16: =IF($B16="","",VLOOKUP($B16,formula!$A$15:$BI$124,formula!$AG$9+1,FALSE)) -> 8346297.2 | H16: =IF($B16="","",VLOOKUP($B16,formula!$A$15:$EV$124,formula!$EM$9,FALSE)) -> 0 | I16: =IF($B16="","",VLOOKUP($B16,formula!$A$15:$EV$124,formula!$EN$9,FALSE)) -> 0 | J16: =IF($B16="","",VLOOKUP($B16,formula!$A$15:$BI$124,formula!$AV$9,FALSE)) -> 12400000 | K16: =IF($B16="","",VLOOKUP($B16,formula!$A$15:$BI$124,formula!$AU$9,FALSE)) -> 8346297.2 | L16: =IF($B16="","",VLOOKUP($B16,formula!$A$15:$BI$124,formula!$AX$9,FALSE)) -> 8346297.2
B17: 9 | C17: 78 | D17: =IF(C16=MaxCoverageYear-1,"***以下空白***",IF($B17="","",IF($B17>plan,"",VLOOKUP($B17,formula!$A$15:$BI$124,formula!$AM$9,FALSE)))) ->  | E17: =IF($B17="","",VLOOKUP($B17,formula!$A$15:$BI$124,formula!$AN$9,FALSE)) -> 8689561.65 | F17: =IF($B17="","",VLOOKUP($B17,formula!$A$15:$BI$124,formula!$AD$9+1,FALSE)) -> 12700000 | G17: =IF($B17="","",VLOOKUP($B17,formula!$A$15:$BI$124,formula!$AG$9+1,FALSE)) -> 8851005.1 | H17: =IF($B17="","",VLOOKUP($B17,formula!$A$15:$EV$124,formula!$EM$9,FALSE)) -> 0 | I17: =IF($B17="","",VLOOKUP($B17,formula!$A$15:$EV$124,formula!$EN$9,FALSE)) -> 0 | J17: =IF($B17="","",VLOOKUP($B17,formula!$A$15:$BI$124,formula!$AV$9,FALSE)) -> 12700000 | K17: =IF($B17="","",VLOOKUP($B17,formula!$A$15:$BI$124,formula!$AU$9,FALSE)) -> 8851005.1 | L17: =IF($B17="","",VLOOKUP($B17,formula!$A$15:$BI$124,formula!$AX$9,FALSE)) -> 8851005.1
B18: 10 | C18: 79 | D18: =IF(C17=MaxCoverageYear-1,"***以下空白***",IF($B18="","",IF($B18>plan,"",VLOOKUP($B18,formula!$A$15:$BI$124,formula!$AM$9,FALSE)))) ->  | E18: =IF($B18="","",VLOOKUP($B18,formula!$A$15:$BI$124,formula!$AN$9,FALSE)) -> 8689561.65 | F18: =IF($B18="","",VLOOKUP($B18,formula!$A$15:$BI$124,formula!$AD$9+1,FALSE)) -> 13000000 | G18: =IF($B18="","",VLOOKUP($B18,formula!$A$15:$BI$124,formula!$AG$9+1,FALSE)) -> 9096041.6 | H18: =IF($B18="","",VLOOKUP($B18,formula!$A$15:$EV$124,formula!$EM$9,FALSE)) -> 0 | I18: =IF($B18="","",VLOOKUP($B18,formula!$A$15:$EV$124,formula!$EN$9,FALSE)) -> 0 | J18: =IF($B18="","",VLOOKUP($B18,formula!$A$15:$BI$124,formula!$AV$9,FALSE)) -> 13000000 | K18: =IF($B18="","",VLOOKUP($B18,formula!$A$15:$BI$124,formula!$AU$9,FALSE)) -> 9096041.6 | L18: =IF($B18="","",VLOOKUP($B18,formula!$A$15:$BI$124,formula!$AX$9,FALSE)) -> 9096041.6
B19: 11 | C19: 80 | D19: =IF(C18=MaxCoverageYear-1,"***以下空白***",IF($B19="","",IF($B19>plan,"",VLOOKUP($B19,formula!$A$15:$BI$124,formula!$AM$9,FALSE)))) ->  | E19: =IF($B19="","",VLOOKUP($B19,formula!$A$15:$BI$124,formula!$AN$9,FALSE)) -> 8689561.65 | F19: =IF($B19="","",VLOOKUP($B19,formula!$A$15:$BI$124,formula!$AD$9+1,FALSE)) -> 13300000 | G19: =IF($B19="","",VLOOKUP($B19,formula!$A$15:$BI$124,formula!$AG$9+1,FALSE)) -> 9325902.7 | H19: =IF($B19="","",VLOOKUP($B19,formula!$A$15:$EV$124,formula!$EM$9,FALSE)) -> 0 | I19: =IF($B19="","",VLOOKUP($B19,formula!$A$15:$EV$124,formula!$EN$9,FALSE)) -> 0 | J19: =IF($B19="","",VLOOKUP($B19,formula!$A$15:$BI$124,formula!$AV$9,FALSE)) -> 13300000 | K19: =IF($B19="","",VLOOKUP($B19,formula!$A$15:$BI$124,formula!$AU$9,FALSE)) -> 9325902.7 | L19: =IF($B19="","",VLOOKUP($B19,formula!$A$15:$BI$124,formula!$AX$9,FALSE)) -> 9325902.7
B20: 12 | C20: 81 | D20: =IF(C19=MaxCoverageYear-1,"***以下空白***",IF($B20="","",IF($B20>plan,"",VLOOKUP($B20,formula!$A$15:$BI$124,formula!$AM$9,FALSE)))) ->  | E20: =IF($B20="","",VLOOKUP($B20,formula!$A$15:$BI$124,formula!$AN$9,FALSE)) -> 8689561.65 | F20: =IF($B20="","",VLOOKUP($B20,formula!$A$15:$BI$124,formula!$AD$9+1,FALSE)) -> 13600000 | G20: =IF($B20="","",VLOOKUP($B20,formula!$A$15:$BI$124,formula!$AG$9+1,FALSE)) -> 9971113 | H20: =IF($B20="","",VLOOKUP($B20,formula!$A$15:$EV$124,formula!$EM$9,FALSE)) -> 0 | I20: =IF($B20="","",VLOOKUP($B20,formula!$A$15:$EV$124,formula!$EN$9,FALSE)) -> 0 | J20: =IF($B20="","",VLOOKUP($B20,formula!$A$15:$BI$124,formula!$AV$9,FALSE)) -> 13600000 | K20: =IF($B20="","",VLOOKUP($B20,formula!$A$15:$BI$124,formula!$AU$9,FALSE)) -> 9971113 | L20: =IF($B20="","",VLOOKUP($B20,formula!$A$15:$BI$124,formula!$AX$9,FALSE)) -> 9971113
B21: 13 | C21: 82 | D21: =IF(C20=MaxCoverageYear-1,"***以下空白***",IF($B21="","",IF($B21>plan,"",VLOOKUP($B21,formula!$A$15:$BI$124,formula!$AM$9,FALSE)))) ->  | E21: =IF($B21="","",VLOOKUP($B21,formula!$A$15:$BI$124,formula!$AN$9,FALSE)) -> 8689561.65 | F21: =IF($B21="","",VLOOKUP($B21,formula!$A$15:$BI$124,formula!$AD$9+1,FALSE)) -> 13900000 | G21: =IF($B21="","",VLOOKUP($B21,formula!$A$15:$BI$124,formula!$AG$9+1,FALSE)) -> 10238082.8 | H21: =IF($B21="","",VLOOKUP($B21,formula!$A$15:$EV$124,formula!$EM$9,FALSE)) -> 0 | I21: =IF($B21="","",VLOOKUP($B21,formula!$A$15:$EV$124,formula!$EN$9,FALSE)) -> 0 | J21: =IF($B21="","",VLOOKUP($B21,formula!$A$15:$BI$124,formula!$AV$9,FALSE)) -> 13900000 | K21: =IF($B21="","",VLOOKUP($B21,formula!$A$15:$BI$124,formula!$AU$9,FALSE)) -> 10238082.8 | L21: =IF($B21="","",VLOOKUP($B21,formula!$A$15:$BI$124,formula!$AX$9,FALSE)) -> 10238082.8
B22: 14 | C22: 83 | D22: =IF(C21=MaxCoverageYear-1,"***以下空白***",IF($B22="","",IF($B22>plan,"",VLOOKUP($B22,formula!$A$15:$BI$124,formula!$AM$9,FALSE)))) ->  | E22: =IF($B22="","",VLOOKUP($B22,formula!$A$15:$BI$124,formula!$AN$9,FALSE)) -> 8689561.65 | F22: =IF($B22="","",VLOOKUP($B22,formula!$A$15:$BI$124,formula!$AD$9+1,FALSE)) -> 14200000 | G22: =IF($B22="","",VLOOKUP($B22,formula!$A$15:$BI$124,formula!$AG$9+1,FALSE)) -> 10510672.8 | H22: =IF($B22="","",VLOOKUP($B22,formula!$A$15:$EV$124,formula!$EM$9,FALSE)) -> 0 | I22: =IF($B22="","",VLOOKUP($B22,formula!$A$15:$EV$124,formula!$EN$9,FALSE)) -> 0 | J22: =IF($B22="","",VLOOKUP($B22,formula!$A$15:$BI$124,formula!$AV$9,FALSE)) -> 14200000 | K22: =IF($B22="","",VLOOKUP($B22,formula!$A$15:$BI$124,formula!$AU$9,FALSE)) -> 10510672.8 | L22: =IF($B22="","",VLOOKUP($B22,formula!$A$15:$BI$124,formula!$AX$9,FALSE)) -> 10510672.8
B23: 15 | C23: 84 | D23: =IF(C22=MaxCoverageYear-1,"***以下空白***",IF($B23="","",IF($B23>plan,"",VLOOKUP($B23,formula!$A$15:$BI$124,formula!$AM$9,FALSE)))) ->  | E23: =IF($B23="","",VLOOKUP($B23,formula!$A$15:$BI$124,formula!$AN$9,FALSE)) -> 8689561.65 | F23: =IF($B23="","",VLOOKUP($B23,formula!$A$15:$BI$124,formula!$AD$9+1,FALSE)) -> 14500000 | G23: =IF($B23="","",VLOOKUP($B23,formula!$A$15:$BI$124,formula!$AG$9+1,FALSE)) -> 10784994.2 | H23: =IF($B23="","",VLOOKUP($B23,formula!$A$15:$EV$124,formula!$EM$9,FALSE)) -> 0 | I23: =IF($B23="","",VLOOKUP($B23,formula!$A$15:$EV$124,formula!$EN$9,FALSE)) -> 0 | J23: =IF($B23="","",VLOOKUP($B23,formula!$A$15:$BI$124,formula!$AV$9,FALSE)) -> 14500000 | K23: =IF($B23="","",VLOOKUP($B23,formula!$A$15:$BI$124,formula!$AU$9,FALSE)) -> 10784994.2 | L23: =IF($B23="","",VLOOKUP($B23,formula!$A$15:$BI$124,formula!$AX$9,FALSE)) -> 10784994.2
B24: 16 | C24: 85 | D24: =IF(C23=MaxCoverageYear-1,"***以下空白***",IF($B24="","",IF($B24>plan,"",VLOOKUP($B24,formula!$A$15:$BI$124,formula!$AM$9,FALSE)))) ->  | E24: =IF($B24="","",VLOOKUP($B24,formula!$A$15:$BI$124,formula!$AN$9,FALSE)) -> 8689561.65 | F24: =IF($B24="","",VLOOKUP($B24,formula!$A$15:$BI$124,formula!$AD$9+1,FALSE)) -> 14800000 | G24: =IF($B24="","",VLOOKUP($B24,formula!$A$15:$BI$124,formula!$AG$9+1,FALSE)) -> 11100544.4 | H24: =IF($B24="","",VLOOKUP($B24,formula!$A$15:$EV$124,formula!$EM$9,FALSE)) -> 0 | I24: =IF($B24="","",VLOOKUP($B24,formula!$A$15:$EV$124,formula!$EN$9,FALSE)) -> 0 | J24: =IF($B24="","",VLOOKUP($B24,formula!$A$15:$BI$124,formula!$AV$9,FALSE)) -> 14800000 | K24: =IF($B24="","",VLOOKUP($B24,formula!$A$15:$BI$124,formula!$AU$9,FALSE)) -> 11100544.4 | L24: =IF($B24="","",VLOOKUP($B24,formula!$A$15:$BI$124,formula!$AX$9,FALSE)) -> 11100544.4
B25: 17 | C25: 86 | D25: =IF(C24=MaxCoverageYear-1,"***以下空白***",IF($B25="","",IF($B25>plan,"",VLOOKUP($B25,formula!$A$15:$BI$124,formula!$AM$9,FALSE)))) ->  | E25: =IF($B25="","",VLOOKUP($B25,formula!$A$15:$BI$124,formula!$AN$9,FALSE)) -> 8689561.65 | F25: =IF($B25="","",VLOOKUP($B25,formula!$A$15:$BI$124,formula!$AD$9+1,FALSE)) -> 15100000 | G25: =IF($B25="","",VLOOKUP($B25,formula!$A$15:$BI$124,formula!$AG$9+1,FALSE)) -> 11434416 | H25: =IF($B25="","",VLOOKUP($B25,formula!$A$15:$EV$124,formula!$EM$9,FALSE)) -> 0 | I25: =IF($B25="","",VLOOKUP($B25,formula!$A$15:$EV$124,formula!$EN$9,FALSE)) -> 0 | J25: =IF($B25="","",VLOOKUP($B25,formula!$A$15:$BI$124,formula!$AV$9,FALSE)) -> 15100000 | K25: =IF($B25="","",VLOOKUP($B25,formula!$A$15:$BI$124,formula!$AU$9,FALSE)) -> 11434416 | L25: =IF($B25="","",VLOOKUP($B25,formula!$A$15:$BI$124,formula!$AX$9,FALSE)) -> 11434416
B26: 18 | C26: 87 | D26: =IF(C25=MaxCoverageYear-1,"***以下空白***",IF($B26="","",IF($B26>plan,"",VLOOKUP($B26,formula!$A$15:$BI$124,formula!$AM$9,FALSE)))) ->  | E26: =IF($B26="","",VLOOKUP($B26,formula!$A$15:$BI$124,formula!$AN$9,FALSE)) -> 8689561.65 | F26: =IF($B26="","",VLOOKUP($B26,formula!$A$15:$BI$124,formula!$AD$9+1,FALSE)) -> 15400000 | G26: =IF($B26="","",VLOOKUP($B26,formula!$A$15:$BI$124,formula!$AG$9+1,FALSE)) -> 11787702.8 | H26: =IF($B26="","",VLOOKUP($B26,formula!$A$15:$EV$124,formula!$EM$9,FALSE)) -> 0 | I26: =IF($B26="","",VLOOKUP($B26,formula!$A$15:$EV$124,formula!$EN$9,FALSE)) -> 0 | J26: =IF($B26="","",VLOOKUP($B26,formula!$A$15:$BI$124,formula!$AV$9,FALSE)) -> 15400000 | K26: =IF($B26="","",VLOOKUP($B26,formula!$A$15:$BI$124,formula!$AU$9,FALSE)) -> 11787702.8 | L26: =IF($B26="","",VLOOKUP($B26,formula!$A$15:$BI$124,formula!$AX$9,FALSE)) -> 11787702.8
B27: 19 | C27: 88 | D27: =IF(C26=MaxCoverageYear-1,"***以下空白***",IF($B27="","",IF($B27>plan,"",VLOOKUP($B27,formula!$A$15:$BI$124,formula!$AM$9,FALSE)))) ->  | E27: =IF($B27="","",VLOOKUP($B27,formula!$A$15:$BI$124,formula!$AN$9,FALSE)) -> 8689561.65 | F27: =IF($B27="","",VLOOKUP($B27,formula!$A$15:$BI$124,formula!$AD$9+1,FALSE)) -> 15700000 | G27: =IF($B27="","",VLOOKUP($B27,formula!$A$15:$BI$124,formula!$AG$9+1,FALSE)) -> 12147702 | H27: =IF($B27="","",VLOOKUP($B27,formula!$A$15:$EV$124,formula!$EM$9,FALSE)) -> 0 | I27: =IF($B27="","",VLOOKUP($B27,formula!$A$15:$EV$124,formula!$EN$9,FALSE)) -> 0 | J27: =IF($B27="","",VLOOKUP($B27,formula!$A$15:$BI$124,formula!$AV$9,FALSE)) -> 15700000 | K27: =IF($B27="","",VLOOKUP($B27,formula!$A$15:$BI$124,formula!$AU$9,FALSE)) -> 12147702 | L27: =IF($B27="","",VLOOKUP($B27,formula!$A$15:$BI$124,formula!$AX$9,FALSE)) -> 12147702
B28: 20 | C28: 89 | D28: =IF(C27=MaxCoverageYear-1,"***以下空白***",IF($B28="","",IF($B28>plan,"",VLOOKUP($B28,formula!$A$15:$BI$124,formula!$AM$9,FALSE)))) ->  | E28: =IF($B28="","",VLOOKUP($B28,formula!$A$15:$BI$124,formula!$AN$9,FALSE)) -> 8689561.65 | F28: =IF($B28="","",VLOOKUP($B28,formula!$A$15:$BI$124,formula!$AD$9+1,FALSE)) -> 16000000 | G28: =IF($B28="","",VLOOKUP($B28,formula!$A$15:$BI$124,formula!$AG$9+1,FALSE)) -> 12521342.4 | H28: =IF($B28="","",VLOOKUP($B28,formula!$A$15:$EV$124,formula!$EM$9,FALSE)) -> 0 | I28: =IF($B28="","",VLOOKUP($B28,formula!$A$15:$EV$124,formula!$EN$9,FALSE)) -> 0 | J28: =IF($B28="","",VLOOKUP($B28,formula!$A$15:$BI$124,formula!$AV$9,FALSE)) -> 16000000 | K28: =IF($B28="","",VLOOKUP($B28,formula!$A$15:$BI$124,formula!$AU$9,FALSE)) -> 12521342.4 | L28: =IF($B28="","",VLOOKUP($B28,formula!$A$15:$BI$124,formula!$AX$9,FALSE)) -> 12521342.4
B29: 21 | C29: 90 | D29: =IF(C28=MaxCoverageYear-1,"***以下空白***",IF($B29="","",IF($B29>plan,"",VLOOKUP($B29,formula!$A$15:$BI$124,formula!$AM$9,FALSE)))) ->  | E29: =IF($B29="","",VLOOKUP($B29,formula!$A$15:$BI$124,formula!$AN$9,FALSE)) -> 8689561.65 | F29: =IF($B29="","",VLOOKUP($B29,formula!$A$15:$BI$124,formula!$AD$9+1,FALSE)) -> 16300000 | G29: =IF($B29="","",VLOOKUP($B29,formula!$A$15:$BI$124,formula!$AG$9+1,FALSE)) -> 12906377.9 | H29: =IF($B29="","",VLOOKUP($B29,formula!$A$15:$EV$124,formula!$EM$9,FALSE)) -> 0 | I29: =IF($B29="","",VLOOKUP($B29,formula!$A$15:$EV$124,formula!$EN$9,FALSE)) -> 0 | J29: =IF($B29="","",VLOOKUP($B29,formula!$A$15:$BI$124,formula!$AV$9,FALSE)) -> 16300000 | K29: =IF($B29="","",VLOOKUP($B29,formula!$A$15:$BI$124,formula!$AU$9,FALSE)) -> 12906377.9 | L29: =IF($B29="","",VLOOKUP($B29,formula!$A$15:$BI$124,formula!$AX$9,FALSE)) -> 12906377.9
B30: 22 | C30: 91 | D30: =IF(C29=MaxCoverageYear-1,"***以下空白***",IF($B30="","",IF($B30>plan,"",VLOOKUP($B30,formula!$A$15:$BI$124,formula!$AM$9,FALSE)))) ->  | E30: =IF($B30="","",VLOOKUP($B30,formula!$A$15:$BI$124,formula!$AN$9,FALSE)) -> 8689561.65 | F30: =IF($B30="","",VLOOKUP($B30,formula!$A$15:$BI$124,formula!$AD$9+1,FALSE)) -> 16600000 | G30: =IF($B30="","",VLOOKUP($B30,formula!$A$15:$BI$124,formula!$AG$9+1,FALSE)) -> 13301472 | H30: =IF($B30="","",VLOOKUP($B30,formula!$A$15:$EV$124,formula!$EM$9,FALSE)) -> 0 | I30: =IF($B30="","",VLOOKUP($B30,formula!$A$15:$EV$124,formula!$EN$9,FALSE)) -> 0 | J30: =IF($B30="","",VLOOKUP($B30,formula!$A$15:$BI$124,formula!$AV$9,FALSE)) -> 16600000 | K30: =IF($B30="","",VLOOKUP($B30,formula!$A$15:$BI$124,formula!$AU$9,FALSE)) -> 13301472 | L30: =IF($B30="","",VLOOKUP($B30,formula!$A$15:$BI$124,formula!$AX$9,FALSE)) -> 13301472
B31: 23 | C31: 92 | D31: =IF(C30=MaxCoverageYear-1,"***以下空白***",IF($B31="","",IF($B31>plan,"",VLOOKUP($B31,formula!$A$15:$BI$124,formula!$AM$9,FALSE)))) ->  | E31: =IF($B31="","",VLOOKUP($B31,formula!$A$15:$BI$124,formula!$AN$9,FALSE)) -> 8689561.65 | F31: =IF($B31="","",VLOOKUP($B31,formula!$A$15:$BI$124,formula!$AD$9+1,FALSE)) -> 16900000 | G31: =IF($B31="","",VLOOKUP($B31,formula!$A$15:$BI$124,formula!$AG$9+1,FALSE)) -> 13691505 | H31: =IF($B31="","",VLOOKUP($B31,formula!$A$15:$EV$124,formula!$EM$9,FALSE)) -> 0 | I31: =IF($B31="","",VLOOKUP($B31,formula!$A$15:$EV$124,formula!$EN$9,FALSE)) -> 0 | J31: =IF($B31="","",VLOOKUP($B31,formula!$A$15:$BI$124,formula!$AV$9,FALSE)) -> 16900000 | K31: =IF($B31="","",VLOOKUP($B31,formula!$A$15:$BI$124,formula!$AU$9,FALSE)) -> 13691505 | L31: =IF($B31="","",VLOOKUP($B31,formula!$A$15:$BI$124,formula!$AX$9,FALSE)) -> 13691505
B32: 24 | C32: 93 | D32: =IF(C31=MaxCoverageYear-1,"***以下空白***",IF($B32="","",IF($B32>plan,"",VLOOKUP($B32,formula!$A$15:$BI$124,formula!$AM$9,FALSE)))) ->  | E32: =IF($B32="","",VLOOKUP($B32,formula!$A$15:$BI$124,formula!$AN$9,FALSE)) -> 8689561.65 | F32: =IF($B32="","",VLOOKUP($B32,formula!$A$15:$BI$124,formula!$AD$9+1,FALSE)) -> 17200000 | G32: =IF($B32="","",VLOOKUP($B32,formula!$A$15:$BI$124,formula!$AG$9+1,FALSE)) -> 14089358.4 | H32: =IF($B32="","",VLOOKUP($B32,formula!$A$15:$EV$124,formula!$EM$9,FALSE)) -> 0 | I32: =IF($B32="","",VLOOKUP($B32,formula!$A$15:$EV$124,formula!$EN$9,FALSE)) -> 0 | J32: =IF($B32="","",VLOOKUP($B32,formula!$A$15:$BI$124,formula!$AV$9,FALSE)) -> 17200000 | K32: =IF($B32="","",VLOOKUP($B32,formula!$A$15:$BI$124,formula!$AU$9,FALSE)) -> 14089358.4 | L32: =IF($B32="","",VLOOKUP($B32,formula!$A$15:$BI$124,formula!$AX$9,FALSE)) -> 14089358.4
B33: 25 | C33: 94 | D33: =IF(C32=MaxCoverageYear-1,"***以下空白***",IF($B33="","",IF($B33>plan,"",VLOOKUP($B33,formula!$A$15:$BI$124,formula!$AM$9,FALSE)))) ->  | E33: =IF($B33="","",VLOOKUP($B33,formula!$A$15:$BI$124,formula!$AN$9,FALSE)) -> 8689561.65 | F33: =IF($B33="","",VLOOKUP($B33,formula!$A$15:$BI$124,formula!$AD$9+1,FALSE)) -> 17500000 | G33: =IF($B33="","",VLOOKUP($B33,formula!$A$15:$BI$124,formula!$AG$9+1,FALSE)) -> 14497845.1 | H33: =IF($B33="","",VLOOKUP($B33,formula!$A$15:$EV$124,formula!$EM$9,FALSE)) -> 0 | I33: =IF($B33="","",VLOOKUP($B33,formula!$A$15:$EV$124,formula!$EN$9,FALSE)) -> 0 | J33: =IF($B33="","",VLOOKUP($B33,formula!$A$15:$BI$124,formula!$AV$9,FALSE)) -> 17500000 | K33: =IF($B33="","",VLOOKUP($B33,formula!$A$15:$BI$124,formula!$AU$9,FALSE)) -> 14497845.1 | L33: =IF($B33="","",VLOOKUP($B33,formula!$A$15:$BI$124,formula!$AX$9,FALSE)) -> 14497845.1
B34: 26 | C34: 95 | D34: =IF(C33=MaxCoverageYear-1,"***以下空白***",IF($B34="","",IF($B34>plan,"",VLOOKUP($B34,formula!$A$15:$BI$124,formula!$AM$9,FALSE)))) ->  | E34: =IF($B34="","",VLOOKUP($B34,formula!$A$15:$BI$124,formula!$AN$9,FALSE)) -> 8689561.65 | F34: =IF($B34="","",VLOOKUP($B34,formula!$A$15:$BI$124,formula!$AD$9+1,FALSE)) -> 17800000 | G34: =IF($B34="","",VLOOKUP($B34,formula!$A$15:$BI$124,formula!$AG$9+1,FALSE)) -> 14910870.8 | H34: =IF($B34="","",VLOOKUP($B34,formula!$A$15:$EV$124,formula!$EM$9,FALSE)) -> 0 | I34: =IF($B34="","",VLOOKUP($B34,formula!$A$15:$EV$124,formula!$EN$9,FALSE)) -> 0 | J34: =IF($B34="","",VLOOKUP($B34,formula!$A$15:$BI$124,formula!$AV$9,FALSE)) -> 17800000 | K34: =IF($B34="","",VLOOKUP($B34,formula!$A$15:$BI$124,formula!$AU$9,FALSE)) -> 14910870.8 | L34: =IF($B34="","",VLOOKUP($B34,formula!$A$15:$BI$124,formula!$AX$9,FALSE)) -> 14910870.8
B35: 27 | C35: 96 | D35: =IF(C34=MaxCoverageYear-1,"***以下空白***",IF($B35="","",IF($B35>plan,"",VLOOKUP($B35,formula!$A$15:$BI$124,formula!$AM$9,FALSE)))) ->  | E35: =IF($B35="","",VLOOKUP($B35,formula!$A$15:$BI$124,formula!$AN$9,FALSE)) -> 8689561.65 | F35: =IF($B35="","",VLOOKUP($B35,formula!$A$15:$BI$124,formula!$AD$9+1,FALSE)) -> 18100000 | G35: =IF($B35="","",VLOOKUP($B35,formula!$A$15:$BI$124,formula!$AG$9+1,FALSE)) -> 15337757.5 | H35: =IF($B35="","",VLOOKUP($B35,formula!$A$15:$EV$124,formula!$EM$9,FALSE)) -> 0 | I35: =IF($B35="","",VLOOKUP($B35,formula!$A$15:$EV$124,formula!$EN$9,FALSE)) -> 0 | J35: =IF($B35="","",VLOOKUP($B35,formula!$A$15:$BI$124,formula!$AV$9,FALSE)) -> 18100000 | K35: =IF($B35="","",VLOOKUP($B35,formula!$A$15:$BI$124,formula!$AU$9,FALSE)) -> 15337757.5 | L35: =IF($B35="","",VLOOKUP($B35,formula!$A$15:$BI$124,formula!$AX$9,FALSE)) -> 15337757.5
B36: 28 | C36: 97 | D36: =IF(C35=MaxCoverageYear-1,"***以下空白***",IF($B36="","",IF($B36>plan,"",VLOOKUP($B36,formula!$A$15:$BI$124,formula!$AM$9,FALSE)))) ->  | E36: =IF($B36="","",VLOOKUP($B36,formula!$A$15:$BI$124,formula!$AN$9,FALSE)) -> 8689561.65 | F36: =IF($B36="","",VLOOKUP($B36,formula!$A$15:$BI$124,formula!$AD$9+1,FALSE)) -> 18400000 | G36: =IF($B36="","",VLOOKUP($B36,formula!$A$15:$BI$124,formula!$AG$9+1,FALSE)) -> 15769446.2 | H36: =IF($B36="","",VLOOKUP($B36,formula!$A$15:$EV$124,formula!$EM$9,FALSE)) -> 0 | I36: =IF($B36="","",VLOOKUP($B36,formula!$A$15:$EV$124,formula!$EN$9,FALSE)) -> 0 | J36: =IF($B36="","",VLOOKUP($B36,formula!$A$15:$BI$124,formula!$AV$9,FALSE)) -> 18400000 | K36: =IF($B36="","",VLOOKUP($B36,formula!$A$15:$BI$124,formula!$AU$9,FALSE)) -> 15769446.2 | L36: =IF($B36="","",VLOOKUP($B36,formula!$A$15:$BI$124,formula!$AX$9,FALSE)) -> 15769446.2
B37: 29 | C37: 98 | D37: =IF(C36=MaxCoverageYear-1,"***以下空白***",IF($B37="","",IF($B37>plan,"",VLOOKUP($B37,formula!$A$15:$BI$124,formula!$AM$9,FALSE)))) ->  | E37: =IF($B37="","",VLOOKUP($B37,formula!$A$15:$BI$124,formula!$AN$9,FALSE)) -> 8689561.65 | F37: =IF($B37="","",VLOOKUP($B37,formula!$A$15:$BI$124,formula!$AD$9+1,FALSE)) -> 18700000 | G37: =IF($B37="","",VLOOKUP($B37,formula!$A$15:$BI$124,formula!$AG$9+1,FALSE)) -> 16212159.9 | H37: =IF($B37="","",VLOOKUP($B37,formula!$A$15:$EV$124,formula!$EM$9,FALSE)) -> 0 | I37: =IF($B37="","",VLOOKUP($B37,formula!$A$15:$EV$124,formula!$EN$9,FALSE)) -> 0 | J37: =IF($B37="","",VLOOKUP($B37,formula!$A$15:$BI$124,formula!$AV$9,FALSE)) -> 18700000 | K37: =IF($B37="","",VLOOKUP($B37,formula!$A$15:$BI$124,formula!$AU$9,FALSE)) -> 16212159.9 | L37: =IF($B37="","",VLOOKUP($B37,formula!$A$15:$BI$124,formula!$AX$9,FALSE)) -> 16212159.9
B38: 30 | C38: 99 | D38: =IF(C37=MaxCoverageYear-1,"***以下空白***",IF($B38="","",IF($B38>plan,"",VLOOKUP($B38,formula!$A$15:$BI$124,formula!$AM$9,FALSE)))) ->  | E38: =IF($B38="","",VLOOKUP($B38,formula!$A$15:$BI$124,formula!$AN$9,FALSE)) -> 8689561.65 | F38: =IF($B38="","",VLOOKUP($B38,formula!$A$15:$BI$124,formula!$AD$9+1,FALSE)) -> 19000000 | G38: =IF($B38="","",VLOOKUP($B38,formula!$A$15:$BI$124,formula!$AG$9+1,FALSE)) -> 16667272.8 | H38: =IF($B38="","",VLOOKUP($B38,formula!$A$15:$EV$124,formula!$EM$9,FALSE)) -> 0 | I38: =IF($B38="","",VLOOKUP($B38,formula!$A$15:$EV$124,formula!$EN$9,FALSE)) -> 0 | J38: =IF($B38="","",VLOOKUP($B38,formula!$A$15:$BI$124,formula!$AV$9,FALSE)) -> 19000000 | K38: =IF($B38="","",VLOOKUP($B38,formula!$A$15:$BI$124,formula!$AU$9,FALSE)) -> 16667272.8 | L38: =IF($B38="","",VLOOKUP($B38,formula!$A$15:$BI$124,formula!$AX$9,FALSE)) -> 16667272.8
B39: 31 | C39: 100 | D39: =IF(C38=MaxCoverageYear-1,"***以下空白***",IF($B39="","",IF($B39>plan,"",VLOOKUP($B39,formula!$A$15:$BI$124,formula!$AM$9,FALSE)))) ->  | E39: =IF($B39="","",VLOOKUP($B39,formula!$A$15:$BI$124,formula!$AN$9,FALSE)) -> 8689561.65 | F39: =IF($B39="","",VLOOKUP($B39,formula!$A$15:$BI$124,formula!$AD$9+1,FALSE)) -> 19300000 | G39: =IF($B39="","",VLOOKUP($B39,formula!$A$15:$BI$124,formula!$AG$9+1,FALSE)) -> 17162576.3 | H39: =IF($B39="","",VLOOKUP($B39,formula!$A$15:$EV$124,formula!$EM$9,FALSE)) -> 0 | I39: =IF($B39="","",VLOOKUP($B39,formula!$A$15:$EV$124,formula!$EN$9,FALSE)) -> 0 | J39: =IF($B39="","",VLOOKUP($B39,formula!$A$15:$BI$124,formula!$AV$9,FALSE)) -> 19300000 | K39: =IF($B39="","",VLOOKUP($B39,formula!$A$15:$BI$124,formula!$AU$9,FALSE)) -> 17162576.3 | L39: =IF($B39="","",VLOOKUP($B39,formula!$A$15:$BI$124,formula!$AX$9,FALSE)) -> 17162576.3
B40: 32 | C40: 101 | D40: =IF(C39=MaxCoverageYear-1,"***以下空白***",IF($B40="","",IF($B40>plan,"",VLOOKUP($B40,formula!$A$15:$BI$124,formula!$AM$9,FALSE)))) ->  | E40: =IF($B40="","",VLOOKUP($B40,formula!$A$15:$BI$124,formula!$AN$9,FALSE)) -> 8689561.65 | F40: =IF($B40="","",VLOOKUP($B40,formula!$A$15:$BI$124,formula!$AD$9+1,FALSE)) -> 19600000 | G40: =IF($B40="","",VLOOKUP($B40,formula!$A$15:$BI$124,formula!$AG$9+1,FALSE)) -> 17679844 | H40: =IF($B40="","",VLOOKUP($B40,formula!$A$15:$EV$124,formula!$EM$9,FALSE)) -> 0 | I40: =IF($B40="","",VLOOKUP($B40,formula!$A$15:$EV$124,formula!$EN$9,FALSE)) -> 0 | J40: =IF($B40="","",VLOOKUP($B40,formula!$A$15:$BI$124,formula!$AV$9,FALSE)) -> 19600000 | K40: =IF($B40="","",VLOOKUP($B40,formula!$A$15:$BI$124,formula!$AU$9,FALSE)) -> 17679844 | L40: =IF($B40="","",VLOOKUP($B40,formula!$A$15:$BI$124,formula!$AX$9,FALSE)) -> 17679844
B41: 33 | C41: 102 | D41: =IF(C40=MaxCoverageYear-1,"***以下空白***",IF($B41="","",IF($B41>plan,"",VLOOKUP($B41,formula!$A$15:$BI$124,formula!$AM$9,FALSE)))) ->  | E41: =IF($B41="","",VLOOKUP($B41,formula!$A$15:$BI$124,formula!$AN$9,FALSE)) -> 8689561.65 | F41: =IF($B41="","",VLOOKUP($B41,formula!$A$15:$BI$124,formula!$AD$9+1,FALSE)) -> 19900000 | G41: =IF($B41="","",VLOOKUP($B41,formula!$A$15:$BI$124,formula!$AG$9+1,FALSE)) -> 18220137.6 | H41: =IF($B41="","",VLOOKUP($B41,formula!$A$15:$EV$124,formula!$EM$9,FALSE)) -> 0 | I41: =IF($B41="","",VLOOKUP($B41,formula!$A$15:$EV$124,formula!$EN$9,FALSE)) -> 0 | J41: =IF($B41="","",VLOOKUP($B41,formula!$A$15:$BI$124,formula!$AV$9,FALSE)) -> 19900000 | K41: =IF($B41="","",VLOOKUP($B41,formula!$A$15:$BI$124,formula!$AU$9,FALSE)) -> 18220137.6 | L41: =IF($B41="","",VLOOKUP($B41,formula!$A$15:$BI$124,formula!$AX$9,FALSE)) -> 18220137.6
B42: 34 | C42: 103 | D42: =IF(C41=MaxCoverageYear-1,"***以下空白***",IF($B42="","",IF($B42>plan,"",VLOOKUP($B42,formula!$A$15:$BI$124,formula!$AM$9,FALSE)))) ->  | E42: =IF($B42="","",VLOOKUP($B42,formula!$A$15:$BI$124,formula!$AN$9,FALSE)) -> 8689561.65 | F42: =IF($B42="","",VLOOKUP($B42,formula!$A$15:$BI$124,formula!$AD$9+1,FALSE)) -> 20200000 | G42: =IF($B42="","",VLOOKUP($B42,formula!$A$15:$BI$124,formula!$AG$9+1,FALSE)) -> 18784628.8 | H42: =IF($B42="","",VLOOKUP($B42,formula!$A$15:$EV$124,formula!$EM$9,FALSE)) -> 0 | I42: =IF($B42="","",VLOOKUP($B42,formula!$A$15:$EV$124,formula!$EN$9,FALSE)) -> 0 | J42: =IF($B42="","",VLOOKUP($B42,formula!$A$15:$BI$124,formula!$AV$9,FALSE)) -> 20200000 | K42: =IF($B42="","",VLOOKUP($B42,formula!$A$15:$BI$124,formula!$AU$9,FALSE)) -> 18784628.8 | L42: =IF($B42="","",VLOOKUP($B42,formula!$A$15:$BI$124,formula!$AX$9,FALSE)) -> 18784628.8
B43: 35 | C43: 104 | D43: =IF(C42=MaxCoverageYear-1,"***以下空白***",IF($B43="","",IF($B43>plan,"",VLOOKUP($B43,formula!$A$15:$BI$124,formula!$AM$9,FALSE)))) ->  | E43: =IF($B43="","",VLOOKUP($B43,formula!$A$15:$BI$124,formula!$AN$9,FALSE)) -> 8689561.65 | F43: =IF($B43="","",VLOOKUP($B43,formula!$A$15:$BI$124,formula!$AD$9+1,FALSE)) -> 20500000 | G43: =IF($B43="","",VLOOKUP($B43,formula!$A$15:$BI$124,formula!$AG$9+1,FALSE)) -> 19374534.4 | H43: =IF($B43="","",VLOOKUP($B43,formula!$A$15:$EV$124,formula!$EM$9,FALSE)) -> 0 | I43: =IF($B43="","",VLOOKUP($B43,formula!$A$15:$EV$124,formula!$EN$9,FALSE)) -> 0 | J43: =IF($B43="","",VLOOKUP($B43,formula!$A$15:$BI$124,formula!$AV$9,FALSE)) -> 20500000 | K43: =IF($B43="","",VLOOKUP($B43,formula!$A$15:$BI$124,formula!$AU$9,FALSE)) -> 19374534.4 | L43: =IF($B43="","",VLOOKUP($B43,formula!$A$15:$BI$124,formula!$AX$9,FALSE)) -> 19374534.4
M44: (幣別/單位：美元/元)
B45: 年度 | C45: 年齡 | D45: 折扣後 當年度 所繳保險費 | E45: 折扣後 累計 所繳保險費 | F45: 【非保證給付項目】假設分紅-最可能紅利金額(保額)(中分紅)
F46: 原保險金額試算 | H46: 減少保險金額試算
F47: 當年度末 壽險保障及 假設紅利_分紅保額 (預估值) (中) | G47: 當年度末 可能領取 解約金總額 (預估值) (中) | H47: 該次減少 基本保險金額 可領取之解約金 (預估值) (年初) | I47: 歷年減少 基本保險金額 領取之解約金總額 (預估值) A | J47: 減少基本保險金額後 當年度末壽險保障及 假設紅利_分紅保額 (預估值) | K47: 減少基本保險金額後 當年度末解約 可能領取之解約金 (預估值) B | L47: 累計至當年度末解約可能總領金額 (預估值) A+B=C
B48: =IF(B43>=109-age+1,"",B43+1) -> 36 | C48: 105 | D48: =IF(C43=MaxCoverageYear-1,"***以下空白***",IF($B48="","",IF($B48>plan,"",VLOOKUP($B48,formula!$A$15:$BI$124,formula!$AM$9,FALSE)))) ->  | E48: =IF($B48="","",VLOOKUP($B48,formula!$A$15:$BI$124,formula!$AN$9,FALSE)) -> 8689561.65 | F48: =IF($B48="","",VLOOKUP($B48,formula!$A$15:$BI$124,formula!$AD$9+1,FALSE)) -> 20800000 | G48: =IF($B48="","",VLOOKUP($B48,formula!$A$15:$BI$124,formula!$AG$9+1,FALSE)) -> 19991119 | H48: =IF($B48="","",VLOOKUP($B48,formula!$A$15:$EV$124,formula!$EM$9,FALSE)) -> 0 | I48: =IF($B48="","",VLOOKUP($B48,formula!$A$15:$EV$124,formula!$EN$9,FALSE)) -> 0 | J48: =IF($B48="","",VLOOKUP($B48,formula!$A$15:$BI$124,formula!$AV$9,FALSE)) -> 20800000 | K48: =IF($B48="","",VLOOKUP($B48,formula!$A$15:$BI$124,formula!$AU$9,FALSE)) -> 19991119 | L48: =IF($B48="","",VLOOKUP($B48,formula!$A$15:$BI$124,formula!$AX$9,FALSE)) -> 19991119
B49: 37 | C49: 106 | D49: =IF(C48=MaxCoverageYear-1,"***以下空白***",IF($B49="","",IF($B49>plan,"",VLOOKUP($B49,formula!$A$15:$BI$124,formula!$AM$9,FALSE)))) ->  | E49: =IF($B49="","",VLOOKUP($B49,formula!$A$15:$BI$124,formula!$AN$9,FALSE)) -> 8689561.65 | F49: =IF($B49="","",VLOOKUP($B49,formula!$A$15:$BI$124,formula!$AD$9+1,FALSE)) -> 21100000 | G49: =IF($B49="","",VLOOKUP($B49,formula!$A$15:$BI$124,formula!$AG$9+1,FALSE)) -> 20635762 | H49: =IF($B49="","",VLOOKUP($B49,formula!$A$15:$EV$124,formula!$EM$9,FALSE)) -> 0 | I49: =IF($B49="","",VLOOKUP($B49,formula!$A$15:$EV$124,formula!$EN$9,FALSE)) -> 0 | J49: =IF($B49="","",VLOOKUP($B49,formula!$A$15:$BI$124,formula!$AV$9,FALSE)) -> 21100000 | K49: =IF($B49="","",VLOOKUP($B49,formula!$A$15:$BI$124,formula!$AU$9,FALSE)) -> 20635762 | L49: =IF($B49="","",VLOOKUP($B49,formula!$A$15:$BI$124,formula!$AX$9,FALSE)) -> 20635762
B50: 38 | C50: 107 | D50: =IF(C49=MaxCoverageYear-1,"***以下空白***",IF($B50="","",IF($B50>plan,"",VLOOKUP($B50,formula!$A$15:$BI$124,formula!$AM$9,FALSE)))) ->  | E50: =IF($B50="","",VLOOKUP($B50,formula!$A$15:$BI$124,formula!$AN$9,FALSE)) -> 8689561.65 | F50: =IF($B50="","",VLOOKUP($B50,formula!$A$15:$BI$124,formula!$AD$9+1,FALSE)) -> 21400000 | G50: =IF($B50="","",VLOOKUP($B50,formula!$A$15:$BI$124,formula!$AG$9+1,FALSE)) -> 21309898 | H50: =IF($B50="","",VLOOKUP($B50,formula!$A$15:$EV$124,formula!$EM$9,FALSE)) -> 0 | I50: =IF($B50="","",VLOOKUP($B50,formula!$A$15:$EV$124,formula!$EN$9,FALSE)) -> 0 | J50: =IF($B50="","",VLOOKUP($B50,formula!$A$15:$BI$124,formula!$AV$9,FALSE)) -> 21400000 | K50: =IF($B50="","",VLOOKUP($B50,formula!$A$15:$BI$124,formula!$AU$9,FALSE)) -> 21309898 | L50: =IF($B50="","",VLOOKUP($B50,formula!$A$15:$BI$124,formula!$AX$9,FALSE)) -> 21309898
B51: 39 | C51: 108 | D51: =IF(C50=MaxCoverageYear-1,"***以下空白***",IF($B51="","",IF($B51>plan,"",VLOOKUP($B51,formula!$A$15:$BI$124,formula!$AM$9,FALSE)))) ->  | E51: =IF($B51="","",VLOOKUP($B51,formula!$A$15:$BI$124,formula!$AN$9,FALSE)) -> 8689561.65 | F51: =IF($B51="","",VLOOKUP($B51,formula!$A$15:$BI$124,formula!$AD$9+1,FALSE)) -> 21700000 | G51: =IF($B51="","",VLOOKUP($B51,formula!$A$15:$BI$124,formula!$AG$9+1,FALSE)) -> 22015030.1 | H51: =IF($B51="","",VLOOKUP($B51,formula!$A$15:$EV$124,formula!$EM$9,FALSE)) -> 0 | I51: =IF($B51="","",VLOOKUP($B51,formula!$A$15:$EV$124,formula!$EN$9,FALSE)) -> 0 | J51: =IF($B51="","",VLOOKUP($B51,formula!$A$15:$BI$124,formula!$AV$9,FALSE)) -> 21700000 | K51: =IF($B51="","",VLOOKUP($B51,formula!$A$15:$BI$124,formula!$AU$9,FALSE)) -> 22015030.1 | L51: =IF($B51="","",VLOOKUP($B51,formula!$A$15:$BI$124,formula!$AX$9,FALSE)) -> 22015030.1
B52: 40 | C52: 109 | D52: =IF(C51=MaxCoverageYear-1,"***以下空白***",IF($B52="","",IF($B52>plan,"",VLOOKUP($B52,formula!$A$15:$BI$124,formula!$AM$9,FALSE)))) ->  | E52: =IF($B52="","",VLOOKUP($B52,formula!$A$15:$BI$124,formula!$AN$9,FALSE)) -> 8689561.65 | F52: =IF($B52="","",VLOOKUP($B52,formula!$A$15:$BI$124,formula!$AD$9+1,FALSE)) -> 22300000 | G52: =IF($B52="","",VLOOKUP($B52,formula!$A$15:$BI$124,formula!$AG$9+1,FALSE)) -> 22768610 | H52: =IF($B52="","",VLOOKUP($B52,formula!$A$15:$EV$124,formula!$EM$9,FALSE)) -> 0 | I52: =IF($B52="","",VLOOKUP($B52,formula!$A$15:$EV$124,formula!$EN$9,FALSE)) -> 0 | J52: =IF($B52="","",VLOOKUP($B52,formula!$A$15:$BI$124,formula!$AV$9,FALSE)) -> 22300000 | K52: =IF($B52="","",VLOOKUP($B52,formula!$A$15:$BI$124,formula!$AU$9,FALSE)) -> 22768610 | L52: =IF($B52="","",VLOOKUP($B52,formula!$A$15:$BI$124,formula!$AX$9,FALSE)) -> 22768610
B53: =IF(B52>=109-age+1,"",B52+1) ->  | D53: =IF(C52=MaxCoverageYear-1,"***以下空白***",IF($B53="","",IF($B53>plan,"",VLOOKUP($B53,formula!$A$15:$BI$124,formula!$AM$9,FALSE)))) -> ***以下空白*** | E53: =IF($B53="","",VLOOKUP($B53,formula!$A$15:$BI$124,formula!$AN$9,FALSE)) ->  | F53: =IF($B53="","",VLOOKUP($B53,formula!$A$15:$BI$124,formula!$AD$9+1,FALSE)) ->  | G53: =IF($B53="","",VLOOKUP($B53,formula!$A$15:$BI$124,formula!$AG$9+1,FALSE)) ->  | H53: =IF($B53="","",VLOOKUP($B53,formula!$A$15:$EV$124,formula!$EM$9,FALSE)) ->  | I53: =IF($B53="","",VLOOKUP($B53,formula!$A$15:$EV$124,formula!$EN$9,FALSE)) ->  | J53: =IF($B53="","",VLOOKUP($B53,formula!$A$15:$BI$124,formula!$AV$9,FALSE)) ->  | K53: =IF($B53="","",VLOOKUP($B53,formula!$A$15:$BI$124,formula!$AU$9,FALSE)) ->  | L53: =IF($B53="","",VLOOKUP($B53,formula!$A$15:$BI$124,formula!$AX$9,FALSE)) -> 
D54: =IF(C53=MaxCoverageYear-1,"***以下空白***",IF($B54="","",IF($B54>plan,"",VLOOKUP($B54,formula!$A$15:$BI$124,formula!$AM$9,FALSE)))) ->  | E54: =IF($B54="","",VLOOKUP($B54,formula!$A$15:$BI$124,formula!$AN$9,FALSE)) ->  | F54: =IF($B54="","",VLOOKUP($B54,formula!$A$15:$BI$124,formula!$AD$9+1,FALSE)) ->  | G54: =IF($B54="","",VLOOKUP($B54,formula!$A$15:$BI$124,formula!$AG$9+1,FALSE)) ->  | H54: =IF($B54="","",VLOOKUP($B54,formula!$A$15:$EV$124,formula!$EM$9,FALSE)) ->  | I54: =IF($B54="","",VLOOKUP($B54,formula!$A$15:$EV$124,formula!$EN$9,FALSE)) ->  | J54: =IF($B54="","",VLOOKUP($B54,formula!$A$15:$BI$124,formula!$AV$9,FALSE)) ->  | K54: =IF($B54="","",VLOOKUP($B54,formula!$A$15:$BI$124,formula!$AU$9,FALSE)) ->  | L54: =IF($B54="","",VLOOKUP($B54,formula!$A$15:$BI$124,formula!$AX$9,FALSE)) -> 
D55: =IF(C54=MaxCoverageYear-1,"***以下空白***",IF($B55="","",IF($B55>plan,"",VLOOKUP($B55,formula!$A$15:$BI$124,formula!$AM$9,FALSE)))) ->  | E55: =IF($B55="","",VLOOKUP($B55,formula!$A$15:$BI$124,formula!$AN$9,FALSE)) ->  | F55: =IF($B55="","",VLOOKUP($B55,formula!$A$15:$BI$124,formula!$AD$9+1,FALSE)) ->  | G55: =IF($B55="","",VLOOKUP($B55,formula!$A$15:$BI$124,formula!$AG$9+1,FALSE)) ->  | H55: =IF($B55="","",VLOOKUP($B55,formula!$A$15:$EV$124,formula!$EM$9,FALSE)) ->  | I55: =IF($B55="","",VLOOKUP($B55,formula!$A$15:$EV$124,formula!$EN$9,FALSE)) ->  | J55: =IF($B55="","",VLOOKUP($B55,formula!$A$15:$BI$124,formula!$AV$9,FALSE)) ->  | K55: =IF($B55="","",VLOOKUP($B55,formula!$A$15:$BI$124,formula!$AU$9,FALSE)) ->  | L55: =IF($B55="","",VLOOKUP($B55,formula!$A$15:$BI$124,formula!$AX$9,FALSE)) -> 
D56: =IF(C55=MaxCoverageYear-1,"***以下空白***",IF($B56="","",IF($B56>plan,"",VLOOKUP($B56,formula!$A$15:$BI$124,formula!$AM$9,FALSE)))) ->  | E56: =IF($B56="","",VLOOKUP($B56,formula!$A$15:$BI$124,formula!$AN$9,FALSE)) ->  | F56: =IF($B56="","",VLOOKUP($B56,formula!$A$15:$BI$124,formula!$AD$9+1,FALSE)) ->  | G56: =IF($B56="","",VLOOKUP($B56,formula!$A$15:$BI$124,formula!$AG$9+1,FALSE)) ->  | H56: =IF($B56="","",VLOOKUP($B56,formula!$A$15:$EV$124,formula!$EM$9,FALSE)) ->  | I56: =IF($B56="","",VLOOKUP($B56,formula!$A$15:$EV$124,formula!$EN$9,FALSE)) ->  | J56: =IF($B56="","",VLOOKUP($B56,formula!$A$15:$BI$124,formula!$AV$9,FALSE)) ->  | K56: =IF($B56="","",VLOOKUP($B56,formula!$A$15:$BI$124,formula!$AU$9,FALSE)) ->  | L56: =IF($B56="","",VLOOKUP($B56,formula!$A$15:$BI$124,formula!$AX$9,FALSE)) -> 
D57: =IF(C56=MaxCoverageYear-1,"***以下空白***",IF($B57="","",IF($B57>plan,"",VLOOKUP($B57,formula!$A$15:$BI$124,formula!$AM$9,FALSE)))) ->  | E57: =IF($B57="","",VLOOKUP($B57,formula!$A$15:$BI$124,formula!$AN$9,FALSE)) ->  | F57: =IF($B57="","",VLOOKUP($B57,formula!$A$15:$BI$124,formula!$AD$9+1,FALSE)) ->  | G57: =IF($B57="","",VLOOKUP($B57,formula!$A$15:$BI$124,formula!$AG$9+1,FALSE)) ->  | H57: =IF($B57="","",VLOOKUP($B57,formula!$A$15:$EV$124,formula!$EM$9,FALSE)) ->  | I57: =IF($B57="","",VLOOKUP($B57,formula!$A$15:$EV$124,formula!$EN$9,FALSE)) ->  | J57: =IF($B57="","",VLOOKUP($B57,formula!$A$15:$BI$124,formula!$AV$9,FALSE)) ->  | K57: =IF($B57="","",VLOOKUP($B57,formula!$A$15:$BI$124,formula!$AU$9,FALSE)) ->  | L57: =IF($B57="","",VLOOKUP($B57,formula!$A$15:$BI$124,formula!$AX$9,FALSE)) -> 
D58: =IF(C57=MaxCoverageYear-1,"***以下空白***",IF($B58="","",IF($B58>plan,"",VLOOKUP($B58,formula!$A$15:$BI$124,formula!$AM$9,FALSE)))) ->  | E58: =IF($B58="","",VLOOKUP($B58,formula!$A$15:$BI$124,formula!$AN$9,FALSE)) ->  | F58: =IF($B58="","",VLOOKUP($B58,formula!$A$15:$BI$124,formula!$AD$9+1,FALSE)) ->  | G58: =IF($B58="","",VLOOKUP($B58,formula!$A$15:$BI$124,formula!$AG$9+1,FALSE)) ->  | H58: =IF($B58="","",VLOOKUP($B58,formula!$A$15:$EV$124,formula!$EM$9,FALSE)) ->  | I58: =IF($B58="","",VLOOKUP($B58,formula!$A$15:$EV$124,formula!$EN$9,FALSE)) ->  | J58: =IF($B58="","",VLOOKUP($B58,formula!$A$15:$BI$124,formula!$AV$9,FALSE)) ->  | K58: =IF($B58="","",VLOOKUP($B58,formula!$A$15:$BI$124,formula!$AU$9,FALSE)) ->  | L58: =IF($B58="","",VLOOKUP($B58,formula!$A$15:$BI$124,formula!$AX$9,FALSE)) -> 
D59: =IF(C58=MaxCoverageYear-1,"***以下空白***",IF($B59="","",IF($B59>plan,"",VLOOKUP($B59,formula!$A$15:$BI$124,formula!$AM$9,FALSE)))) ->  | E59: =IF($B59="","",VLOOKUP($B59,formula!$A$15:$BI$124,formula!$AN$9,FALSE)) ->  | F59: =IF($B59="","",VLOOKUP($B59,formula!$A$15:$BI$124,formula!$AD$9+1,FALSE)) ->  | G59: =IF($B59="","",VLOOKUP($B59,formula!$A$15:$BI$124,formula!$AG$9+1,FALSE)) ->  | H59: =IF($B59="","",VLOOKUP($B59,formula!$A$15:$EV$124,formula!$EM$9,FALSE)) ->  | I59: =IF($B59="","",VLOOKUP($B59,formula!$A$15:$EV$124,formula!$EN$9,FALSE)) ->  | J59: =IF($B59="","",VLOOKUP($B59,formula!$A$15:$BI$124,formula!$AV$9,FALSE)) ->  | K59: =IF($B59="","",VLOOKUP($B59,formula!$A$15:$BI$124,formula!$AU$9,FALSE)) ->  | L59: =IF($B59="","",VLOOKUP($B59,formula!$A$15:$BI$124,formula!$AX$9,FALSE)) -> 
D60: =IF(C59=MaxCoverageYear-1,"***以下空白***",IF($B60="","",IF($B60>plan,"",VLOOKUP($B60,formula!$A$15:$BI$124,formula!$AM$9,FALSE)))) ->  | E60: =IF($B60="","",VLOOKUP($B60,formula!$A$15:$BI$124,formula!$AN$9,FALSE)) ->  | F60: =IF($B60="","",VLOOKUP($B60,formula!$A$15:$BI$124,formula!$AD$9+1,FALSE)) ->  | G60: =IF($B60="","",VLOOKUP($B60,formula!$A$15:$BI$124,formula!$AG$9+1,FALSE)) ->  | H60: =IF($B60="","",VLOOKUP($B60,formula!$A$15:$EV$124,formula!$EM$9,FALSE)) ->  | I60: =IF($B60="","",VLOOKUP($B60,formula!$A$15:$EV$124,formula!$EN$9,FALSE)) ->  | J60: =IF($B60="","",VLOOKUP($B60,formula!$A$15:$BI$124,formula!$AV$9,FALSE)) ->  | K60: =IF($B60="","",VLOOKUP($B60,formula!$A$15:$BI$124,formula!$AU$9,FALSE)) ->  | L60: =IF($B60="","",VLOOKUP($B60,formula!$A$15:$BI$124,formula!$AX$9,FALSE)) -> 
D61: =IF(C60=MaxCoverageYear-1,"***以下空白***",IF($B61="","",IF($B61>plan,"",VLOOKUP($B61,formula!$A$15:$BI$124,formula!$AM$9,FALSE)))) ->  | E61: =IF($B61="","",VLOOKUP($B61,formula!$A$15:$BI$124,formula!$AN$9,FALSE)) ->  | F61: =IF($B61="","",VLOOKUP($B61,formula!$A$15:$BI$124,formula!$AD$9+1,FALSE)) ->  | G61: =IF($B61="","",VLOOKUP($B61,formula!$A$15:$BI$124,formula!$AG$9+1,FALSE)) ->  | H61: =IF($B61="","",VLOOKUP($B61,formula!$A$15:$EV$124,formula!$EM$9,FALSE)) ->  | I61: =IF($B61="","",VLOOKUP($B61,formula!$A$15:$EV$124,formula!$EN$9,FALSE)) ->  | J61: =IF($B61="","",VLOOKUP($B61,formula!$A$15:$BI$124,formula!$AV$9,FALSE)) ->  | K61: =IF($B61="","",VLOOKUP($B61,formula!$A$15:$BI$124,formula!$AU$9,FALSE)) ->  | L61: =IF($B61="","",VLOOKUP($B61,formula!$A$15:$BI$124,formula!$AX$9,FALSE)) -> 
D62: =IF(C61=MaxCoverageYear-1,"***以下空白***",IF($B62="","",IF($B62>plan,"",VLOOKUP($B62,formula!$A$15:$BI$124,formula!$AM$9,FALSE)))) ->  | E62: =IF($B62="","",VLOOKUP($B62,formula!$A$15:$BI$124,formula!$AN$9,FALSE)) ->  | F62: =IF($B62="","",VLOOKUP($B62,formula!$A$15:$BI$124,formula!$AD$9+1,FALSE)) ->  | G62: =IF($B62="","",VLOOKUP($B62,formula!$A$15:$BI$124,formula!$AG$9+1,FALSE)) ->  | H62: =IF($B62="","",VLOOKUP($B62,formula!$A$15:$EV$124,formula!$EM$9,FALSE)) ->  | I62: =IF($B62="","",VLOOKUP($B62,formula!$A$15:$EV$124,formula!$EN$9,FALSE)) ->  | J62: =IF($B62="","",VLOOKUP($B62,formula!$A$15:$BI$124,formula!$AV$9,FALSE)) ->  | K62: =IF($B62="","",VLOOKUP($B62,formula!$A$15:$BI$124,formula!$AU$9,FALSE)) ->  | L62: =IF($B62="","",VLOOKUP($B62,formula!$A$15:$BI$124,formula!$AX$9,FALSE)) -> 
D63: =IF(C62=MaxCoverageYear-1,"***以下空白***",IF($B63="","",IF($B63>plan,"",VLOOKUP($B63,formula!$A$15:$BI$124,formula!$AM$9,FALSE)))) ->  | E63: =IF($B63="","",VLOOKUP($B63,formula!$A$15:$BI$124,formula!$AN$9,FALSE)) ->  | F63: =IF($B63="","",VLOOKUP($B63,formula!$A$15:$BI$124,formula!$AD$9+1,FALSE)) ->  | G63: =IF($B63="","",VLOOKUP($B63,formula!$A$15:$BI$124,formula!$AG$9+1,FALSE)) ->  | H63: =IF($B63="","",VLOOKUP($B63,formula!$A$15:$EV$124,formula!$EM$9,FALSE)) ->  | I63: =IF($B63="","",VLOOKUP($B63,formula!$A$15:$EV$124,formula!$EN$9,FALSE)) ->  | J63: =IF($B63="","",VLOOKUP($B63,formula!$A$15:$BI$124,formula!$AV$9,FALSE)) ->  | K63: =IF($B63="","",VLOOKUP($B63,formula!$A$15:$BI$124,formula!$AU$9,FALSE)) ->  | L63: =IF($B63="","",VLOOKUP($B63,formula!$A$15:$BI$124,formula!$AX$9,FALSE)) -> 
D64: =IF(C63=MaxCoverageYear-1,"***以下空白***",IF($B64="","",IF($B64>plan,"",VLOOKUP($B64,formula!$A$15:$BI$124,formula!$AM$9,FALSE)))) ->  | E64: =IF($B64="","",VLOOKUP($B64,formula!$A$15:$BI$124,formula!$AN$9,FALSE)) ->  | F64: =IF($B64="","",VLOOKUP($B64,formula!$A$15:$BI$124,formula!$AD$9+1,FALSE)) ->  | G64: =IF($B64="","",VLOOKUP($B64,formula!$A$15:$BI$124,formula!$AG$9+1,FALSE)) ->  | H64: =IF($B64="","",VLOOKUP($B64,formula!$A$15:$EV$124,formula!$EM$9,FALSE)) ->  | I64: =IF($B64="","",VLOOKUP($B64,formula!$A$15:$EV$124,formula!$EN$9,FALSE)) ->  | J64: =IF($B64="","",VLOOKUP($B64,formula!$A$15:$BI$124,formula!$AV$9,FALSE)) ->  | K64: =IF($B64="","",VLOOKUP($B64,formula!$A$15:$BI$124,formula!$AU$9,FALSE)) ->  | L64: =IF($B64="","",VLOOKUP($B64,formula!$A$15:$BI$124,formula!$AX$9,FALSE)) -> 
D65: =IF(C64=MaxCoverageYear-1,"***以下空白***",IF($B65="","",IF($B65>plan,"",VLOOKUP($B65,formula!$A$15:$BI$124,formula!$AM$9,FALSE)))) ->  | E65: =IF($B65="","",VLOOKUP($B65,formula!$A$15:$BI$124,formula!$AN$9,FALSE)) ->  | F65: =IF($B65="","",VLOOKUP($B65,formula!$A$15:$BI$124,formula!$AD$9+1,FALSE)) ->  | G65: =IF($B65="","",VLOOKUP($B65,formula!$A$15:$BI$124,formula!$AG$9+1,FALSE)) ->  | H65: =IF($B65="","",VLOOKUP($B65,formula!$A$15:$EV$124,formula!$EM$9,FALSE)) ->  | I65: =IF($B65="","",VLOOKUP($B65,formula!$A$15:$EV$124,formula!$EN$9,FALSE)) ->  | J65: =IF($B65="","",VLOOKUP($B65,formula!$A$15:$BI$124,formula!$AV$9,FALSE)) ->  | K65: =IF($B65="","",VLOOKUP($B65,formula!$A$15:$BI$124,formula!$AU$9,FALSE)) ->  | L65: =IF($B65="","",VLOOKUP($B65,formula!$A$15:$BI$124,formula!$AX$9,FALSE)) -> 
D66: =IF(C65=MaxCoverageYear-1,"***以下空白***",IF($B66="","",IF($B66>plan,"",VLOOKUP($B66,formula!$A$15:$BI$124,formula!$AM$9,FALSE)))) ->  | E66: =IF($B66="","",VLOOKUP($B66,formula!$A$15:$BI$124,formula!$AN$9,FALSE)) ->  | F66: =IF($B66="","",VLOOKUP($B66,formula!$A$15:$BI$124,formula!$AD$9+1,FALSE)) ->  | G66: =IF($B66="","",VLOOKUP($B66,formula!$A$15:$BI$124,formula!$AG$9+1,FALSE)) ->  | H66: =IF($B66="","",VLOOKUP($B66,formula!$A$15:$EV$124,formula!$EM$9,FALSE)) ->  | I66: =IF($B66="","",VLOOKUP($B66,formula!$A$15:$EV$124,formula!$EN$9,FALSE)) ->  | J66: =IF($B66="","",VLOOKUP($B66,formula!$A$15:$BI$124,formula!$AV$9,FALSE)) ->  | K66: =IF($B66="","",VLOOKUP($B66,formula!$A$15:$BI$124,formula!$AU$9,FALSE)) ->  | L66: =IF($B66="","",VLOOKUP($B66,formula!$A$15:$BI$124,formula!$AX$9,FALSE)) -> 
D67: =IF(C66=MaxCoverageYear-1,"***以下空白***",IF($B67="","",IF($B67>plan,"",VLOOKUP($B67,formula!$A$15:$BI$124,formula!$AM$9,FALSE)))) ->  | E67: =IF($B67="","",VLOOKUP($B67,formula!$A$15:$BI$124,formula!$AN$9,FALSE)) ->  | F67: =IF($B67="","",VLOOKUP($B67,formula!$A$15:$BI$124,formula!$AD$9+1,FALSE)) ->  | G67: =IF($B67="","",VLOOKUP($B67,formula!$A$15:$BI$124,formula!$AG$9+1,FALSE)) ->  | H67: =IF($B67="","",VLOOKUP($B67,formula!$A$15:$EV$124,formula!$EM$9,FALSE)) ->  | I67: =IF($B67="","",VLOOKUP($B67,formula!$A$15:$EV$124,formula!$EN$9,FALSE)) ->  | J67: =IF($B67="","",VLOOKUP($B67,formula!$A$15:$BI$124,formula!$AV$9,FALSE)) ->  | K67: =IF($B67="","",VLOOKUP($B67,formula!$A$15:$BI$124,formula!$AU$9,FALSE)) ->  | L67: =IF($B67="","",VLOOKUP($B67,formula!$A$15:$BI$124,formula!$AX$9,FALSE)) -> 
D68: =IF(C67=MaxCoverageYear-1,"***以下空白***",IF($B68="","",IF($B68>plan,"",VLOOKUP($B68,formula!$A$15:$BI$124,formula!$AM$9,FALSE)))) ->  | E68: =IF($B68="","",VLOOKUP($B68,formula!$A$15:$BI$124,formula!$AN$9,FALSE)) ->  | F68: =IF($B68="","",VLOOKUP($B68,formula!$A$15:$BI$124,formula!$AD$9+1,FALSE)) ->  | G68: =IF($B68="","",VLOOKUP($B68,formula!$A$15:$BI$124,formula!$AG$9+1,FALSE)) ->  | H68: =IF($B68="","",VLOOKUP($B68,formula!$A$15:$EV$124,formula!$EM$9,FALSE)) ->  | I68: =IF($B68="","",VLOOKUP($B68,formula!$A$15:$EV$124,formula!$EN$9,FALSE)) ->  | J68: =IF($B68="","",VLOOKUP($B68,formula!$A$15:$BI$124,formula!$AV$9,FALSE)) ->  | K68: =IF($B68="","",VLOOKUP($B68,formula!$A$15:$BI$124,formula!$AU$9,FALSE)) ->  | L68: =IF($B68="","",VLOOKUP($B68,formula!$A$15:$BI$124,formula!$AX$9,FALSE)) -> 
D69: =IF(C68=MaxCoverageYear-1,"***以下空白***",IF($B69="","",IF($B69>plan,"",VLOOKUP($B69,formula!$A$15:$BI$124,formula!$AM$9,FALSE)))) ->  | E69: =IF($B69="","",VLOOKUP($B69,formula!$A$15:$BI$124,formula!$AN$9,FALSE)) ->  | F69: =IF($B69="","",VLOOKUP($B69,formula!$A$15:$BI$124,formula!$AD$9+1,FALSE)) ->  | G69: =IF($B69="","",VLOOKUP($B69,formula!$A$15:$BI$124,formula!$AG$9+1,FALSE)) ->  | H69: =IF($B69="","",VLOOKUP($B69,formula!$A$15:$EV$124,formula!$EM$9,FALSE)) ->  | I69: =IF($B69="","",VLOOKUP($B69,formula!$A$15:$EV$124,formula!$EN$9,FALSE)) ->  | J69: =IF($B69="","",VLOOKUP($B69,formula!$A$15:$BI$124,formula!$AV$9,FALSE)) ->  | K69: =IF($B69="","",VLOOKUP($B69,formula!$A$15:$BI$124,formula!$AU$9,FALSE)) ->  | L69: =IF($B69="","",VLOOKUP($B69,formula!$A$15:$BI$124,formula!$AX$9,FALSE)) -> 
D70: =IF(C69=MaxCoverageYear-1,"***以下空白***",IF($B70="","",IF($B70>plan,"",VLOOKUP($B70,formula!$A$15:$BI$124,formula!$AM$9,FALSE)))) ->  | E70: =IF($B70="","",VLOOKUP($B70,formula!$A$15:$BI$124,formula!$AN$9,FALSE)) ->  | F70: =IF($B70="","",VLOOKUP($B70,formula!$A$15:$BI$124,formula!$AD$9+1,FALSE)) ->  | G70: =IF($B70="","",VLOOKUP($B70,formula!$A$15:$BI$124,formula!$AG$9+1,FALSE)) ->  | H70: =IF($B70="","",VLOOKUP($B70,formula!$A$15:$EV$124,formula!$EM$9,FALSE)) ->  | I70: =IF($B70="","",VLOOKUP($B70,formula!$A$15:$EV$124,formula!$EN$9,FALSE)) ->  | J70: =IF($B70="","",VLOOKUP($B70,formula!$A$15:$BI$124,formula!$AV$9,FALSE)) ->  | K70: =IF($B70="","",VLOOKUP($B70,formula!$A$15:$BI$124,formula!$AU$9,FALSE)) ->  | L70: =IF($B70="","",VLOOKUP($B70,formula!$A$15:$BI$124,formula!$AX$9,FALSE)) -> 
D71: =IF(C70=MaxCoverageYear-1,"***以下空白***",IF($B71="","",IF($B71>plan,"",VLOOKUP($B71,formula!$A$15:$BI$124,formula!$AM$9,FALSE)))) ->  | E71: =IF($B71="","",VLOOKUP($B71,formula!$A$15:$BI$124,formula!$AN$9,FALSE)) ->  | F71: =IF($B71="","",VLOOKUP($B71,formula!$A$15:$BI$124,formula!$AD$9+1,FALSE)) ->  | G71: =IF($B71="","",VLOOKUP($B71,formula!$A$15:$BI$124,formula!$AG$9+1,FALSE)) ->  | H71: =IF($B71="","",VLOOKUP($B71,formula!$A$15:$EV$124,formula!$EM$9,FALSE)) ->  | I71: =IF($B71="","",VLOOKUP($B71,formula!$A$15:$EV$124,formula!$EN$9,FALSE)) ->  | J71: =IF($B71="","",VLOOKUP($B71,formula!$A$15:$BI$124,formula!$AV$9,FALSE)) ->  | K71: =IF($B71="","",VLOOKUP($B71,formula!$A$15:$BI$124,formula!$AU$9,FALSE)) ->  | L71: =IF($B71="","",VLOOKUP($B71,formula!$A$15:$BI$124,formula!$AX$9,FALSE)) -> 
D72: =IF(C71=MaxCoverageYear-1,"***以下空白***",IF($B72="","",IF($B72>plan,"",VLOOKUP($B72,formula!$A$15:$BI$124,formula!$AM$9,FALSE)))) ->  | E72: =IF($B72="","",VLOOKUP($B72,formula!$A$15:$BI$124,formula!$AN$9,FALSE)) ->  | F72: =IF($B72="","",VLOOKUP($B72,formula!$A$15:$BI$124,formula!$AD$9+1,FALSE)) ->  | G72: =IF($B72="","",VLOOKUP($B72,formula!$A$15:$BI$124,formula!$AG$9+1,FALSE)) ->  | H72: =IF($B72="","",VLOOKUP($B72,formula!$A$15:$EV$124,formula!$EM$9,FALSE)) ->  | I72: =IF($B72="","",VLOOKUP($B72,formula!$A$15:$EV$124,formula!$EN$9,FALSE)) ->  | J72: =IF($B72="","",VLOOKUP($B72,formula!$A$15:$BI$124,formula!$AV$9,FALSE)) ->  | K72: =IF($B72="","",VLOOKUP($B72,formula!$A$15:$BI$124,formula!$AU$9,FALSE)) ->  | L72: =IF($B72="","",VLOOKUP($B72,formula!$A$15:$BI$124,formula!$AX$9,FALSE)) -> 
C73: =IF(B73="","",age+B73-1) ->  | D73: =IF(C72=MaxCoverageYear-1,"***以下空白***",IF($B73="","",IF($B73>plan,"",VLOOKUP($B73,formula!$A$15:$BI$124,formula!$AM$9,FALSE)))) ->  | E73: =IF($B73="","",VLOOKUP($B73,formula!$A$15:$BI$124,formula!$AN$9,FALSE)) ->  | F73: =IF($B73="","",VLOOKUP($B73,formula!$A$15:$BI$124,formula!$AD$9+1,FALSE)) ->  | G73: =IF($B73="","",VLOOKUP($B73,formula!$A$15:$BI$124,formula!$AG$9+1,FALSE)) ->  | H73: =IF($B73="","",VLOOKUP($B73,formula!$A$15:$EV$124,formula!$EM$9,FALSE)) ->  | I73: =IF($B73="","",VLOOKUP($B73,formula!$A$15:$EV$124,formula!$EN$9,FALSE)) ->  | J73: =IF($B73="","",VLOOKUP($B73,formula!$A$15:$BI$124,formula!$AV$9,FALSE)) ->  | K73: =IF($B73="","",VLOOKUP($B73,formula!$A$15:$BI$124,formula!$AU$9,FALSE)) ->  | L73: =IF($B73="","",VLOOKUP($B73,formula!$A$15:$BI$124,formula!$AX$9,FALSE)) -> 
D74: =IF(C73=MaxCoverageYear-1,"***以下空白***",IF($B74="","",IF($B74>plan,"",VLOOKUP($B74,formula!$A$15:$BI$124,formula!$AM$9,FALSE)))) ->  | E74: =IF($B74="","",VLOOKUP($B74,formula!$A$15:$BI$124,formula!$AN$9,FALSE)) ->  | F74: =IF($B74="","",VLOOKUP($B74,formula!$A$15:$BI$124,formula!$AD$9+1,FALSE)) ->  | G74: =IF($B74="","",VLOOKUP($B74,formula!$A$15:$BI$124,formula!$AG$9+1,FALSE)) ->  | H74: =IF($B74="","",VLOOKUP($B74,formula!$A$15:$EV$124,formula!$EM$9,FALSE)) ->  | I74: =IF($B74="","",VLOOKUP($B74,formula!$A$15:$EV$124,formula!$EN$9,FALSE)) ->  | J74: =IF($B74="","",VLOOKUP($B74,formula!$A$15:$BI$124,formula!$AV$9,FALSE)) ->  | K74: =IF($B74="","",VLOOKUP($B74,formula!$A$15:$BI$124,formula!$AU$9,FALSE)) ->  | L74: =IF($B74="","",VLOOKUP($B74,formula!$A$15:$BI$124,formula!$AX$9,FALSE)) -> 
D75: =IF(C74=MaxCoverageYear-1,"***以下空白***",IF($B75="","",IF($B75>plan,"",VLOOKUP($B75,formula!$A$15:$BI$124,formula!$AM$9,FALSE)))) ->  | E75: =IF($B75="","",VLOOKUP($B75,formula!$A$15:$BI$124,formula!$AN$9,FALSE)) ->  | F75: =IF($B75="","",VLOOKUP($B75,formula!$A$15:$BI$124,formula!$AD$9+1,FALSE)) ->  | G75: =IF($B75="","",VLOOKUP($B75,formula!$A$15:$BI$124,formula!$AG$9+1,FALSE)) ->  | H75: =IF($B75="","",VLOOKUP($B75,formula!$A$15:$EV$124,formula!$EM$9,FALSE)) ->  | I75: =IF($B75="","",VLOOKUP($B75,formula!$A$15:$EV$124,formula!$EN$9,FALSE)) ->  | J75: =IF($B75="","",VLOOKUP($B75,formula!$A$15:$BI$124,formula!$AV$9,FALSE)) ->  | K75: =IF($B75="","",VLOOKUP($B75,formula!$A$15:$BI$124,formula!$AU$9,FALSE)) ->  | L75: =IF($B75="","",VLOOKUP($B75,formula!$A$15:$BI$124,formula!$AX$9,FALSE)) -> 
D76: =IF(C75=MaxCoverageYear-1,"***以下空白***",IF($B76="","",IF($B76>plan,"",VLOOKUP($B76,formula!$A$15:$BI$124,formula!$AM$9,FALSE)))) ->  | E76: =IF($B76="","",VLOOKUP($B76,formula!$A$15:$BI$124,formula!$AN$9,FALSE)) ->  | F76: =IF($B76="","",VLOOKUP($B76,formula!$A$15:$BI$124,formula!$AD$9+1,FALSE)) ->  | G76: =IF($B76="","",VLOOKUP($B76,formula!$A$15:$BI$124,formula!$AG$9+1,FALSE)) ->  | H76: =IF($B76="","",VLOOKUP($B76,formula!$A$15:$EV$124,formula!$EM$9,FALSE)) ->  | I76: =IF($B76="","",VLOOKUP($B76,formula!$A$15:$EV$124,formula!$EN$9,FALSE)) ->  | J76: =IF($B76="","",VLOOKUP($B76,formula!$A$15:$BI$124,formula!$AV$9,FALSE)) ->  | K76: =IF($B76="","",VLOOKUP($B76,formula!$A$15:$BI$124,formula!$AU$9,FALSE)) ->  | L76: =IF($B76="","",VLOOKUP($B76,formula!$A$15:$BI$124,formula!$AX$9,FALSE)) -> 
D77: =IF(C76=MaxCoverageYear-1,"***以下空白***",IF($B77="","",IF($B77>plan,"",VLOOKUP($B77,formula!$A$15:$BI$124,formula!$AM$9,FALSE)))) ->  | E77: =IF($B77="","",VLOOKUP($B77,formula!$A$15:$BI$124,formula!$AN$9,FALSE)) ->  | F77: =IF($B77="","",VLOOKUP($B77,formula!$A$15:$BI$124,formula!$AD$9+1,FALSE)) ->  | G77: =IF($B77="","",VLOOKUP($B77,formula!$A$15:$BI$124,formula!$AG$9+1,FALSE)) ->  | H77: =IF($B77="","",VLOOKUP($B77,formula!$A$15:$EV$124,formula!$EM$9,FALSE)) ->  | I77: =IF($B77="","",VLOOKUP($B77,formula!$A$15:$EV$124,formula!$EN$9,FALSE)) ->  | J77: =IF($B77="","",VLOOKUP($B77,formula!$A$15:$BI$124,formula!$AV$9,FALSE)) ->  | K77: =IF($B77="","",VLOOKUP($B77,formula!$A$15:$BI$124,formula!$AU$9,FALSE)) ->  | L77: =IF($B77="","",VLOOKUP($B77,formula!$A$15:$BI$124,formula!$AX$9,FALSE)) -> 
B78: =IF(B77>=109-age+1,"",B77+1) ->  | D78: =IF(C77=MaxCoverageYear-1,"***以下空白***",IF($B78="","",IF($B78>plan,"",VLOOKUP($B78,formula!$A$15:$BI$124,formula!$AM$9,FALSE)))) ->  | E78: =IF($B78="","",VLOOKUP($B78,formula!$A$15:$BI$124,formula!$AN$9,FALSE)) ->  | F78: =IF($B78="","",VLOOKUP($B78,formula!$A$15:$BI$124,formula!$AD$9+1,FALSE)) ->  | G78: =IF($B78="","",VLOOKUP($B78,formula!$A$15:$BI$124,formula!$AG$9+1,FALSE)) ->  | H78: =IF($B78="","",VLOOKUP($B78,formula!$A$15:$EV$124,formula!$EM$9,FALSE)) ->  | I78: =IF($B78="","",VLOOKUP($B78,formula!$A$15:$EV$124,formula!$EN$9,FALSE)) ->  | J78: =IF($B78="","",VLOOKUP($B78,formula!$A$15:$BI$124,formula!$AV$9,FALSE)) ->  | K78: =IF($B78="","",VLOOKUP($B78,formula!$A$15:$BI$124,formula!$AU$9,FALSE)) ->  | L78: =IF($B78="","",VLOOKUP($B78,formula!$A$15:$BI$124,formula!$AX$9,FALSE)) -> 
D79: =IF(C78=MaxCoverageYear-1,"***以下空白***",IF($B79="","",IF($B79>plan,"",VLOOKUP($B79,formula!$A$15:$BI$124,formula!$AM$9,FALSE)))) ->  | E79: =IF($B79="","",VLOOKUP($B79,formula!$A$15:$BI$124,formula!$AN$9,FALSE)) ->  | F79: =IF($B79="","",VLOOKUP($B79,formula!$A$15:$BI$124,formula!$AD$9+1,FALSE)) ->  | G79: =IF($B79="","",VLOOKUP($B79,formula!$A$15:$BI$124,formula!$AG$9+1,FALSE)) ->  | H79: =IF($B79="","",VLOOKUP($B79,formula!$A$15:$EV$124,formula!$EM$9,FALSE)) ->  | I79: =IF($B79="","",VLOOKUP($B79,formula!$A$15:$EV$124,formula!$EN$9,FALSE)) ->  | J79: =IF($B79="","",VLOOKUP($B79,formula!$A$15:$BI$124,formula!$AV$9,FALSE)) ->  | K79: =IF($B79="","",VLOOKUP($B79,formula!$A$15:$BI$124,formula!$AU$9,FALSE)) ->  | L79: =IF($B79="","",VLOOKUP($B79,formula!$A$15:$BI$124,formula!$AX$9,FALSE)) -> 
D80: =IF(C79=MaxCoverageYear-1,"***以下空白***",IF($B80="","",IF($B80>plan,"",VLOOKUP($B80,formula!$A$15:$BI$124,formula!$AM$9,FALSE)))) ->  | E80: =IF($B80="","",VLOOKUP($B80,formula!$A$15:$BI$124,formula!$AN$9,FALSE)) ->  | F80: =IF($B80="","",VLOOKUP($B80,formula!$A$15:$BI$124,formula!$AD$9+1,FALSE)) ->  | G80: =IF($B80="","",VLOOKUP($B80,formula!$A$15:$BI$124,formula!$AG$9+1,FALSE)) ->  | H80: =IF($B80="","",VLOOKUP($B80,formula!$A$15:$EV$124,formula!$EM$9,FALSE)) ->  | I80: =IF($B80="","",VLOOKUP($B80,formula!$A$15:$EV$124,formula!$EN$9,FALSE)) ->  | J80: =IF($B80="","",VLOOKUP($B80,formula!$A$15:$BI$124,formula!$AV$9,FALSE)) ->  | K80: =IF($B80="","",VLOOKUP($B80,formula!$A$15:$BI$124,formula!$AU$9,FALSE)) ->  | L80: =IF($B80="","",VLOOKUP($B80,formula!$A$15:$BI$124,formula!$AX$9,FALSE)) -> 
D81: =IF(C80=MaxCoverageYear-1,"***以下空白***",IF($B81="","",IF($B81>plan,"",VLOOKUP($B81,formula!$A$15:$BI$124,formula!$AM$9,FALSE)))) ->  | E81: =IF($B81="","",VLOOKUP($B81,formula!$A$15:$BI$124,formula!$AN$9,FALSE)) ->  | F81: =IF($B81="","",VLOOKUP($B81,formula!$A$15:$BI$124,formula!$AD$9+1,FALSE)) ->  | G81: =IF($B81="","",VLOOKUP($B81,formula!$A$15:$BI$124,formula!$AG$9+1,FALSE)) ->  | H81: =IF($B81="","",VLOOKUP($B81,formula!$A$15:$EV$124,formula!$EM$9,FALSE)) ->  | I81: =IF($B81="","",VLOOKUP($B81,formula!$A$15:$EV$124,formula!$EN$9,FALSE)) ->  | J81: =IF($B81="","",VLOOKUP($B81,formula!$A$15:$BI$124,formula!$AV$9,FALSE)) ->  | K81: =IF($B81="","",VLOOKUP($B81,formula!$A$15:$BI$124,formula!$AU$9,FALSE)) ->  | L81: =IF($B81="","",VLOOKUP($B81,formula!$A$15:$BI$124,formula!$AX$9,FALSE)) -> 
D82: =IF(C81=MaxCoverageYear-1,"***以下空白***",IF($B82="","",IF($B82>plan,"",VLOOKUP($B82,formula!$A$15:$BI$124,formula!$AM$9,FALSE)))) ->  | E82: =IF($B82="","",VLOOKUP($B82,formula!$A$15:$BI$124,formula!$AN$9,FALSE)) ->  | F82: =IF($B82="","",VLOOKUP($B82,formula!$A$15:$BI$124,formula!$AD$9+1,FALSE)) ->  | G82: =IF($B82="","",VLOOKUP($B82,formula!$A$15:$BI$124,formula!$AG$9+1,FALSE)) ->  | H82: =IF($B82="","",VLOOKUP($B82,formula!$A$15:$EV$124,formula!$EM$9,FALSE)) ->  | I82: =IF($B82="","",VLOOKUP($B82,formula!$A$15:$EV$124,formula!$EN$9,FALSE)) ->  | J82: =IF($B82="","",VLOOKUP($B82,formula!$A$15:$BI$124,formula!$AV$9,FALSE)) ->  | K82: =IF($B82="","",VLOOKUP($B82,formula!$A$15:$BI$124,formula!$AU$9,FALSE)) ->  | L82: =IF($B82="","",VLOOKUP($B82,formula!$A$15:$BI$124,formula!$AX$9,FALSE)) -> 
D83: =IF(C82=MaxCoverageYear-1,"***以下空白***",IF($B83="","",IF($B83>plan,"",VLOOKUP($B83,formula!$A$15:$BI$124,formula!$AM$9,FALSE)))) ->  | E83: =IF($B83="","",VLOOKUP($B83,formula!$A$15:$BI$124,formula!$AN$9,FALSE)) ->  | F83: =IF($B83="","",VLOOKUP($B83,formula!$A$15:$BI$124,formula!$AD$9+1,FALSE)) ->  | G83: =IF($B83="","",VLOOKUP($B83,formula!$A$15:$BI$124,formula!$AG$9+1,FALSE)) ->  | H83: =IF($B83="","",VLOOKUP($B83,formula!$A$15:$EV$124,formula!$EM$9,FALSE)) ->  | I83: =IF($B83="","",VLOOKUP($B83,formula!$A$15:$EV$124,formula!$EN$9,FALSE)) ->  | J83: =IF($B83="","",VLOOKUP($B83,formula!$A$15:$BI$124,formula!$AV$9,FALSE)) ->  | K83: =IF($B83="","",VLOOKUP($B83,formula!$A$15:$BI$124,formula!$AU$9,FALSE)) ->  | L83: =IF($B83="","",VLOOKUP($B83,formula!$A$15:$BI$124,formula!$AX$9,FALSE)) -> 
D84: =IF(C83=MaxCoverageYear-1,"***以下空白***",IF($B84="","",IF($B84>plan,"",VLOOKUP($B84,formula!$A$15:$BI$124,formula!$AM$9,FALSE)))) ->  | E84: =IF($B84="","",VLOOKUP($B84,formula!$A$15:$BI$124,formula!$AN$9,FALSE)) ->  | F84: =IF($B84="","",VLOOKUP($B84,formula!$A$15:$BI$124,formula!$AD$9+1,FALSE)) ->  | G84: =IF($B84="","",VLOOKUP($B84,formula!$A$15:$BI$124,formula!$AG$9+1,FALSE)) ->  | H84: =IF($B84="","",VLOOKUP($B84,formula!$A$15:$EV$124,formula!$EM$9,FALSE)) ->  | I84: =IF($B84="","",VLOOKUP($B84,formula!$A$15:$EV$124,formula!$EN$9,FALSE)) ->  | J84: =IF($B84="","",VLOOKUP($B84,formula!$A$15:$BI$124,formula!$AV$9,FALSE)) ->  | K84: =IF($B84="","",VLOOKUP($B84,formula!$A$15:$BI$124,formula!$AU$9,FALSE)) ->  | L84: =IF($B84="","",VLOOKUP($B84,formula!$A$15:$BI$124,formula!$AX$9,FALSE)) -> 
D85: =IF(C84=MaxCoverageYear-1,"***以下空白***",IF($B85="","",IF($B85>plan,"",VLOOKUP($B85,formula!$A$15:$BI$124,formula!$AM$9,FALSE)))) ->  | E85: =IF($B85="","",VLOOKUP($B85,formula!$A$15:$BI$124,formula!$AN$9,FALSE)) ->  | F85: =IF($B85="","",VLOOKUP($B85,formula!$A$15:$BI$124,formula!$AD$9+1,FALSE)) ->  | G85: =IF($B85="","",VLOOKUP($B85,formula!$A$15:$BI$124,formula!$AG$9+1,FALSE)) ->  | H85: =IF($B85="","",VLOOKUP($B85,formula!$A$15:$EV$124,formula!$EM$9,FALSE)) ->  | I85: =IF($B85="","",VLOOKUP($B85,formula!$A$15:$EV$124,formula!$EN$9,FALSE)) ->  | J85: =IF($B85="","",VLOOKUP($B85,formula!$A$15:$BI$124,formula!$AV$9,FALSE)) ->  | K85: =IF($B85="","",VLOOKUP($B85,formula!$A$15:$BI$124,formula!$AU$9,FALSE)) ->  | L85: =IF($B85="","",VLOOKUP($B85,formula!$A$15:$BI$124,formula!$AX$9,FALSE)) -> 
D86: =IF(C85=MaxCoverageYear-1,"***以下空白***",IF($B86="","",IF($B86>plan,"",VLOOKUP($B86,formula!$A$15:$BI$124,formula!$AM$9,FALSE)))) ->  | E86: =IF($B86="","",VLOOKUP($B86,formula!$A$15:$BI$124,formula!$AN$9,FALSE)) ->  | F86: =IF($B86="","",VLOOKUP($B86,formula!$A$15:$BI$124,formula!$AD$9+1,FALSE)) ->  | G86: =IF($B86="","",VLOOKUP($B86,formula!$A$15:$BI$124,formula!$AG$9+1,FALSE)) ->  | H86: =IF($B86="","",VLOOKUP($B86,formula!$A$15:$EV$124,formula!$EM$9,FALSE)) ->  | I86: =IF($B86="","",VLOOKUP($B86,formula!$A$15:$EV$124,formula!$EN$9,FALSE)) ->  | J86: =IF($B86="","",VLOOKUP($B86,formula!$A$15:$BI$124,formula!$AV$9,FALSE)) ->  | K86: =IF($B86="","",VLOOKUP($B86,formula!$A$15:$BI$124,formula!$AU$9,FALSE)) ->  | L86: =IF($B86="","",VLOOKUP($B86,formula!$A$15:$BI$124,formula!$AX$9,FALSE)) -> 
D87: =IF(C86=MaxCoverageYear-1,"***以下空白***",IF($B87="","",IF($B87>plan,"",VLOOKUP($B87,formula!$A$15:$BI$124,formula!$AM$9,FALSE)))) ->  | E87: =IF($B87="","",VLOOKUP($B87,formula!$A$15:$BI$124,formula!$AN$9,FALSE)) ->  | F87: =IF($B87="","",VLOOKUP($B87,formula!$A$15:$BI$124,formula!$AD$9+1,FALSE)) ->  | G87: =IF($B87="","",VLOOKUP($B87,formula!$A$15:$BI$124,formula!$AG$9+1,FALSE)) ->  | H87: =IF($B87="","",VLOOKUP($B87,formula!$A$15:$EV$124,formula!$EM$9,FALSE)) ->  | I87: =IF($B87="","",VLOOKUP($B87,formula!$A$15:$EV$124,formula!$EN$9,FALSE)) ->  | J87: =IF($B87="","",VLOOKUP($B87,formula!$A$15:$BI$124,formula!$AV$9,FALSE)) ->  | K87: =IF($B87="","",VLOOKUP($B87,formula!$A$15:$BI$124,formula!$AU$9,FALSE)) ->  | L87: =IF($B87="","",VLOOKUP($B87,formula!$A$15:$BI$124,formula!$AX$9,FALSE)) -> 
D88: =IF(C87=MaxCoverageYear-1,"***以下空白***",IF($B88="","",IF($B88>plan,"",VLOOKUP($B88,formula!$A$15:$BI$124,formula!$AM$9,FALSE)))) ->  | E88: =IF($B88="","",VLOOKUP($B88,formula!$A$15:$BI$124,formula!$AN$9,FALSE)) ->  | F88: =IF($B88="","",VLOOKUP($B88,formula!$A$15:$BI$124,formula!$AD$9+1,FALSE)) ->  | G88: =IF($B88="","",VLOOKUP($B88,formula!$A$15:$BI$124,formula!$AG$9+1,FALSE)) ->  | H88: =IF($B88="","",VLOOKUP($B88,formula!$A$15:$EV$124,formula!$EM$9,FALSE)) ->  | I88: =IF($B88="","",VLOOKUP($B88,formula!$A$15:$EV$124,formula!$EN$9,FALSE)) ->  | J88: =IF($B88="","",VLOOKUP($B88,formula!$A$15:$BI$124,formula!$AV$9,FALSE)) ->  | K88: =IF($B88="","",VLOOKUP($B88,formula!$A$15:$BI$124,formula!$AU$9,FALSE)) ->  | L88: =IF($B88="","",VLOOKUP($B88,formula!$A$15:$BI$124,formula!$AX$9,FALSE)) -> 
D89: =IF(C88=MaxCoverageYear-1,"***以下空白***",IF($B89="","",IF($B89>plan,"",VLOOKUP($B89,formula!$A$15:$BI$124,formula!$AM$9,FALSE)))) ->  | E89: =IF($B89="","",VLOOKUP($B89,formula!$A$15:$BI$124,formula!$AN$9,FALSE)) ->  | F89: =IF($B89="","",VLOOKUP($B89,formula!$A$15:$BI$124,formula!$AD$9+1,FALSE)) ->  | G89: =IF($B89="","",VLOOKUP($B89,formula!$A$15:$BI$124,formula!$AG$9+1,FALSE)) ->  | H89: =IF($B89="","",VLOOKUP($B89,formula!$A$15:$EV$124,formula!$EM$9,FALSE)) ->  | I89: =IF($B89="","",VLOOKUP($B89,formula!$A$15:$EV$124,formula!$EN$9,FALSE)) ->  | J89: =IF($B89="","",VLOOKUP($B89,formula!$A$15:$BI$124,formula!$AV$9,FALSE)) ->  | K89: =IF($B89="","",VLOOKUP($B89,formula!$A$15:$BI$124,formula!$AU$9,FALSE)) ->  | L89: =IF($B89="","",VLOOKUP($B89,formula!$A$15:$BI$124,formula!$AX$9,FALSE)) -> 
D90: =IF(C89=MaxCoverageYear-1,"***以下空白***",IF($B90="","",IF($B90>plan,"",VLOOKUP($B90,formula!$A$15:$BI$124,formula!$AM$9,FALSE)))) ->  | E90: =IF($B90="","",VLOOKUP($B90,formula!$A$15:$BI$124,formula!$AN$9,FALSE)) ->  | F90: =IF($B90="","",VLOOKUP($B90,formula!$A$15:$BI$124,formula!$AD$9+1,FALSE)) ->  | G90: =IF($B90="","",VLOOKUP($B90,formula!$A$15:$BI$124,formula!$AG$9+1,FALSE)) ->  | H90: =IF($B90="","",VLOOKUP($B90,formula!$A$15:$EV$124,formula!$EM$9,FALSE)) ->  | I90: =IF($B90="","",VLOOKUP($B90,formula!$A$15:$EV$124,formula!$EN$9,FALSE)) ->  | J90: =IF($B90="","",VLOOKUP($B90,formula!$A$15:$BI$124,formula!$AV$9,FALSE)) ->  | K90: =IF($B90="","",VLOOKUP($B90,formula!$A$15:$BI$124,formula!$AU$9,FALSE)) ->  | L90: =IF($B90="","",VLOOKUP($B90,formula!$A$15:$BI$124,formula!$AX$9,FALSE)) -> 
D91: =IF(C90=MaxCoverageYear-1,"***以下空白***",IF($B91="","",IF($B91>plan,"",VLOOKUP($B91,formula!$A$15:$BI$124,formula!$AM$9,FALSE)))) ->  | E91: =IF($B91="","",VLOOKUP($B91,formula!$A$15:$BI$124,formula!$AN$9,FALSE)) ->  | F91: =IF($B91="","",VLOOKUP($B91,formula!$A$15:$BI$124,formula!$AD$9+1,FALSE)) ->  | G91: =IF($B91="","",VLOOKUP($B91,formula!$A$15:$BI$124,formula!$AG$9+1,FALSE)) ->  | H91: =IF($B91="","",VLOOKUP($B91,formula!$A$15:$EV$124,formula!$EM$9,FALSE)) ->  | I91: =IF($B91="","",VLOOKUP($B91,formula!$A$15:$EV$124,formula!$EN$9,FALSE)) ->  | J91: =IF($B91="","",VLOOKUP($B91,formula!$A$15:$BI$124,formula!$AV$9,FALSE)) ->  | K91: =IF($B91="","",VLOOKUP($B91,formula!$A$15:$BI$124,formula!$AU$9,FALSE)) ->  | L91: =IF($B91="","",VLOOKUP($B91,formula!$A$15:$BI$124,formula!$AX$9,FALSE)) -> 
D92: =IF(C91=MaxCoverageYear-1,"***以下空白***",IF($B92="","",IF($B92>plan,"",VLOOKUP($B92,formula!$A$15:$BI$124,formula!$AM$9,FALSE)))) ->  | E92: =IF($B92="","",VLOOKUP($B92,formula!$A$15:$BI$124,formula!$AN$9,FALSE)) ->  | F92: =IF($B92="","",VLOOKUP($B92,formula!$A$15:$BI$124,formula!$AD$9+1,FALSE)) ->  | G92: =IF($B92="","",VLOOKUP($B92,formula!$A$15:$BI$124,formula!$AG$9+1,FALSE)) ->  | H92: =IF($B92="","",VLOOKUP($B92,formula!$A$15:$EV$124,formula!$EM$9,FALSE)) ->  | I92: =IF($B92="","",VLOOKUP($B92,formula!$A$15:$EV$124,formula!$EN$9,FALSE)) ->  | J92: =IF($B92="","",VLOOKUP($B92,formula!$A$15:$BI$124,formula!$AV$9,FALSE)) ->  | K92: =IF($B92="","",VLOOKUP($B92,formula!$A$15:$BI$124,formula!$AU$9,FALSE)) ->  | L92: =IF($B92="","",VLOOKUP($B92,formula!$A$15:$BI$124,formula!$AX$9,FALSE)) -> 
M93: (幣別/單位：美元/元)
B94: 年度 | C94: 年齡 | D94: 折扣後 當年度 所繳保險費 | E94: 折扣後 累計 所繳保險費 | F94: 【非保證給付項目】假設分紅-最可能紅利金額(保額)(中分紅)
F95: 原保險金額試算 | H95: 減少保險金額試算
F96: 當年度末 壽險保障及 假設紅利_分紅保額 (預估值) (中) | G96: 當年度末 可能領取 解約金總額 (預估值) (中) | H96: 該次減少 基本保險金額 可領取之解約金 (預估值) (年初) | I96: 歷年減少 基本保險金額 領取之解約金總額 (預估值) A | J96: 減少基本保險金額後 當年度末壽險保障及 假設紅利_分紅保額 (預估值) | K96: 減少基本保險金額後 當年度末解約 可能領取之解約金 (預估值) B | L96: 累計至當年度末解約可能總領金額 (預估值) A+B=C
B97: =IF(B92>=109-age+1,"",B92+1) ->  | C97: =IF(B97="","",age+B97-1) ->  | D97: =IF(C92=MaxCoverageYear-1,"***以下空白***",IF($B97="","",IF($B97>plan,"",VLOOKUP($B97,formula!$A$15:$BI$124,formula!$AM$9,FALSE)))) ->  | E97: =IF($B97="","",VLOOKUP($B97,formula!$A$15:$BI$124,formula!$AN$9,FALSE)) ->  | F97: =IF($B97="","",VLOOKUP($B97,formula!$A$15:$BI$124,formula!$AD$9+1,FALSE)) ->  | G97: =IF($B97="","",VLOOKUP($B97,formula!$A$15:$BI$124,formula!$AG$9+1,FALSE)) ->  | H97: =IF($B97="","",VLOOKUP($B97,formula!$A$15:$EV$124,formula!$EM$9,FALSE)) ->  | I97: =IF($B97="","",VLOOKUP($B97,formula!$A$15:$EV$124,formula!$EN$9,FALSE)) ->  | J97: =IF($B97="","",VLOOKUP($B97,formula!$A$15:$BI$124,formula!$AV$9,FALSE)) ->  | K97: =IF($B97="","",VLOOKUP($B97,formula!$A$15:$BI$124,formula!$AU$9,FALSE)) ->  | L97: =IF($B97="","",VLOOKUP($B97,formula!$A$15:$BI$124,formula!$AX$9,FALSE)) -> 
B98: =IF(B97>=109-age+1,"",B97+1) ->  | D98: =IF(C97=MaxCoverageYear-1,"***以下空白***",IF($B98="","",IF($B98>plan,"",VLOOKUP($B98,formula!$A$15:$BI$124,formula!$AM$9,FALSE)))) ->  | E98: =IF($B98="","",VLOOKUP($B98,formula!$A$15:$BI$124,formula!$AN$9,FALSE)) ->  | F98: =IF($B98="","",VLOOKUP($B98,formula!$A$15:$BI$124,formula!$AD$9+1,FALSE)) ->  | G98: =IF($B98="","",VLOOKUP($B98,formula!$A$15:$BI$124,formula!$AG$9+1,FALSE)) ->  | H98: =IF($B98="","",VLOOKUP($B98,formula!$A$15:$EV$124,formula!$EM$9,FALSE)) ->  | I98: =IF($B98="","",VLOOKUP($B98,formula!$A$15:$EV$124,formula!$EN$9,FALSE)) ->  | J98: =IF($B98="","",VLOOKUP($B98,formula!$A$15:$BI$124,formula!$AV$9,FALSE)) ->  | K98: =IF($B98="","",VLOOKUP($B98,formula!$A$15:$BI$124,formula!$AU$9,FALSE)) ->  | L98: =IF($B98="","",VLOOKUP($B98,formula!$A$15:$BI$124,formula!$AX$9,FALSE)) -> 
D99: =IF(C98=MaxCoverageYear-1,"***以下空白***",IF($B99="","",IF($B99>plan,"",VLOOKUP($B99,formula!$A$15:$BI$124,formula!$AM$9,FALSE)))) ->  | E99: =IF($B99="","",VLOOKUP($B99,formula!$A$15:$BI$124,formula!$AN$9,FALSE)) ->  | F99: =IF($B99="","",VLOOKUP($B99,formula!$A$15:$BI$124,formula!$AD$9+1,FALSE)) ->  | G99: =IF($B99="","",VLOOKUP($B99,formula!$A$15:$BI$124,formula!$AG$9+1,FALSE)) ->  | H99: =IF($B99="","",VLOOKUP($B99,formula!$A$15:$EV$124,formula!$EM$9,FALSE)) ->  | I99: =IF($B99="","",VLOOKUP($B99,formula!$A$15:$EV$124,formula!$EN$9,FALSE)) ->  | J99: =IF($B99="","",VLOOKUP($B99,formula!$A$15:$BI$124,formula!$AV$9,FALSE)) ->  | K99: =IF($B99="","",VLOOKUP($B99,formula!$A$15:$BI$124,formula!$AU$9,FALSE)) ->  | L99: =IF($B99="","",VLOOKUP($B99,formula!$A$15:$BI$124,formula!$AX$9,FALSE)) -> 
D100: =IF(C99=MaxCoverageYear-1,"***以下空白***",IF($B100="","",IF($B100>plan,"",VLOOKUP($B100,formula!$A$15:$BI$124,formula!$AM$9,FALSE)))) ->  | E100: =IF($B100="","",VLOOKUP($B100,formula!$A$15:$BI$124,formula!$AN$9,FALSE)) ->  | F100: =IF($B100="","",VLOOKUP($B100,formula!$A$15:$BI$124,formula!$AD$9+1,FALSE)) ->  | G100: =IF($B100="","",VLOOKUP($B100,formula!$A$15:$BI$124,formula!$AG$9+1,FALSE)) ->  | H100: =IF($B100="","",VLOOKUP($B100,formula!$A$15:$EV$124,formula!$EM$9,FALSE)) ->  | I100: =IF($B100="","",VLOOKUP($B100,formula!$A$15:$EV$124,formula!$EN$9,FALSE)) ->  | J100: =IF($B100="","",VLOOKUP($B100,formula!$A$15:$BI$124,formula!$AV$9,FALSE)) ->  | K100: =IF($B100="","",VLOOKUP($B100,formula!$A$15:$BI$124,formula!$AU$9,FALSE)) ->  | L100: =IF($B100="","",VLOOKUP($B100,formula!$A$15:$BI$124,formula!$AX$9,FALSE)) -> 
D101: =IF(C100=MaxCoverageYear-1,"***以下空白***",IF($B101="","",IF($B101>plan,"",VLOOKUP($B101,formula!$A$15:$BI$124,formula!$AM$9,FALSE)))) ->  | E101: =IF($B101="","",VLOOKUP($B101,formula!$A$15:$BI$124,formula!$AN$9,FALSE)) ->  | F101: =IF($B101="","",VLOOKUP($B101,formula!$A$15:$BI$124,formula!$AD$9+1,FALSE)) ->  | G101: =IF($B101="","",VLOOKUP($B101,formula!$A$15:$BI$124,formula!$AG$9+1,FALSE)) ->  | H101: =IF($B101="","",VLOOKUP($B101,formula!$A$15:$EV$124,formula!$EM$9,FALSE)) ->  | I101: =IF($B101="","",VLOOKUP($B101,formula!$A$15:$EV$124,formula!$EN$9,FALSE)) ->  | J101: =IF($B101="","",VLOOKUP($B101,formula!$A$15:$BI$124,formula!$AV$9,FALSE)) ->  | K101: =IF($B101="","",VLOOKUP($B101,formula!$A$15:$BI$124,formula!$AU$9,FALSE)) ->  | L101: =IF($B101="","",VLOOKUP($B101,formula!$A$15:$BI$124,formula!$AX$9,FALSE)) -> 
D102: =IF(C101=MaxCoverageYear-1,"***以下空白***",IF($B102="","",IF($B102>plan,"",VLOOKUP($B102,formula!$A$15:$BI$124,formula!$AM$9,FALSE)))) ->  | E102: =IF($B102="","",VLOOKUP($B102,formula!$A$15:$BI$124,formula!$AN$9,FALSE)) ->  | F102: =IF($B102="","",VLOOKUP($B102,formula!$A$15:$BI$124,formula!$AD$9+1,FALSE)) ->  | G102: =IF($B102="","",VLOOKUP($B102,formula!$A$15:$BI$124,formula!$AG$9+1,FALSE)) ->  | H102: =IF($B102="","",VLOOKUP($B102,formula!$A$15:$EV$124,formula!$EM$9,FALSE)) ->  | I102: =IF($B102="","",VLOOKUP($B102,formula!$A$15:$EV$124,formula!$EN$9,FALSE)) ->  | J102: =IF($B102="","",VLOOKUP($B102,formula!$A$15:$BI$124,formula!$AV$9,FALSE)) ->  | K102: =IF($B102="","",VLOOKUP($B102,formula!$A$15:$BI$124,formula!$AU$9,FALSE)) ->  | L102: =IF($B102="","",VLOOKUP($B102,formula!$A$15:$BI$124,formula!$AX$9,FALSE)) -> 
D103: =IF(C102=MaxCoverageYear-1,"***以下空白***",IF($B103="","",IF($B103>plan,"",VLOOKUP($B103,formula!$A$15:$BI$124,formula!$AM$9,FALSE)))) ->  | E103: =IF($B103="","",VLOOKUP($B103,formula!$A$15:$BI$124,formula!$AN$9,FALSE)) ->  | F103: =IF($B103="","",VLOOKUP($B103,formula!$A$15:$BI$124,formula!$AD$9+1,FALSE)) ->  | G103: =IF($B103="","",VLOOKUP($B103,formula!$A$15:$BI$124,formula!$AG$9+1,FALSE)) ->  | H103: =IF($B103="","",VLOOKUP($B103,formula!$A$15:$EV$124,formula!$EM$9,FALSE)) ->  | I103: =IF($B103="","",VLOOKUP($B103,formula!$A$15:$EV$124,formula!$EN$9,FALSE)) ->  | J103: =IF($B103="","",VLOOKUP($B103,formula!$A$15:$BI$124,formula!$AV$9,FALSE)) ->  | K103: =IF($B103="","",VLOOKUP($B103,formula!$A$15:$BI$124,formula!$AU$9,FALSE)) ->  | L103: =IF($B103="","",VLOOKUP($B103,formula!$A$15:$BI$124,formula!$AX$9,FALSE)) -> 
D104: =IF(C103=MaxCoverageYear-1,"***以下空白***",IF($B104="","",IF($B104>plan,"",VLOOKUP($B104,formula!$A$15:$BI$124,formula!$AM$9,FALSE)))) ->  | E104: =IF($B104="","",VLOOKUP($B104,formula!$A$15:$BI$124,formula!$AN$9,FALSE)) ->  | F104: =IF($B104="","",VLOOKUP($B104,formula!$A$15:$BI$124,formula!$AD$9+1,FALSE)) ->  | G104: =IF($B104="","",VLOOKUP($B104,formula!$A$15:$BI$124,formula!$AG$9+1,FALSE)) ->  | H104: =IF($B104="","",VLOOKUP($B104,formula!$A$15:$EV$124,formula!$EM$9,FALSE)) ->  | I104: =IF($B104="","",VLOOKUP($B104,formula!$A$15:$EV$124,formula!$EN$9,FALSE)) ->  | J104: =IF($B104="","",VLOOKUP($B104,formula!$A$15:$BI$124,formula!$AV$9,FALSE)) ->  | K104: =IF($B104="","",VLOOKUP($B104,formula!$A$15:$BI$124,formula!$AU$9,FALSE)) ->  | L104: =IF($B104="","",VLOOKUP($B104,formula!$A$15:$BI$124,formula!$AX$9,FALSE)) -> 
D105: =IF(C104=MaxCoverageYear-1,"***以下空白***",IF($B105="","",IF($B105>plan,"",VLOOKUP($B105,formula!$A$15:$BI$124,formula!$AM$9,FALSE)))) ->  | E105: =IF($B105="","",VLOOKUP($B105,formula!$A$15:$BI$124,formula!$AN$9,FALSE)) ->  | F105: =IF($B105="","",VLOOKUP($B105,formula!$A$15:$BI$124,formula!$AD$9+1,FALSE)) ->  | G105: =IF($B105="","",VLOOKUP($B105,formula!$A$15:$BI$124,formula!$AG$9+1,FALSE)) ->  | H105: =IF($B105="","",VLOOKUP($B105,formula!$A$15:$EV$124,formula!$EM$9,FALSE)) ->  | I105: =IF($B105="","",VLOOKUP($B105,formula!$A$15:$EV$124,formula!$EN$9,FALSE)) ->  | J105: =IF($B105="","",VLOOKUP($B105,formula!$A$15:$BI$124,formula!$AV$9,FALSE)) ->  | K105: =IF($B105="","",VLOOKUP($B105,formula!$A$15:$BI$124,formula!$AU$9,FALSE)) ->  | L105: =IF($B105="","",VLOOKUP($B105,formula!$A$15:$BI$124,formula!$AX$9,FALSE)) -> 
D106: =IF(C105=MaxCoverageYear-1,"***以下空白***",IF($B106="","",IF($B106>plan,"",VLOOKUP($B106,formula!$A$15:$BI$124,formula!$AM$9,FALSE)))) ->  | E106: =IF($B106="","",VLOOKUP($B106,formula!$A$15:$BI$124,formula!$AN$9,FALSE)) ->  | F106: =IF($B106="","",VLOOKUP($B106,formula!$A$15:$BI$124,formula!$AD$9+1,FALSE)) ->  | G106: =IF($B106="","",VLOOKUP($B106,formula!$A$15:$BI$124,formula!$AG$9+1,FALSE)) ->  | H106: =IF($B106="","",VLOOKUP($B106,formula!$A$15:$EV$124,formula!$EM$9,FALSE)) ->  | I106: =IF($B106="","",VLOOKUP($B106,formula!$A$15:$EV$124,formula!$EN$9,FALSE)) ->  | J106: =IF($B106="","",VLOOKUP($B106,formula!$A$15:$BI$124,formula!$AV$9,FALSE)) ->  | K106: =IF($B106="","",VLOOKUP($B106,formula!$A$15:$BI$124,formula!$AU$9,FALSE)) ->  | L106: =IF($B106="","",VLOOKUP($B106,formula!$A$15:$BI$124,formula!$AX$9,FALSE)) -> 
D107: =IF(C106=MaxCoverageYear-1,"***以下空白***",IF($B107="","",IF($B107>plan,"",VLOOKUP($B107,formula!$A$15:$BI$124,formula!$AM$9,FALSE)))) ->  | E107: =IF($B107="","",VLOOKUP($B107,formula!$A$15:$BI$124,formula!$AN$9,FALSE)) ->  | F107: =IF($B107="","",VLOOKUP($B107,formula!$A$15:$BI$124,formula!$AD$9+1,FALSE)) ->  | G107: =IF($B107="","",VLOOKUP($B107,formula!$A$15:$BI$124,formula!$AG$9+1,FALSE)) ->  | H107: =IF($B107="","",VLOOKUP($B107,formula!$A$15:$EV$124,formula!$EM$9,FALSE)) ->  | I107: =IF($B107="","",VLOOKUP($B107,formula!$A$15:$EV$124,formula!$EN$9,FALSE)) ->  | J107: =IF($B107="","",VLOOKUP($B107,formula!$A$15:$BI$124,formula!$AV$9,FALSE)) ->  | K107: =IF($B107="","",VLOOKUP($B107,formula!$A$15:$BI$124,formula!$AU$9,FALSE)) ->  | L107: =IF($B107="","",VLOOKUP($B107,formula!$A$15:$BI$124,formula!$AX$9,FALSE)) -> 
D108: =IF(C107=MaxCoverageYear-1,"***以下空白***",IF($B108="","",IF($B108>plan,"",VLOOKUP($B108,formula!$A$15:$BI$124,formula!$AM$9,FALSE)))) ->  | E108: =IF($B108="","",VLOOKUP($B108,formula!$A$15:$BI$124,formula!$AN$9,FALSE)) ->  | F108: =IF($B108="","",VLOOKUP($B108,formula!$A$15:$BI$124,formula!$AD$9+1,FALSE)) ->  | G108: =IF($B108="","",VLOOKUP($B108,formula!$A$15:$BI$124,formula!$AG$9+1,FALSE)) ->  | H108: =IF($B108="","",VLOOKUP($B108,formula!$A$15:$EV$124,formula!$EM$9,FALSE)) ->  | I108: =IF($B108="","",VLOOKUP($B108,formula!$A$15:$EV$124,formula!$EN$9,FALSE)) ->  | J108: =IF($B108="","",VLOOKUP($B108,formula!$A$15:$BI$124,formula!$AV$9,FALSE)) ->  | K108: =IF($B108="","",VLOOKUP($B108,formula!$A$15:$BI$124,formula!$AU$9,FALSE)) ->  | L108: =IF($B108="","",VLOOKUP($B108,formula!$A$15:$BI$124,formula!$AX$9,FALSE)) -> 
D109: =IF(C108=MaxCoverageYear-1,"***以下空白***",IF($B109="","",IF($B109>plan,"",VLOOKUP($B109,formula!$A$15:$BI$124,formula!$AM$9,FALSE)))) ->  | E109: =IF($B109="","",VLOOKUP($B109,formula!$A$15:$BI$124,formula!$AN$9,FALSE)) ->  | F109: =IF($B109="","",VLOOKUP($B109,formula!$A$15:$BI$124,formula!$AD$9+1,FALSE)) ->  | G109: =IF($B109="","",VLOOKUP($B109,formula!$A$15:$BI$124,formula!$AG$9+1,FALSE)) ->  | H109: =IF($B109="","",VLOOKUP($B109,formula!$A$15:$EV$124,formula!$EM$9,FALSE)) ->  | I109: =IF($B109="","",VLOOKUP($B109,formula!$A$15:$EV$124,formula!$EN$9,FALSE)) ->  | J109: =IF($B109="","",VLOOKUP($B109,formula!$A$15:$BI$124,formula!$AV$9,FALSE)) ->  | K109: =IF($B109="","",VLOOKUP($B109,formula!$A$15:$BI$124,formula!$AU$9,FALSE)) ->  | L109: =IF($B109="","",VLOOKUP($B109,formula!$A$15:$BI$124,formula!$AX$9,FALSE)) -> 
D110: =IF(C109=MaxCoverageYear-1,"***以下空白***",IF($B110="","",IF($B110>plan,"",VLOOKUP($B110,formula!$A$15:$BI$124,formula!$AM$9,FALSE)))) ->  | E110: =IF($B110="","",VLOOKUP($B110,formula!$A$15:$BI$124,formula!$AN$9,FALSE)) ->  | F110: =IF($B110="","",VLOOKUP($B110,formula!$A$15:$BI$124,formula!$AD$9+1,FALSE)) ->  | G110: =IF($B110="","",VLOOKUP($B110,formula!$A$15:$BI$124,formula!$AG$9+1,FALSE)) ->  | H110: =IF($B110="","",VLOOKUP($B110,formula!$A$15:$EV$124,formula!$EM$9,FALSE)) ->  | I110: =IF($B110="","",VLOOKUP($B110,formula!$A$15:$EV$124,formula!$EN$9,FALSE)) ->  | J110: =IF($B110="","",VLOOKUP($B110,formula!$A$15:$BI$124,formula!$AV$9,FALSE)) ->  | K110: =IF($B110="","",VLOOKUP($B110,formula!$A$15:$BI$124,formula!$AU$9,FALSE)) ->  | L110: =IF($B110="","",VLOOKUP($B110,formula!$A$15:$BI$124,formula!$AX$9,FALSE)) -> 
D111: =IF(C110=MaxCoverageYear-1,"***以下空白***",IF($B111="","",IF($B111>plan,"",VLOOKUP($B111,formula!$A$15:$BI$124,formula!$AM$9,FALSE)))) ->  | E111: =IF($B111="","",VLOOKUP($B111,formula!$A$15:$BI$124,formula!$AN$9,FALSE)) ->  | F111: =IF($B111="","",VLOOKUP($B111,formula!$A$15:$BI$124,formula!$AD$9+1,FALSE)) ->  | G111: =IF($B111="","",VLOOKUP($B111,formula!$A$15:$BI$124,formula!$AG$9+1,FALSE)) ->  | H111: =IF($B111="","",VLOOKUP($B111,formula!$A$15:$EV$124,formula!$EM$9,FALSE)) ->  | I111: =IF($B111="","",VLOOKUP($B111,formula!$A$15:$EV$124,formula!$EN$9,FALSE)) ->  | J111: =IF($B111="","",VLOOKUP($B111,formula!$A$15:$BI$124,formula!$AV$9,FALSE)) ->  | K111: =IF($B111="","",VLOOKUP($B111,formula!$A$15:$BI$124,formula!$AU$9,FALSE)) ->  | L111: =IF($B111="","",VLOOKUP($B111,formula!$A$15:$BI$124,formula!$AX$9,FALSE)) -> 
D112: =IF(C111=MaxCoverageYear-1,"***以下空白***",IF($B112="","",IF($B112>plan,"",VLOOKUP($B112,formula!$A$15:$BI$124,formula!$AM$9,FALSE)))) ->  | E112: =IF($B112="","",VLOOKUP($B112,formula!$A$15:$BI$124,formula!$AN$9,FALSE)) ->  | F112: =IF($B112="","",VLOOKUP($B112,formula!$A$15:$BI$124,formula!$AD$9+1,FALSE)) ->  | G112: =IF($B112="","",VLOOKUP($B112,formula!$A$15:$BI$124,formula!$AG$9+1,FALSE)) ->  | H112: =IF($B112="","",VLOOKUP($B112,formula!$A$15:$EV$124,formula!$EM$9,FALSE)) ->  | I112: =IF($B112="","",VLOOKUP($B112,formula!$A$15:$EV$124,formula!$EN$9,FALSE)) ->  | J112: =IF($B112="","",VLOOKUP($B112,formula!$A$15:$BI$124,formula!$AV$9,FALSE)) ->  | K112: =IF($B112="","",VLOOKUP($B112,formula!$A$15:$BI$124,formula!$AU$9,FALSE)) ->  | L112: =IF($B112="","",VLOOKUP($B112,formula!$A$15:$BI$124,formula!$AX$9,FALSE)) -> 
D113: =IF(C112=MaxCoverageYear-1,"***以下空白***",IF($B113="","",IF($B113>plan,"",VLOOKUP($B113,formula!$A$15:$BI$124,formula!$AM$9,FALSE)))) ->  | E113: =IF($B113="","",VLOOKUP($B113,formula!$A$15:$BI$124,formula!$AN$9,FALSE)) ->  | F113: =IF($B113="","",VLOOKUP($B113,formula!$A$15:$BI$124,formula!$AD$9+1,FALSE)) ->  | G113: =IF($B113="","",VLOOKUP($B113,formula!$A$15:$BI$124,formula!$AG$9+1,FALSE)) ->  | H113: =IF($B113="","",VLOOKUP($B113,formula!$A$15:$EV$124,formula!$EM$9,FALSE)) ->  | I113: =IF($B113="","",VLOOKUP($B113,formula!$A$15:$EV$124,formula!$EN$9,FALSE)) ->  | J113: =IF($B113="","",VLOOKUP($B113,formula!$A$15:$BI$124,formula!$AV$9,FALSE)) ->  | K113: =IF($B113="","",VLOOKUP($B113,formula!$A$15:$BI$124,formula!$AU$9,FALSE)) ->  | L113: =IF($B113="","",VLOOKUP($B113,formula!$A$15:$BI$124,formula!$AX$9,FALSE)) -> 
D114: =IF(C113=MaxCoverageYear-1,"***以下空白***",IF($B114="","",IF($B114>plan,"",VLOOKUP($B114,formula!$A$15:$BI$124,formula!$AM$9,FALSE)))) ->  | E114: =IF($B114="","",VLOOKUP($B114,formula!$A$15:$BI$124,formula!$AN$9,FALSE)) ->  | F114: =IF($B114="","",VLOOKUP($B114,formula!$A$15:$BI$124,formula!$AD$9+1,FALSE)) ->  | G114: =IF($B114="","",VLOOKUP($B114,formula!$A$15:$BI$124,formula!$AG$9+1,FALSE)) ->  | H114: =IF($B114="","",VLOOKUP($B114,formula!$A$15:$EV$124,formula!$EM$9,FALSE)) ->  | I114: =IF($B114="","",VLOOKUP($B114,formula!$A$15:$EV$124,formula!$EN$9,FALSE)) ->  | J114: =IF($B114="","",VLOOKUP($B114,formula!$A$15:$BI$124,formula!$AV$9,FALSE)) ->  | K114: =IF($B114="","",VLOOKUP($B114,formula!$A$15:$BI$124,formula!$AU$9,FALSE)) ->  | L114: =IF($B114="","",VLOOKUP($B114,formula!$A$15:$BI$124,formula!$AX$9,FALSE)) -> 
D115: =IF(C114=MaxCoverageYear-1,"***以下空白***",IF($B115="","",IF($B115>plan,"",VLOOKUP($B115,formula!$A$15:$BI$124,formula!$AM$9,FALSE)))) ->  | E115: =IF($B115="","",VLOOKUP($B115,formula!$A$15:$BI$124,formula!$AN$9,FALSE)) ->  | F115: =IF($B115="","",VLOOKUP($B115,formula!$A$15:$BI$124,formula!$AD$9+1,FALSE)) ->  | G115: =IF($B115="","",VLOOKUP($B115,formula!$A$15:$BI$124,formula!$AG$9+1,FALSE)) ->  | H115: =IF($B115="","",VLOOKUP($B115,formula!$A$15:$EV$124,formula!$EM$9,FALSE)) ->  | I115: =IF($B115="","",VLOOKUP($B115,formula!$A$15:$EV$124,formula!$EN$9,FALSE)) ->  | J115: =IF($B115="","",VLOOKUP($B115,formula!$A$15:$BI$124,formula!$AV$9,FALSE)) ->  | K115: =IF($B115="","",VLOOKUP($B115,formula!$A$15:$BI$124,formula!$AU$9,FALSE)) ->  | L115: =IF($B115="","",VLOOKUP($B115,formula!$A$15:$BI$124,formula!$AX$9,FALSE)) -> 
D116: =IF(C115=MaxCoverageYear-1,"***以下空白***",IF($B116="","",IF($B116>plan,"",VLOOKUP($B116,formula!$A$15:$BI$124,formula!$AM$9,FALSE)))) ->  | E116: =IF($B116="","",VLOOKUP($B116,formula!$A$15:$BI$124,formula!$AN$9,FALSE)) ->  | F116: =IF($B116="","",VLOOKUP($B116,formula!$A$15:$BI$124,formula!$AD$9+1,FALSE)) ->  | G116: =IF($B116="","",VLOOKUP($B116,formula!$A$15:$BI$124,formula!$AG$9+1,FALSE)) ->  | H116: =IF($B116="","",VLOOKUP($B116,formula!$A$15:$EV$124,formula!$EM$9,FALSE)) ->  | I116: =IF($B116="","",VLOOKUP($B116,formula!$A$15:$EV$124,formula!$EN$9,FALSE)) ->  | J116: =IF($B116="","",VLOOKUP($B116,formula!$A$15:$BI$124,formula!$AV$9,FALSE)) ->  | K116: =IF($B116="","",VLOOKUP($B116,formula!$A$15:$BI$124,formula!$AU$9,FALSE)) ->  | L116: =IF($B116="","",VLOOKUP($B116,formula!$A$15:$BI$124,formula!$AX$9,FALSE)) -> 
D117: =IF(C116=MaxCoverageYear-1,"***以下空白***",IF($B117="","",IF($B117>plan,"",VLOOKUP($B117,formula!$A$15:$BI$124,formula!$AM$9,FALSE)))) ->  | E117: =IF($B117="","",VLOOKUP($B117,formula!$A$15:$BI$124,formula!$AN$9,FALSE)) ->  | F117: =IF($B117="","",VLOOKUP($B117,formula!$A$15:$BI$124,formula!$AD$9+1,FALSE)) ->  | G117: =IF($B117="","",VLOOKUP($B117,formula!$A$15:$BI$124,formula!$AG$9+1,FALSE)) ->  | H117: =IF($B117="","",VLOOKUP($B117,formula!$A$15:$EV$124,formula!$EM$9,FALSE)) ->  | I117: =IF($B117="","",VLOOKUP($B117,formula!$A$15:$EV$124,formula!$EN$9,FALSE)) ->  | J117: =IF($B117="","",VLOOKUP($B117,formula!$A$15:$BI$124,formula!$AV$9,FALSE)) ->  | K117: =IF($B117="","",VLOOKUP($B117,formula!$A$15:$BI$124,formula!$AU$9,FALSE)) ->  | L117: =IF($B117="","",VLOOKUP($B117,formula!$A$15:$BI$124,formula!$AX$9,FALSE)) -> 
D118: =IF(C117=MaxCoverageYear-1,"***以下空白***",IF($B118="","",IF($B118>plan,"",VLOOKUP($B118,formula!$A$15:$BI$124,formula!$AM$9,FALSE)))) ->  | E118: =IF($B118="","",VLOOKUP($B118,formula!$A$15:$BI$124,formula!$AN$9,FALSE)) ->  | F118: =IF($B118="","",VLOOKUP($B118,formula!$A$15:$BI$124,formula!$AD$9+1,FALSE)) ->  | G118: =IF($B118="","",VLOOKUP($B118,formula!$A$15:$BI$124,formula!$AG$9+1,FALSE)) ->  | H118: =IF($B118="","",VLOOKUP($B118,formula!$A$15:$EV$124,formula!$EM$9,FALSE)) ->  | I118: =IF($B118="","",VLOOKUP($B118,formula!$A$15:$EV$124,formula!$EN$9,FALSE)) ->  | J118: =IF($B118="","",VLOOKUP($B118,formula!$A$15:$BI$124,formula!$AV$9,FALSE)) ->  | K118: =IF($B118="","",VLOOKUP($B118,formula!$A$15:$BI$124,formula!$AU$9,FALSE)) ->  | L118: =IF($B118="","",VLOOKUP($B118,formula!$A$15:$BI$124,formula!$AX$9,FALSE)) -> 
D119: =IF(C118=MaxCoverageYear-1,"***以下空白***",IF($B119="","",IF($B119>plan,"",VLOOKUP($B119,formula!$A$15:$BI$124,formula!$AM$9,FALSE)))) ->  | E119: =IF($B119="","",VLOOKUP($B119,formula!$A$15:$BI$124,formula!$AN$9,FALSE)) ->  | F119: =IF($B119="","",VLOOKUP($B119,formula!$A$15:$BI$124,formula!$AD$9+1,FALSE)) ->  | G119: =IF($B119="","",VLOOKUP($B119,formula!$A$15:$BI$124,formula!$AG$9+1,FALSE)) ->  | H119: =IF($B119="","",VLOOKUP($B119,formula!$A$15:$EV$124,formula!$EM$9,FALSE)) ->  | I119: =IF($B119="","",VLOOKUP($B119,formula!$A$15:$EV$124,formula!$EN$9,FALSE)) ->  | J119: =IF($B119="","",VLOOKUP($B119,formula!$A$15:$BI$124,formula!$AV$9,FALSE)) ->  | K119: =IF($B119="","",VLOOKUP($B119,formula!$A$15:$BI$124,formula!$AU$9,FALSE)) ->  | L119: =IF($B119="","",VLOOKUP($B119,formula!$A$15:$BI$124,formula!$AX$9,FALSE)) -> 
D120: =IF(C119=MaxCoverageYear-1,"***以下空白***",IF($B120="","",IF($B120>plan,"",VLOOKUP($B120,formula!$A$15:$BI$124,formula!$AM$9,FALSE)))) ->  | E120: =IF($B120="","",VLOOKUP($B120,formula!$A$15:$BI$124,formula!$AN$9,FALSE)) ->  | F120: =IF($B120="","",VLOOKUP($B120,formula!$A$15:$BI$124,formula!$AD$9+1,FALSE)) ->  | G120: =IF($B120="","",VLOOKUP($B120,formula!$A$15:$BI$124,formula!$AG$9+1,FALSE)) ->  | H120: =IF($B120="","",VLOOKUP($B120,formula!$A$15:$EV$124,formula!$EM$9,FALSE)) ->  | I120: =IF($B120="","",VLOOKUP($B120,formula!$A$15:$EV$124,formula!$EN$9,FALSE)) ->  | J120: =IF($B120="","",VLOOKUP($B120,formula!$A$15:$BI$124,formula!$AV$9,FALSE)) ->  | K120: =IF($B120="","",VLOOKUP($B120,formula!$A$15:$BI$124,formula!$AU$9,FALSE)) ->  | L120: =IF($B120="","",VLOOKUP($B120,formula!$A$15:$BI$124,formula!$AX$9,FALSE)) -> 
D121: =IF(C120=MaxCoverageYear-1,"***以下空白***",IF($B121="","",IF($B121>plan,"",VLOOKUP($B121,formula!$A$15:$BI$124,formula!$AM$9,FALSE)))) ->  | E121: =IF($B121="","",VLOOKUP($B121,formula!$A$15:$BI$124,formula!$AN$9,FALSE)) ->  | F121: =IF($B121="","",VLOOKUP($B121,formula!$A$15:$BI$124,formula!$AD$9+1,FALSE)) ->  | G121: =IF($B121="","",VLOOKUP($B121,formula!$A$15:$BI$124,formula!$AG$9+1,FALSE)) ->  | H121: =IF($B121="","",VLOOKUP($B121,formula!$A$15:$EV$124,formula!$EM$9,FALSE)) ->  | I121: =IF($B121="","",VLOOKUP($B121,formula!$A$15:$EV$124,formula!$EN$9,FALSE)) ->  | J121: =IF($B121="","",VLOOKUP($B121,formula!$A$15:$BI$124,formula!$AV$9,FALSE)) ->  | K121: =IF($B121="","",VLOOKUP($B121,formula!$A$15:$BI$124,formula!$AU$9,FALSE)) ->  | L121: =IF($B121="","",VLOOKUP($B121,formula!$A$15:$BI$124,formula!$AX$9,FALSE)) -> 
B122: =IF(B121>=109-age+1,"",B121+1) ->  | D122: =IF(C121=MaxCoverageYear-1,"***以下空白***",IF($B122="","",IF($B122>plan,"",VLOOKUP($B122,formula!$A$15:$BI$124,formula!$AM$9,FALSE)))) ->  | E122: =IF($B122="","",VLOOKUP($B122,formula!$A$15:$BI$124,formula!$AN$9,FALSE)) ->  | F122: =IF($B122="","",VLOOKUP($B122,formula!$A$15:$BI$124,formula!$AD$9+1,FALSE)) ->  | G122: =IF($B122="","",VLOOKUP($B122,formula!$A$15:$BI$124,formula!$AG$9+1,FALSE)) ->  | H122: =IF($B122="","",VLOOKUP($B122,formula!$A$15:$EV$124,formula!$EM$9,FALSE)) ->  | I122: =IF($B122="","",VLOOKUP($B122,formula!$A$15:$EV$124,formula!$EN$9,FALSE)) ->  | J122: =IF($B122="","",VLOOKUP($B122,formula!$A$15:$BI$124,formula!$AV$9,FALSE)) ->  | K122: =IF($B122="","",VLOOKUP($B122,formula!$A$15:$BI$124,formula!$AU$9,FALSE)) ->  | L122: =IF($B122="","",VLOOKUP($B122,formula!$A$15:$BI$124,formula!$AX$9,FALSE)) -> 
D123: =IF(C122=MaxCoverageYear-1,"***以下空白***",IF($B123="","",IF($B123>plan,"",VLOOKUP($B123,formula!$A$15:$BI$124,formula!$AM$9,FALSE)))) ->  | E123: =IF($B123="","",VLOOKUP($B123,formula!$A$15:$BI$124,formula!$AN$9,FALSE)) ->  | F123: =IF($B123="","",VLOOKUP($B123,formula!$A$15:$BI$124,formula!$AD$9+1,FALSE)) ->  | G123: =IF($B123="","",VLOOKUP($B123,formula!$A$15:$BI$124,formula!$AG$9+1,FALSE)) ->  | H123: =IF($B123="","",VLOOKUP($B123,formula!$A$15:$EV$124,formula!$EM$9,FALSE)) ->  | I123: =IF($B123="","",VLOOKUP($B123,formula!$A$15:$EV$124,formula!$EN$9,FALSE)) ->  | J123: =IF($B123="","",VLOOKUP($B123,formula!$A$15:$BI$124,formula!$AV$9,FALSE)) ->  | K123: =IF($B123="","",VLOOKUP($B123,formula!$A$15:$BI$124,formula!$AU$9,FALSE)) ->  | L123: =IF($B123="","",VLOOKUP($B123,formula!$A$15:$BI$124,formula!$AX$9,FALSE)) -> 
D124: =IF(C123=MaxCoverageYear-1,"***以下空白***",IF($B124="","",IF($B124>plan,"",VLOOKUP($B124,formula!$A$15:$BI$124,formula!$AM$9,FALSE)))) ->  | E124: =IF($B124="","",VLOOKUP($B124,formula!$A$15:$BI$124,formula!$AN$9,FALSE)) ->  | F124: =IF($B124="","",VLOOKUP($B124,formula!$A$15:$BI$124,formula!$AD$9+1,FALSE)) ->  | G124: =IF($B124="","",VLOOKUP($B124,formula!$A$15:$BI$124,formula!$AG$9+1,FALSE)) ->  | H124: =IF($B124="","",VLOOKUP($B124,formula!$A$15:$EV$124,formula!$EM$9,FALSE)) ->  | I124: =IF($B124="","",VLOOKUP($B124,formula!$A$15:$EV$124,formula!$EN$9,FALSE)) ->  | J124: =IF($B124="","",VLOOKUP($B124,formula!$A$15:$BI$124,formula!$AV$9,FALSE)) ->  | K124: =IF($B124="","",VLOOKUP($B124,formula!$A$15:$BI$124,formula!$AU$9,FALSE)) ->  | L124: =IF($B124="","",VLOOKUP($B124,formula!$A$15:$BI$124,formula!$AX$9,FALSE)) -> 
D125: =IF(C124=MaxCoverageYear-1,"***以下空白***",IF($B125="","",IF($B125>plan,"",VLOOKUP($B125,formula!$A$15:$BI$124,formula!$AM$9,FALSE)))) ->  | E125: =IF($B125="","",VLOOKUP($B125,formula!$A$15:$BI$124,formula!$AN$9,FALSE)) ->  | F125: =IF($B125="","",VLOOKUP($B125,formula!$A$15:$BI$124,formula!$AD$9+1,FALSE)) ->  | G125: =IF($B125="","",VLOOKUP($B125,formula!$A$15:$BI$124,formula!$AG$9+1,FALSE)) ->  | H125: =IF($B125="","",VLOOKUP($B125,formula!$A$15:$EV$124,formula!$EM$9,FALSE)) ->  | I125: =IF($B125="","",VLOOKUP($B125,formula!$A$15:$EV$124,formula!$EN$9,FALSE)) ->  | J125: =IF($B125="","",VLOOKUP($B125,formula!$A$15:$BI$124,formula!$AV$9,FALSE)) ->  | K125: =IF($B125="","",VLOOKUP($B125,formula!$A$15:$BI$124,formula!$AU$9,FALSE)) ->  | L125: =IF($B125="","",VLOOKUP($B125,formula!$A$15:$BI$124,formula!$AX$9,FALSE)) -> 
D126: =IF(C125=MaxCoverageYear-1,"***以下空白***",IF($B126="","",IF($B126>plan,"",VLOOKUP($B126,formula!$A$15:$BI$124,formula!$AM$9,FALSE)))) ->  | E126: =IF($B126="","",VLOOKUP($B126,formula!$A$15:$BI$124,formula!$AN$9,FALSE)) ->  | F126: =IF($B126="","",VLOOKUP($B126,formula!$A$15:$BI$124,formula!$AD$9+1,FALSE)) ->  | G126: =IF($B126="","",VLOOKUP($B126,formula!$A$15:$BI$124,formula!$AG$9+1,FALSE)) ->  | H126: =IF($B126="","",VLOOKUP($B126,formula!$A$15:$EV$124,formula!$EM$9,FALSE)) ->  | I126: =IF($B126="","",VLOOKUP($B126,formula!$A$15:$EV$124,formula!$EN$9,FALSE)) ->  | J126: =IF($B126="","",VLOOKUP($B126,formula!$A$15:$BI$124,formula!$AV$9,FALSE)) ->  | K126: =IF($B126="","",VLOOKUP($B126,formula!$A$15:$BI$124,formula!$AU$9,FALSE)) ->  | L126: =IF($B126="","",VLOOKUP($B126,formula!$A$15:$BI$124,formula!$AX$9,FALSE)) -> 
B127: =IF(B126>=109-age+1,"",B126+1) ->  | C127: =IF(B127="","",age+B127-1) ->  | D127: =IF(C126=MaxCoverageYear-1,"***以下空白***",IF($B127="","",IF($B127>plan,"",VLOOKUP($B127,formula!$A$15:$BI$124,formula!$AM$9,FALSE)))) ->  | E127: =IF($B127="","",VLOOKUP($B127,formula!$A$15:$BI$124,formula!$AN$9,FALSE)) ->  | F127: =IF($B127="","",VLOOKUP($B127,formula!$A$15:$BI$124,formula!$AD$9+1,FALSE)) ->  | G127: =IF($B127="","",VLOOKUP($B127,formula!$A$15:$BI$124,formula!$AG$9+1,FALSE)) ->  | H127: =IF($B127="","",VLOOKUP($B127,formula!$A$15:$EV$124,formula!$EM$9,FALSE)) ->  | I127: =IF($B127="","",VLOOKUP($B127,formula!$A$15:$EV$124,formula!$EN$9,FALSE)) ->  | J127: =IF($B127="","",VLOOKUP($B127,formula!$A$15:$BI$124,formula!$AV$9,FALSE)) ->  | K127: =IF($B127="","",VLOOKUP($B127,formula!$A$15:$BI$124,formula!$AU$9,FALSE)) ->  | L127: =IF($B127="","",VLOOKUP($B127,formula!$A$15:$BI$124,formula!$AX$9,FALSE)) -> 
D128: =IF(C127=MaxCoverageYear-1,"***以下空白***",IF($B128="","",IF($B128>plan,"",VLOOKUP($B128,formula!$A$15:$BI$124,formula!$AM$9,FALSE)))) ->  | E128: =IF($B128="","",VLOOKUP($B128,formula!$A$15:$BI$124,formula!$AN$9,FALSE)) ->  | F128: =IF($B128="","",VLOOKUP($B128,formula!$A$15:$BI$124,formula!$AD$9+1,FALSE)) ->  | G128: =IF($B128="","",VLOOKUP($B128,formula!$A$15:$BI$124,formula!$AG$9+1,FALSE)) ->  | H128: =IF($B128="","",VLOOKUP($B128,formula!$A$15:$EV$124,formula!$EM$9,FALSE)) ->  | I128: =IF($B128="","",VLOOKUP($B128,formula!$A$15:$EV$124,formula!$EN$9,FALSE)) ->  | J128: =IF($B128="","",VLOOKUP($B128,formula!$A$15:$BI$124,formula!$AV$9,FALSE)) ->  | K128: =IF($B128="","",VLOOKUP($B128,formula!$A$15:$BI$124,formula!$AU$9,FALSE)) ->  | L128: =IF($B128="","",VLOOKUP($B128,formula!$A$15:$BI$124,formula!$AX$9,FALSE)) -> 
D129: =IF(C128=MaxCoverageYear-1,"***以下空白***",IF($B129="","",IF($B129>plan,"",VLOOKUP($B129,formula!$A$15:$BI$124,formula!$AM$9,FALSE)))) ->  | E129: =IF($B129="","",VLOOKUP($B129,formula!$A$15:$BI$124,formula!$AN$9,FALSE)) ->  | F129: =IF($B129="","",VLOOKUP($B129,formula!$A$15:$BI$124,formula!$AD$9+1,FALSE)) ->  | G129: =IF($B129="","",VLOOKUP($B129,formula!$A$15:$BI$124,formula!$AG$9+1,FALSE)) ->  | H129: =IF($B129="","",VLOOKUP($B129,formula!$A$15:$EV$124,formula!$EM$9,FALSE)) ->  | I129: =IF($B129="","",VLOOKUP($B129,formula!$A$15:$EV$124,formula!$EN$9,FALSE)) ->  | J129: =IF($B129="","",VLOOKUP($B129,formula!$A$15:$BI$124,formula!$AV$9,FALSE)) ->  | K129: =IF($B129="","",VLOOKUP($B129,formula!$A$15:$BI$124,formula!$AU$9,FALSE)) ->  | L129: =IF($B129="","",VLOOKUP($B129,formula!$A$15:$BI$124,formula!$AX$9,FALSE)) -> 
D130: =IF(C129=MaxCoverageYear-1,"***以下空白***",IF($B130="","",IF($B130>plan,"",VLOOKUP($B130,formula!$A$15:$BI$124,formula!$AM$9,FALSE)))) ->  | E130: =IF($B130="","",VLOOKUP($B130,formula!$A$15:$BI$124,formula!$AN$9,FALSE)) ->  | F130: =IF($B130="","",VLOOKUP($B130,formula!$A$15:$BI$124,formula!$AD$9+1,FALSE)) ->  | G130: =IF($B130="","",VLOOKUP($B130,formula!$A$15:$BI$124,formula!$AG$9+1,FALSE)) ->  | H130: =IF($B130="","",VLOOKUP($B130,formula!$A$15:$EV$124,formula!$EM$9,FALSE)) ->  | I130: =IF($B130="","",VLOOKUP($B130,formula!$A$15:$EV$124,formula!$EN$9,FALSE)) ->  | J130: =IF($B130="","",VLOOKUP($B130,formula!$A$15:$BI$124,formula!$AV$9,FALSE)) ->  | K130: =IF($B130="","",VLOOKUP($B130,formula!$A$15:$BI$124,formula!$AU$9,FALSE)) ->  | L130: =IF($B130="","",VLOOKUP($B130,formula!$A$15:$BI$124,formula!$AX$9,FALSE)) -> 
D131: =IF(C130=MaxCoverageYear-1,"***以下空白***",IF($B131="","",IF($B131>plan,"",VLOOKUP($B131,formula!$A$15:$BI$124,formula!$AM$9,FALSE)))) ->  | E131: =IF($B131="","",VLOOKUP($B131,formula!$A$15:$BI$124,formula!$AN$9,FALSE)) ->  | F131: =IF($B131="","",VLOOKUP($B131,formula!$A$15:$BI$124,formula!$AD$9+1,FALSE)) ->  | G131: =IF($B131="","",VLOOKUP($B131,formula!$A$15:$BI$124,formula!$AG$9+1,FALSE)) ->  | H131: =IF($B131="","",VLOOKUP($B131,formula!$A$15:$EV$124,formula!$EM$9,FALSE)) ->  | I131: =IF($B131="","",VLOOKUP($B131,formula!$A$15:$EV$124,formula!$EN$9,FALSE)) ->  | J131: =IF($B131="","",VLOOKUP($B131,formula!$A$15:$BI$124,formula!$AV$9,FALSE)) ->  | K131: =IF($B131="","",VLOOKUP($B131,formula!$A$15:$BI$124,formula!$AU$9,FALSE)) ->  | L131: =IF($B131="","",VLOOKUP($B131,formula!$A$15:$BI$124,formula!$AX$9,FALSE)) -> 
B132: =IF(B131>=109-age+1,"",B131+1) ->  | C132: =IF(B132="","",age+B132-1) ->  | D132: =IF(C131=MaxCoverageYear-1,"***以下空白***",IF($B132="","",IF($B132>plan,"",VLOOKUP($B132,formula!$A$15:$BI$124,formula!$AM$9,FALSE)))) ->  | E132: =IF($B132="","",VLOOKUP($B132,formula!$A$15:$BI$124,formula!$AN$9,FALSE)) ->  | F132: =IF($B132="","",VLOOKUP($B132,formula!$A$15:$BI$124,formula!$AD$9+1,FALSE)) ->  | G132: =IF($B132="","",VLOOKUP($B132,formula!$A$15:$BI$124,formula!$AG$9+1,FALSE)) ->  | H132: =IF($B132="","",VLOOKUP($B132,formula!$A$15:$EV$124,formula!$EM$9,FALSE)) ->  | I132: =IF($B132="","",VLOOKUP($B132,formula!$A$15:$EV$124,formula!$EN$9,FALSE)) ->  | J132: =IF($B132="","",VLOOKUP($B132,formula!$A$15:$BI$124,formula!$AV$9,FALSE)) ->  | K132: =IF($B132="","",VLOOKUP($B132,formula!$A$15:$BI$124,formula!$AU$9,FALSE)) ->  | L132: =IF($B132="","",VLOOKUP($B132,formula!$A$15:$BI$124,formula!$AX$9,FALSE)) -> 
D133: =IF(C132=MaxCoverageYear-1,"***以下空白***",IF($B133="","",IF($B133>plan,"",VLOOKUP($B133,formula!$A$15:$BI$124,formula!$AM$9,FALSE)))) ->  | E133: =IF($B133="","",VLOOKUP($B133,formula!$A$15:$BI$124,formula!$AN$9,FALSE)) ->  | F133: =IF($B133="","",VLOOKUP($B133,formula!$A$15:$BI$124,formula!$AD$9+1,FALSE)) ->  | G133: =IF($B133="","",VLOOKUP($B133,formula!$A$15:$BI$124,formula!$AG$9+1,FALSE)) ->  | H133: =IF($B133="","",VLOOKUP($B133,formula!$A$15:$EV$124,formula!$EM$9,FALSE)) ->  | I133: =IF($B133="","",VLOOKUP($B133,formula!$A$15:$EV$124,formula!$EN$9,FALSE)) ->  | J133: =IF($B133="","",VLOOKUP($B133,formula!$A$15:$BI$124,formula!$AV$9,FALSE)) ->  | K133: =IF($B133="","",VLOOKUP($B133,formula!$A$15:$BI$124,formula!$AU$9,FALSE)) ->  | L133: =IF($B133="","",VLOOKUP($B133,formula!$A$15:$BI$124,formula!$AX$9,FALSE)) -> 
D134: =IF(C133=MaxCoverageYear-1,"***以下空白***",IF($B134="","",IF($B134>plan,"",VLOOKUP($B134,formula!$A$15:$BI$124,formula!$AM$9,FALSE)))) ->  | E134: =IF($B134="","",VLOOKUP($B134,formula!$A$15:$BI$124,formula!$AN$9,FALSE)) ->  | F134: =IF($B134="","",VLOOKUP($B134,formula!$A$15:$BI$124,formula!$AD$9+1,FALSE)) ->  | G134: =IF($B134="","",VLOOKUP($B134,formula!$A$15:$BI$124,formula!$AG$9+1,FALSE)) ->  | H134: =IF($B134="","",VLOOKUP($B134,formula!$A$15:$EV$124,formula!$EM$9,FALSE)) ->  | I134: =IF($B134="","",VLOOKUP($B134,formula!$A$15:$EV$124,formula!$EN$9,FALSE)) ->  | J134: =IF($B134="","",VLOOKUP($B134,formula!$A$15:$BI$124,formula!$AV$9,FALSE)) ->  | K134: =IF($B134="","",VLOOKUP($B134,formula!$A$15:$BI$124,formula!$AU$9,FALSE)) ->  | L134: =IF($B134="","",VLOOKUP($B134,formula!$A$15:$BI$124,formula!$AX$9,FALSE)) -> 
D135: =IF(C134=MaxCoverageYear-1,"***以下空白***",IF($B135="","",IF($B135>plan,"",VLOOKUP($B135,formula!$A$15:$BI$124,formula!$AM$9,FALSE)))) ->  | E135: =IF($B135="","",VLOOKUP($B135,formula!$A$15:$BI$124,formula!$AN$9,FALSE)) ->  | F135: =IF($B135="","",VLOOKUP($B135,formula!$A$15:$BI$124,formula!$AD$9+1,FALSE)) ->  | G135: =IF($B135="","",VLOOKUP($B135,formula!$A$15:$BI$124,formula!$AG$9+1,FALSE)) ->  | H135: =IF($B135="","",VLOOKUP($B135,formula!$A$15:$EV$124,formula!$EM$9,FALSE)) ->  | I135: =IF($B135="","",VLOOKUP($B135,formula!$A$15:$EV$124,formula!$EN$9,FALSE)) ->  | J135: =IF($B135="","",VLOOKUP($B135,formula!$A$15:$BI$124,formula!$AV$9,FALSE)) ->  | K135: =IF($B135="","",VLOOKUP($B135,formula!$A$15:$BI$124,formula!$AU$9,FALSE)) ->  | L135: =IF($B135="","",VLOOKUP($B135,formula!$A$15:$BI$124,formula!$AX$9,FALSE)) -> 
D136: =IF(C135=MaxCoverageYear-1,"***以下空白***",IF($B136="","",IF($B136>plan,"",VLOOKUP($B136,formula!$A$15:$BI$124,formula!$AM$9,FALSE)))) ->  | E136: =IF($B136="","",VLOOKUP($B136,formula!$A$15:$BI$124,formula!$AN$9,FALSE)) ->  | F136: =IF($B136="","",VLOOKUP($B136,formula!$A$15:$BI$124,formula!$AD$9+1,FALSE)) ->  | G136: =IF($B136="","",VLOOKUP($B136,formula!$A$15:$BI$124,formula!$AG$9+1,FALSE)) ->  | H136: =IF($B136="","",VLOOKUP($B136,formula!$A$15:$EV$124,formula!$EM$9,FALSE)) ->  | I136: =IF($B136="","",VLOOKUP($B136,formula!$A$15:$EV$124,formula!$EN$9,FALSE)) ->  | J136: =IF($B136="","",VLOOKUP($B136,formula!$A$15:$BI$124,formula!$AV$9,FALSE)) ->  | K136: =IF($B136="","",VLOOKUP($B136,formula!$A$15:$BI$124,formula!$AU$9,FALSE)) ->  | L136: =IF($B136="","",VLOOKUP($B136,formula!$A$15:$BI$124,formula!$AX$9,FALSE)) -> 
B137: =IF(B136>=109-age+1,"",B136+1) ->  | C137: =IF(B137="","",age+B137-1) ->  | D137: =IF(C136=MaxCoverageYear-1,"***以下空白***",IF($B137="","",IF($B137>plan,"",VLOOKUP($B137,formula!$A$15:$BI$124,formula!$AM$9,FALSE)))) ->  | E137: =IF($B137="","",VLOOKUP($B137,formula!$A$15:$BI$124,formula!$AN$9,FALSE)) ->  | F137: =IF($B137="","",VLOOKUP($B137,formula!$A$15:$BI$124,formula!$AD$9+1,FALSE)) ->  | G137: =IF($B137="","",VLOOKUP($B137,formula!$A$15:$BI$124,formula!$AG$9+1,FALSE)) ->  | H137: =IF($B137="","",VLOOKUP($B137,formula!$A$15:$EV$124,formula!$EM$9,FALSE)) ->  | I137: =IF($B137="","",VLOOKUP($B137,formula!$A$15:$EV$124,formula!$EN$9,FALSE)) ->  | J137: =IF($B137="","",VLOOKUP($B137,formula!$A$15:$BI$124,formula!$AV$9,FALSE)) ->  | K137: =IF($B137="","",VLOOKUP($B137,formula!$A$15:$BI$124,formula!$AU$9,FALSE)) ->  | L137: =IF($B137="","",VLOOKUP($B137,formula!$A$15:$BI$124,formula!$AX$9,FALSE)) -> 
D138: =IF(C137=MaxCoverageYear-1,"***以下空白***",IF($B138="","",IF($B138>plan,"",VLOOKUP($B138,formula!$A$15:$BI$124,formula!$AM$9,FALSE)))) ->  | E138: =IF($B138="","",VLOOKUP($B138,formula!$A$15:$BI$124,formula!$AN$9,FALSE)) ->  | F138: =IF($B138="","",VLOOKUP($B138,formula!$A$15:$BI$124,formula!$AD$9+1,FALSE)) ->  | G138: =IF($B138="","",VLOOKUP($B138,formula!$A$15:$BI$124,formula!$AG$9+1,FALSE)) ->  | H138: =IF($B138="","",VLOOKUP($B138,formula!$A$15:$EV$124,formula!$EM$9,FALSE)) ->  | I138: =IF($B138="","",VLOOKUP($B138,formula!$A$15:$EV$124,formula!$EN$9,FALSE)) ->  | J138: =IF($B138="","",VLOOKUP($B138,formula!$A$15:$BI$124,formula!$AV$9,FALSE)) ->  | K138: =IF($B138="","",VLOOKUP($B138,formula!$A$15:$BI$124,formula!$AU$9,FALSE)) ->  | L138: =IF($B138="","",VLOOKUP($B138,formula!$A$15:$BI$124,formula!$AX$9,FALSE)) -> 
D139: =IF(C138=MaxCoverageYear-1,"***以下空白***",IF($B139="","",IF($B139>plan,"",VLOOKUP($B139,formula!$A$15:$BI$124,formula!$AM$9,FALSE)))) ->  | E139: =IF($B139="","",VLOOKUP($B139,formula!$A$15:$BI$124,formula!$AN$9,FALSE)) ->  | F139: =IF($B139="","",VLOOKUP($B139,formula!$A$15:$BI$124,formula!$AD$9+1,FALSE)) ->  | G139: =IF($B139="","",VLOOKUP($B139,formula!$A$15:$BI$124,formula!$AG$9+1,FALSE)) ->  | H139: =IF($B139="","",VLOOKUP($B139,formula!$A$15:$EV$124,formula!$EM$9,FALSE)) ->  | I139: =IF($B139="","",VLOOKUP($B139,formula!$A$15:$EV$124,formula!$EN$9,FALSE)) ->  | J139: =IF($B139="","",VLOOKUP($B139,formula!$A$15:$BI$124,formula!$AV$9,FALSE)) ->  | K139: =IF($B139="","",VLOOKUP($B139,formula!$A$15:$BI$124,formula!$AU$9,FALSE)) ->  | L139: =IF($B139="","",VLOOKUP($B139,formula!$A$15:$BI$124,formula!$AX$9,FALSE)) -> 
D140: =IF(C139=MaxCoverageYear-1,"***以下空白***",IF($B140="","",IF($B140>plan,"",VLOOKUP($B140,formula!$A$15:$BI$124,formula!$AM$9,FALSE)))) ->  | E140: =IF($B140="","",VLOOKUP($B140,formula!$A$15:$BI$124,formula!$AN$9,FALSE)) ->  | F140: =IF($B140="","",VLOOKUP($B140,formula!$A$15:$BI$124,formula!$AD$9+1,FALSE)) ->  | G140: =IF($B140="","",VLOOKUP($B140,formula!$A$15:$BI$124,formula!$AG$9+1,FALSE)) ->  | H140: =IF($B140="","",VLOOKUP($B140,formula!$A$15:$EV$124,formula!$EM$9,FALSE)) ->  | I140: =IF($B140="","",VLOOKUP($B140,formula!$A$15:$EV$124,formula!$EN$9,FALSE)) ->  | J140: =IF($B140="","",VLOOKUP($B140,formula!$A$15:$BI$124,formula!$AV$9,FALSE)) ->  | K140: =IF($B140="","",VLOOKUP($B140,formula!$A$15:$BI$124,formula!$AU$9,FALSE)) ->  | L140: =IF($B140="","",VLOOKUP($B140,formula!$A$15:$BI$124,formula!$AX$9,FALSE)) -> 
D141: =IF(C140=MaxCoverageYear-1,"***以下空白***",IF($B141="","",IF($B141>plan,"",VLOOKUP($B141,formula!$A$15:$BI$124,formula!$AM$9,FALSE)))) ->  | E141: =IF($B141="","",VLOOKUP($B141,formula!$A$15:$BI$124,formula!$AN$9,FALSE)) ->  | F141: =IF($B141="","",VLOOKUP($B141,formula!$A$15:$BI$124,formula!$AD$9+1,FALSE)) ->  | G141: =IF($B141="","",VLOOKUP($B141,formula!$A$15:$BI$124,formula!$AG$9+1,FALSE)) ->  | H141: =IF($B141="","",VLOOKUP($B141,formula!$A$15:$EV$124,formula!$EM$9,FALSE)) ->  | I141: =IF($B141="","",VLOOKUP($B141,formula!$A$15:$EV$124,formula!$EN$9,FALSE)) ->  | J141: =IF($B141="","",VLOOKUP($B141,formula!$A$15:$BI$124,formula!$AV$9,FALSE)) ->  | K141: =IF($B141="","",VLOOKUP($B141,formula!$A$15:$BI$124,formula!$AU$9,FALSE)) ->  | L141: =IF($B141="","",VLOOKUP($B141,formula!$A$15:$BI$124,formula!$AX$9,FALSE)) -> 
M142: (幣別/單位：美元/元)
B143: 年度 | C143: 年齡 | D143: 折扣後 當年度 所繳保險費 | E143: 折扣後 累計 所繳保險費 | F143: 【非保證給付項目】假設分紅-較低紅利金額(保額)(低分紅)
F144: 原保險金額試算 | H144: 減少保險金額試算
F146: 當年度末 壽險保障及 假設紅利_分紅保額 (預估值) (低) | G146: 當年度末 可能領取 解約金總額 (預估值) (低) | H146: 該次減少 基本保險金額 可領取之解約金 (預估值) (年初) | I146: 歷年減少 基本保險金額 領取之解約金總額 (預估值) A | J146: 減少基本保險金額後 當年度末壽險保障及 假設紅利_分紅保額 (預估值) | K146: 減少基本保險金額後 當年度末解約 可能領取之解約金 (預估值) B | L146: 累計至當年度末解約可能總領金額 (預估值) A+B=C
B147: 1 | C147: =IF(B147="","",age+B147-1) -> 70 | D147: =IF(C147="","***以下空白***",IF($B147="","",IF($B147>plan,"",VLOOKUP($B147,formula!$A$15:$BI$124,formula!$AM$9,FALSE)))) -> 1241365.95 | E147: =IF($B147="","",VLOOKUP($B147,formula!$A$15:$BI$124,formula!$AN$9,FALSE)) -> 1241365.95 | F147: =IF($B147="","",VLOOKUP($B147,formula!$A$15:$BI$124,formula!$AD$9+2,FALSE)) -> 10000000 | G147: =IF($B147="","",VLOOKUP($B147,formula!$A$15:$BI$124,formula!$AG$9+2,FALSE)) -> 435590 | H147: =IF($B147="","",VLOOKUP($B147,formula!$A$15:$EV$124,formula!$EO$9,FALSE)) -> 0 | I147: =IF($B147="","",VLOOKUP($B147,formula!$A$15:$EV$124,formula!$EP$9,FALSE)) -> 0 | J147: =IF($B147="","",VLOOKUP($B147,formula!$A$15:$BI$124,formula!$BE$9,FALSE)) -> 10000000 | K147: =IF($B147="","",VLOOKUP($B147,formula!$A$15:$BI$124,formula!$BD$9,FALSE)) -> 435590 | L147: =IF($B147="","",VLOOKUP($B147,formula!$A$15:$BI$124,formula!$BG$9,FALSE)) -> 435590
B148: =IF(B147>=109-age+1,"",B147+1) -> 2 | C148: 71 | D148: =IF(C147=MaxCoverageYear-1,"***以下空白***",IF($B148="","",IF($B148>plan,"",VLOOKUP($B148,formula!$A$15:$BI$124,formula!$AM$9,FALSE)))) -> 1241365.95 | E148: =IF($B148="","",VLOOKUP($B148,formula!$A$15:$BI$124,formula!$AN$9,FALSE)) -> 2482731.9 | F148: =IF($B148="","",VLOOKUP($B148,formula!$A$15:$BI$124,formula!$AD$9+2,FALSE)) -> 10000000 | G148: =IF($B148="","",VLOOKUP($B148,formula!$A$15:$BI$124,formula!$AG$9+2,FALSE)) -> 1230050 | H148: =IF($B148="","",VLOOKUP($B148,formula!$A$15:$EV$124,formula!$EO$9,FALSE)) -> 0 | I148: =IF($B148="","",VLOOKUP($B148,formula!$A$15:$EV$124,formula!$EP$9,FALSE)) -> 0 | J148: =IF($B148="","",VLOOKUP($B148,formula!$A$15:$BI$124,formula!$BE$9,FALSE)) -> 10000000 | K148: =IF($B148="","",VLOOKUP($B148,formula!$A$15:$BI$124,formula!$BD$9,FALSE)) -> 1230050 | L148: =IF($B148="","",VLOOKUP($B148,formula!$A$15:$BI$124,formula!$BG$9,FALSE)) -> 1230050
B149: 3 | C149: 72 | D149: =IF(C148=MaxCoverageYear-1,"***以下空白***",IF($B149="","",IF($B149>plan,"",VLOOKUP($B149,formula!$A$15:$BI$124,formula!$AM$9,FALSE)))) -> 1241365.95 | E149: =IF($B149="","",VLOOKUP($B149,formula!$A$15:$BI$124,formula!$AN$9,FALSE)) -> 3724097.85 | F149: =IF($B149="","",VLOOKUP($B149,formula!$A$15:$BI$124,formula!$AD$9+2,FALSE)) -> 10007700 | G149: =IF($B149="","",VLOOKUP($B149,formula!$A$15:$BI$124,formula!$AG$9+2,FALSE)) -> 2049644.55 | H149: =IF($B149="","",VLOOKUP($B149,formula!$A$15:$EV$124,formula!$EO$9,FALSE)) -> 0 | I149: =IF($B149="","",VLOOKUP($B149,formula!$A$15:$EV$124,formula!$EP$9,FALSE)) -> 0 | J149: =IF($B149="","",VLOOKUP($B149,formula!$A$15:$BI$124,formula!$BE$9,FALSE)) -> 10007700 | K149: =IF($B149="","",VLOOKUP($B149,formula!$A$15:$BI$124,formula!$BD$9,FALSE)) -> 2049644.55 | L149: =IF($B149="","",VLOOKUP($B149,formula!$A$15:$BI$124,formula!$BG$9,FALSE)) -> 2049644.55
B150: 4 | C150: 73 | D150: =IF(C149=MaxCoverageYear-1,"***以下空白***",IF($B150="","",IF($B150>plan,"",VLOOKUP($B150,formula!$A$15:$BI$124,formula!$AM$9,FALSE)))) -> 1241365.95 | E150: =IF($B150="","",VLOOKUP($B150,formula!$A$15:$BI$124,formula!$AN$9,FALSE)) -> 4965463.8 | F150: =IF($B150="","",VLOOKUP($B150,formula!$A$15:$BI$124,formula!$AD$9+2,FALSE)) -> 10015400 | G150: =IF($B150="","",VLOOKUP($B150,formula!$A$15:$BI$124,formula!$AG$9+2,FALSE)) -> 3083196.29 | H150: =IF($B150="","",VLOOKUP($B150,formula!$A$15:$EV$124,formula!$EO$9,FALSE)) -> 0 | I150: =IF($B150="","",VLOOKUP($B150,formula!$A$15:$EV$124,formula!$EP$9,FALSE)) -> 0 | J150: =IF($B150="","",VLOOKUP($B150,formula!$A$15:$BI$124,formula!$BE$9,FALSE)) -> 10015400 | K150: =IF($B150="","",VLOOKUP($B150,formula!$A$15:$BI$124,formula!$BD$9,FALSE)) -> 3083196.29 | L150: =IF($B150="","",VLOOKUP($B150,formula!$A$15:$BI$124,formula!$BG$9,FALSE)) -> 3083196.29
B151: 5 | C151: 74 | D151: =IF(C150=MaxCoverageYear-1,"***以下空白***",IF($B151="","",IF($B151>plan,"",VLOOKUP($B151,formula!$A$15:$BI$124,formula!$AM$9,FALSE)))) -> 1241365.95 | E151: =IF($B151="","",VLOOKUP($B151,formula!$A$15:$BI$124,formula!$AN$9,FALSE)) -> 6206829.75 | F151: =IF($B151="","",VLOOKUP($B151,formula!$A$15:$BI$124,formula!$AD$9+2,FALSE)) -> 10023100 | G151: =IF($B151="","",VLOOKUP($B151,formula!$A$15:$BI$124,formula!$AG$9+2,FALSE)) -> 4505263.97 | H151: =IF($B151="","",VLOOKUP($B151,formula!$A$15:$EV$124,formula!$EO$9,FALSE)) -> 0 | I151: =IF($B151="","",VLOOKUP($B151,formula!$A$15:$EV$124,formula!$EP$9,FALSE)) -> 0 | J151: =IF($B151="","",VLOOKUP($B151,formula!$A$15:$BI$124,formula!$BE$9,FALSE)) -> 10023100 | K151: =IF($B151="","",VLOOKUP($B151,formula!$A$15:$BI$124,formula!$BD$9,FALSE)) -> 4505263.97 | L151: =IF($B151="","",VLOOKUP($B151,formula!$A$15:$BI$124,formula!$BG$9,FALSE)) -> 4505263.97
B152: 6 | C152: 75 | D152: =IF(C151=MaxCoverageYear-1,"***以下空白***",IF($B152="","",IF($B152>plan,"",VLOOKUP($B152,formula!$A$15:$BI$124,formula!$AM$9,FALSE)))) -> 1241365.95 | E152: =IF($B152="","",VLOOKUP($B152,formula!$A$15:$BI$124,formula!$AN$9,FALSE)) -> 7448195.7 | F152: =IF($B152="","",VLOOKUP($B152,formula!$A$15:$BI$124,formula!$AD$9+2,FALSE)) -> 10138500 | G152: =IF($B152="","",VLOOKUP($B152,formula!$A$15:$BI$124,formula!$AG$9+2,FALSE)) -> 6215000.05 | H152: =IF($B152="","",VLOOKUP($B152,formula!$A$15:$EV$124,formula!$EO$9,FALSE)) -> 0 | I152: =IF($B152="","",VLOOKUP($B152,formula!$A$15:$EV$124,formula!$EP$9,FALSE)) -> 0 | J152: =IF($B152="","",VLOOKUP($B152,formula!$A$15:$BI$124,formula!$BE$9,FALSE)) -> 10138500 | K152: =IF($B152="","",VLOOKUP($B152,formula!$A$15:$BI$124,formula!$BD$9,FALSE)) -> 6215000.05 | L152: =IF($B152="","",VLOOKUP($B152,formula!$A$15:$BI$124,formula!$BG$9,FALSE)) -> 6215000.05
B153: 7 | C153: 76 | D153: =IF(C152=MaxCoverageYear-1,"***以下空白***",IF($B153="","",IF($B153>plan,"",VLOOKUP($B153,formula!$A$15:$BI$124,formula!$AM$9,FALSE)))) -> 1241365.95 | E153: =IF($B153="","",VLOOKUP($B153,formula!$A$15:$BI$124,formula!$AN$9,FALSE)) -> 8689561.65 | F153: =IF($B153="","",VLOOKUP($B153,formula!$A$15:$BI$124,formula!$AD$9+2,FALSE)) -> 10161580 | G153: =IF($B153="","",VLOOKUP($B153,formula!$A$15:$BI$124,formula!$AG$9+2,FALSE)) -> 7455179.96 | H153: =IF($B153="","",VLOOKUP($B153,formula!$A$15:$EV$124,formula!$EO$9,FALSE)) -> 0 | I153: =IF($B153="","",VLOOKUP($B153,formula!$A$15:$EV$124,formula!$EP$9,FALSE)) -> 0 | J153: =IF($B153="","",VLOOKUP($B153,formula!$A$15:$BI$124,formula!$BE$9,FALSE)) -> 10161580 | K153: =IF($B153="","",VLOOKUP($B153,formula!$A$15:$BI$124,formula!$BD$9,FALSE)) -> 7455179.96 | L153: =IF($B153="","",VLOOKUP($B153,formula!$A$15:$BI$124,formula!$BG$9,FALSE)) -> 7455179.96
B154: 8 | C154: 77 | D154: =IF(C153=MaxCoverageYear-1,"***以下空白***",IF($B154="","",IF($B154>plan,"",VLOOKUP($B154,formula!$A$15:$BI$124,formula!$AM$9,FALSE)))) ->  | E154: =IF($B154="","",VLOOKUP($B154,formula!$A$15:$BI$124,formula!$AN$9,FALSE)) -> 8689561.65 | F154: =IF($B154="","",VLOOKUP($B154,formula!$A$15:$BI$124,formula!$AD$9+2,FALSE)) -> 10184670 | G154: =IF($B154="","",VLOOKUP($B154,formula!$A$15:$BI$124,formula!$AG$9+2,FALSE)) -> 7577250.61 | H154: =IF($B154="","",VLOOKUP($B154,formula!$A$15:$EV$124,formula!$EO$9,FALSE)) -> 0 | I154: =IF($B154="","",VLOOKUP($B154,formula!$A$15:$EV$124,formula!$EP$9,FALSE)) -> 0 | J154: =IF($B154="","",VLOOKUP($B154,formula!$A$15:$BI$124,formula!$BE$9,FALSE)) -> 10184670 | K154: =IF($B154="","",VLOOKUP($B154,formula!$A$15:$BI$124,formula!$BD$9,FALSE)) -> 7577250.61 | L154: =IF($B154="","",VLOOKUP($B154,formula!$A$15:$BI$124,formula!$BG$9,FALSE)) -> 7577250.61
B155: 9 | C155: 78 | D155: =IF(C154=MaxCoverageYear-1,"***以下空白***",IF($B155="","",IF($B155>plan,"",VLOOKUP($B155,formula!$A$15:$BI$124,formula!$AM$9,FALSE)))) ->  | E155: =IF($B155="","",VLOOKUP($B155,formula!$A$15:$BI$124,formula!$AN$9,FALSE)) -> 8689561.65 | F155: =IF($B155="","",VLOOKUP($B155,formula!$A$15:$BI$124,formula!$AD$9+2,FALSE)) -> 10207750 | G155: =IF($B155="","",VLOOKUP($B155,formula!$A$15:$BI$124,formula!$AG$9+2,FALSE)) -> 7719288.37 | H155: =IF($B155="","",VLOOKUP($B155,formula!$A$15:$EV$124,formula!$EO$9,FALSE)) -> 0 | I155: =IF($B155="","",VLOOKUP($B155,formula!$A$15:$EV$124,formula!$EP$9,FALSE)) -> 0 | J155: =IF($B155="","",VLOOKUP($B155,formula!$A$15:$BI$124,formula!$BE$9,FALSE)) -> 10207750 | K155: =IF($B155="","",VLOOKUP($B155,formula!$A$15:$BI$124,formula!$BD$9,FALSE)) -> 7719288.37 | L155: =IF($B155="","",VLOOKUP($B155,formula!$A$15:$BI$124,formula!$BG$9,FALSE)) -> 7719288.37
B156: 10 | C156: 79 | D156: =IF(C155=MaxCoverageYear-1,"***以下空白***",IF($B156="","",IF($B156>plan,"",VLOOKUP($B156,formula!$A$15:$BI$124,formula!$AM$9,FALSE)))) ->  | E156: =IF($B156="","",VLOOKUP($B156,formula!$A$15:$BI$124,formula!$AN$9,FALSE)) -> 8689561.65 | F156: =IF($B156="","",VLOOKUP($B156,formula!$A$15:$BI$124,formula!$AD$9+2,FALSE)) -> 10230840 | G156: =IF($B156="","",VLOOKUP($B156,formula!$A$15:$BI$124,formula!$AG$9+2,FALSE)) -> 7839999.26 | H156: =IF($B156="","",VLOOKUP($B156,formula!$A$15:$EV$124,formula!$EO$9,FALSE)) -> 0 | I156: =IF($B156="","",VLOOKUP($B156,formula!$A$15:$EV$124,formula!$EP$9,FALSE)) -> 0 | J156: =IF($B156="","",VLOOKUP($B156,formula!$A$15:$BI$124,formula!$BE$9,FALSE)) -> 10230840 | K156: =IF($B156="","",VLOOKUP($B156,formula!$A$15:$BI$124,formula!$BD$9,FALSE)) -> 7839999.26 | L156: =IF($B156="","",VLOOKUP($B156,formula!$A$15:$BI$124,formula!$BG$9,FALSE)) -> 7839999.26
B157: 11 | C157: 80 | D157: =IF(C156=MaxCoverageYear-1,"***以下空白***",IF($B157="","",IF($B157>plan,"",VLOOKUP($B157,formula!$A$15:$BI$124,formula!$AM$9,FALSE)))) ->  | E157: =IF($B157="","",VLOOKUP($B157,formula!$A$15:$BI$124,formula!$AN$9,FALSE)) -> 8689561.65 | F157: =IF($B157="","",VLOOKUP($B157,formula!$A$15:$BI$124,formula!$AD$9+2,FALSE)) -> 10253920 | G157: =IF($B157="","",VLOOKUP($B157,formula!$A$15:$BI$124,formula!$AG$9+2,FALSE)) -> 7958079.13 | H157: =IF($B157="","",VLOOKUP($B157,formula!$A$15:$EV$124,formula!$EO$9,FALSE)) -> 0 | I157: =IF($B157="","",VLOOKUP($B157,formula!$A$15:$EV$124,formula!$EP$9,FALSE)) -> 0 | J157: =IF($B157="","",VLOOKUP($B157,formula!$A$15:$BI$124,formula!$BE$9,FALSE)) -> 10253920 | K157: =IF($B157="","",VLOOKUP($B157,formula!$A$15:$BI$124,formula!$BD$9,FALSE)) -> 7958079.13 | L157: =IF($B157="","",VLOOKUP($B157,formula!$A$15:$BI$124,formula!$BG$9,FALSE)) -> 7958079.13
B158: 12 | C158: 81 | D158: =IF(C157=MaxCoverageYear-1,"***以下空白***",IF($B158="","",IF($B158>plan,"",VLOOKUP($B158,formula!$A$15:$BI$124,formula!$AM$9,FALSE)))) ->  | E158: =IF($B158="","",VLOOKUP($B158,formula!$A$15:$BI$124,formula!$AN$9,FALSE)) -> 8689561.65 | F158: =IF($B158="","",VLOOKUP($B158,formula!$A$15:$BI$124,formula!$AD$9+2,FALSE)) -> 10277000 | G158: =IF($B158="","",VLOOKUP($B158,formula!$A$15:$BI$124,formula!$AG$9+2,FALSE)) -> 8106583.7 | H158: =IF($B158="","",VLOOKUP($B158,formula!$A$15:$EV$124,formula!$EO$9,FALSE)) -> 0 | I158: =IF($B158="","",VLOOKUP($B158,formula!$A$15:$EV$124,formula!$EP$9,FALSE)) -> 0 | J158: =IF($B158="","",VLOOKUP($B158,formula!$A$15:$BI$124,formula!$BE$9,FALSE)) -> 10277000 | K158: =IF($B158="","",VLOOKUP($B158,formula!$A$15:$BI$124,formula!$BD$9,FALSE)) -> 8106583.7 | L158: =IF($B158="","",VLOOKUP($B158,formula!$A$15:$BI$124,formula!$BG$9,FALSE)) -> 8106583.7
B159: 13 | C159: 82 | D159: =IF(C158=MaxCoverageYear-1,"***以下空白***",IF($B159="","",IF($B159>plan,"",VLOOKUP($B159,formula!$A$15:$BI$124,formula!$AM$9,FALSE)))) ->  | E159: =IF($B159="","",VLOOKUP($B159,formula!$A$15:$BI$124,formula!$AN$9,FALSE)) -> 8689561.65 | F159: =IF($B159="","",VLOOKUP($B159,formula!$A$15:$BI$124,formula!$AD$9+2,FALSE)) -> 10300090 | G159: =IF($B159="","",VLOOKUP($B159,formula!$A$15:$BI$124,formula!$AG$9+2,FALSE)) -> 8224368.39 | H159: =IF($B159="","",VLOOKUP($B159,formula!$A$15:$EV$124,formula!$EO$9,FALSE)) -> 0 | I159: =IF($B159="","",VLOOKUP($B159,formula!$A$15:$EV$124,formula!$EP$9,FALSE)) -> 0 | J159: =IF($B159="","",VLOOKUP($B159,formula!$A$15:$BI$124,formula!$BE$9,FALSE)) -> 10300090 | K159: =IF($B159="","",VLOOKUP($B159,formula!$A$15:$BI$124,formula!$BD$9,FALSE)) -> 8224368.39 | L159: =IF($B159="","",VLOOKUP($B159,formula!$A$15:$BI$124,formula!$BG$9,FALSE)) -> 8224368.39
B160: 14 | C160: 83 | D160: =IF(C159=MaxCoverageYear-1,"***以下空白***",IF($B160="","",IF($B160>plan,"",VLOOKUP($B160,formula!$A$15:$BI$124,formula!$AM$9,FALSE)))) ->  | E160: =IF($B160="","",VLOOKUP($B160,formula!$A$15:$BI$124,formula!$AN$9,FALSE)) -> 8689561.65 | F160: =IF($B160="","",VLOOKUP($B160,formula!$A$15:$BI$124,formula!$AD$9+2,FALSE)) -> 10323170 | G160: =IF($B160="","",VLOOKUP($B160,formula!$A$15:$BI$124,formula!$AG$9+2,FALSE)) -> 8340847.85 | H160: =IF($B160="","",VLOOKUP($B160,formula!$A$15:$EV$124,formula!$EO$9,FALSE)) -> 0 | I160: =IF($B160="","",VLOOKUP($B160,formula!$A$15:$EV$124,formula!$EP$9,FALSE)) -> 0 | J160: =IF($B160="","",VLOOKUP($B160,formula!$A$15:$BI$124,formula!$BE$9,FALSE)) -> 10323170 | K160: =IF($B160="","",VLOOKUP($B160,formula!$A$15:$BI$124,formula!$BD$9,FALSE)) -> 8340847.85 | L160: =IF($B160="","",VLOOKUP($B160,formula!$A$15:$BI$124,formula!$BG$9,FALSE)) -> 8340847.85
B161: 15 | C161: 84 | D161: =IF(C160=MaxCoverageYear-1,"***以下空白***",IF($B161="","",IF($B161>plan,"",VLOOKUP($B161,formula!$A$15:$BI$124,formula!$AM$9,FALSE)))) ->  | E161: =IF($B161="","",VLOOKUP($B161,formula!$A$15:$BI$124,formula!$AN$9,FALSE)) -> 8689561.65 | F161: =IF($B161="","",VLOOKUP($B161,formula!$A$15:$BI$124,formula!$AD$9+2,FALSE)) -> 10346260 | G161: =IF($B161="","",VLOOKUP($B161,formula!$A$15:$BI$124,formula!$AG$9+2,FALSE)) -> 8455556.01 | H161: =IF($B161="","",VLOOKUP($B161,formula!$A$15:$EV$124,formula!$EO$9,FALSE)) -> 0 | I161: =IF($B161="","",VLOOKUP($B161,formula!$A$15:$EV$124,formula!$EP$9,FALSE)) -> 0 | J161: =IF($B161="","",VLOOKUP($B161,formula!$A$15:$BI$124,formula!$BE$9,FALSE)) -> 10346260 | K161: =IF($B161="","",VLOOKUP($B161,formula!$A$15:$BI$124,formula!$BD$9,FALSE)) -> 8455556.01 | L161: =IF($B161="","",VLOOKUP($B161,formula!$A$15:$BI$124,formula!$BG$9,FALSE)) -> 8455556.01
B162: 16 | C162: 85 | D162: =IF(C161=MaxCoverageYear-1,"***以下空白***",IF($B162="","",IF($B162>plan,"",VLOOKUP($B162,formula!$A$15:$BI$124,formula!$AM$9,FALSE)))) ->  | E162: =IF($B162="","",VLOOKUP($B162,formula!$A$15:$BI$124,formula!$AN$9,FALSE)) -> 8689561.65 | F162: =IF($B162="","",VLOOKUP($B162,formula!$A$15:$BI$124,formula!$AD$9+2,FALSE)) -> 10369340 | G162: =IF($B162="","",VLOOKUP($B162,formula!$A$15:$BI$124,formula!$AG$9+2,FALSE)) -> 8571325.76 | H162: =IF($B162="","",VLOOKUP($B162,formula!$A$15:$EV$124,formula!$EO$9,FALSE)) -> 0 | I162: =IF($B162="","",VLOOKUP($B162,formula!$A$15:$EV$124,formula!$EP$9,FALSE)) -> 0 | J162: =IF($B162="","",VLOOKUP($B162,formula!$A$15:$BI$124,formula!$BE$9,FALSE)) -> 10369340 | K162: =IF($B162="","",VLOOKUP($B162,formula!$A$15:$BI$124,formula!$BD$9,FALSE)) -> 8571325.76 | L162: =IF($B162="","",VLOOKUP($B162,formula!$A$15:$BI$124,formula!$BG$9,FALSE)) -> 8571325.76
B163: 17 | C163: 86 | D163: =IF(C162=MaxCoverageYear-1,"***以下空白***",IF($B163="","",IF($B163>plan,"",VLOOKUP($B163,formula!$A$15:$BI$124,formula!$AM$9,FALSE)))) ->  | E163: =IF($B163="","",VLOOKUP($B163,formula!$A$15:$BI$124,formula!$AN$9,FALSE)) -> 8689561.65 | F163: =IF($B163="","",VLOOKUP($B163,formula!$A$15:$BI$124,formula!$AD$9+2,FALSE)) -> 10392430 | G163: =IF($B163="","",VLOOKUP($B163,formula!$A$15:$BI$124,formula!$AG$9+2,FALSE)) -> 8686168.81 | H163: =IF($B163="","",VLOOKUP($B163,formula!$A$15:$EV$124,formula!$EO$9,FALSE)) -> 0 | I163: =IF($B163="","",VLOOKUP($B163,formula!$A$15:$EV$124,formula!$EP$9,FALSE)) -> 0 | J163: =IF($B163="","",VLOOKUP($B163,formula!$A$15:$BI$124,formula!$BE$9,FALSE)) -> 10392430 | K163: =IF($B163="","",VLOOKUP($B163,formula!$A$15:$BI$124,formula!$BD$9,FALSE)) -> 8686168.81 | L163: =IF($B163="","",VLOOKUP($B163,formula!$A$15:$BI$124,formula!$BG$9,FALSE)) -> 8686168.81
B164: 18 | C164: 87 | D164: =IF(C163=MaxCoverageYear-1,"***以下空白***",IF($B164="","",IF($B164>plan,"",VLOOKUP($B164,formula!$A$15:$BI$124,formula!$AM$9,FALSE)))) ->  | E164: =IF($B164="","",VLOOKUP($B164,formula!$A$15:$BI$124,formula!$AN$9,FALSE)) -> 8689561.65 | F164: =IF($B164="","",VLOOKUP($B164,formula!$A$15:$BI$124,formula!$AD$9+2,FALSE)) -> 10415510 | G164: =IF($B164="","",VLOOKUP($B164,formula!$A$15:$BI$124,formula!$AG$9+2,FALSE)) -> 8799926.23 | H164: =IF($B164="","",VLOOKUP($B164,formula!$A$15:$EV$124,formula!$EO$9,FALSE)) -> 0 | I164: =IF($B164="","",VLOOKUP($B164,formula!$A$15:$EV$124,formula!$EP$9,FALSE)) -> 0 | J164: =IF($B164="","",VLOOKUP($B164,formula!$A$15:$BI$124,formula!$BE$9,FALSE)) -> 10415510 | K164: =IF($B164="","",VLOOKUP($B164,formula!$A$15:$BI$124,formula!$BD$9,FALSE)) -> 8799926.23 | L164: =IF($B164="","",VLOOKUP($B164,formula!$A$15:$BI$124,formula!$BG$9,FALSE)) -> 8799926.23
B165: 19 | C165: 88 | D165: =IF(C164=MaxCoverageYear-1,"***以下空白***",IF($B165="","",IF($B165>plan,"",VLOOKUP($B165,formula!$A$15:$BI$124,formula!$AM$9,FALSE)))) ->  | E165: =IF($B165="","",VLOOKUP($B165,formula!$A$15:$BI$124,formula!$AN$9,FALSE)) -> 8689561.65 | F165: =IF($B165="","",VLOOKUP($B165,formula!$A$15:$BI$124,formula!$AD$9+2,FALSE)) -> 10438600 | G165: =IF($B165="","",VLOOKUP($B165,formula!$A$15:$BI$124,formula!$AG$9+2,FALSE)) -> 8911418.54 | H165: =IF($B165="","",VLOOKUP($B165,formula!$A$15:$EV$124,formula!$EO$9,FALSE)) -> 0 | I165: =IF($B165="","",VLOOKUP($B165,formula!$A$15:$EV$124,formula!$EP$9,FALSE)) -> 0 | J165: =IF($B165="","",VLOOKUP($B165,formula!$A$15:$BI$124,formula!$BE$9,FALSE)) -> 10438600 | K165: =IF($B165="","",VLOOKUP($B165,formula!$A$15:$BI$124,formula!$BD$9,FALSE)) -> 8911418.54 | L165: =IF($B165="","",VLOOKUP($B165,formula!$A$15:$BI$124,formula!$BG$9,FALSE)) -> 8911418.54
B166: 20 | C166: 89 | D166: =IF(C165=MaxCoverageYear-1,"***以下空白***",IF($B166="","",IF($B166>plan,"",VLOOKUP($B166,formula!$A$15:$BI$124,formula!$AM$9,FALSE)))) ->  | E166: =IF($B166="","",VLOOKUP($B166,formula!$A$15:$BI$124,formula!$AN$9,FALSE)) -> 8689561.65 | F166: =IF($B166="","",VLOOKUP($B166,formula!$A$15:$BI$124,formula!$AD$9+2,FALSE)) -> 10461680 | G166: =IF($B166="","",VLOOKUP($B166,formula!$A$15:$BI$124,formula!$AG$9+2,FALSE)) -> 9021006.43 | H166: =IF($B166="","",VLOOKUP($B166,formula!$A$15:$EV$124,formula!$EO$9,FALSE)) -> 0 | I166: =IF($B166="","",VLOOKUP($B166,formula!$A$15:$EV$124,formula!$EP$9,FALSE)) -> 0 | J166: =IF($B166="","",VLOOKUP($B166,formula!$A$15:$BI$124,formula!$BE$9,FALSE)) -> 10461680 | K166: =IF($B166="","",VLOOKUP($B166,formula!$A$15:$BI$124,formula!$BD$9,FALSE)) -> 9021006.43 | L166: =IF($B166="","",VLOOKUP($B166,formula!$A$15:$BI$124,formula!$BG$9,FALSE)) -> 9021006.43
B167: 21 | C167: 90 | D167: =IF(C166=MaxCoverageYear-1,"***以下空白***",IF($B167="","",IF($B167>plan,"",VLOOKUP($B167,formula!$A$15:$BI$124,formula!$AM$9,FALSE)))) ->  | E167: =IF($B167="","",VLOOKUP($B167,formula!$A$15:$BI$124,formula!$AN$9,FALSE)) -> 8689561.65 | F167: =IF($B167="","",VLOOKUP($B167,formula!$A$15:$BI$124,formula!$AD$9+2,FALSE)) -> 10484770 | G167: =IF($B167="","",VLOOKUP($B167,formula!$A$15:$BI$124,formula!$AG$9+2,FALSE)) -> 9128390.19 | H167: =IF($B167="","",VLOOKUP($B167,formula!$A$15:$EV$124,formula!$EO$9,FALSE)) -> 0 | I167: =IF($B167="","",VLOOKUP($B167,formula!$A$15:$EV$124,formula!$EP$9,FALSE)) -> 0 | J167: =IF($B167="","",VLOOKUP($B167,formula!$A$15:$BI$124,formula!$BE$9,FALSE)) -> 10484770 | K167: =IF($B167="","",VLOOKUP($B167,formula!$A$15:$BI$124,formula!$BD$9,FALSE)) -> 9128390.19 | L167: =IF($B167="","",VLOOKUP($B167,formula!$A$15:$BI$124,formula!$BG$9,FALSE)) -> 9128390.19
B168: 22 | C168: 91 | D168: =IF(C167=MaxCoverageYear-1,"***以下空白***",IF($B168="","",IF($B168>plan,"",VLOOKUP($B168,formula!$A$15:$BI$124,formula!$AM$9,FALSE)))) ->  | E168: =IF($B168="","",VLOOKUP($B168,formula!$A$15:$BI$124,formula!$AN$9,FALSE)) -> 8689561.65 | F168: =IF($B168="","",VLOOKUP($B168,formula!$A$15:$BI$124,formula!$AD$9+2,FALSE)) -> 10507850 | G168: =IF($B168="","",VLOOKUP($B168,formula!$A$15:$BI$124,formula!$AG$9+2,FALSE)) -> 9233370.83 | H168: =IF($B168="","",VLOOKUP($B168,formula!$A$15:$EV$124,formula!$EO$9,FALSE)) -> 0 | I168: =IF($B168="","",VLOOKUP($B168,formula!$A$15:$EV$124,formula!$EP$9,FALSE)) -> 0 | J168: =IF($B168="","",VLOOKUP($B168,formula!$A$15:$BI$124,formula!$BE$9,FALSE)) -> 10507850 | K168: =IF($B168="","",VLOOKUP($B168,formula!$A$15:$BI$124,formula!$BD$9,FALSE)) -> 9233370.83 | L168: =IF($B168="","",VLOOKUP($B168,formula!$A$15:$BI$124,formula!$BG$9,FALSE)) -> 9233370.83
B169: 23 | C169: 92 | D169: =IF(C168=MaxCoverageYear-1,"***以下空白***",IF($B169="","",IF($B169>plan,"",VLOOKUP($B169,formula!$A$15:$BI$124,formula!$AM$9,FALSE)))) ->  | E169: =IF($B169="","",VLOOKUP($B169,formula!$A$15:$BI$124,formula!$AN$9,FALSE)) -> 8689561.65 | F169: =IF($B169="","",VLOOKUP($B169,formula!$A$15:$BI$124,formula!$AD$9+2,FALSE)) -> 10530940 | G169: =IF($B169="","",VLOOKUP($B169,formula!$A$15:$BI$124,formula!$AG$9+2,FALSE)) -> 9334729.16 | H169: =IF($B169="","",VLOOKUP($B169,formula!$A$15:$EV$124,formula!$EO$9,FALSE)) -> 0 | I169: =IF($B169="","",VLOOKUP($B169,formula!$A$15:$EV$124,formula!$EP$9,FALSE)) -> 0 | J169: =IF($B169="","",VLOOKUP($B169,formula!$A$15:$BI$124,formula!$BE$9,FALSE)) -> 10530940 | K169: =IF($B169="","",VLOOKUP($B169,formula!$A$15:$BI$124,formula!$BD$9,FALSE)) -> 9334729.16 | L169: =IF($B169="","",VLOOKUP($B169,formula!$A$15:$BI$124,formula!$BG$9,FALSE)) -> 9334729.16
B170: 24 | C170: 93 | D170: =IF(C169=MaxCoverageYear-1,"***以下空白***",IF($B170="","",IF($B170>plan,"",VLOOKUP($B170,formula!$A$15:$BI$124,formula!$AM$9,FALSE)))) ->  | E170: =IF($B170="","",VLOOKUP($B170,formula!$A$15:$BI$124,formula!$AN$9,FALSE)) -> 8689561.65 | F170: =IF($B170="","",VLOOKUP($B170,formula!$A$15:$BI$124,formula!$AD$9+2,FALSE)) -> 10554020 | G170: =IF($B170="","",VLOOKUP($B170,formula!$A$15:$BI$124,formula!$AG$9+2,FALSE)) -> 9433386.03 | H170: =IF($B170="","",VLOOKUP($B170,formula!$A$15:$EV$124,formula!$EO$9,FALSE)) -> 0 | I170: =IF($B170="","",VLOOKUP($B170,formula!$A$15:$EV$124,formula!$EP$9,FALSE)) -> 0 | J170: =IF($B170="","",VLOOKUP($B170,formula!$A$15:$BI$124,formula!$BE$9,FALSE)) -> 10554020 | K170: =IF($B170="","",VLOOKUP($B170,formula!$A$15:$BI$124,formula!$BD$9,FALSE)) -> 9433386.03 | L170: =IF($B170="","",VLOOKUP($B170,formula!$A$15:$BI$124,formula!$BG$9,FALSE)) -> 9433386.03
B171: 25 | C171: 94 | D171: =IF(C170=MaxCoverageYear-1,"***以下空白***",IF($B171="","",IF($B171>plan,"",VLOOKUP($B171,formula!$A$15:$BI$124,formula!$AM$9,FALSE)))) ->  | E171: =IF($B171="","",VLOOKUP($B171,formula!$A$15:$BI$124,formula!$AN$9,FALSE)) -> 8689561.65 | F171: =IF($B171="","",VLOOKUP($B171,formula!$A$15:$BI$124,formula!$AD$9+2,FALSE)) -> 10577110 | G171: =IF($B171="","",VLOOKUP($B171,formula!$A$15:$BI$124,formula!$AG$9+2,FALSE)) -> 9529573.2 | H171: =IF($B171="","",VLOOKUP($B171,formula!$A$15:$EV$124,formula!$EO$9,FALSE)) -> 0 | I171: =IF($B171="","",VLOOKUP($B171,formula!$A$15:$EV$124,formula!$EP$9,FALSE)) -> 0 | J171: =IF($B171="","",VLOOKUP($B171,formula!$A$15:$BI$124,formula!$BE$9,FALSE)) -> 10577110 | K171: =IF($B171="","",VLOOKUP($B171,formula!$A$15:$BI$124,formula!$BD$9,FALSE)) -> 9529573.2 | L171: =IF($B171="","",VLOOKUP($B171,formula!$A$15:$BI$124,formula!$BG$9,FALSE)) -> 9529573.2
B172: 26 | C172: 95 | D172: =IF(C171=MaxCoverageYear-1,"***以下空白***",IF($B172="","",IF($B172>plan,"",VLOOKUP($B172,formula!$A$15:$BI$124,formula!$AM$9,FALSE)))) ->  | E172: =IF($B172="","",VLOOKUP($B172,formula!$A$15:$BI$124,formula!$AN$9,FALSE)) -> 8689561.65 | F172: =IF($B172="","",VLOOKUP($B172,formula!$A$15:$BI$124,formula!$AD$9+2,FALSE)) -> 10600190 | G172: =IF($B172="","",VLOOKUP($B172,formula!$A$15:$BI$124,formula!$AG$9+2,FALSE)) -> 9622781.88 | H172: =IF($B172="","",VLOOKUP($B172,formula!$A$15:$EV$124,formula!$EO$9,FALSE)) -> 0 | I172: =IF($B172="","",VLOOKUP($B172,formula!$A$15:$EV$124,formula!$EP$9,FALSE)) -> 0 | J172: =IF($B172="","",VLOOKUP($B172,formula!$A$15:$BI$124,formula!$BE$9,FALSE)) -> 10600190 | K172: =IF($B172="","",VLOOKUP($B172,formula!$A$15:$BI$124,formula!$BD$9,FALSE)) -> 9622781.88 | L172: =IF($B172="","",VLOOKUP($B172,formula!$A$15:$BI$124,formula!$BG$9,FALSE)) -> 9622781.88
B173: 27 | C173: 96 | D173: =IF(C172=MaxCoverageYear-1,"***以下空白***",IF($B173="","",IF($B173>plan,"",VLOOKUP($B173,formula!$A$15:$BI$124,formula!$AM$9,FALSE)))) ->  | E173: =IF($B173="","",VLOOKUP($B173,formula!$A$15:$BI$124,formula!$AN$9,FALSE)) -> 8689561.65 | F173: =IF($B173="","",VLOOKUP($B173,formula!$A$15:$BI$124,formula!$AD$9+2,FALSE)) -> 10623270 | G173: =IF($B173="","",VLOOKUP($B173,formula!$A$15:$BI$124,formula!$AG$9+2,FALSE)) -> 9713774.52 | H173: =IF($B173="","",VLOOKUP($B173,formula!$A$15:$EV$124,formula!$EO$9,FALSE)) -> 0 | I173: =IF($B173="","",VLOOKUP($B173,formula!$A$15:$EV$124,formula!$EP$9,FALSE)) -> 0 | J173: =IF($B173="","",VLOOKUP($B173,formula!$A$15:$BI$124,formula!$BE$9,FALSE)) -> 10623270 | K173: =IF($B173="","",VLOOKUP($B173,formula!$A$15:$BI$124,formula!$BD$9,FALSE)) -> 9713774.52 | L173: =IF($B173="","",VLOOKUP($B173,formula!$A$15:$BI$124,formula!$BG$9,FALSE)) -> 9713774.52
B174: 28 | C174: 97 | D174: =IF(C173=MaxCoverageYear-1,"***以下空白***",IF($B174="","",IF($B174>plan,"",VLOOKUP($B174,formula!$A$15:$BI$124,formula!$AM$9,FALSE)))) ->  | E174: =IF($B174="","",VLOOKUP($B174,formula!$A$15:$BI$124,formula!$AN$9,FALSE)) -> 8689561.65 | F174: =IF($B174="","",VLOOKUP($B174,formula!$A$15:$BI$124,formula!$AD$9+2,FALSE)) -> 10646360 | G174: =IF($B174="","",VLOOKUP($B174,formula!$A$15:$BI$124,formula!$AG$9+2,FALSE)) -> 9801873.49 | H174: =IF($B174="","",VLOOKUP($B174,formula!$A$15:$EV$124,formula!$EO$9,FALSE)) -> 0 | I174: =IF($B174="","",VLOOKUP($B174,formula!$A$15:$EV$124,formula!$EP$9,FALSE)) -> 0 | J174: =IF($B174="","",VLOOKUP($B174,formula!$A$15:$BI$124,formula!$BE$9,FALSE)) -> 10646360 | K174: =IF($B174="","",VLOOKUP($B174,formula!$A$15:$BI$124,formula!$BD$9,FALSE)) -> 9801873.49 | L174: =IF($B174="","",VLOOKUP($B174,formula!$A$15:$BI$124,formula!$BG$9,FALSE)) -> 9801873.49
B175: 29 | C175: 98 | D175: =IF(C174=MaxCoverageYear-1,"***以下空白***",IF($B175="","",IF($B175>plan,"",VLOOKUP($B175,formula!$A$15:$BI$124,formula!$AM$9,FALSE)))) ->  | E175: =IF($B175="","",VLOOKUP($B175,formula!$A$15:$BI$124,formula!$AN$9,FALSE)) -> 8689561.65 | F175: =IF($B175="","",VLOOKUP($B175,formula!$A$15:$BI$124,formula!$AD$9+2,FALSE)) -> 10669440 | G175: =IF($B175="","",VLOOKUP($B175,formula!$A$15:$BI$124,formula!$AG$9+2,FALSE)) -> 9887632.09 | H175: =IF($B175="","",VLOOKUP($B175,formula!$A$15:$EV$124,formula!$EO$9,FALSE)) -> 0 | I175: =IF($B175="","",VLOOKUP($B175,formula!$A$15:$EV$124,formula!$EP$9,FALSE)) -> 0 | J175: =IF($B175="","",VLOOKUP($B175,formula!$A$15:$BI$124,formula!$BE$9,FALSE)) -> 10669440 | K175: =IF($B175="","",VLOOKUP($B175,formula!$A$15:$BI$124,formula!$BD$9,FALSE)) -> 9887632.09 | L175: =IF($B175="","",VLOOKUP($B175,formula!$A$15:$BI$124,formula!$BG$9,FALSE)) -> 9887632.09
B176: 30 | C176: 99 | D176: =IF(C175=MaxCoverageYear-1,"***以下空白***",IF($B176="","",IF($B176>plan,"",VLOOKUP($B176,formula!$A$15:$BI$124,formula!$AM$9,FALSE)))) ->  | E176: =IF($B176="","",VLOOKUP($B176,formula!$A$15:$BI$124,formula!$AN$9,FALSE)) -> 8689561.65 | F176: =IF($B176="","",VLOOKUP($B176,formula!$A$15:$BI$124,formula!$AD$9+2,FALSE)) -> 10692530 | G176: =IF($B176="","",VLOOKUP($B176,formula!$A$15:$BI$124,formula!$AG$9+2,FALSE)) -> 9971234.5 | H176: =IF($B176="","",VLOOKUP($B176,formula!$A$15:$EV$124,formula!$EO$9,FALSE)) -> 0 | I176: =IF($B176="","",VLOOKUP($B176,formula!$A$15:$EV$124,formula!$EP$9,FALSE)) -> 0 | J176: =IF($B176="","",VLOOKUP($B176,formula!$A$15:$BI$124,formula!$BE$9,FALSE)) -> 10692530 | K176: =IF($B176="","",VLOOKUP($B176,formula!$A$15:$BI$124,formula!$BD$9,FALSE)) -> 9971234.5 | L176: =IF($B176="","",VLOOKUP($B176,formula!$A$15:$BI$124,formula!$BG$9,FALSE)) -> 9971234.5
B177: 31 | C177: 100 | D177: =IF(C176=MaxCoverageYear-1,"***以下空白***",IF($B177="","",IF($B177>plan,"",VLOOKUP($B177,formula!$A$15:$BI$124,formula!$AM$9,FALSE)))) ->  | E177: =IF($B177="","",VLOOKUP($B177,formula!$A$15:$BI$124,formula!$AN$9,FALSE)) -> 8689561.65 | F177: =IF($B177="","",VLOOKUP($B177,formula!$A$15:$BI$124,formula!$AD$9+2,FALSE)) -> 10715610 | G177: =IF($B177="","",VLOOKUP($B177,formula!$A$15:$BI$124,formula!$AG$9+2,FALSE)) -> 10054996.96 | H177: =IF($B177="","",VLOOKUP($B177,formula!$A$15:$EV$124,formula!$EO$9,FALSE)) -> 0 | I177: =IF($B177="","",VLOOKUP($B177,formula!$A$15:$EV$124,formula!$EP$9,FALSE)) -> 0 | J177: =IF($B177="","",VLOOKUP($B177,formula!$A$15:$BI$124,formula!$BE$9,FALSE)) -> 10715610 | K177: =IF($B177="","",VLOOKUP($B177,formula!$A$15:$BI$124,formula!$BD$9,FALSE)) -> 10054996.96 | L177: =IF($B177="","",VLOOKUP($B177,formula!$A$15:$BI$124,formula!$BG$9,FALSE)) -> 10054996.96
B178: 32 | C178: 101 | D178: =IF(C177=MaxCoverageYear-1,"***以下空白***",IF($B178="","",IF($B178>plan,"",VLOOKUP($B178,formula!$A$15:$BI$124,formula!$AM$9,FALSE)))) ->  | E178: =IF($B178="","",VLOOKUP($B178,formula!$A$15:$BI$124,formula!$AN$9,FALSE)) -> 8689561.65 | F178: =IF($B178="","",VLOOKUP($B178,formula!$A$15:$BI$124,formula!$AD$9+2,FALSE)) -> 10738700 | G178: =IF($B178="","",VLOOKUP($B178,formula!$A$15:$BI$124,formula!$AG$9+2,FALSE)) -> 10137727.44 | H178: =IF($B178="","",VLOOKUP($B178,formula!$A$15:$EV$124,formula!$EO$9,FALSE)) -> 0 | I178: =IF($B178="","",VLOOKUP($B178,formula!$A$15:$EV$124,formula!$EP$9,FALSE)) -> 0 | J178: =IF($B178="","",VLOOKUP($B178,formula!$A$15:$BI$124,formula!$BE$9,FALSE)) -> 10738700 | K178: =IF($B178="","",VLOOKUP($B178,formula!$A$15:$BI$124,formula!$BD$9,FALSE)) -> 10137727.44 | L178: =IF($B178="","",VLOOKUP($B178,formula!$A$15:$BI$124,formula!$BG$9,FALSE)) -> 10137727.44
B179: 33 | C179: 102 | D179: =IF(C178=MaxCoverageYear-1,"***以下空白***",IF($B179="","",IF($B179>plan,"",VLOOKUP($B179,formula!$A$15:$BI$124,formula!$AM$9,FALSE)))) ->  | E179: =IF($B179="","",VLOOKUP($B179,formula!$A$15:$BI$124,formula!$AN$9,FALSE)) -> 8689561.65 | F179: =IF($B179="","",VLOOKUP($B179,formula!$A$15:$BI$124,formula!$AD$9+2,FALSE)) -> 10761780 | G179: =IF($B179="","",VLOOKUP($B179,formula!$A$15:$BI$124,formula!$AG$9+2,FALSE)) -> 10219899.16 | H179: =IF($B179="","",VLOOKUP($B179,formula!$A$15:$EV$124,formula!$EO$9,FALSE)) -> 0 | I179: =IF($B179="","",VLOOKUP($B179,formula!$A$15:$EV$124,formula!$EP$9,FALSE)) -> 0 | J179: =IF($B179="","",VLOOKUP($B179,formula!$A$15:$BI$124,formula!$BE$9,FALSE)) -> 10761780 | K179: =IF($B179="","",VLOOKUP($B179,formula!$A$15:$BI$124,formula!$BD$9,FALSE)) -> 10219899.16 | L179: =IF($B179="","",VLOOKUP($B179,formula!$A$15:$BI$124,formula!$BG$9,FALSE)) -> 10219899.16
B180: 34 | C180: 103 | D180: =IF(C179=MaxCoverageYear-1,"***以下空白***",IF($B180="","",IF($B180>plan,"",VLOOKUP($B180,formula!$A$15:$BI$124,formula!$AM$9,FALSE)))) ->  | E180: =IF($B180="","",VLOOKUP($B180,formula!$A$15:$BI$124,formula!$AN$9,FALSE)) -> 8689561.65 | F180: =IF($B180="","",VLOOKUP($B180,formula!$A$15:$BI$124,formula!$AD$9+2,FALSE)) -> 10784870 | G180: =IF($B180="","",VLOOKUP($B180,formula!$A$15:$BI$124,formula!$AG$9+2,FALSE)) -> 10302223.02 | H180: =IF($B180="","",VLOOKUP($B180,formula!$A$15:$EV$124,formula!$EO$9,FALSE)) -> 0 | I180: =IF($B180="","",VLOOKUP($B180,formula!$A$15:$EV$124,formula!$EP$9,FALSE)) -> 0 | J180: =IF($B180="","",VLOOKUP($B180,formula!$A$15:$BI$124,formula!$BE$9,FALSE)) -> 10784870 | K180: =IF($B180="","",VLOOKUP($B180,formula!$A$15:$BI$124,formula!$BD$9,FALSE)) -> 10302223.02 | L180: =IF($B180="","",VLOOKUP($B180,formula!$A$15:$BI$124,formula!$BG$9,FALSE)) -> 10302223.02
B181: 35 | C181: 104 | D181: =IF(C180=MaxCoverageYear-1,"***以下空白***",IF($B181="","",IF($B181>plan,"",VLOOKUP($B181,formula!$A$15:$BI$124,formula!$AM$9,FALSE)))) ->  | E181: =IF($B181="","",VLOOKUP($B181,formula!$A$15:$BI$124,formula!$AN$9,FALSE)) -> 8689561.65 | F181: =IF($B181="","",VLOOKUP($B181,formula!$A$15:$BI$124,formula!$AD$9+2,FALSE)) -> 10807950 | G181: =IF($B181="","",VLOOKUP($B181,formula!$A$15:$BI$124,formula!$AG$9+2,FALSE)) -> 10385998.04 | H181: =IF($B181="","",VLOOKUP($B181,formula!$A$15:$EV$124,formula!$EO$9,FALSE)) -> 0 | I181: =IF($B181="","",VLOOKUP($B181,formula!$A$15:$EV$124,formula!$EP$9,FALSE)) -> 0 | J181: =IF($B181="","",VLOOKUP($B181,formula!$A$15:$BI$124,formula!$BE$9,FALSE)) -> 10807950 | K181: =IF($B181="","",VLOOKUP($B181,formula!$A$15:$BI$124,formula!$BD$9,FALSE)) -> 10385998.04 | L181: =IF($B181="","",VLOOKUP($B181,formula!$A$15:$BI$124,formula!$BG$9,FALSE)) -> 10385998.04
B182: 36 | C182: 105 | D182: =IF(C181=MaxCoverageYear-1,"***以下空白***",IF($B182="","",IF($B182>plan,"",VLOOKUP($B182,formula!$A$15:$BI$124,formula!$AM$9,FALSE)))) ->  | E182: =IF($B182="","",VLOOKUP($B182,formula!$A$15:$BI$124,formula!$AN$9,FALSE)) -> 8689561.65 | F182: =IF($B182="","",VLOOKUP($B182,formula!$A$15:$BI$124,formula!$AD$9+2,FALSE)) -> 10831040 | G182: =IF($B182="","",VLOOKUP($B182,formula!$A$15:$BI$124,formula!$AG$9+2,FALSE)) -> 10473741.56 | H182: =IF($B182="","",VLOOKUP($B182,formula!$A$15:$EV$124,formula!$EO$9,FALSE)) -> 0 | I182: =IF($B182="","",VLOOKUP($B182,formula!$A$15:$EV$124,formula!$EP$9,FALSE)) -> 0 | J182: =IF($B182="","",VLOOKUP($B182,formula!$A$15:$BI$124,formula!$BE$9,FALSE)) -> 10831040 | K182: =IF($B182="","",VLOOKUP($B182,formula!$A$15:$BI$124,formula!$BD$9,FALSE)) -> 10473741.56 | L182: =IF($B182="","",VLOOKUP($B182,formula!$A$15:$BI$124,formula!$BG$9,FALSE)) -> 10473741.56
B183: 37 | C183: 106 | D183: =IF(C182=MaxCoverageYear-1,"***以下空白***",IF($B183="","",IF($B183>plan,"",VLOOKUP($B183,formula!$A$15:$BI$124,formula!$AM$9,FALSE)))) ->  | E183: =IF($B183="","",VLOOKUP($B183,formula!$A$15:$BI$124,formula!$AN$9,FALSE)) -> 8689561.65 | F183: =IF($B183="","",VLOOKUP($B183,formula!$A$15:$BI$124,formula!$AD$9+2,FALSE)) -> 10854120 | G183: =IF($B183="","",VLOOKUP($B183,formula!$A$15:$BI$124,formula!$AG$9+2,FALSE)) -> 10563745.03 | H183: =IF($B183="","",VLOOKUP($B183,formula!$A$15:$EV$124,formula!$EO$9,FALSE)) -> 0 | I183: =IF($B183="","",VLOOKUP($B183,formula!$A$15:$EV$124,formula!$EP$9,FALSE)) -> 0 | J183: =IF($B183="","",VLOOKUP($B183,formula!$A$15:$BI$124,formula!$BE$9,FALSE)) -> 10854120 | K183: =IF($B183="","",VLOOKUP($B183,formula!$A$15:$BI$124,formula!$BD$9,FALSE)) -> 10563745.03 | L183: =IF($B183="","",VLOOKUP($B183,formula!$A$15:$BI$124,formula!$BG$9,FALSE)) -> 10563745.03
B184: 38 | C184: 107 | D184: =IF(C183=MaxCoverageYear-1,"***以下空白***",IF($B184="","",IF($B184>plan,"",VLOOKUP($B184,formula!$A$15:$BI$124,formula!$AM$9,FALSE)))) ->  | E184: =IF($B184="","",VLOOKUP($B184,formula!$A$15:$BI$124,formula!$AN$9,FALSE)) -> 8689561.65 | F184: =IF($B184="","",VLOOKUP($B184,formula!$A$15:$BI$124,formula!$AD$9+2,FALSE)) -> 10877210 | G184: =IF($B184="","",VLOOKUP($B184,formula!$A$15:$BI$124,formula!$AG$9+2,FALSE)) -> 10662387.46 | H184: =IF($B184="","",VLOOKUP($B184,formula!$A$15:$EV$124,formula!$EO$9,FALSE)) -> 0 | I184: =IF($B184="","",VLOOKUP($B184,formula!$A$15:$EV$124,formula!$EP$9,FALSE)) -> 0 | J184: =IF($B184="","",VLOOKUP($B184,formula!$A$15:$BI$124,formula!$BE$9,FALSE)) -> 10877210 | K184: =IF($B184="","",VLOOKUP($B184,formula!$A$15:$BI$124,formula!$BD$9,FALSE)) -> 10662387.46 | L184: =IF($B184="","",VLOOKUP($B184,formula!$A$15:$BI$124,formula!$BG$9,FALSE)) -> 10662387.46
B185: 39 | C185: 108 | D185: =IF(C184=MaxCoverageYear-1,"***以下空白***",IF($B185="","",IF($B185>plan,"",VLOOKUP($B185,formula!$A$15:$BI$124,formula!$AM$9,FALSE)))) ->  | E185: =IF($B185="","",VLOOKUP($B185,formula!$A$15:$BI$124,formula!$AN$9,FALSE)) -> 8689561.65 | F185: =IF($B185="","",VLOOKUP($B185,formula!$A$15:$BI$124,formula!$AD$9+2,FALSE)) -> 10900290 | G185: =IF($B185="","",VLOOKUP($B185,formula!$A$15:$BI$124,formula!$AG$9+2,FALSE)) -> 10783961.83 | H185: =IF($B185="","",VLOOKUP($B185,formula!$A$15:$EV$124,formula!$EO$9,FALSE)) -> 0 | I185: =IF($B185="","",VLOOKUP($B185,formula!$A$15:$EV$124,formula!$EP$9,FALSE)) -> 0 | J185: =IF($B185="","",VLOOKUP($B185,formula!$A$15:$BI$124,formula!$BE$9,FALSE)) -> 10900290 | K185: =IF($B185="","",VLOOKUP($B185,formula!$A$15:$BI$124,formula!$BD$9,FALSE)) -> 10783961.83 | L185: =IF($B185="","",VLOOKUP($B185,formula!$A$15:$BI$124,formula!$BG$9,FALSE)) -> 10783961.83
B186: 40 | C186: 109 | D186: =IF(C185=MaxCoverageYear-1,"***以下空白***",IF($B186="","",IF($B186>plan,"",VLOOKUP($B186,formula!$A$15:$BI$124,formula!$AM$9,FALSE)))) ->  | E186: =IF($B186="","",VLOOKUP($B186,formula!$A$15:$BI$124,formula!$AN$9,FALSE)) -> 8689561.65 | F186: =IF($B186="","",VLOOKUP($B186,formula!$A$15:$BI$124,formula!$AD$9+2,FALSE)) -> 10946450 | G186: =IF($B186="","",VLOOKUP($B186,formula!$A$15:$BI$124,formula!$AG$9+2,FALSE)) -> 10982500 | H186: =IF($B186="","",VLOOKUP($B186,formula!$A$15:$EV$124,formula!$EO$9,FALSE)) -> 0 | I186: =IF($B186="","",VLOOKUP($B186,formula!$A$15:$EV$124,formula!$EP$9,FALSE)) -> 0 | J186: =IF($B186="","",VLOOKUP($B186,formula!$A$15:$BI$124,formula!$BE$9,FALSE)) -> 10946450 | K186: =IF($B186="","",VLOOKUP($B186,formula!$A$15:$BI$124,formula!$BD$9,FALSE)) -> 10982500 | L186: =IF($B186="","",VLOOKUP($B186,formula!$A$15:$BI$124,formula!$BG$9,FALSE)) -> 10982500
M187: (幣別/單位：美元/元)
B188: 年度 | C188: 年齡 | D188: 折扣後 當年度 所繳保險費 | E188: 折扣後 累計 所繳保險費 | F188: 【非保證給付項目】假設分紅-較低紅利金額(保額)(低分紅)
F189: 原保險金額試算 | H189: 減少保險金額試算
F191: 當年度末 壽險保障及 假設紅利_分紅保額 (預估值) (低) | G191: 當年度末 可能領取 解約金總額 (預估值) (低) | H191: 該次減少 基本保險金額 可領取之解約金 (預估值) (年初) | I191: 歷年減少 基本保險金額 領取之解約金總額 (預估值) A | J191: 減少基本保險金額後 當年度末壽險保障及 假設紅利_分紅保額 (預估值) | K191: 減少基本保險金額後 當年度末解約 可能領取之解約金 (預估值) B | L191: 累計至當年度末解約可能總領金額 (預估值) A+B=C
B192: =IF(B186>=109-age+1,"",B186+1) ->  | D192: =IF(C186=MaxCoverageYear-1,"***以下空白***",IF($B192="","",IF($B192>plan,"",VLOOKUP($B192,formula!$A$15:$BI$124,formula!$AM$9,FALSE)))) -> ***以下空白*** | E192: =IF($B192="","",VLOOKUP($B192,formula!$A$15:$BI$124,formula!$AN$9,FALSE)) ->  | F192: =IF($B192="","",VLOOKUP($B192,formula!$A$15:$BI$124,formula!$AD$9+2,FALSE)) ->  | G192: =IF($B192="","",VLOOKUP($B192,formula!$A$15:$BI$124,formula!$AG$9+2,FALSE)) ->  | H192: =IF($B192="","",VLOOKUP($B192,formula!$A$15:$EV$124,formula!$EO$9,FALSE)) ->  | I192: =IF($B192="","",VLOOKUP($B192,formula!$A$15:$EV$124,formula!$EP$9,FALSE)) ->  | J192: =IF($B192="","",VLOOKUP($B192,formula!$A$15:$BI$124,formula!$BE$9,FALSE)) ->  | K192: =IF($B192="","",VLOOKUP($B192,formula!$A$15:$BI$124,formula!$BD$9,FALSE)) ->  | L192: =IF($B192="","",VLOOKUP($B192,formula!$A$15:$BI$124,formula!$BG$9,FALSE)) -> 
D193: =IF(C192=MaxCoverageYear-1,"***以下空白***",IF($B193="","",IF($B193>plan,"",VLOOKUP($B193,formula!$A$15:$BI$124,formula!$AM$9,FALSE)))) ->  | E193: =IF($B193="","",VLOOKUP($B193,formula!$A$15:$BI$124,formula!$AN$9,FALSE)) ->  | F193: =IF($B193="","",VLOOKUP($B193,formula!$A$15:$BI$124,formula!$AD$9+2,FALSE)) ->  | G193: =IF($B193="","",VLOOKUP($B193,formula!$A$15:$BI$124,formula!$AG$9+2,FALSE)) ->  | H193: =IF($B193="","",VLOOKUP($B193,formula!$A$15:$EV$124,formula!$EO$9,FALSE)) ->  | I193: =IF($B193="","",VLOOKUP($B193,formula!$A$15:$EV$124,formula!$EP$9,FALSE)) ->  | J193: =IF($B193="","",VLOOKUP($B193,formula!$A$15:$BI$124,formula!$BE$9,FALSE)) ->  | K193: =IF($B193="","",VLOOKUP($B193,formula!$A$15:$BI$124,formula!$BD$9,FALSE)) ->  | L193: =IF($B193="","",VLOOKUP($B193,formula!$A$15:$BI$124,formula!$BG$9,FALSE)) -> 
D194: =IF(C193=MaxCoverageYear-1,"***以下空白***",IF($B194="","",IF($B194>plan,"",VLOOKUP($B194,formula!$A$15:$BI$124,formula!$AM$9,FALSE)))) ->  | E194: =IF($B194="","",VLOOKUP($B194,formula!$A$15:$BI$124,formula!$AN$9,FALSE)) ->  | F194: =IF($B194="","",VLOOKUP($B194,formula!$A$15:$BI$124,formula!$AD$9+2,FALSE)) ->  | G194: =IF($B194="","",VLOOKUP($B194,formula!$A$15:$BI$124,formula!$AG$9+2,FALSE)) ->  | H194: =IF($B194="","",VLOOKUP($B194,formula!$A$15:$EV$124,formula!$EO$9,FALSE)) ->  | I194: =IF($B194="","",VLOOKUP($B194,formula!$A$15:$EV$124,formula!$EP$9,FALSE)) ->  | J194: =IF($B194="","",VLOOKUP($B194,formula!$A$15:$BI$124,formula!$BE$9,FALSE)) ->  | K194: =IF($B194="","",VLOOKUP($B194,formula!$A$15:$BI$124,formula!$BD$9,FALSE)) ->  | L194: =IF($B194="","",VLOOKUP($B194,formula!$A$15:$BI$124,formula!$BG$9,FALSE)) -> 
D195: =IF(C194=MaxCoverageYear-1,"***以下空白***",IF($B195="","",IF($B195>plan,"",VLOOKUP($B195,formula!$A$15:$BI$124,formula!$AM$9,FALSE)))) ->  | E195: =IF($B195="","",VLOOKUP($B195,formula!$A$15:$BI$124,formula!$AN$9,FALSE)) ->  | F195: =IF($B195="","",VLOOKUP($B195,formula!$A$15:$BI$124,formula!$AD$9+2,FALSE)) ->  | G195: =IF($B195="","",VLOOKUP($B195,formula!$A$15:$BI$124,formula!$AG$9+2,FALSE)) ->  | H195: =IF($B195="","",VLOOKUP($B195,formula!$A$15:$EV$124,formula!$EO$9,FALSE)) ->  | I195: =IF($B195="","",VLOOKUP($B195,formula!$A$15:$EV$124,formula!$EP$9,FALSE)) ->  | J195: =IF($B195="","",VLOOKUP($B195,formula!$A$15:$BI$124,formula!$BE$9,FALSE)) ->  | K195: =IF($B195="","",VLOOKUP($B195,formula!$A$15:$BI$124,formula!$BD$9,FALSE)) ->  | L195: =IF($B195="","",VLOOKUP($B195,formula!$A$15:$BI$124,formula!$BG$9,FALSE)) -> 
D196: =IF(C195=MaxCoverageYear-1,"***以下空白***",IF($B196="","",IF($B196>plan,"",VLOOKUP($B196,formula!$A$15:$BI$124,formula!$AM$9,FALSE)))) ->  | E196: =IF($B196="","",VLOOKUP($B196,formula!$A$15:$BI$124,formula!$AN$9,FALSE)) ->  | F196: =IF($B196="","",VLOOKUP($B196,formula!$A$15:$BI$124,formula!$AD$9+2,FALSE)) ->  | G196: =IF($B196="","",VLOOKUP($B196,formula!$A$15:$BI$124,formula!$AG$9+2,FALSE)) ->  | H196: =IF($B196="","",VLOOKUP($B196,formula!$A$15:$EV$124,formula!$EO$9,FALSE)) ->  | I196: =IF($B196="","",VLOOKUP($B196,formula!$A$15:$EV$124,formula!$EP$9,FALSE)) ->  | J196: =IF($B196="","",VLOOKUP($B196,formula!$A$15:$BI$124,formula!$BE$9,FALSE)) ->  | K196: =IF($B196="","",VLOOKUP($B196,formula!$A$15:$BI$124,formula!$BD$9,FALSE)) ->  | L196: =IF($B196="","",VLOOKUP($B196,formula!$A$15:$BI$124,formula!$BG$9,FALSE)) -> 
D197: =IF(C196=MaxCoverageYear-1,"***以下空白***",IF($B197="","",IF($B197>plan,"",VLOOKUP($B197,formula!$A$15:$BI$124,formula!$AM$9,FALSE)))) ->  | E197: =IF($B197="","",VLOOKUP($B197,formula!$A$15:$BI$124,formula!$AN$9,FALSE)) ->  | F197: =IF($B197="","",VLOOKUP($B197,formula!$A$15:$BI$124,formula!$AD$9+2,FALSE)) ->  | G197: =IF($B197="","",VLOOKUP($B197,formula!$A$15:$BI$124,formula!$AG$9+2,FALSE)) ->  | H197: =IF($B197="","",VLOOKUP($B197,formula!$A$15:$EV$124,formula!$EO$9,FALSE)) ->  | I197: =IF($B197="","",VLOOKUP($B197,formula!$A$15:$EV$124,formula!$EP$9,FALSE)) ->  | J197: =IF($B197="","",VLOOKUP($B197,formula!$A$15:$BI$124,formula!$BE$9,FALSE)) ->  | K197: =IF($B197="","",VLOOKUP($B197,formula!$A$15:$BI$124,formula!$BD$9,FALSE)) ->  | L197: =IF($B197="","",VLOOKUP($B197,formula!$A$15:$BI$124,formula!$BG$9,FALSE)) -> 
D198: =IF(C197=MaxCoverageYear-1,"***以下空白***",IF($B198="","",IF($B198>plan,"",VLOOKUP($B198,formula!$A$15:$BI$124,formula!$AM$9,FALSE)))) ->  | E198: =IF($B198="","",VLOOKUP($B198,formula!$A$15:$BI$124,formula!$AN$9,FALSE)) ->  | F198: =IF($B198="","",VLOOKUP($B198,formula!$A$15:$BI$124,formula!$AD$9+2,FALSE)) ->  | G198: =IF($B198="","",VLOOKUP($B198,formula!$A$15:$BI$124,formula!$AG$9+2,FALSE)) ->  | H198: =IF($B198="","",VLOOKUP($B198,formula!$A$15:$EV$124,formula!$EO$9,FALSE)) ->  | I198: =IF($B198="","",VLOOKUP($B198,formula!$A$15:$EV$124,formula!$EP$9,FALSE)) ->  | J198: =IF($B198="","",VLOOKUP($B198,formula!$A$15:$BI$124,formula!$BE$9,FALSE)) ->  | K198: =IF($B198="","",VLOOKUP($B198,formula!$A$15:$BI$124,formula!$BD$9,FALSE)) ->  | L198: =IF($B198="","",VLOOKUP($B198,formula!$A$15:$BI$124,formula!$BG$9,FALSE)) -> 
D199: =IF(C198=MaxCoverageYear-1,"***以下空白***",IF($B199="","",IF($B199>plan,"",VLOOKUP($B199,formula!$A$15:$BI$124,formula!$AM$9,FALSE)))) ->  | E199: =IF($B199="","",VLOOKUP($B199,formula!$A$15:$BI$124,formula!$AN$9,FALSE)) ->  | F199: =IF($B199="","",VLOOKUP($B199,formula!$A$15:$BI$124,formula!$AD$9+2,FALSE)) ->  | G199: =IF($B199="","",VLOOKUP($B199,formula!$A$15:$BI$124,formula!$AG$9+2,FALSE)) ->  | H199: =IF($B199="","",VLOOKUP($B199,formula!$A$15:$EV$124,formula!$EO$9,FALSE)) ->  | I199: =IF($B199="","",VLOOKUP($B199,formula!$A$15:$EV$124,formula!$EP$9,FALSE)) ->  | J199: =IF($B199="","",VLOOKUP($B199,formula!$A$15:$BI$124,formula!$BE$9,FALSE)) ->  | K199: =IF($B199="","",VLOOKUP($B199,formula!$A$15:$BI$124,formula!$BD$9,FALSE)) ->  | L199: =IF($B199="","",VLOOKUP($B199,formula!$A$15:$BI$124,formula!$BG$9,FALSE)) -> 
D200: =IF(C199=MaxCoverageYear-1,"***以下空白***",IF($B200="","",IF($B200>plan,"",VLOOKUP($B200,formula!$A$15:$BI$124,formula!$AM$9,FALSE)))) ->  | E200: =IF($B200="","",VLOOKUP($B200,formula!$A$15:$BI$124,formula!$AN$9,FALSE)) ->  | F200: =IF($B200="","",VLOOKUP($B200,formula!$A$15:$BI$124,formula!$AD$9+2,FALSE)) ->  | G200: =IF($B200="","",VLOOKUP($B200,formula!$A$15:$BI$124,formula!$AG$9+2,FALSE)) ->  | H200: =IF($B200="","",VLOOKUP($B200,formula!$A$15:$EV$124,formula!$EO$9,FALSE)) ->  | I200: =IF($B200="","",VLOOKUP($B200,formula!$A$15:$EV$124,formula!$EP$9,FALSE)) ->  | J200: =IF($B200="","",VLOOKUP($B200,formula!$A$15:$BI$124,formula!$BE$9,FALSE)) ->  | K200: =IF($B200="","",VLOOKUP($B200,formula!$A$15:$BI$124,formula!$BD$9,FALSE)) ->  | L200: =IF($B200="","",VLOOKUP($B200,formula!$A$15:$BI$124,formula!$BG$9,FALSE)) -> 
D201: =IF(C200=MaxCoverageYear-1,"***以下空白***",IF($B201="","",IF($B201>plan,"",VLOOKUP($B201,formula!$A$15:$BI$124,formula!$AM$9,FALSE)))) ->  | E201: =IF($B201="","",VLOOKUP($B201,formula!$A$15:$BI$124,formula!$AN$9,FALSE)) ->  | F201: =IF($B201="","",VLOOKUP($B201,formula!$A$15:$BI$124,formula!$AD$9+2,FALSE)) ->  | G201: =IF($B201="","",VLOOKUP($B201,formula!$A$15:$BI$124,formula!$AG$9+2,FALSE)) ->  | H201: =IF($B201="","",VLOOKUP($B201,formula!$A$15:$EV$124,formula!$EO$9,FALSE)) ->  | I201: =IF($B201="","",VLOOKUP($B201,formula!$A$15:$EV$124,formula!$EP$9,FALSE)) ->  | J201: =IF($B201="","",VLOOKUP($B201,formula!$A$15:$BI$124,formula!$BE$9,FALSE)) ->  | K201: =IF($B201="","",VLOOKUP($B201,formula!$A$15:$BI$124,formula!$BD$9,FALSE)) ->  | L201: =IF($B201="","",VLOOKUP($B201,formula!$A$15:$BI$124,formula!$BG$9,FALSE)) -> 
D202: =IF(C201=MaxCoverageYear-1,"***以下空白***",IF($B202="","",IF($B202>plan,"",VLOOKUP($B202,formula!$A$15:$BI$124,formula!$AM$9,FALSE)))) ->  | E202: =IF($B202="","",VLOOKUP($B202,formula!$A$15:$BI$124,formula!$AN$9,FALSE)) ->  | F202: =IF($B202="","",VLOOKUP($B202,formula!$A$15:$BI$124,formula!$AD$9+2,FALSE)) ->  | G202: =IF($B202="","",VLOOKUP($B202,formula!$A$15:$BI$124,formula!$AG$9+2,FALSE)) ->  | H202: =IF($B202="","",VLOOKUP($B202,formula!$A$15:$EV$124,formula!$EO$9,FALSE)) ->  | I202: =IF($B202="","",VLOOKUP($B202,formula!$A$15:$EV$124,formula!$EP$9,FALSE)) ->  | J202: =IF($B202="","",VLOOKUP($B202,formula!$A$15:$BI$124,formula!$BE$9,FALSE)) ->  | K202: =IF($B202="","",VLOOKUP($B202,formula!$A$15:$BI$124,formula!$BD$9,FALSE)) ->  | L202: =IF($B202="","",VLOOKUP($B202,formula!$A$15:$BI$124,formula!$BG$9,FALSE)) -> 
... 205 more rows

Sheet 商品利益說明表(不含紅利部份) (hidden)
B1: ="安達人壽"&ProductName &" - 商品利益說明表(不含紅利部份)" -> 安達人壽永富長紅美元分紅終身壽險 - 商品利益說明表(不含紅利部份)
B2: 商品名稱: 安達人壽永富長紅美元分紅終身壽險 給付項目：身故保險金或喪葬費用保險金、完全失能保險金、祝壽保險金、生命末期提前給付保險金 ※本保險為分紅保險單，保單紅利部分非本保險單之保證給付項目，安達人壽不保證其給付金額(保額)。 ※本保險為以外幣收付之非投資型人身保險契約，不得與以新臺幣收付之人身保險契約辦理契約轉換。 ※本建議書係招攬人員於銷售過程中提供予要保人參考，當建議書所列投保資料與要保書填寫不同時，試算金額也將隨之異動，詳細金額仍須以要保書／保單面頁填寫內容為準。 ※本頁非完整文件，請與(建議書摘要表)併為審閱。
B3: ="要保險人："&參數!H8 -> 要保險人：被保人 | D3: ="保險年齡："&age & " 歲" -> 保險年齡：70 歲 | E3: ="繳 別："&ChargeMode -> 繳 別：年繳 | H3: ="首期繳費方式 : "&PayMode1 -> 首期繳費方式 : 金融機構自動轉帳 | J3: 首期保費： | K3: =TEXT(GP_bf_disc,"###,###,###.00") & " 美元" -> 1,273,000.00 美元 | L3: 首期折扣後保費： | M3: =TEXT(GP_af_disc,"###,###,###.00") & " 美元" -> 1,241,365.95 美元 | N3: 基本保險金額： | O3: =TEXT(SA,"###,###,###.00")&" 美元" -> 10,000,000.00 美元 | P3: ="高保費折扣:"& TEXT(Prem_disc,"0.00%") -> 高保費折扣:1.50% | R3: 列印
B4: ="被保險人："&InsName -> 被保險人：被保人 | D4: ="性 別："&EntryGender -> 性 別：女性 | E4: ="繳費年期："&plan & " 年期" -> 繳費年期：7 年期 | H4: ="續期繳費方式 : "&PayMode2 -> 續期繳費方式 : 金融機構自動轉帳 | J4: 續期保費： | K4: =TEXT(RP_bf_disc,"###,###,###.00") & " 美元" -> 1,273,000.00 美元 | L4: 續期折扣後保費： | M4: =TEXT(RP_af_disc,"###,###,###.00") & " 美元" -> 1,241,365.95 美元 | N4: 繳費方式折扣: | O4: =IF(PayModeDisc1=1%,PayModeDisc1,IF(PayModeDisc2=1%,PayModeDisc2,0)) -> 0.01
P5: (幣別/單位：美元/元)
B6: 保單年度末 | C6: 保險年齡 | D6: 每期折扣後 所繳保險費 | E6: 累計折扣後 所繳保險費 | H6: 當年度末壽險保障 | K6: 當年度末解約金 | M6: 當年度末 保單價值準備金 | O6: 當年度末 減額繳清保險金額
R7: 回到資料輸入
B10: 1 | C10: =IF(B10="","",age+B10-1) -> 70 | D10: =IF(C10="","***以下空白***",IF($B10="","",IF($B10>plan,"",VLOOKUP($B10,formula!$A$15:$BI$124,formula!$AM$9,FALSE)))) -> 1241365.95 | E10: =IF($B10="","",VLOOKUP($B10,formula!$A$15:$BI$124,formula!$AN$9,FALSE)) -> 1241365.95 | H10: =IF($B10="","",VLOOKUP($B10,formula!$A$15:$BI$124,formula!$C$9,FALSE)) -> 10000000 | K10: =IF($B10="","",VLOOKUP($B10,formula!$A$15:$BI$124,formula!$E$9,FALSE)) -> 435590 | M10: =IF($B10="","",VLOOKUP($B10,formula!$A$15:$BI$124,formula!$D$9,FALSE)) -> 580780 | O10: =IF(B10="", "", IFERROR(IF(SA * VLOOKUP(index, RPU_Tab, 4 + B10, FALSE) / 10000 = 0, "", SA * VLOOKUP(index, RPU_Tab, 4 + B10, FALSE) / 10000), "")) -> 716500
B11: =IF(B10>=109-age+1,"",B10+1) -> 2 | C11: 71 | D11: =IF(C10=MaxCoverageYear-1,"***以下空白***",IF($B11="","",IF($B11>plan,"",VLOOKUP($B11,formula!$A$15:$BI$124,formula!$AM$9,FALSE)))) -> 1241365.95 | E11: =IF($B11="","",VLOOKUP($B11,formula!$A$15:$BI$124,formula!$AN$9,FALSE)) -> 2482731.9 | H11: =IF($B11="","",VLOOKUP($B11,formula!$A$15:$BI$124,formula!$C$9,FALSE)) -> 10000000 | K11: =IF($B11="","",VLOOKUP($B11,formula!$A$15:$BI$124,formula!$E$9,FALSE)) -> 1230050 | M11: =IF($B11="","",VLOOKUP($B11,formula!$A$15:$BI$124,formula!$D$9,FALSE)) -> 1640060 | O11: 2256310
B12: 3 | C12: 72 | D12: =IF(C11=MaxCoverageYear-1,"***以下空白***",IF($B12="","",IF($B12>plan,"",VLOOKUP($B12,formula!$A$15:$BI$124,formula!$AM$9,FALSE)))) -> 1241365.95 | E12: =IF($B12="","",VLOOKUP($B12,formula!$A$15:$BI$124,formula!$AN$9,FALSE)) -> 3724097.85 | H12: =IF($B12="","",VLOOKUP($B12,formula!$A$15:$BI$124,formula!$C$9,FALSE)) -> 10000000 | K12: =IF($B12="","",VLOOKUP($B12,formula!$A$15:$BI$124,formula!$E$9,FALSE)) -> 2044300 | M12: =IF($B12="","",VLOOKUP($B12,formula!$A$15:$BI$124,formula!$D$9,FALSE)) -> 2725730 | O12: 3782940
B13: 4 | C13: 73 | D13: =IF(C12=MaxCoverageYear-1,"***以下空白***",IF($B13="","",IF($B13>plan,"",VLOOKUP($B13,formula!$A$15:$BI$124,formula!$AM$9,FALSE)))) -> 1241365.95 | E13: =IF($B13="","",VLOOKUP($B13,formula!$A$15:$BI$124,formula!$AN$9,FALSE)) -> 4965463.8 | H13: =IF($B13="","",VLOOKUP($B13,formula!$A$15:$BI$124,formula!$C$9,FALSE)) -> 10000000 | K13: =IF($B13="","",VLOOKUP($B13,formula!$A$15:$BI$124,formula!$E$9,FALSE)) -> 3072330 | M13: =IF($B13="","",VLOOKUP($B13,formula!$A$15:$BI$124,formula!$D$9,FALSE)) -> 3840410 | O13: 5301010
B14: 5 | C14: 74 | D14: =IF(C13=MaxCoverageYear-1,"***以下空白***",IF($B14="","",IF($B14>plan,"",VLOOKUP($B14,formula!$A$15:$BI$124,formula!$AM$9,FALSE)))) -> 1241365.95 | E14: =IF($B14="","",VLOOKUP($B14,formula!$A$15:$BI$124,formula!$AN$9,FALSE)) -> 6206829.75 | H14: =IF($B14="","",VLOOKUP($B14,formula!$A$15:$BI$124,formula!$C$9,FALSE)) -> 10000000 | K14: =IF($B14="","",VLOOKUP($B14,formula!$A$15:$BI$124,formula!$E$9,FALSE)) -> 4488700 | M14: =IF($B14="","",VLOOKUP($B14,formula!$A$15:$BI$124,formula!$D$9,FALSE)) -> 4987440 | O14: 6815990
B15: 6 | C15: 75 | D15: =IF(C14=MaxCoverageYear-1,"***以下空白***",IF($B15="","",IF($B15>plan,"",VLOOKUP($B15,formula!$A$15:$BI$124,formula!$AM$9,FALSE)))) -> 1241365.95 | E15: =IF($B15="","",VLOOKUP($B15,formula!$A$15:$BI$124,formula!$AN$9,FALSE)) -> 7448195.7 | H15: =IF($B15="","",VLOOKUP($B15,formula!$A$15:$BI$124,formula!$C$9,FALSE)) -> 10000000 | K15: =IF($B15="","",VLOOKUP($B15,formula!$A$15:$BI$124,formula!$E$9,FALSE)) -> 6173050 | M15: =IF($B15="","",VLOOKUP($B15,formula!$A$15:$BI$124,formula!$D$9,FALSE)) -> 6173050 | O15: 8472800
B16: 7 | C16: 76 | D16: =IF(C15=MaxCoverageYear-1,"***以下空白***",IF($B16="","",IF($B16>plan,"",VLOOKUP($B16,formula!$A$15:$BI$124,formula!$AM$9,FALSE)))) -> 1241365.95 | E16: =IF($B16="","",VLOOKUP($B16,formula!$A$15:$BI$124,formula!$AN$9,FALSE)) -> 8689561.65 | H16: =IF($B16="","",VLOOKUP($B16,formula!$A$15:$BI$124,formula!$C$9,FALSE)) -> 10000000 | K16: =IF($B16="","",VLOOKUP($B16,formula!$A$15:$BI$124,formula!$E$9,FALSE)) -> 7399990 | M16: =IF($B16="","",VLOOKUP($B16,formula!$A$15:$BI$124,formula!$D$9,FALSE)) -> 7399990
B17: 8 | C17: 77 | D17: =IF(C16=MaxCoverageYear-1,"***以下空白***",IF($B17="","",IF($B17>plan,"",VLOOKUP($B17,formula!$A$15:$BI$124,formula!$AM$9,FALSE)))) ->  | E17: =IF($B17="","",VLOOKUP($B17,formula!$A$15:$BI$124,formula!$AN$9,FALSE)) -> 8689561.65 | H17: =IF($B17="","",VLOOKUP($B17,formula!$A$15:$BI$124,formula!$C$9,FALSE)) -> 10000000 | K17: =IF($B17="","",VLOOKUP($B17,formula!$A$15:$BI$124,formula!$E$9,FALSE)) -> 7513120 | M17: =IF($B17="","",VLOOKUP($B17,formula!$A$15:$BI$124,formula!$D$9,FALSE)) -> 7513120
B18: 9 | C18: 78 | D18: =IF(C17=MaxCoverageYear-1,"***以下空白***",IF($B18="","",IF($B18>plan,"",VLOOKUP($B18,formula!$A$15:$BI$124,formula!$AM$9,FALSE)))) ->  | E18: =IF($B18="","",VLOOKUP($B18,formula!$A$15:$BI$124,formula!$AN$9,FALSE)) -> 8689561.65 | H18: =IF($B18="","",VLOOKUP($B18,formula!$A$15:$BI$124,formula!$C$9,FALSE)) -> 10000000 | K18: =IF($B18="","",VLOOKUP($B18,formula!$A$15:$BI$124,formula!$E$9,FALSE)) -> 7624930 | M18: =IF($B18="","",VLOOKUP($B18,formula!$A$15:$BI$124,formula!$D$9,FALSE)) -> 7624930
B19: 10 | C19: 79 | D19: =IF(C18=MaxCoverageYear-1,"***以下空白***",IF($B19="","",IF($B19>plan,"",VLOOKUP($B19,formula!$A$15:$BI$124,formula!$AM$9,FALSE)))) ->  | E19: =IF($B19="","",VLOOKUP($B19,formula!$A$15:$BI$124,formula!$AN$9,FALSE)) -> 8689561.65 | H19: =IF($B19="","",VLOOKUP($B19,formula!$A$15:$BI$124,formula!$C$9,FALSE)) -> 10000000 | K19: =IF($B19="","",VLOOKUP($B19,formula!$A$15:$BI$124,formula!$E$9,FALSE)) -> 7735270 | M19: =IF($B19="","",VLOOKUP($B19,formula!$A$15:$BI$124,formula!$D$9,FALSE)) -> 7735270
B20: 11 | C20: 80 | D20: =IF(C19=MaxCoverageYear-1,"***以下空白***",IF($B20="","",IF($B20>plan,"",VLOOKUP($B20,formula!$A$15:$BI$124,formula!$AM$9,FALSE)))) ->  | E20: =IF($B20="","",VLOOKUP($B20,formula!$A$15:$BI$124,formula!$AN$9,FALSE)) -> 8689561.65 | H20: =IF($B20="","",VLOOKUP($B20,formula!$A$15:$BI$124,formula!$C$9,FALSE)) -> 10000000 | K20: =IF($B20="","",VLOOKUP($B20,formula!$A$15:$BI$124,formula!$E$9,FALSE)) -> 7844030 | M20: =IF($B20="","",VLOOKUP($B20,formula!$A$15:$BI$124,formula!$D$9,FALSE)) -> 7844030
B21: 12 | C21: 81 | D21: =IF(C20=MaxCoverageYear-1,"***以下空白***",IF($B21="","",IF($B21>plan,"",VLOOKUP($B21,formula!$A$15:$BI$124,formula!$AM$9,FALSE)))) ->  | E21: =IF($B21="","",VLOOKUP($B21,formula!$A$15:$BI$124,formula!$AN$9,FALSE)) -> 8689561.65 | H21: =IF($B21="","",VLOOKUP($B21,formula!$A$15:$BI$124,formula!$C$9,FALSE)) -> 10000000 | K21: =IF($B21="","",VLOOKUP($B21,formula!$A$15:$BI$124,formula!$E$9,FALSE)) -> 7951130 | M21: =IF($B21="","",VLOOKUP($B21,formula!$A$15:$BI$124,formula!$D$9,FALSE)) -> 7951130
B22: 13 | C22: 82 | D22: =IF(C21=MaxCoverageYear-1,"***以下空白***",IF($B22="","",IF($B22>plan,"",VLOOKUP($B22,formula!$A$15:$BI$124,formula!$AM$9,FALSE)))) ->  | E22: =IF($B22="","",VLOOKUP($B22,formula!$A$15:$BI$124,formula!$AN$9,FALSE)) -> 8689561.65 | H22: =IF($B22="","",VLOOKUP($B22,formula!$A$15:$BI$124,formula!$C$9,FALSE)) -> 10000000 | K22: =IF($B22="","",VLOOKUP($B22,formula!$A$15:$BI$124,formula!$E$9,FALSE)) -> 8056480 | M22: =IF($B22="","",VLOOKUP($B22,formula!$A$15:$BI$124,formula!$D$9,FALSE)) -> 8056480
B23: 14 | C23: 83 | D23: =IF(C22=MaxCoverageYear-1,"***以下空白***",IF($B23="","",IF($B23>plan,"",VLOOKUP($B23,formula!$A$15:$BI$124,formula!$AM$9,FALSE)))) ->  | E23: =IF($B23="","",VLOOKUP($B23,formula!$A$15:$BI$124,formula!$AN$9,FALSE)) -> 8689561.65 | H23: =IF($B23="","",VLOOKUP($B23,formula!$A$15:$BI$124,formula!$C$9,FALSE)) -> 10000000 | K23: =IF($B23="","",VLOOKUP($B23,formula!$A$15:$BI$124,formula!$E$9,FALSE)) -> 8159940 | M23: =IF($B23="","",VLOOKUP($B23,formula!$A$15:$BI$124,formula!$D$9,FALSE)) -> 8159940
B24: 15 | C24: 84 | D24: =IF(C23=MaxCoverageYear-1,"***以下空白***",IF($B24="","",IF($B24>plan,"",VLOOKUP($B24,formula!$A$15:$BI$124,formula!$AM$9,FALSE)))) ->  | E24: =IF($B24="","",VLOOKUP($B24,formula!$A$15:$BI$124,formula!$AN$9,FALSE)) -> 8689561.65 | H24: =IF($B24="","",VLOOKUP($B24,formula!$A$15:$BI$124,formula!$C$9,FALSE)) -> 10000000 | K24: =IF($B24="","",VLOOKUP($B24,formula!$A$15:$BI$124,formula!$E$9,FALSE)) -> 8261340 | M24: =IF($B24="","",VLOOKUP($B24,formula!$A$15:$BI$124,formula!$D$9,FALSE)) -> 8261340
B25: 16 | C25: 85 | D25: =IF(C24=MaxCoverageYear-1,"***以下空白***",IF($B25="","",IF($B25>plan,"",VLOOKUP($B25,formula!$A$15:$BI$124,formula!$AM$9,FALSE)))) ->  | E25: =IF($B25="","",VLOOKUP($B25,formula!$A$15:$BI$124,formula!$AN$9,FALSE)) -> 8689561.65 | H25: =IF($B25="","",VLOOKUP($B25,formula!$A$15:$BI$124,formula!$C$9,FALSE)) -> 10000000 | K25: =IF($B25="","",VLOOKUP($B25,formula!$A$15:$BI$124,formula!$E$9,FALSE)) -> 8360460 | M25: =IF($B25="","",VLOOKUP($B25,formula!$A$15:$BI$124,formula!$D$9,FALSE)) -> 8360460
B26: 17 | C26: 86 | D26: =IF(C25=MaxCoverageYear-1,"***以下空白***",IF($B26="","",IF($B26>plan,"",VLOOKUP($B26,formula!$A$15:$BI$124,formula!$AM$9,FALSE)))) ->  | E26: =IF($B26="","",VLOOKUP($B26,formula!$A$15:$BI$124,formula!$AN$9,FALSE)) -> 8689561.65 | H26: =IF($B26="","",VLOOKUP($B26,formula!$A$15:$BI$124,formula!$C$9,FALSE)) -> 10000000 | K26: =IF($B26="","",VLOOKUP($B26,formula!$A$15:$BI$124,formula!$E$9,FALSE)) -> 8457040 | M26: =IF($B26="","",VLOOKUP($B26,formula!$A$15:$BI$124,formula!$D$9,FALSE)) -> 8457040
B27: 18 | C27: 87 | D27: =IF(C26=MaxCoverageYear-1,"***以下空白***",IF($B27="","",IF($B27>plan,"",VLOOKUP($B27,formula!$A$15:$BI$124,formula!$AM$9,FALSE)))) ->  | E27: =IF($B27="","",VLOOKUP($B27,formula!$A$15:$BI$124,formula!$AN$9,FALSE)) -> 8689561.65 | H27: =IF($B27="","",VLOOKUP($B27,formula!$A$15:$BI$124,formula!$C$9,FALSE)) -> 10000000 | K27: =IF($B27="","",VLOOKUP($B27,formula!$A$15:$BI$124,formula!$E$9,FALSE)) -> 8550830 | M27: =IF($B27="","",VLOOKUP($B27,formula!$A$15:$BI$124,formula!$D$9,FALSE)) -> 8550830
B28: 19 | C28: 88 | D28: =IF(C27=MaxCoverageYear-1,"***以下空白***",IF($B28="","",IF($B28>plan,"",VLOOKUP($B28,formula!$A$15:$BI$124,formula!$AM$9,FALSE)))) ->  | E28: =IF($B28="","",VLOOKUP($B28,formula!$A$15:$BI$124,formula!$AN$9,FALSE)) -> 8689561.65 | H28: =IF($B28="","",VLOOKUP($B28,formula!$A$15:$BI$124,formula!$C$9,FALSE)) -> 10000000 | K28: =IF($B28="","",VLOOKUP($B28,formula!$A$15:$BI$124,formula!$E$9,FALSE)) -> 8641600 | M28: =IF($B28="","",VLOOKUP($B28,formula!$A$15:$BI$124,formula!$D$9,FALSE)) -> 8641600
B29: 20 | C29: 89 | D29: =IF(C28=MaxCoverageYear-1,"***以下空白***",IF($B29="","",IF($B29>plan,"",VLOOKUP($B29,formula!$A$15:$BI$124,formula!$AM$9,FALSE)))) ->  | E29: =IF($B29="","",VLOOKUP($B29,formula!$A$15:$BI$124,formula!$AN$9,FALSE)) -> 8689561.65 | H29: =IF($B29="","",VLOOKUP($B29,formula!$A$15:$BI$124,formula!$C$9,FALSE)) -> 10000000 | K29: =IF($B29="","",VLOOKUP($B29,formula!$A$15:$BI$124,formula!$E$9,FALSE)) -> 8729180 | M29: =IF($B29="","",VLOOKUP($B29,formula!$A$15:$BI$124,formula!$D$9,FALSE)) -> 8729180
B30: 21 | C30: 90 | D30: =IF(C29=MaxCoverageYear-1,"***以下空白***",IF($B30="","",IF($B30>plan,"",VLOOKUP($B30,formula!$A$15:$BI$124,formula!$AM$9,FALSE)))) ->  | E30: =IF($B30="","",VLOOKUP($B30,formula!$A$15:$BI$124,formula!$AN$9,FALSE)) -> 8689561.65 | H30: =IF($B30="","",VLOOKUP($B30,formula!$A$15:$BI$124,formula!$C$9,FALSE)) -> 10000000 | K30: =IF($B30="","",VLOOKUP($B30,formula!$A$15:$BI$124,formula!$E$9,FALSE)) -> 8813410 | M30: =IF($B30="","",VLOOKUP($B30,formula!$A$15:$BI$124,formula!$D$9,FALSE)) -> 8813410
B31: 22 | C31: 91 | D31: =IF(C30=MaxCoverageYear-1,"***以下空白***",IF($B31="","",IF($B31>plan,"",VLOOKUP($B31,formula!$A$15:$BI$124,formula!$AM$9,FALSE)))) ->  | E31: =IF($B31="","",VLOOKUP($B31,formula!$A$15:$BI$124,formula!$AN$9,FALSE)) -> 8689561.65 | H31: =IF($B31="","",VLOOKUP($B31,formula!$A$15:$BI$124,formula!$C$9,FALSE)) -> 10000000 | K31: =IF($B31="","",VLOOKUP($B31,formula!$A$15:$BI$124,formula!$E$9,FALSE)) -> 8894210 | M31: =IF($B31="","",VLOOKUP($B31,formula!$A$15:$BI$124,formula!$D$9,FALSE)) -> 8894210
B32: 23 | C32: 92 | D32: =IF(C31=MaxCoverageYear-1,"***以下空白***",IF($B32="","",IF($B32>plan,"",VLOOKUP($B32,formula!$A$15:$BI$124,formula!$AM$9,FALSE)))) ->  | E32: =IF($B32="","",VLOOKUP($B32,formula!$A$15:$BI$124,formula!$AN$9,FALSE)) -> 8689561.65 | H32: =IF($B32="","",VLOOKUP($B32,formula!$A$15:$BI$124,formula!$C$9,FALSE)) -> 10000000 | K32: =IF($B32="","",VLOOKUP($B32,formula!$A$15:$BI$124,formula!$E$9,FALSE)) -> 8971500 | M32: =IF($B32="","",VLOOKUP($B32,formula!$A$15:$BI$124,formula!$D$9,FALSE)) -> 8971500
B33: 24 | C33: 93 | D33: =IF(C32=MaxCoverageYear-1,"***以下空白***",IF($B33="","",IF($B33>plan,"",VLOOKUP($B33,formula!$A$15:$BI$124,formula!$AM$9,FALSE)))) ->  | E33: =IF($B33="","",VLOOKUP($B33,formula!$A$15:$BI$124,formula!$AN$9,FALSE)) -> 8689561.65 | H33: =IF($B33="","",VLOOKUP($B33,formula!$A$15:$BI$124,formula!$C$9,FALSE)) -> 10000000 | K33: =IF($B33="","",VLOOKUP($B33,formula!$A$15:$BI$124,formula!$E$9,FALSE)) -> 9045220 | M33: =IF($B33="","",VLOOKUP($B33,formula!$A$15:$BI$124,formula!$D$9,FALSE)) -> 9045220
B34: 25 | C34: 94 | D34: =IF(C33=MaxCoverageYear-1,"***以下空白***",IF($B34="","",IF($B34>plan,"",VLOOKUP($B34,formula!$A$15:$BI$124,formula!$AM$9,FALSE)))) ->  | E34: =IF($B34="","",VLOOKUP($B34,formula!$A$15:$BI$124,formula!$AN$9,FALSE)) -> 8689561.65 | H34: =IF($B34="","",VLOOKUP($B34,formula!$A$15:$BI$124,formula!$C$9,FALSE)) -> 10000000 | K34: =IF($B34="","",VLOOKUP($B34,formula!$A$15:$BI$124,formula!$E$9,FALSE)) -> 9115370 | M34: =IF($B34="","",VLOOKUP($B34,formula!$A$15:$BI$124,formula!$D$9,FALSE)) -> 9115370
B35: 26 | C35: 95 | D35: =IF(C34=MaxCoverageYear-1,"***以下空白***",IF($B35="","",IF($B35>plan,"",VLOOKUP($B35,formula!$A$15:$BI$124,formula!$AM$9,FALSE)))) ->  | E35: =IF($B35="","",VLOOKUP($B35,formula!$A$15:$BI$124,formula!$AN$9,FALSE)) -> 8689561.65 | H35: =IF($B35="","",VLOOKUP($B35,formula!$A$15:$BI$124,formula!$C$9,FALSE)) -> 10000000 | K35: =IF($B35="","",VLOOKUP($B35,formula!$A$15:$BI$124,formula!$E$9,FALSE)) -> 9181920 | M35: =IF($B35="","",VLOOKUP($B35,formula!$A$15:$BI$124,formula!$D$9,FALSE)) -> 9181920
B36: 27 | C36: 96 | D36: =IF(C35=MaxCoverageYear-1,"***以下空白***",IF($B36="","",IF($B36>plan,"",VLOOKUP($B36,formula!$A$15:$BI$124,formula!$AM$9,FALSE)))) ->  | E36: =IF($B36="","",VLOOKUP($B36,formula!$A$15:$BI$124,formula!$AN$9,FALSE)) -> 8689561.65 | H36: =IF($B36="","",VLOOKUP($B36,formula!$A$15:$BI$124,formula!$C$9,FALSE)) -> 10000000 | K36: =IF($B36="","",VLOOKUP($B36,formula!$A$15:$BI$124,formula!$E$9,FALSE)) -> 9244910 | M36: =IF($B36="","",VLOOKUP($B36,formula!$A$15:$BI$124,formula!$D$9,FALSE)) -> 9244910
B37: 28 | C37: 97 | D37: =IF(C36=MaxCoverageYear-1,"***以下空白***",IF($B37="","",IF($B37>plan,"",VLOOKUP($B37,formula!$A$15:$BI$124,formula!$AM$9,FALSE)))) ->  | E37: =IF($B37="","",VLOOKUP($B37,formula!$A$15:$BI$124,formula!$AN$9,FALSE)) -> 8689561.65 | H37: =IF($B37="","",VLOOKUP($B37,formula!$A$15:$BI$124,formula!$C$9,FALSE)) -> 10000000 | K37: =IF($B37="","",VLOOKUP($B37,formula!$A$15:$BI$124,formula!$E$9,FALSE)) -> 9304370 | M37: =IF($B37="","",VLOOKUP($B37,formula!$A$15:$BI$124,formula!$D$9,FALSE)) -> 9304370
B38: 29 | C38: 98 | D38: =IF(C37=MaxCoverageYear-1,"***以下空白***",IF($B38="","",IF($B38>plan,"",VLOOKUP($B38,formula!$A$15:$BI$124,formula!$AM$9,FALSE)))) ->  | E38: =IF($B38="","",VLOOKUP($B38,formula!$A$15:$BI$124,formula!$AN$9,FALSE)) -> 8689561.65 | H38: =IF($B38="","",VLOOKUP($B38,formula!$A$15:$BI$124,formula!$C$9,FALSE)) -> 10000000 | K38: =IF($B38="","",VLOOKUP($B38,formula!$A$15:$BI$124,formula!$E$9,FALSE)) -> 9360370 | M38: =IF($B38="","",VLOOKUP($B38,formula!$A$15:$BI$124,formula!$D$9,FALSE)) -> 9360370
B39: 30 | C39: 99 | D39: =IF(C38=MaxCoverageYear-1,"***以下空白***",IF($B39="","",IF($B39>plan,"",VLOOKUP($B39,formula!$A$15:$BI$124,formula!$AM$9,FALSE)))) ->  | E39: =IF($B39="","",VLOOKUP($B39,formula!$A$15:$BI$124,formula!$AN$9,FALSE)) -> 8689561.65 | H39: =IF($B39="","",VLOOKUP($B39,formula!$A$15:$BI$124,formula!$C$9,FALSE)) -> 10000000 | K39: =IF($B39="","",VLOOKUP($B39,formula!$A$15:$BI$124,formula!$E$9,FALSE)) -> 9413010 | M39: =IF($B39="","",VLOOKUP($B39,formula!$A$15:$BI$124,formula!$D$9,FALSE)) -> 9413010
B40: 31 | C40: 100 | D40: =IF(C39=MaxCoverageYear-1,"***以下空白***",IF($B40="","",IF($B40>plan,"",VLOOKUP($B40,formula!$A$15:$BI$124,formula!$AM$9,FALSE)))) ->  | E40: =IF($B40="","",VLOOKUP($B40,formula!$A$15:$BI$124,formula!$AN$9,FALSE)) -> 8689561.65 | H40: =IF($B40="","",VLOOKUP($B40,formula!$A$15:$BI$124,formula!$C$9,FALSE)) -> 10000000 | K40: =IF($B40="","",VLOOKUP($B40,formula!$A$15:$BI$124,formula!$E$9,FALSE)) -> 9462470 | M40: =IF($B40="","",VLOOKUP($B40,formula!$A$15:$BI$124,formula!$D$9,FALSE)) -> 9462470
B41: 32 | C41: 101 | D41: =IF(C40=MaxCoverageYear-1,"***以下空白***",IF($B41="","",IF($B41>plan,"",VLOOKUP($B41,formula!$A$15:$BI$124,formula!$AM$9,FALSE)))) ->  | E41: =IF($B41="","",VLOOKUP($B41,formula!$A$15:$BI$124,formula!$AN$9,FALSE)) -> 8689561.65 | H41: =IF($B41="","",VLOOKUP($B41,formula!$A$15:$BI$124,formula!$C$9,FALSE)) -> 10000000 | K41: =IF($B41="","",VLOOKUP($B41,formula!$A$15:$BI$124,formula!$E$9,FALSE)) -> 9508980 | M41: =IF($B41="","",VLOOKUP($B41,formula!$A$15:$BI$124,formula!$D$9,FALSE)) -> 9508980
B42: 33 | C42: 102 | D42: =IF(C41=MaxCoverageYear-1,"***以下空白***",IF($B42="","",IF($B42>plan,"",VLOOKUP($B42,formula!$A$15:$BI$124,formula!$AM$9,FALSE)))) ->  | E42: =IF($B42="","",VLOOKUP($B42,formula!$A$15:$BI$124,formula!$AN$9,FALSE)) -> 8689561.65 | H42: =IF($B42="","",VLOOKUP($B42,formula!$A$15:$BI$124,formula!$C$9,FALSE)) -> 10000000 | K42: =IF($B42="","",VLOOKUP($B42,formula!$A$15:$BI$124,formula!$E$9,FALSE)) -> 9552960 | M42: =IF($B42="","",VLOOKUP($B42,formula!$A$15:$BI$124,formula!$D$9,FALSE)) -> 9552960 | O42: =IF(B42="", "", IFERROR(IF(SA * VLOOKUP(index, RPU_Tab, 4 + B42, FALSE) / 10000 = 0, "", SA * VLOOKUP(index, RPU_Tab, 4 + B42, FALSE) / 10000), "")) -> 
B43: 34 | C43: 103 | D43: =IF(C42=MaxCoverageYear-1,"***以下空白***",IF($B43="","",IF($B43>plan,"",VLOOKUP($B43,formula!$A$15:$BI$124,formula!$AM$9,FALSE)))) ->  | E43: =IF($B43="","",VLOOKUP($B43,formula!$A$15:$BI$124,formula!$AN$9,FALSE)) -> 8689561.65 | H43: =IF($B43="","",VLOOKUP($B43,formula!$A$15:$BI$124,formula!$C$9,FALSE)) -> 10000000 | K43: =IF($B43="","",VLOOKUP($B43,formula!$A$15:$BI$124,formula!$E$9,FALSE)) -> 9595090 | M43: =IF($B43="","",VLOOKUP($B43,formula!$A$15:$BI$124,formula!$D$9,FALSE)) -> 9595090
B44: 35 | C44: 104 | D44: =IF(C43=MaxCoverageYear-1,"***以下空白***",IF($B44="","",IF($B44>plan,"",VLOOKUP($B44,formula!$A$15:$BI$124,formula!$AM$9,FALSE)))) ->  | E44: =IF($B44="","",VLOOKUP($B44,formula!$A$15:$BI$124,formula!$AN$9,FALSE)) -> 8689561.65 | H44: =IF($B44="","",VLOOKUP($B44,formula!$A$15:$BI$124,formula!$C$9,FALSE)) -> 10000000 | K44: =IF($B44="","",VLOOKUP($B44,formula!$A$15:$BI$124,formula!$E$9,FALSE)) -> 9636680 | M44: =IF($B44="","",VLOOKUP($B44,formula!$A$15:$BI$124,formula!$D$9,FALSE)) -> 9636680
B45: 36 | C45: 105 | D45: =IF(C44=MaxCoverageYear-1,"***以下空白***",IF($B45="","",IF($B45>plan,"",VLOOKUP($B45,formula!$A$15:$BI$124,formula!$AM$9,FALSE)))) ->  | E45: =IF($B45="","",VLOOKUP($B45,formula!$A$15:$BI$124,formula!$AN$9,FALSE)) -> 8689561.65 | H45: =IF($B45="","",VLOOKUP($B45,formula!$A$15:$BI$124,formula!$C$9,FALSE)) -> 10000000 | K45: =IF($B45="","",VLOOKUP($B45,formula!$A$15:$BI$124,formula!$E$9,FALSE)) -> 9680350 | M45: =IF($B45="","",VLOOKUP($B45,formula!$A$15:$BI$124,formula!$D$9,FALSE)) -> 9680350
B46: 37 | C46: 106 | D46: =IF(C45=MaxCoverageYear-1,"***以下空白***",IF($B46="","",IF($B46>plan,"",VLOOKUP($B46,formula!$A$15:$BI$124,formula!$AM$9,FALSE)))) ->  | E46: =IF($B46="","",VLOOKUP($B46,formula!$A$15:$BI$124,formula!$AN$9,FALSE)) -> 8689561.65 | H46: =IF($B46="","",VLOOKUP($B46,formula!$A$15:$BI$124,formula!$C$9,FALSE)) -> 10000000 | K46: =IF($B46="","",VLOOKUP($B46,formula!$A$15:$BI$124,formula!$E$9,FALSE)) -> 9724120 | M46: =IF($B46="","",VLOOKUP($B46,formula!$A$15:$BI$124,formula!$D$9,FALSE)) -> 9724120
B47: 38 | C47: 107 | D47: =IF(C46=MaxCoverageYear-1,"***以下空白***",IF($B47="","",IF($B47>plan,"",VLOOKUP($B47,formula!$A$15:$BI$124,formula!$AM$9,FALSE)))) ->  | E47: =IF($B47="","",VLOOKUP($B47,formula!$A$15:$BI$124,formula!$AN$9,FALSE)) -> 8689561.65 | H47: =IF($B47="","",VLOOKUP($B47,formula!$A$15:$BI$124,formula!$C$9,FALSE)) -> 10000000 | K47: =IF($B47="","",VLOOKUP($B47,formula!$A$15:$BI$124,formula!$E$9,FALSE)) -> 9774800 | M47: =IF($B47="","",VLOOKUP($B47,formula!$A$15:$BI$124,formula!$D$9,FALSE)) -> 9774800
B48: 39 | C48: 108 | D48: =IF(C47=MaxCoverageYear-1,"***以下空白***",IF($B48="","",IF($B48>plan,"",VLOOKUP($B48,formula!$A$15:$BI$124,formula!$AM$9,FALSE)))) ->  | E48: =IF($B48="","",VLOOKUP($B48,formula!$A$15:$BI$124,formula!$AN$9,FALSE)) -> 8689561.65 | H48: =IF($B48="","",VLOOKUP($B48,formula!$A$15:$BI$124,formula!$C$9,FALSE)) -> 10000000 | K48: =IF($B48="","",VLOOKUP($B48,formula!$A$15:$BI$124,formula!$E$9,FALSE)) -> 9847730 | M48: =IF($B48="","",VLOOKUP($B48,formula!$A$15:$BI$124,formula!$D$9,FALSE)) -> 9847730
B49: 40 | C49: 109 | D49: =IF(C48=MaxCoverageYear-1,"***以下空白***",IF($B49="","",IF($B49>plan,"",VLOOKUP($B49,formula!$A$15:$BI$124,formula!$AM$9,FALSE)))) ->  | E49: =IF($B49="","",VLOOKUP($B49,formula!$A$15:$BI$124,formula!$AN$9,FALSE)) -> 8689561.65 | H49: =IF($B49="","",VLOOKUP($B49,formula!$A$15:$BI$124,formula!$C$9,FALSE)) -> 10000000 | K49: =IF($B49="","",VLOOKUP($B49,formula!$A$15:$BI$124,formula!$E$9,FALSE)) -> 10000000 | M49: =IF($B49="","",VLOOKUP($B49,formula!$A$15:$BI$124,formula!$D$9,FALSE)) -> 10000000
B50: 保單年度末 | C50: 保險年齡 | D50: 每期折扣後 所繳保險費 | E50: 累計折扣後 所繳保險費 | H50: 當年度末壽險保障 | K50: 當年度末解約金 | M50: 當年度末 保單價值準備金 | O50: 當年度末 減額繳清保險金額
B54: =IF(B49>=109-age+1,"",B49+1) ->  | D54: =IF(C49=MaxCoverageYear-1,"***以下空白***",IF($B54="","",IF($B54>plan,"",VLOOKUP($B54,formula!$A$15:$BI$124,formula!$AM$9,FALSE)))) -> ***以下空白*** | E54: =IF($B54="","",VLOOKUP($B54,formula!$A$15:$BI$124,formula!$AN$9,FALSE)) ->  | H54: =IF($B54="","",VLOOKUP($B54,formula!$A$15:$BI$124,formula!$C$9,FALSE)) ->  | K54: =IF($B54="","",VLOOKUP($B54,formula!$A$15:$BI$124,formula!$E$9,FALSE)) ->  | M54: =IF($B54="","",VLOOKUP($B54,formula!$A$15:$BI$124,formula!$D$9,FALSE)) -> 
D55: =IF(C54=MaxCoverageYear-1,"***以下空白***",IF($B55="","",IF($B55>plan,"",VLOOKUP($B55,formula!$A$15:$BI$124,formula!$AM$9,FALSE)))) ->  | E55: =IF($B55="","",VLOOKUP($B55,formula!$A$15:$BI$124,formula!$AN$9,FALSE)) ->  | H55: =IF($B55="","",VLOOKUP($B55,formula!$A$15:$BI$124,formula!$C$9,FALSE)) ->  | K55: =IF($B55="","",VLOOKUP($B55,formula!$A$15:$BI$124,formula!$E$9,FALSE)) ->  | M55: =IF($B55="","",VLOOKUP($B55,formula!$A$15:$BI$124,formula!$D$9,FALSE)) -> 
D56: =IF(C55=MaxCoverageYear-1,"***以下空白***",IF($B56="","",IF($B56>plan,"",VLOOKUP($B56,formula!$A$15:$BI$124,formula!$AM$9,FALSE)))) ->  | E56: =IF($B56="","",VLOOKUP($B56,formula!$A$15:$BI$124,formula!$AN$9,FALSE)) ->  | H56: =IF($B56="","",VLOOKUP($B56,formula!$A$15:$BI$124,formula!$C$9,FALSE)) ->  | K56: =IF($B56="","",VLOOKUP($B56,formula!$A$15:$BI$124,formula!$E$9,FALSE)) ->  | M56: =IF($B56="","",VLOOKUP($B56,formula!$A$15:$BI$124,formula!$D$9,FALSE)) -> 
D57: =IF(C56=MaxCoverageYear-1,"***以下空白***",IF($B57="","",IF($B57>plan,"",VLOOKUP($B57,formula!$A$15:$BI$124,formula!$AM$9,FALSE)))) ->  | E57: =IF($B57="","",VLOOKUP($B57,formula!$A$15:$BI$124,formula!$AN$9,FALSE)) ->  | H57: =IF($B57="","",VLOOKUP($B57,formula!$A$15:$BI$124,formula!$C$9,FALSE)) ->  | K57: =IF($B57="","",VLOOKUP($B57,formula!$A$15:$BI$124,formula!$E$9,FALSE)) ->  | M57: =IF($B57="","",VLOOKUP($B57,formula!$A$15:$BI$124,formula!$D$9,FALSE)) -> 
D58: =IF(C57=MaxCoverageYear-1,"***以下空白***",IF($B58="","",IF($B58>plan,"",VLOOKUP($B58,formula!$A$15:$BI$124,formula!$AM$9,FALSE)))) ->  | E58: =IF($B58="","",VLOOKUP($B58,formula!$A$15:$BI$124,formula!$AN$9,FALSE)) ->  | H58: =IF($B58="","",VLOOKUP($B58,formula!$A$15:$BI$124,formula!$C$9,FALSE)) ->  | K58: =IF($B58="","",VLOOKUP($B58,formula!$A$15:$BI$124,formula!$E$9,FALSE)) ->  | M58: =IF($B58="","",VLOOKUP($B58,formula!$A$15:$BI$124,formula!$D$9,FALSE)) -> 
D59: =IF(C58=MaxCoverageYear-1,"***以下空白***",IF($B59="","",IF($B59>plan,"",VLOOKUP($B59,formula!$A$15:$BI$124,formula!$AM$9,FALSE)))) ->  | E59: =IF($B59="","",VLOOKUP($B59,formula!$A$15:$BI$124,formula!$AN$9,FALSE)) ->  | H59: =IF($B59="","",VLOOKUP($B59,formula!$A$15:$BI$124,formula!$C$9,FALSE)) ->  | K59: =IF($B59="","",VLOOKUP($B59,formula!$A$15:$BI$124,formula!$E$9,FALSE)) ->  | M59: =IF($B59="","",VLOOKUP($B59,formula!$A$15:$BI$124,formula!$D$9,FALSE)) -> 
D60: =IF(C59=MaxCoverageYear-1,"***以下空白***",IF($B60="","",IF($B60>plan,"",VLOOKUP($B60,formula!$A$15:$BI$124,formula!$AM$9,FALSE)))) ->  | E60: =IF($B60="","",VLOOKUP($B60,formula!$A$15:$BI$124,formula!$AN$9,FALSE)) ->  | H60: =IF($B60="","",VLOOKUP($B60,formula!$A$15:$BI$124,formula!$C$9,FALSE)) ->  | K60: =IF($B60="","",VLOOKUP($B60,formula!$A$15:$BI$124,formula!$E$9,FALSE)) ->  | M60: =IF($B60="","",VLOOKUP($B60,formula!$A$15:$BI$124,formula!$D$9,FALSE)) -> 
D61: =IF(C60=MaxCoverageYear-1,"***以下空白***",IF($B61="","",IF($B61>plan,"",VLOOKUP($B61,formula!$A$15:$BI$124,formula!$AM$9,FALSE)))) ->  | E61: =IF($B61="","",VLOOKUP($B61,formula!$A$15:$BI$124,formula!$AN$9,FALSE)) ->  | H61: =IF($B61="","",VLOOKUP($B61,formula!$A$15:$BI$124,formula!$C$9,FALSE)) ->  | K61: =IF($B61="","",VLOOKUP($B61,formula!$A$15:$BI$124,formula!$E$9,FALSE)) ->  | M61: =IF($B61="","",VLOOKUP($B61,formula!$A$15:$BI$124,formula!$D$9,FALSE)) -> 
D62: =IF(C61=MaxCoverageYear-1,"***以下空白***",IF($B62="","",IF($B62>plan,"",VLOOKUP($B62,formula!$A$15:$BI$124,formula!$AM$9,FALSE)))) ->  | E62: =IF($B62="","",VLOOKUP($B62,formula!$A$15:$BI$124,formula!$AN$9,FALSE)) ->  | H62: =IF($B62="","",VLOOKUP($B62,formula!$A$15:$BI$124,formula!$C$9,FALSE)) ->  | K62: =IF($B62="","",VLOOKUP($B62,formula!$A$15:$BI$124,formula!$E$9,FALSE)) ->  | M62: =IF($B62="","",VLOOKUP($B62,formula!$A$15:$BI$124,formula!$D$9,FALSE)) -> 
D63: =IF(C62=MaxCoverageYear-1,"***以下空白***",IF($B63="","",IF($B63>plan,"",VLOOKUP($B63,formula!$A$15:$BI$124,formula!$AM$9,FALSE)))) ->  | E63: =IF($B63="","",VLOOKUP($B63,formula!$A$15:$BI$124,formula!$AN$9,FALSE)) ->  | H63: =IF($B63="","",VLOOKUP($B63,formula!$A$15:$BI$124,formula!$C$9,FALSE)) ->  | K63: =IF($B63="","",VLOOKUP($B63,formula!$A$15:$BI$124,formula!$E$9,FALSE)) ->  | M63: =IF($B63="","",VLOOKUP($B63,formula!$A$15:$BI$124,formula!$D$9,FALSE)) -> 
B64: =IF(B63>=109-age+1,"",B63+1) ->  | D64: =IF(C63=MaxCoverageYear-1,"***以下空白***",IF($B64="","",IF($B64>plan,"",VLOOKUP($B64,formula!$A$15:$BI$124,formula!$AM$9,FALSE)))) ->  | E64: =IF($B64="","",VLOOKUP($B64,formula!$A$15:$BI$124,formula!$AN$9,FALSE)) ->  | H64: =IF($B64="","",VLOOKUP($B64,formula!$A$15:$BI$124,formula!$C$9,FALSE)) ->  | K64: =IF($B64="","",VLOOKUP($B64,formula!$A$15:$BI$124,formula!$E$9,FALSE)) ->  | M64: =IF($B64="","",VLOOKUP($B64,formula!$A$15:$BI$124,formula!$D$9,FALSE)) -> 
D65: =IF(C64=MaxCoverageYear-1,"***以下空白***",IF($B65="","",IF($B65>plan,"",VLOOKUP($B65,formula!$A$15:$BI$124,formula!$AM$9,FALSE)))) ->  | E65: =IF($B65="","",VLOOKUP($B65,formula!$A$15:$BI$124,formula!$AN$9,FALSE)) ->  | H65: =IF($B65="","",VLOOKUP($B65,formula!$A$15:$BI$124,formula!$C$9,FALSE)) ->  | K65: =IF($B65="","",VLOOKUP($B65,formula!$A$15:$BI$124,formula!$E$9,FALSE)) ->  | M65: =IF($B65="","",VLOOKUP($B65,formula!$A$15:$BI$124,formula!$D$9,FALSE)) -> 
D66: =IF(C65=MaxCoverageYear-1,"***以下空白***",IF($B66="","",IF($B66>plan,"",VLOOKUP($B66,formula!$A$15:$BI$124,formula!$AM$9,FALSE)))) ->  | E66: =IF($B66="","",VLOOKUP($B66,formula!$A$15:$BI$124,formula!$AN$9,FALSE)) ->  | H66: =IF($B66="","",VLOOKUP($B66,formula!$A$15:$BI$124,formula!$C$9,FALSE)) ->  | K66: =IF($B66="","",VLOOKUP($B66,formula!$A$15:$BI$124,formula!$E$9,FALSE)) ->  | M66: =IF($B66="","",VLOOKUP($B66,formula!$A$15:$BI$124,formula!$D$9,FALSE)) -> 
D67: =IF(C66=MaxCoverageYear-1,"***以下空白***",IF($B67="","",IF($B67>plan,"",VLOOKUP($B67,formula!$A$15:$BI$124,formula!$AM$9,FALSE)))) ->  | E67: =IF($B67="","",VLOOKUP($B67,formula!$A$15:$BI$124,formula!$AN$9,FALSE)) ->  | H67: =IF($B67="","",VLOOKUP($B67,formula!$A$15:$BI$124,formula!$C$9,FALSE)) ->  | K67: =IF($B67="","",VLOOKUP($B67,formula!$A$15:$BI$124,formula!$E$9,FALSE)) ->  | M67: =IF($B67="","",VLOOKUP($B67,formula!$A$15:$BI$124,formula!$D$9,FALSE)) -> 
D68: =IF(C67=MaxCoverageYear-1,"***以下空白***",IF($B68="","",IF($B68>plan,"",VLOOKUP($B68,formula!$A$15:$BI$124,formula!$AM$9,FALSE)))) ->  | E68: =IF($B68="","",VLOOKUP($B68,formula!$A$15:$BI$124,formula!$AN$9,FALSE)) ->  | H68: =IF($B68="","",VLOOKUP($B68,formula!$A$15:$BI$124,formula!$C$9,FALSE)) ->  | K68: =IF($B68="","",VLOOKUP($B68,formula!$A$15:$BI$124,formula!$E$9,FALSE)) ->  | M68: =IF($B68="","",VLOOKUP($B68,formula!$A$15:$BI$124,formula!$D$9,FALSE)) -> 
D69: =IF(C68=MaxCoverageYear-1,"***以下空白***",IF($B69="","",IF($B69>plan,"",VLOOKUP($B69,formula!$A$15:$BI$124,formula!$AM$9,FALSE)))) ->  | E69: =IF($B69="","",VLOOKUP($B69,formula!$A$15:$BI$124,formula!$AN$9,FALSE)) ->  | H69: =IF($B69="","",VLOOKUP($B69,formula!$A$15:$BI$124,formula!$C$9,FALSE)) ->  | K69: =IF($B69="","",VLOOKUP($B69,formula!$A$15:$BI$124,formula!$E$9,FALSE)) ->  | M69: =IF($B69="","",VLOOKUP($B69,formula!$A$15:$BI$124,formula!$D$9,FALSE)) -> 
D70: =IF(C69=MaxCoverageYear-1,"***以下空白***",IF($B70="","",IF($B70>plan,"",VLOOKUP($B70,formula!$A$15:$BI$124,formula!$AM$9,FALSE)))) ->  | E70: =IF($B70="","",VLOOKUP($B70,formula!$A$15:$BI$124,formula!$AN$9,FALSE)) ->  | H70: =IF($B70="","",VLOOKUP($B70,formula!$A$15:$BI$124,formula!$C$9,FALSE)) ->  | K70: =IF($B70="","",VLOOKUP($B70,formula!$A$15:$BI$124,formula!$E$9,FALSE)) ->  | M70: =IF($B70="","",VLOOKUP($B70,formula!$A$15:$BI$124,formula!$D$9,FALSE)) -> 
D71: =IF(C70=MaxCoverageYear-1,"***以下空白***",IF($B71="","",IF($B71>plan,"",VLOOKUP($B71,formula!$A$15:$BI$124,formula!$AM$9,FALSE)))) ->  | E71: =IF($B71="","",VLOOKUP($B71,formula!$A$15:$BI$124,formula!$AN$9,FALSE)) ->  | H71: =IF($B71="","",VLOOKUP($B71,formula!$A$15:$BI$124,formula!$C$9,FALSE)) ->  | K71: =IF($B71="","",VLOOKUP($B71,formula!$A$15:$BI$124,formula!$E$9,FALSE)) ->  | M71: =IF($B71="","",VLOOKUP($B71,formula!$A$15:$BI$124,formula!$D$9,FALSE)) -> 
D72: =IF(C71=MaxCoverageYear-1,"***以下空白***",IF($B72="","",IF($B72>plan,"",VLOOKUP($B72,formula!$A$15:$BI$124,formula!$AM$9,FALSE)))) ->  | E72: =IF($B72="","",VLOOKUP($B72,formula!$A$15:$BI$124,formula!$AN$9,FALSE)) ->  | H72: =IF($B72="","",VLOOKUP($B72,formula!$A$15:$BI$124,formula!$C$9,FALSE)) ->  | K72: =IF($B72="","",VLOOKUP($B72,formula!$A$15:$BI$124,formula!$E$9,FALSE)) ->  | M72: =IF($B72="","",VLOOKUP($B72,formula!$A$15:$BI$124,formula!$D$9,FALSE)) -> 
D73: =IF(C72=MaxCoverageYear-1,"***以下空白***",IF($B73="","",IF($B73>plan,"",VLOOKUP($B73,formula!$A$15:$BI$124,formula!$AM$9,FALSE)))) ->  | E73: =IF($B73="","",VLOOKUP($B73,formula!$A$15:$BI$124,formula!$AN$9,FALSE)) ->  | H73: =IF($B73="","",VLOOKUP($B73,formula!$A$15:$BI$124,formula!$C$9,FALSE)) ->  | K73: =IF($B73="","",VLOOKUP($B73,formula!$A$15:$BI$124,formula!$E$9,FALSE)) ->  | M73: =IF($B73="","",VLOOKUP($B73,formula!$A$15:$BI$124,formula!$D$9,FALSE)) -> 
D74: =IF(C73=MaxCoverageYear-1,"***以下空白***",IF($B74="","",IF($B74>plan,"",VLOOKUP($B74,formula!$A$15:$BI$124,formula!$AM$9,FALSE)))) ->  | E74: =IF($B74="","",VLOOKUP($B74,formula!$A$15:$BI$124,formula!$AN$9,FALSE)) ->  | H74: =IF($B74="","",VLOOKUP($B74,formula!$A$15:$BI$124,formula!$C$9,FALSE)) ->  | K74: =IF($B74="","",VLOOKUP($B74,formula!$A$15:$BI$124,formula!$E$9,FALSE)) ->  | M74: =IF($B74="","",VLOOKUP($B74,formula!$A$15:$BI$124,formula!$D$9,FALSE)) -> 
D75: =IF(C74=MaxCoverageYear-1,"***以下空白***",IF($B75="","",IF($B75>plan,"",VLOOKUP($B75,formula!$A$15:$BI$124,formula!$AM$9,FALSE)))) ->  | E75: =IF($B75="","",VLOOKUP($B75,formula!$A$15:$BI$124,formula!$AN$9,FALSE)) ->  | H75: =IF($B75="","",VLOOKUP($B75,formula!$A$15:$BI$124,formula!$C$9,FALSE)) ->  | K75: =IF($B75="","",VLOOKUP($B75,formula!$A$15:$BI$124,formula!$E$9,FALSE)) ->  | M75: =IF($B75="","",VLOOKUP($B75,formula!$A$15:$BI$124,formula!$D$9,FALSE)) -> 
D76: =IF(C75=MaxCoverageYear-1,"***以下空白***",IF($B76="","",IF($B76>plan,"",VLOOKUP($B76,formula!$A$15:$BI$124,formula!$AM$9,FALSE)))) ->  | E76: =IF($B76="","",VLOOKUP($B76,formula!$A$15:$BI$124,formula!$AN$9,FALSE)) ->  | H76: =IF($B76="","",VLOOKUP($B76,formula!$A$15:$BI$124,formula!$C$9,FALSE)) ->  | K76: =IF($B76="","",VLOOKUP($B76,formula!$A$15:$BI$124,formula!$E$9,FALSE)) ->  | M76: =IF($B76="","",VLOOKUP($B76,formula!$A$15:$BI$124,formula!$D$9,FALSE)) -> 
D77: =IF(C76=MaxCoverageYear-1,"***以下空白***",IF($B77="","",IF($B77>plan,"",VLOOKUP($B77,formula!$A$15:$BI$124,formula!$AM$9,FALSE)))) ->  | E77: =IF($B77="","",VLOOKUP($B77,formula!$A$15:$BI$124,formula!$AN$9,FALSE)) ->  | H77: =IF($B77="","",VLOOKUP($B77,formula!$A$15:$BI$124,formula!$C$9,FALSE)) ->  | K77: =IF($B77="","",VLOOKUP($B77,formula!$A$15:$BI$124,formula!$E$9,FALSE)) ->  | M77: =IF($B77="","",VLOOKUP($B77,formula!$A$15:$BI$124,formula!$D$9,FALSE)) -> 
C78: =IF(B78="","",age+B78-1) ->  | D78: =IF(C77=MaxCoverageYear-1,"***以下空白***",IF($B78="","",IF($B78>plan,"",VLOOKUP($B78,formula!$A$15:$BI$124,formula!$AM$9,FALSE)))) ->  | E78: =IF($B78="","",VLOOKUP($B78,formula!$A$15:$BI$124,formula!$AN$9,FALSE)) ->  | H78: =IF($B78="","",VLOOKUP($B78,formula!$A$15:$BI$124,formula!$C$9,FALSE)) ->  | K78: =IF($B78="","",VLOOKUP($B78,formula!$A$15:$BI$124,formula!$E$9,FALSE)) ->  | M78: =IF($B78="","",VLOOKUP($B78,formula!$A$15:$BI$124,formula!$D$9,FALSE)) ->  | O78: =IF(B78="", "", IFERROR(IF(SA * VLOOKUP(index, RPU_Tab, 4 + B78, FALSE) / 10000 = 0, "", SA * VLOOKUP(index, RPU_Tab, 4 + B78, FALSE) / 10000), "")) -> 
B79: =IF(B78>=109-age+1,"",B78+1) ->  | D79: =IF(C78=MaxCoverageYear-1,"***以下空白***",IF($B79="","",IF($B79>plan,"",VLOOKUP($B79,formula!$A$15:$BI$124,formula!$AM$9,FALSE)))) ->  | E79: =IF($B79="","",VLOOKUP($B79,formula!$A$15:$BI$124,formula!$AN$9,FALSE)) ->  | H79: =IF($B79="","",VLOOKUP($B79,formula!$A$15:$BI$124,formula!$C$9,FALSE)) ->  | K79: =IF($B79="","",VLOOKUP($B79,formula!$A$15:$BI$124,formula!$E$9,FALSE)) ->  | M79: =IF($B79="","",VLOOKUP($B79,formula!$A$15:$BI$124,formula!$D$9,FALSE)) -> 
D80: =IF(C79=MaxCoverageYear-1,"***以下空白***",IF($B80="","",IF($B80>plan,"",VLOOKUP($B80,formula!$A$15:$BI$124,formula!$AM$9,FALSE)))) ->  | E80: =IF($B80="","",VLOOKUP($B80,formula!$A$15:$BI$124,formula!$AN$9,FALSE)) ->  | H80: =IF($B80="","",VLOOKUP($B80,formula!$A$15:$BI$124,formula!$C$9,FALSE)) ->  | K80: =IF($B80="","",VLOOKUP($B80,formula!$A$15:$BI$124,formula!$E$9,FALSE)) ->  | M80: =IF($B80="","",VLOOKUP($B80,formula!$A$15:$BI$124,formula!$D$9,FALSE)) -> 
D81: =IF(C80=MaxCoverageYear-1,"***以下空白***",IF($B81="","",IF($B81>plan,"",VLOOKUP($B81,formula!$A$15:$BI$124,formula!$AM$9,FALSE)))) ->  | E81: =IF($B81="","",VLOOKUP($B81,formula!$A$15:$BI$124,formula!$AN$9,FALSE)) ->  | H81: =IF($B81="","",VLOOKUP($B81,formula!$A$15:$BI$124,formula!$C$9,FALSE)) ->  | K81: =IF($B81="","",VLOOKUP($B81,formula!$A$15:$BI$124,formula!$E$9,FALSE)) ->  | M81: =IF($B81="","",VLOOKUP($B81,formula!$A$15:$BI$124,formula!$D$9,FALSE)) -> 
D82: =IF(C81=MaxCoverageYear-1,"***以下空白***",IF($B82="","",IF($B82>plan,"",VLOOKUP($B82,formula!$A$15:$BI$124,formula!$AM$9,FALSE)))) ->  | E82: =IF($B82="","",VLOOKUP($B82,formula!$A$15:$BI$124,formula!$AN$9,FALSE)) ->  | H82: =IF($B82="","",VLOOKUP($B82,formula!$A$15:$BI$124,formula!$C$9,FALSE)) ->  | K82: =IF($B82="","",VLOOKUP($B82,formula!$A$15:$BI$124,formula!$E$9,FALSE)) ->  | M82: =IF($B82="","",VLOOKUP($B82,formula!$A$15:$BI$124,formula!$D$9,FALSE)) -> 
D83: =IF(C82=MaxCoverageYear-1,"***以下空白***",IF($B83="","",IF($B83>plan,"",VLOOKUP($B83,formula!$A$15:$BI$124,formula!$AM$9,FALSE)))) ->  | E83: =IF($B83="","",VLOOKUP($B83,formula!$A$15:$BI$124,formula!$AN$9,FALSE)) ->  | H83: =IF($B83="","",VLOOKUP($B83,formula!$A$15:$BI$124,formula!$C$9,FALSE)) ->  | K83: =IF($B83="","",VLOOKUP($B83,formula!$A$15:$BI$124,formula!$E$9,FALSE)) ->  | M83: =IF($B83="","",VLOOKUP($B83,formula!$A$15:$BI$124,formula!$D$9,FALSE)) -> 
D84: =IF(C83=MaxCoverageYear-1,"***以下空白***",IF($B84="","",IF($B84>plan,"",VLOOKUP($B84,formula!$A$15:$BI$124,formula!$AM$9,FALSE)))) ->  | E84: =IF($B84="","",VLOOKUP($B84,formula!$A$15:$BI$124,formula!$AN$9,FALSE)) ->  | H84: =IF($B84="","",VLOOKUP($B84,formula!$A$15:$BI$124,formula!$C$9,FALSE)) ->  | K84: =IF($B84="","",VLOOKUP($B84,formula!$A$15:$BI$124,formula!$E$9,FALSE)) ->  | M84: =IF($B84="","",VLOOKUP($B84,formula!$A$15:$BI$124,formula!$D$9,FALSE)) -> 
D85: =IF(C84=MaxCoverageYear-1,"***以下空白***",IF($B85="","",IF($B85>plan,"",VLOOKUP($B85,formula!$A$15:$BI$124,formula!$AM$9,FALSE)))) ->  | E85: =IF($B85="","",VLOOKUP($B85,formula!$A$15:$BI$124,formula!$AN$9,FALSE)) ->  | H85: =IF($B85="","",VLOOKUP($B85,formula!$A$15:$BI$124,formula!$C$9,FALSE)) ->  | K85: =IF($B85="","",VLOOKUP($B85,formula!$A$15:$BI$124,formula!$E$9,FALSE)) ->  | M85: =IF($B85="","",VLOOKUP($B85,formula!$A$15:$BI$124,formula!$D$9,FALSE)) -> 
D86: =IF(C85=MaxCoverageYear-1,"***以下空白***",IF($B86="","",IF($B86>plan,"",VLOOKUP($B86,formula!$A$15:$BI$124,formula!$AM$9,FALSE)))) ->  | E86: =IF($B86="","",VLOOKUP($B86,formula!$A$15:$BI$124,formula!$AN$9,FALSE)) ->  | H86: =IF($B86="","",VLOOKUP($B86,formula!$A$15:$BI$124,formula!$C$9,FALSE)) ->  | K86: =IF($B86="","",VLOOKUP($B86,formula!$A$15:$BI$124,formula!$E$9,FALSE)) ->  | M86: =IF($B86="","",VLOOKUP($B86,formula!$A$15:$BI$124,formula!$D$9,FALSE)) -> 
D87: =IF(C86=MaxCoverageYear-1,"***以下空白***",IF($B87="","",IF($B87>plan,"",VLOOKUP($B87,formula!$A$15:$BI$124,formula!$AM$9,FALSE)))) ->  | E87: =IF($B87="","",VLOOKUP($B87,formula!$A$15:$BI$124,formula!$AN$9,FALSE)) ->  | H87: =IF($B87="","",VLOOKUP($B87,formula!$A$15:$BI$124,formula!$C$9,FALSE)) ->  | K87: =IF($B87="","",VLOOKUP($B87,formula!$A$15:$BI$124,formula!$E$9,FALSE)) ->  | M87: =IF($B87="","",VLOOKUP($B87,formula!$A$15:$BI$124,formula!$D$9,FALSE)) -> 
D88: =IF(C87=MaxCoverageYear-1,"***以下空白***",IF($B88="","",IF($B88>plan,"",VLOOKUP($B88,formula!$A$15:$BI$124,formula!$AM$9,FALSE)))) ->  | E88: =IF($B88="","",VLOOKUP($B88,formula!$A$15:$BI$124,formula!$AN$9,FALSE)) ->  | H88: =IF($B88="","",VLOOKUP($B88,formula!$A$15:$BI$124,formula!$C$9,FALSE)) ->  | K88: =IF($B88="","",VLOOKUP($B88,formula!$A$15:$BI$124,formula!$E$9,FALSE)) ->  | M88: =IF($B88="","",VLOOKUP($B88,formula!$A$15:$BI$124,formula!$D$9,FALSE)) -> 
D89: =IF(C88=MaxCoverageYear-1,"***以下空白***",IF($B89="","",IF($B89>plan,"",VLOOKUP($B89,formula!$A$15:$BI$124,formula!$AM$9,FALSE)))) ->  | E89: =IF($B89="","",VLOOKUP($B89,formula!$A$15:$BI$124,formula!$AN$9,FALSE)) ->  | H89: =IF($B89="","",VLOOKUP($B89,formula!$A$15:$BI$124,formula!$C$9,FALSE)) ->  | K89: =IF($B89="","",VLOOKUP($B89,formula!$A$15:$BI$124,formula!$E$9,FALSE)) ->  | M89: =IF($B89="","",VLOOKUP($B89,formula!$A$15:$BI$124,formula!$D$9,FALSE)) -> 
D90: =IF(C89=MaxCoverageYear-1,"***以下空白***",IF($B90="","",IF($B90>plan,"",VLOOKUP($B90,formula!$A$15:$BI$124,formula!$AM$9,FALSE)))) ->  | E90: =IF($B90="","",VLOOKUP($B90,formula!$A$15:$BI$124,formula!$AN$9,FALSE)) ->  | H90: =IF($B90="","",VLOOKUP($B90,formula!$A$15:$BI$124,formula!$C$9,FALSE)) ->  | K90: =IF($B90="","",VLOOKUP($B90,formula!$A$15:$BI$124,formula!$E$9,FALSE)) ->  | M90: =IF($B90="","",VLOOKUP($B90,formula!$A$15:$BI$124,formula!$D$9,FALSE)) -> 
D91: =IF(C90=MaxCoverageYear-1,"***以下空白***",IF($B91="","",IF($B91>plan,"",VLOOKUP($B91,formula!$A$15:$BI$124,formula!$AM$9,FALSE)))) ->  | E91: =IF($B91="","",VLOOKUP($B91,formula!$A$15:$BI$124,formula!$AN$9,FALSE)) ->  | H91: =IF($B91="","",VLOOKUP($B91,formula!$A$15:$BI$124,formula!$C$9,FALSE)) ->  | K91: =IF($B91="","",VLOOKUP($B91,formula!$A$15:$BI$124,formula!$E$9,FALSE)) ->  | M91: =IF($B91="","",VLOOKUP($B91,formula!$A$15:$BI$124,formula!$D$9,FALSE)) -> 
D92: =IF(C91=MaxCoverageYear-1,"***以下空白***",IF($B92="","",IF($B92>plan,"",VLOOKUP($B92,formula!$A$15:$BI$124,formula!$AM$9,FALSE)))) ->  | E92: =IF($B92="","",VLOOKUP($B92,formula!$A$15:$BI$124,formula!$AN$9,FALSE)) ->  | H92: =IF($B92="","",VLOOKUP($B92,formula!$A$15:$BI$124,formula!$C$9,FALSE)) ->  | K92: =IF($B92="","",VLOOKUP($B92,formula!$A$15:$BI$124,formula!$E$9,FALSE)) ->  | M92: =IF($B92="","",VLOOKUP($B92,formula!$A$15:$BI$124,formula!$D$9,FALSE)) -> 
D93: =IF(C92=MaxCoverageYear-1,"***以下空白***",IF($B93="","",IF($B93>plan,"",VLOOKUP($B93,formula!$A$15:$BI$124,formula!$AM$9,FALSE)))) ->  | E93: =IF($B93="","",VLOOKUP($B93,formula!$A$15:$BI$124,formula!$AN$9,FALSE)) ->  | H93: =IF($B93="","",VLOOKUP($B93,formula!$A$15:$BI$124,formula!$C$9,FALSE)) ->  | K93: =IF($B93="","",VLOOKUP($B93,formula!$A$15:$BI$124,formula!$E$9,FALSE)) ->  | M93: =IF($B93="","",VLOOKUP($B93,formula!$A$15:$BI$124,formula!$D$9,FALSE)) -> 
B94: 保單年度末 | C94: 保險年齡 | D94: 每期折扣後 所繳保險費 | E94: 累計折扣後 所繳保險費 | H94: 當年度末壽險保障 | K94: 當年度末解約金 | M94: 當年度末 保單價值準備金 | O94: 當年度末 減額繳清保險金額
A95: 42
B99: =IF(B93>=109-age+1,"",B93+1) ->  | D99: =IF(C93=MaxCoverageYear-1,"***以下空白***",IF($B99="","",IF($B99>plan,"",VLOOKUP($B99,formula!$A$15:$BI$124,formula!$AM$9,FALSE)))) ->  | E99: =IF($B99="","",VLOOKUP($B99,formula!$A$15:$BI$124,formula!$AN$9,FALSE)) ->  | H99: =IF($B99="","",VLOOKUP($B99,formula!$A$15:$BI$124,formula!$C$9,FALSE)) ->  | K99: =IF($B99="","",VLOOKUP($B99,formula!$A$15:$BI$124,formula!$E$9,FALSE)) ->  | M99: =IF($B99="","",VLOOKUP($B99,formula!$A$15:$BI$124,formula!$D$9,FALSE)) -> 
D100: =IF(C99=MaxCoverageYear-1,"***以下空白***",IF($B100="","",IF($B100>plan,"",VLOOKUP($B100,formula!$A$15:$BI$124,formula!$AM$9,FALSE)))) ->  | E100: =IF($B100="","",VLOOKUP($B100,formula!$A$15:$BI$124,formula!$AN$9,FALSE)) ->  | H100: =IF($B100="","",VLOOKUP($B100,formula!$A$15:$BI$124,formula!$C$9,FALSE)) ->  | K100: =IF($B100="","",VLOOKUP($B100,formula!$A$15:$BI$124,formula!$E$9,FALSE)) ->  | M100: =IF($B100="","",VLOOKUP($B100,formula!$A$15:$BI$124,formula!$D$9,FALSE)) -> 
D101: =IF(C100=MaxCoverageYear-1,"***以下空白***",IF($B101="","",IF($B101>plan,"",VLOOKUP($B101,formula!$A$15:$BI$124,formula!$AM$9,FALSE)))) ->  | E101: =IF($B101="","",VLOOKUP($B101,formula!$A$15:$BI$124,formula!$AN$9,FALSE)) ->  | H101: =IF($B101="","",VLOOKUP($B101,formula!$A$15:$BI$124,formula!$C$9,FALSE)) ->  | K101: =IF($B101="","",VLOOKUP($B101,formula!$A$15:$BI$124,formula!$E$9,FALSE)) ->  | M101: =IF($B101="","",VLOOKUP($B101,formula!$A$15:$BI$124,formula!$D$9,FALSE)) -> 
D102: =IF(C101=MaxCoverageYear-1,"***以下空白***",IF($B102="","",IF($B102>plan,"",VLOOKUP($B102,formula!$A$15:$BI$124,formula!$AM$9,FALSE)))) ->  | E102: =IF($B102="","",VLOOKUP($B102,formula!$A$15:$BI$124,formula!$AN$9,FALSE)) ->  | H102: =IF($B102="","",VLOOKUP($B102,formula!$A$15:$BI$124,formula!$C$9,FALSE)) ->  | K102: =IF($B102="","",VLOOKUP($B102,formula!$A$15:$BI$124,formula!$E$9,FALSE)) ->  | M102: =IF($B102="","",VLOOKUP($B102,formula!$A$15:$BI$124,formula!$D$9,FALSE)) -> 
D103: =IF(C102=MaxCoverageYear-1,"***以下空白***",IF($B103="","",IF($B103>plan,"",VLOOKUP($B103,formula!$A$15:$BI$124,formula!$AM$9,FALSE)))) ->  | E103: =IF($B103="","",VLOOKUP($B103,formula!$A$15:$BI$124,formula!$AN$9,FALSE)) ->  | H103: =IF($B103="","",VLOOKUP($B103,formula!$A$15:$BI$124,formula!$C$9,FALSE)) ->  | K103: =IF($B103="","",VLOOKUP($B103,formula!$A$15:$BI$124,formula!$E$9,FALSE)) ->  | M103: =IF($B103="","",VLOOKUP($B103,formula!$A$15:$BI$124,formula!$D$9,FALSE)) -> 
D104: =IF(C103=MaxCoverageYear-1,"***以下空白***",IF($B104="","",IF($B104>plan,"",VLOOKUP($B104,formula!$A$15:$BI$124,formula!$AM$9,FALSE)))) ->  | E104: =IF($B104="","",VLOOKUP($B104,formula!$A$15:$BI$124,formula!$AN$9,FALSE)) ->  | H104: =IF($B104="","",VLOOKUP($B104,formula!$A$15:$BI$124,formula!$C$9,FALSE)) ->  | K104: =IF($B104="","",VLOOKUP($B104,formula!$A$15:$BI$124,formula!$E$9,FALSE)) ->  | M104: =IF($B104="","",VLOOKUP($B104,formula!$A$15:$BI$124,formula!$D$9,FALSE)) -> 
D105: =IF(C104=MaxCoverageYear-1,"***以下空白***",IF($B105="","",IF($B105>plan,"",VLOOKUP($B105,formula!$A$15:$BI$124,formula!$AM$9,FALSE)))) ->  | E105: =IF($B105="","",VLOOKUP($B105,formula!$A$15:$BI$124,formula!$AN$9,FALSE)) ->  | H105: =IF($B105="","",VLOOKUP($B105,formula!$A$15:$BI$124,formula!$C$9,FALSE)) ->  | K105: =IF($B105="","",VLOOKUP($B105,formula!$A$15:$BI$124,formula!$E$9,FALSE)) ->  | M105: =IF($B105="","",VLOOKUP($B105,formula!$A$15:$BI$124,formula!$D$9,FALSE)) -> 
D106: =IF(C105=MaxCoverageYear-1,"***以下空白***",IF($B106="","",IF($B106>plan,"",VLOOKUP($B106,formula!$A$15:$BI$124,formula!$AM$9,FALSE)))) ->  | E106: =IF($B106="","",VLOOKUP($B106,formula!$A$15:$BI$124,formula!$AN$9,FALSE)) ->  | H106: =IF($B106="","",VLOOKUP($B106,formula!$A$15:$BI$124,formula!$C$9,FALSE)) ->  | K106: =IF($B106="","",VLOOKUP($B106,formula!$A$15:$BI$124,formula!$E$9,FALSE)) ->  | M106: =IF($B106="","",VLOOKUP($B106,formula!$A$15:$BI$124,formula!$D$9,FALSE)) -> 
D107: =IF(C106=MaxCoverageYear-1,"***以下空白***",IF($B107="","",IF($B107>plan,"",VLOOKUP($B107,formula!$A$15:$BI$124,formula!$AM$9,FALSE)))) ->  | E107: =IF($B107="","",VLOOKUP($B107,formula!$A$15:$BI$124,formula!$AN$9,FALSE)) ->  | H107: =IF($B107="","",VLOOKUP($B107,formula!$A$15:$BI$124,formula!$C$9,FALSE)) ->  | K107: =IF($B107="","",VLOOKUP($B107,formula!$A$15:$BI$124,formula!$E$9,FALSE)) ->  | M107: =IF($B107="","",VLOOKUP($B107,formula!$A$15:$BI$124,formula!$D$9,FALSE)) -> 
D108: =IF(C107=MaxCoverageYear-1,"***以下空白***",IF($B108="","",IF($B108>plan,"",VLOOKUP($B108,formula!$A$15:$BI$124,formula!$AM$9,FALSE)))) ->  | E108: =IF($B108="","",VLOOKUP($B108,formula!$A$15:$BI$124,formula!$AN$9,FALSE)) ->  | H108: =IF($B108="","",VLOOKUP($B108,formula!$A$15:$BI$124,formula!$C$9,FALSE)) ->  | K108: =IF($B108="","",VLOOKUP($B108,formula!$A$15:$BI$124,formula!$E$9,FALSE)) ->  | M108: =IF($B108="","",VLOOKUP($B108,formula!$A$15:$BI$124,formula!$D$9,FALSE)) -> 
D109: =IF(C108=MaxCoverageYear-1,"***以下空白***",IF($B109="","",IF($B109>plan,"",VLOOKUP($B109,formula!$A$15:$BI$124,formula!$AM$9,FALSE)))) ->  | E109: =IF($B109="","",VLOOKUP($B109,formula!$A$15:$BI$124,formula!$AN$9,FALSE)) ->  | H109: =IF($B109="","",VLOOKUP($B109,formula!$A$15:$BI$124,formula!$C$9,FALSE)) ->  | K109: =IF($B109="","",VLOOKUP($B109,formula!$A$15:$BI$124,formula!$E$9,FALSE)) ->  | M109: =IF($B109="","",VLOOKUP($B109,formula!$A$15:$BI$124,formula!$D$9,FALSE)) -> 
D110: =IF(C109=MaxCoverageYear-1,"***以下空白***",IF($B110="","",IF($B110>plan,"",VLOOKUP($B110,formula!$A$15:$BI$124,formula!$AM$9,FALSE)))) ->  | E110: =IF($B110="","",VLOOKUP($B110,formula!$A$15:$BI$124,formula!$AN$9,FALSE)) ->  | H110: =IF($B110="","",VLOOKUP($B110,formula!$A$15:$BI$124,formula!$C$9,FALSE)) ->  | K110: =IF($B110="","",VLOOKUP($B110,formula!$A$15:$BI$124,formula!$E$9,FALSE)) ->  | M110: =IF($B110="","",VLOOKUP($B110,formula!$A$15:$BI$124,formula!$D$9,FALSE)) -> 
D111: =IF(C110=MaxCoverageYear-1,"***以下空白***",IF($B111="","",IF($B111>plan,"",VLOOKUP($B111,formula!$A$15:$BI$124,formula!$AM$9,FALSE)))) ->  | E111: =IF($B111="","",VLOOKUP($B111,formula!$A$15:$BI$124,formula!$AN$9,FALSE)) ->  | H111: =IF($B111="","",VLOOKUP($B111,formula!$A$15:$BI$124,formula!$C$9,FALSE)) ->  | K111: =IF($B111="","",VLOOKUP($B111,formula!$A$15:$BI$124,formula!$E$9,FALSE)) ->  | M111: =IF($B111="","",VLOOKUP($B111,formula!$A$15:$BI$124,formula!$D$9,FALSE)) -> 
D112: =IF(C111=MaxCoverageYear-1,"***以下空白***",IF($B112="","",IF($B112>plan,"",VLOOKUP($B112,formula!$A$15:$BI$124,formula!$AM$9,FALSE)))) ->  | E112: =IF($B112="","",VLOOKUP($B112,formula!$A$15:$BI$124,formula!$AN$9,FALSE)) ->  | H112: =IF($B112="","",VLOOKUP($B112,formula!$A$15:$BI$124,formula!$C$9,FALSE)) ->  | K112: =IF($B112="","",VLOOKUP($B112,formula!$A$15:$BI$124,formula!$E$9,FALSE)) ->  | M112: =IF($B112="","",VLOOKUP($B112,formula!$A$15:$BI$124,formula!$D$9,FALSE)) -> 
D113: =IF(C112=MaxCoverageYear-1,"***以下空白***",IF($B113="","",IF($B113>plan,"",VLOOKUP($B113,formula!$A$15:$BI$124,formula!$AM$9,FALSE)))) ->  | E113: =IF($B113="","",VLOOKUP($B113,formula!$A$15:$BI$124,formula!$AN$9,FALSE)) ->  | H113: =IF($B113="","",VLOOKUP($B113,formula!$A$15:$BI$124,formula!$C$9,FALSE)) ->  | K113: =IF($B113="","",VLOOKUP($B113,formula!$A$15:$BI$124,formula!$E$9,FALSE)) ->  | M113: =IF($B113="","",VLOOKUP($B113,formula!$A$15:$BI$124,formula!$D$9,FALSE)) -> 
D114: =IF(C113=MaxCoverageYear-1,"***以下空白***",IF($B114="","",IF($B114>plan,"",VLOOKUP($B114,formula!$A$15:$BI$124,formula!$AM$9,FALSE)))) ->  | E114: =IF($B114="","",VLOOKUP($B114,formula!$A$15:$BI$124,formula!$AN$9,FALSE)) ->  | H114: =IF($B114="","",VLOOKUP($B114,formula!$A$15:$BI$124,formula!$C$9,FALSE)) ->  | K114: =IF($B114="","",VLOOKUP($B114,formula!$A$15:$BI$124,formula!$E$9,FALSE)) ->  | M114: =IF($B114="","",VLOOKUP($B114,formula!$A$15:$BI$124,formula!$D$9,FALSE)) -> 
D115: =IF(C114=MaxCoverageYear-1,"***以下空白***",IF($B115="","",IF($B115>plan,"",VLOOKUP($B115,formula!$A$15:$BI$124,formula!$AM$9,FALSE)))) ->  | E115: =IF($B115="","",VLOOKUP($B115,formula!$A$15:$BI$124,formula!$AN$9,FALSE)) ->  | H115: =IF($B115="","",VLOOKUP($B115,formula!$A$15:$BI$124,formula!$C$9,FALSE)) ->  | K115: =IF($B115="","",VLOOKUP($B115,formula!$A$15:$BI$124,formula!$E$9,FALSE)) ->  | M115: =IF($B115="","",VLOOKUP($B115,formula!$A$15:$BI$124,formula!$D$9,FALSE)) ->  | O115: =IF(B115="", "", IFERROR(IF(SA * VLOOKUP(index, RPU_Tab, 4 + B115, FALSE) / 10000 = 0, "", SA * VLOOKUP(index, RPU_Tab, 4 + B115, FALSE) / 10000), "")) -> 
D116: =IF(C115=MaxCoverageYear-1,"***以下空白***",IF($B116="","",IF($B116>plan,"",VLOOKUP($B116,formula!$A$15:$BI$124,formula!$AM$9,FALSE)))) ->  | E116: =IF($B116="","",VLOOKUP($B116,formula!$A$15:$BI$124,formula!$AN$9,FALSE)) ->  | H116: =IF($B116="","",VLOOKUP($B116,formula!$A$15:$BI$124,formula!$C$9,FALSE)) ->  | K116: =IF($B116="","",VLOOKUP($B116,formula!$A$15:$BI$124,formula!$E$9,FALSE)) ->  | M116: =IF($B116="","",VLOOKUP($B116,formula!$A$15:$BI$124,formula!$D$9,FALSE)) -> 
D117: =IF(C116=MaxCoverageYear-1,"***以下空白***",IF($B117="","",IF($B117>plan,"",VLOOKUP($B117,formula!$A$15:$BI$124,formula!$AM$9,FALSE)))) ->  | E117: =IF($B117="","",VLOOKUP($B117,formula!$A$15:$BI$124,formula!$AN$9,FALSE)) ->  | H117: =IF($B117="","",VLOOKUP($B117,formula!$A$15:$BI$124,formula!$C$9,FALSE)) ->  | K117: =IF($B117="","",VLOOKUP($B117,formula!$A$15:$BI$124,formula!$E$9,FALSE)) ->  | M117: =IF($B117="","",VLOOKUP($B117,formula!$A$15:$BI$124,formula!$D$9,FALSE)) -> 
D118: =IF(C117=MaxCoverageYear-1,"***以下空白***",IF($B118="","",IF($B118>plan,"",VLOOKUP($B118,formula!$A$15:$BI$124,formula!$AM$9,FALSE)))) ->  | E118: =IF($B118="","",VLOOKUP($B118,formula!$A$15:$BI$124,formula!$AN$9,FALSE)) ->  | H118: =IF($B118="","",VLOOKUP($B118,formula!$A$15:$BI$124,formula!$C$9,FALSE)) ->  | K118: =IF($B118="","",VLOOKUP($B118,formula!$A$15:$BI$124,formula!$E$9,FALSE)) ->  | M118: =IF($B118="","",VLOOKUP($B118,formula!$A$15:$BI$124,formula!$D$9,FALSE)) -> 
D119: =IF(C118=MaxCoverageYear-1,"***以下空白***",IF($B119="","",IF($B119>plan,"",VLOOKUP($B119,formula!$A$15:$BI$124,formula!$AM$9,FALSE)))) ->  | E119: =IF($B119="","",VLOOKUP($B119,formula!$A$15:$BI$124,formula!$AN$9,FALSE)) ->  | H119: =IF($B119="","",VLOOKUP($B119,formula!$A$15:$BI$124,formula!$C$9,FALSE)) ->  | K119: =IF($B119="","",VLOOKUP($B119,formula!$A$15:$BI$124,formula!$E$9,FALSE)) ->  | M119: =IF($B119="","",VLOOKUP($B119,formula!$A$15:$BI$124,formula!$D$9,FALSE)) -> 
D120: =IF(C119=MaxCoverageYear-1,"***以下空白***",IF($B120="","",IF($B120>plan,"",VLOOKUP($B120,formula!$A$15:$BI$124,formula!$AM$9,FALSE)))) ->  | E120: =IF($B120="","",VLOOKUP($B120,formula!$A$15:$BI$124,formula!$AN$9,FALSE)) ->  | H120: =IF($B120="","",VLOOKUP($B120,formula!$A$15:$BI$124,formula!$C$9,FALSE)) ->  | K120: =IF($B120="","",VLOOKUP($B120,formula!$A$15:$BI$124,formula!$E$9,FALSE)) ->  | M120: =IF($B120="","",VLOOKUP($B120,formula!$A$15:$BI$124,formula!$D$9,FALSE)) ->  | O120: =IF(B120="", "", IFERROR(IF(SA * VLOOKUP(index, RPU_Tab, 4 + B120, FALSE) / 10000 = 0, "", SA * VLOOKUP(index, RPU_Tab, 4 + B120, FALSE) / 10000), "")) -> 
D121: =IF(C120=MaxCoverageYear-1,"***以下空白***",IF($B121="","",IF($B121>plan,"",VLOOKUP($B121,formula!$A$15:$BI$124,formula!$AM$9,FALSE)))) ->  | E121: =IF($B121="","",VLOOKUP($B121,formula!$A$15:$BI$124,formula!$AN$9,FALSE)) ->  | H121: =IF($B121="","",VLOOKUP($B121,formula!$A$15:$BI$124,formula!$C$9,FALSE)) ->  | K121: =IF($B121="","",VLOOKUP($B121,formula!$A$15:$BI$124,formula!$E$9,FALSE)) ->  | M121: =IF($B121="","",VLOOKUP($B121,formula!$A$15:$BI$124,formula!$D$9,FALSE)) -> 
D122: =IF(C121=MaxCoverageYear-1,"***以下空白***",IF($B122="","",IF($B122>plan,"",VLOOKUP($B122,formula!$A$15:$BI$124,formula!$AM$9,FALSE)))) ->  | E122: =IF($B122="","",VLOOKUP($B122,formula!$A$15:$BI$124,formula!$AN$9,FALSE)) ->  | H122: =IF($B122="","",VLOOKUP($B122,formula!$A$15:$BI$124,formula!$C$9,FALSE)) ->  | K122: =IF($B122="","",VLOOKUP($B122,formula!$A$15:$BI$124,formula!$E$9,FALSE)) ->  | M122: =IF($B122="","",VLOOKUP($B122,formula!$A$15:$BI$124,formula!$D$9,FALSE)) -> 
D123: =IF(C122=MaxCoverageYear-1,"***以下空白***",IF($B123="","",IF($B123>plan,"",VLOOKUP($B123,formula!$A$15:$BI$124,formula!$AM$9,FALSE)))) ->  | E123: =IF($B123="","",VLOOKUP($B123,formula!$A$15:$BI$124,formula!$AN$9,FALSE)) ->  | H123: =IF($B123="","",VLOOKUP($B123,formula!$A$15:$BI$124,formula!$C$9,FALSE)) ->  | K123: =IF($B123="","",VLOOKUP($B123,formula!$A$15:$BI$124,formula!$E$9,FALSE)) ->  | M123: =IF($B123="","",VLOOKUP($B123,formula!$A$15:$BI$124,formula!$D$9,FALSE)) -> 
D124: =IF(C123=MaxCoverageYear-1,"***以下空白***",IF($B124="","",IF($B124>plan,"",VLOOKUP($B124,formula!$A$15:$BI$124,formula!$AM$9,FALSE)))) ->  | E124: =IF($B124="","",VLOOKUP($B124,formula!$A$15:$BI$124,formula!$AN$9,FALSE)) ->  | H124: =IF($B124="","",VLOOKUP($B124,formula!$A$15:$BI$124,formula!$C$9,FALSE)) ->  | K124: =IF($B124="","",VLOOKUP($B124,formula!$A$15:$BI$124,formula!$E$9,FALSE)) ->  | M124: =IF($B124="","",VLOOKUP($B124,formula!$A$15:$BI$124,formula!$D$9,FALSE)) -> 
D125: =IF(C124=MaxCoverageYear-1,"***以下空白***",IF($B125="","",IF($B125>plan,"",VLOOKUP($B125,formula!$A$15:$BI$124,formula!$AM$9,FALSE)))) ->  | E125: =IF($B125="","",VLOOKUP($B125,formula!$A$15:$BI$124,formula!$AN$9,FALSE)) ->  | H125: =IF($B125="","",VLOOKUP($B125,formula!$A$15:$BI$124,formula!$C$9,FALSE)) ->  | K125: =IF($B125="","",VLOOKUP($B125,formula!$A$15:$BI$124,formula!$E$9,FALSE)) ->  | M125: =IF($B125="","",VLOOKUP($B125,formula!$A$15:$BI$124,formula!$D$9,FALSE)) -> 
D126: =IF(C125=MaxCoverageYear-1,"***以下空白***",IF($B126="","",IF($B126>plan,"",VLOOKUP($B126,formula!$A$15:$BI$124,formula!$AM$9,FALSE)))) ->  | E126: =IF($B126="","",VLOOKUP($B126,formula!$A$15:$BI$124,formula!$AN$9,FALSE)) ->  | H126: =IF($B126="","",VLOOKUP($B126,formula!$A$15:$BI$124,formula!$C$9,FALSE)) ->  | K126: =IF($B126="","",VLOOKUP($B126,formula!$A$15:$BI$124,formula!$E$9,FALSE)) ->  | M126: =IF($B126="","",VLOOKUP($B126,formula!$A$15:$BI$124,formula!$D$9,FALSE)) -> 
D127: =IF(C126=MaxCoverageYear-1,"***以下空白***",IF($B127="","",IF($B127>plan,"",VLOOKUP($B127,formula!$A$15:$BI$124,formula!$AM$9,FALSE)))) ->  | E127: =IF($B127="","",VLOOKUP($B127,formula!$A$15:$BI$124,formula!$AN$9,FALSE)) ->  | H127: =IF($B127="","",VLOOKUP($B127,formula!$A$15:$BI$124,formula!$C$9,FALSE)) ->  | K127: =IF($B127="","",VLOOKUP($B127,formula!$A$15:$BI$124,formula!$E$9,FALSE)) ->  | M127: =IF($B127="","",VLOOKUP($B127,formula!$A$15:$BI$124,formula!$D$9,FALSE)) -> 
D128: =IF(C127=MaxCoverageYear-1,"***以下空白***",IF($B128="","",IF($B128>plan,"",VLOOKUP($B128,formula!$A$15:$BI$124,formula!$AM$9,FALSE)))) ->  | E128: =IF($B128="","",VLOOKUP($B128,formula!$A$15:$BI$124,formula!$AN$9,FALSE)) ->  | H128: =IF($B128="","",VLOOKUP($B128,formula!$A$15:$BI$124,formula!$C$9,FALSE)) ->  | K128: =IF($B128="","",VLOOKUP($B128,formula!$A$15:$BI$124,formula!$E$9,FALSE)) ->  | M128: =IF($B128="","",VLOOKUP($B128,formula!$A$15:$BI$124,formula!$D$9,FALSE)) -> 
D129: =IF(C128=MaxCoverageYear-1,"***以下空白***",IF($B129="","",IF($B129>plan,"",VLOOKUP($B129,formula!$A$15:$BI$124,formula!$AM$9,FALSE)))) ->  | E129: =IF($B129="","",VLOOKUP($B129,formula!$A$15:$BI$124,formula!$AN$9,FALSE)) ->  | H129: =IF($B129="","",VLOOKUP($B129,formula!$A$15:$BI$124,formula!$C$9,FALSE)) ->  | K129: =IF($B129="","",VLOOKUP($B129,formula!$A$15:$BI$124,formula!$E$9,FALSE)) ->  | M129: =IF($B129="","",VLOOKUP($B129,formula!$A$15:$BI$124,formula!$D$9,FALSE)) -> 
D130: =IF(C129=MaxCoverageYear-1,"***以下空白***",IF($B130="","",IF($B130>plan,"",VLOOKUP($B130,formula!$A$15:$BI$124,formula!$AM$9,FALSE)))) ->  | E130: =IF($B130="","",VLOOKUP($B130,formula!$A$15:$BI$124,formula!$AN$9,FALSE)) ->  | H130: =IF($B130="","",VLOOKUP($B130,formula!$A$15:$BI$124,formula!$C$9,FALSE)) ->  | K130: =IF($B130="","",VLOOKUP($B130,formula!$A$15:$BI$124,formula!$E$9,FALSE)) ->  | M130: =IF($B130="","",VLOOKUP($B130,formula!$A$15:$BI$124,formula!$D$9,FALSE)) -> 
D131: =IF(C130=MaxCoverageYear-1,"***以下空白***",IF($B131="","",IF($B131>plan,"",VLOOKUP($B131,formula!$A$15:$BI$124,formula!$AM$9,FALSE)))) ->  | E131: =IF($B131="","",VLOOKUP($B131,formula!$A$15:$BI$124,formula!$AN$9,FALSE)) ->  | H131: =IF($B131="","",VLOOKUP($B131,formula!$A$15:$BI$124,formula!$C$9,FALSE)) ->  | K131: =IF($B131="","",VLOOKUP($B131,formula!$A$15:$BI$124,formula!$E$9,FALSE)) ->  | M131: =IF($B131="","",VLOOKUP($B131,formula!$A$15:$BI$124,formula!$D$9,FALSE)) -> 
D132: =IF(C131=MaxCoverageYear-1,"***以下空白***",IF($B132="","",IF($B132>plan,"",VLOOKUP($B132,formula!$A$15:$BI$124,formula!$AM$9,FALSE)))) ->  | E132: =IF($B132="","",VLOOKUP($B132,formula!$A$15:$BI$124,formula!$AN$9,FALSE)) ->  | H132: =IF($B132="","",VLOOKUP($B132,formula!$A$15:$BI$124,formula!$C$9,FALSE)) ->  | K132: =IF($B132="","",VLOOKUP($B132,formula!$A$15:$BI$124,formula!$E$9,FALSE)) ->  | M132: =IF($B132="","",VLOOKUP($B132,formula!$A$15:$BI$124,formula!$D$9,FALSE)) -> 
D133: =IF(C132=MaxCoverageYear-1,"***以下空白***",IF($B133="","",IF($B133>plan,"",VLOOKUP($B133,formula!$A$15:$BI$124,formula!$AM$9,FALSE)))) ->  | E133: =IF($B133="","",VLOOKUP($B133,formula!$A$15:$BI$124,formula!$AN$9,FALSE)) ->  | H133: =IF($B133="","",VLOOKUP($B133,formula!$A$15:$BI$124,formula!$C$9,FALSE)) ->  | K133: =IF($B133="","",VLOOKUP($B133,formula!$A$15:$BI$124,formula!$E$9,FALSE)) ->  | M133: =IF($B133="","",VLOOKUP($B133,formula!$A$15:$BI$124,formula!$D$9,FALSE)) -> 
D134: =IF(C133=MaxCoverageYear-1,"***以下空白***",IF($B134="","",IF($B134>plan,"",VLOOKUP($B134,formula!$A$15:$BI$124,formula!$AM$9,FALSE)))) ->  | E134: =IF($B134="","",VLOOKUP($B134,formula!$A$15:$BI$124,formula!$AN$9,FALSE)) ->  | H134: =IF($B134="","",VLOOKUP($B134,formula!$A$15:$BI$124,formula!$C$9,FALSE)) ->  | K134: =IF($B134="","",VLOOKUP($B134,formula!$A$15:$BI$124,formula!$E$9,FALSE)) ->  | M134: =IF($B134="","",VLOOKUP($B134,formula!$A$15:$BI$124,formula!$D$9,FALSE)) -> 
D135: =IF(C134=MaxCoverageYear-1,"***以下空白***",IF($B135="","",IF($B135>plan,"",VLOOKUP($B135,formula!$A$15:$BI$124,formula!$AM$9,FALSE)))) ->  | E135: =IF($B135="","",VLOOKUP($B135,formula!$A$15:$BI$124,formula!$AN$9,FALSE)) ->  | H135: =IF($B135="","",VLOOKUP($B135,formula!$A$15:$BI$124,formula!$C$9,FALSE)) ->  | K135: =IF($B135="","",VLOOKUP($B135,formula!$A$15:$BI$124,formula!$E$9,FALSE)) ->  | M135: =IF($B135="","",VLOOKUP($B135,formula!$A$15:$BI$124,formula!$D$9,FALSE)) -> 
D136: =IF(C135=MaxCoverageYear-1,"***以下空白***",IF($B136="","",IF($B136>plan,"",VLOOKUP($B136,formula!$A$15:$BI$124,formula!$AM$9,FALSE)))) ->  | E136: =IF($B136="","",VLOOKUP($B136,formula!$A$15:$BI$124,formula!$AN$9,FALSE)) ->  | H136: =IF($B136="","",VLOOKUP($B136,formula!$A$15:$BI$124,formula!$C$9,FALSE)) ->  | K136: =IF($B136="","",VLOOKUP($B136,formula!$A$15:$BI$124,formula!$E$9,FALSE)) ->  | M136: =IF($B136="","",VLOOKUP($B136,formula!$A$15:$BI$124,formula!$D$9,FALSE)) -> 
D137: =IF(C136=MaxCoverageYear-1,"***以下空白***",IF($B137="","",IF($B137>plan,"",VLOOKUP($B137,formula!$A$15:$BI$124,formula!$AM$9,FALSE)))) ->  | E137: =IF($B137="","",VLOOKUP($B137,formula!$A$15:$BI$124,formula!$AN$9,FALSE)) ->  | H137: =IF($B137="","",VLOOKUP($B137,formula!$A$15:$BI$124,formula!$C$9,FALSE)) ->  | K137: =IF($B137="","",VLOOKUP($B137,formula!$A$15:$BI$124,formula!$E$9,FALSE)) ->  | M137: =IF($B137="","",VLOOKUP($B137,formula!$A$15:$BI$124,formula!$D$9,FALSE)) -> 
D138: =IF(C137=MaxCoverageYear-1,"***以下空白***",IF($B138="","",IF($B138>plan,"",VLOOKUP($B138,formula!$A$15:$BI$124,formula!$AM$9,FALSE)))) ->  | E138: =IF($B138="","",VLOOKUP($B138,formula!$A$15:$BI$124,formula!$AN$9,FALSE)) ->  | H138: =IF($B138="","",VLOOKUP($B138,formula!$A$15:$BI$124,formula!$C$9,FALSE)) ->  | K138: =IF($B138="","",VLOOKUP($B138,formula!$A$15:$BI$124,formula!$E$9,FALSE)) ->  | M138: =IF($B138="","",VLOOKUP($B138,formula!$A$15:$BI$124,formula!$D$9,FALSE)) -> 

Sheet 參數 (hidden)
A1: 被保人姓名 | B1: =InsName -> 被保人 | E1: 要保人姓名 | F1: =HolderName -> 要保人 | G1: 繳費人姓名 | H1: =Payer -> 繳費人
A2: 被保人生日 | B2: =(LEFT(InsBirthEntry,LEN(InsBirthEntry)-4) + 1911) & "/" & MID(RIGHT(InsBirthEntry,4),1,2) & "/" & RIGHT(InsBirthEntry,2) -> 1956/01/01 | D2: 表示有欄位名稱定義 | E2: 要保人生日 | F2: =(LEFT(資料輸入!H10,LEN(資料輸入!H10)-4) + 1911) & "/" & MID(RIGHT(資料輸入!H10,4),1,2) & "/" & RIGHT(資料輸入!H10,2) -> 1961/01/01 | G2: 繳費人生日 | H2: =(LEFT(資料輸入!K10,LEN(資料輸入!K10)-4) + 1911) & "/" & MID(RIGHT(資料輸入!K10,4),1,2) & "/" & RIGHT(資料輸入!K10,2) -> 1971/01/01
A3: 被保人性別 | B3: =IF(資料輸入!E12="男性",1,2) -> 2 | C3: 1表示男性；2表示女性 | E3: 要保人性別 | F3: =IF(資料輸入!I12="男性",1,2) -> 2 | G3: 繳費人性別 | H3: =IF(資料輸入!K12="男性",1,2) -> 1
A4: 足歲年齡 | B4: =IF((TEXT(MONTH(NOW()),"0#") & TEXT(DAY(NOW()),"0#")) - RIGHT(InsBirthEntry,4) < 0, (YEAR(NOW())-YEAR(InsBirthDay))-1, (YEAR(NOW())-YEAR(InsBirthDay))) -> 70 | E4: 足歲年齡 | F4: =IF((TEXT(MONTH(NOW()),"0#") & TEXT(DAY(NOW()),"0#")) - RIGHT(資料輸入!H10,4) < 0, (YEAR(NOW())-YEAR(F2))-1, (YEAR(NOW())-YEAR(F2))) -> 65 | G4: 足歲年齡 | H4: =IF((TEXT(MONTH(NOW()),"0#") & TEXT(DAY(NOW()),"0#")) - RIGHT(資料輸入!K10,4) < 0, (YEAR(NOW())-YEAR(H2))-1, (YEAR(NOW())-YEAR(H2))) -> 55
A5: 保險年齡 | B5: =ROUND((DAYS360(InsBirthDay,TODAY())-1)/360,0) -> 70 | E5: 保險年齡 | F5: =ROUND((DAYS360(F2,TODAY())-1)/360,0) -> 65 | G5: 保險年齡 | H5: =ROUND((DAYS360(H2,TODAY())-1)/360,0) -> 55
A6: 繳費年期 | B6: =VALUE(LEFT(資料輸入!E25,FIND("年期",資料輸入!E25)-1)) -> 7
A7: 跳歲提醒 | B7: 0 | C7: 1表示要提醒；0表示無須提醒 | D7: 利用系統日+跳歲天數為新系統日下與被保人生日計算新的保險年齡，若新與舊的保險年齡不同表示需要提示會跳歲 | E7: 要保人同被保人 | F7: TRUE | G7: 錄音提示搞要保人年齡 | H7: =IF(F7, age, holderAge) -> 70
A8: 跳歲天數(需求定義) | B8: 30 | E8: 繳費人同要保人 | F8: TRUE | G8: 錄音提示搞要保人姓名 | H8: =IF(F7, B1, F1) -> 被保人
A9: 跳歲生日 | B9: =YEAR(TODAY()+B8) & MONTH(TODAY()+B8) & DAY(TODAY()+B8) -> 202638 | E9: 繳費人同被保人 | F9: FALSE | G9: 錄音提示搞要保人性別 | H9: =IF(F7, EntryGender, 資料輸入!H12) -> 女性
A10: 跳歲後年齡 | B10: 40 | G10: 錄音提示搞繳費人年齡 | H10: =IF(F8, IF(F7, age, holderAge), IF(F9, age, payerAge)) -> 70
A11: 保額 | B11: =資料輸入!E31 -> 10000000 | G11: 錄音提示搞繳費人姓名 | H11: =IF(F8, IF(F7, InsName, HolderName), IF(F9, InsName, Payer)) -> 被保人
A12: Index | B12: =VALUE(plan&sex&age) -> 7270 | G12: 錄音提示搞繳費人性別 | H12: =IF(F8, IF(F7, EntryGender, 資料輸入!H12), IF(F9, EntryGender, 資料輸入!K12)) -> 女性
A13: 繳別係數 | B13: =VLOOKUP(LEFT(ChargeMode,1),$J$23:$K$27,2,FALSE) -> 1
E14: 給付祝壽保險金-中 | F14: =VLOOKUP(110,formula!B15:W125,2,0) + VLOOKUP(110,formula!B15:W125,20+1,0) -> 13900000
A15: 最大年齡 | B15: 110 | E15: 假設紅利分紅保額-中 | F15: =VLOOKUP(110,formula!B15:W125,11+1,0) -> 9000000
A16: 紅利運用方式 | B16: 4 | C16: 抵繳保費=1，現金給付=2，儲存生息=3，增額繳清=4 | D16: 本次以紅利保額形式發放紅利，固定為4 | E16: 給付祝壽保險金-低 | F16: =VLOOKUP(110,formula!B15:W125,2,0) + VLOOKUP(110,formula!B15:W125,20+2,0) -> 10300300
A17: 選擇分紅(DivLevel) | B17: 中 | E17: 假設紅利分紅保額-低 | F17: =VLOOKUP(110,formula!B15:W125,11+2,0) -> 692310
A18: 職業等級 | B18: =資料輸入!#REF! ->  | E18: 給付祝壽保險金-零 | F18: =VLOOKUP(110,formula!B15:W125,2,0) + VLOOKUP(110,formula!B15:W125,20,0) -> 10000000
A19: 分期定期保險金每期領取下限 | B19: 4000 | E19: 假設紅利分紅保額-零 | F19: =VLOOKUP(110,formula!B15:W125,11,0) -> 0
A20: 核保規則-1 | B20: =IF(age<>"NA",IF(OR(AND(plan=6,age>74),AND(plan=10,age>70),AND(plan=20,age>60)),1,0),0) -> 0 | C20: 1表示要提醒；0表示無須提醒 | D20: 保險年齡與繳費年期關係
A21: 核保規則-2 | B21: 1 | C21: 1表示要提醒；0表示無須提醒 | D21: 免體檢額度
A22: 首期繳費方式折扣 | B22: =VLOOKUP(PayMode1&PayMode2,$F$37:$J$40,4,0) -> 0.01 | F22: 繳費方式折扣說明 | J22: 繳別係數
A23: 續期繳費方式折扣 | B23: =VLOOKUP(PayMode1&PayMode2,$F$37:$J$40,5,0) -> 0.01 | F23: 首期繳費方式 | G23: 續期繳費方式 | H23: 首期折扣 | I23: 續期折扣 | J23: 繳別 | K23: 係數 | L23: 繳費次數
A24: 高保額折扣 | B24: =VLOOKUP(SA,$F$31:$G$34,2) -> 0 | F24: C | G24: B | H24: V | I24: V | J24: 年 | K24: 1 | L24: 1
A25: 高保費折扣 | B25: =VLOOKUP(SA*VLOOKUP(index,GP!$A$2:$E$407,5,0)/10000,$H$31:$I$34,2) -> 0.015 | C25: =SA*VLOOKUP(index,GP!$A$2:$E$407,5,0)/10000 -> 1273000 | F25: C | G25: C | H25: X | I25: X | J25: 半 | K25: 0.52 | L25: 2
A26: 首期保費折扣 | B26: =PayModeDisc1+SA_disc+Prem_disc -> 0.025 | F26: B | G26: C | H26: V | I26: X | J26: 季 | K26: 0.262 | L26: 4
A27: 續期保費折扣 | B27: =PayModeDisc2+SA_disc+Prem_disc -> 0.025 | F27: B | G27: B | H27: V | I27: V | J27: 月 | K27: 0.088 | L27: 12
A28: 首期保費(GP_bf_disc) | B28: =ROUND(SA*VLOOKUP(index,GP!$A$2:$E$407,5,0)/10000*PremRate,2)*IF(LEFT(ChargeMode,1)="月",2,1) -> 1273000 | D28: 在繳別為月繳，首期保費為2個月
A29: 續期保費(RP_bf_disc) | B29: =ROUND(SA*VLOOKUP(index,GP!$A$2:$E$407,5,0)/10000*PremRate,2) -> 1273000 | F29: 高保額折扣表 | H29: 高保費折扣表 | J29: 保險金預定利率
A30: 首期折扣後保費(GP_af_disc) | B30: =ROUND(ROUND(SA*VLOOKUP(index,GP!$A$2:$E$407,5,0)/10000*PremRate*(1-SA_disc-Prem_disc),2)*(1-PayModeDisc1),2)*IF(LEFT(ChargeMode,1)="月",2,1) -> 1241365.95 | F30: SA | G30: % | H30: Prem | I30: % | J30: 期間 | K30: %
A31: 續期折扣後保費(RP_af_disc) | B31: =ROUND(ROUND(SA*VLOOKUP(index,GP!$A$2:$E$407,5,0)/10000*PremRate*(1-SA_disc-Prem_disc),2)*(1-PayModeDisc2),2) -> 1241365.95 | F31: 0 | G31: 0 | H31: 0 | I31: 0 | J31: 5 | K31: 0.015
A32: 身故退保費之利率 | B32: 0.03 | C32: <<這商品沒有用 | F32: 400000 | G32: 0 | H32: 10000 | I32: 0.005 | J32: 7 | K32: 0.015
A33: PUA身故退保費之利率 | B33: 0.0305 | C33: <<這商品沒有用 | F33: 1000000 | G33: 0 | H33: 15000 | I33: 0.01 | J33: 11 | K33: 0.0175
A34: 儲存生息利率(DoD) | B34: 0.022 | C34: <<這商品沒有用 | H34: 20000 | I34: 0.015 | J34: 20 | K34: 0.0175
A35: 分期定期保險金給付期間 installment_period | B35: =資料輸入!E36 -> 20 | C35: 5~20
A36: 分期定期保險金預定利率 installment_int | B36: =VLOOKUP(B35,$J$31:$K$34,2) -> 0.0175 | G36: 首期 | H36: 續期 | I36: 首期折扣 | J36: 續期
A37: 分期定期保險金給付比例 installment_rate | B37: =資料輸入!E40/100 -> 1 | F37: =G37&H37 -> 金融機構自動轉帳金融機構自動轉帳 | G37: 金融機構自動轉帳 | H37: 金融機構自動轉帳 | I37: 0.01 | J37: 0.01
F38: =G38&H38 -> 匯款金融機構自動轉帳 | G38: 匯款 | H38: 金融機構自動轉帳 | I38: 0.01 | J38: 0.01
A39: 核保規則-3 | B39: =IF(AND(RealAge<15,SA>150000),1,0) -> 0 | C39: 1表示要提醒；0表示無須提醒 | D39: 未滿15足歲之未成年人最高保額為15萬美元限制 | F39: 金融機構自動轉帳匯款 | G39: 金融機構自動轉帳 | H39: 匯款 | I39: 0.01 | J39: 0
A40: 核保規則-4 | B40: =IF(AND(Occup_Level<=3,Occup_Level>=1,OR(SA<100000,SA>12000000)),1,0) ->  | C40: 1表示要提醒；0表示無須提醒 | D40: 職業等級1~3 :最低保額10 萬美元，最高保額1,200 萬美元。 | F40: 匯款匯款 | G40: 匯款 | H40: 匯款 | I40: 0 | J40: 0
A41: 核保規則-5 | B41: =IF(AND(Occup_Level=4,OR(SA<100000,SA>300000)),1,0) ->  | C41: 1表示要提醒；0表示無須提醒 | D41: 職業等級4 : 最低保額10 萬美元，最高保額30 萬美元。如有不符，需限制輸入及警語提示。
A42: 核保規則-6 | B42: =IF(AND(Occup_Level<=6,Occup_Level>=5,OR(SA<100000,SA>150000)),1,0) ->  | C42: 1表示要提醒；0表示無須提醒 | D42: 職業等級5-6 : 最低保額10 萬美元，最高保額15 萬美元。如有不符，需限制輸入及警語提示。
F44: 門檻 | G44: %
F45: 0 | G45: 2.1
F46: 31 | G46: 1.8
F47: 41 | G47: 1.6
F48: 51 | G48: 1.3
F49: 61 | G49: 1.2
F50: 71 | G50: 1.05
F51: 91 | G51: 1
A54: 定額提領 | B54: 年齡(起) | D54: 提領金額 | E54: 金額chk | F54: 年chk
G55: 1為卡控 | H55: 0為通過 | I55: 年齡限制反紅
A56: 年齡一 | B56: =定額提領年齡一 -> 40 | D56: =IF(G57="1",0,定額提領金額一) -> 0 | G56: 定額提領1 | I56: 定額提領1
G57: =IF(定額提領年齡一-age>plan,"0","1") -> 1 | I57: =IF(定額提領年齡一="",0,IF(定額提領年齡一-age>plan,"0","1")) -> 1
A58: 年齡二 | B58: =定額提領年齡二 -> 0 | D58: =IF(G59="1",0,定額提領金額二) -> 0 | G58: 定額提領2 | I58: 定額提領2
G59: =IF(AND(定額提領年齡二>定額提領年齡一,定額提領年齡二-age>plan),"0","1") -> 1 | I59: =IF(定額提領年齡二="","0",IF(AND(定額提領年齡二>定額提領年齡一,定額提領年齡二-age>plan),"0","1")) -> 0
A60: 年齡三 | B60: =定額提領年齡三 -> 0 | D60: =IF(G61="1",0,定額提領金額三) -> 0 | G60: 定額提領3 | I60: 定額提領3
G61: =IF(AND(定額提領年齡三>定額提領年齡二,定額提領年齡三-age>plan),"0","1") -> 1 | I61: =IF(定額提領年齡三="","0",IF(AND(定額提領年齡三>定額提領年齡二,定額提領年齡三-age>plan),"0","1")) -> 0
A62: 年齡Max | E62: 整體檢核PageCheck
A63: 年齡Min
A65: 階段金額Max
A66: 階段金額Min
A69: 額外一次提領 | B69: 年齡(起) | D69: 提領金額 | E69: 金額chk | F69: 年chk
A71: 年齡一 | B71: =額外提領年齡一 -> 0 | D71: =IF(G72="1",0,額外提領金額一) -> 0 | G71: 定額提領1 | I71: 定額提領1
G72: =IF(額外提領年齡一-age>plan,"0","1") -> 1 | I72: =IF(額外提領年齡一="",0,IF(額外提領年齡一-age>plan,"0","1")) -> 0
A73: 年齡二 | B73: =額外提領年齡二 -> 0 | D73: =IF(G74="1",0,額外提領金額二) -> 0 | G73: 定額提領2 | I73: 定額提領2
G74: =IF(AND(額外提領年齡二>額外提領年齡一,額外提領年齡二-age>plan),"0","1") -> 1 | I74: =IF(額外提領年齡二="","0",IF(AND(額外提領年齡二>額外提領年齡一,額外提領年齡二-age>plan),"0","1")) -> 0
A75: 年齡三 | B75: =額外提領年齡三 -> 0 | D75: =IF(G76="1",0,額外提領金額三) -> 0 | G75: 定額提領3 | I75: 定額提領3
G76: =IF(AND(額外提領年齡三>額外提領年齡二,額外提領年齡三-age>plan),"0","1") -> 1 | I76: =IF(額外提領年齡三="","0",IF(AND(額外提領年齡三>額外提領年齡二,額外提領年齡三-age>plan),"0","1")) -> 0
A77: 年齡Max | E77: 整體檢核PageCheck
A78: 年齡Min
A80: 階段金額Max
A81: 階段金額Min

Sheet 錄音提示稿
C1: 錄音專線：0809-097-981
A3: 安達人壽傳統型分紅商品招攬過程提示稿
A4: =" □新件 □照會件，要保單號碼 _______________________" -> □新件 □照會件，要保單號碼 _______________________
A5: ="業務員：" &資料輸入!E65 -> 業務員：TEST
A6: =IF(age<65,"□","■") & " 被保人：" & InsName & "(" & age & "歳/" & IF(sex=1, "男性","女性") & ")" -> ■ 被保人：被保人(70歳/女性)
A7: =IF(參數!H7<65,"□","■") & " 要保人：" &參數!H8 & "(" & 參數!H7 & "歳/" & 參數!H9 & ")" -> ■ 要保人：被保人(70歳/女性)
A8: =IF(參數!H10<65,"□","■") & " 繳費人：" &參數!H11 & "(" & 參數!H10 & "歳/" & 參數!H12 & ")" -> ■ 繳費人：被保人(70歳/女性)
A9: 同一保單若要保人、被保人、繳費人有二人以上符合高齡，可錄製在同一通音檔內，理專(業務員)唸完該題問項詢問客戶答案時，須逐一唸出客戶名字並請客戶依序回覆。 重要提醒：銷售過程之錄音或錄影紀錄作業時，不得僅依照提示稿逐字宣讀銷售過程，應以淺顯易懂口語化向當事人進行相關內容之解說（例如:商品重要條款內容、除外責任及商品說明書重要內容等等），充分提醒當事人知悉及進行相關錄音作業。
A10: 項次 | B10: 問項內容（傳統型分紅）
A11: 1 | B11: =IF(age >= 65,資料輸入!E8 & "(被保人)","") & IF(holderAge >= 65,參數!H8 & "(要保人)","") & IF(payerAge >= 65,參數!H11 & "(繳費人)","") & "先生/女士，您好！我是服務於"&資料輸入!E64&"的"&資料輸入!E65&"，業務員登錄字號是"&資料輸入!E66&"，獲得授權可招攬本保險商品。根據法令規定，我將以錄音方式記錄本次銷售過程。請您說出同意或者不同意？(若要保人、被保人或繳費人其中一人不同意，則本次銷售過程終止)。" -> 被保人(被保人)被保人(要保人)先生/女士，您好！我是服務於的TEST，業務員登錄字號是TEST123456789，獲得授權可招攬本保險商品。根據法令規定，我將以錄音方式記錄本次銷售過程。請您說出同意或者不同意？(若要保人、被保人或繳費人其中一人不同意，則本次銷售過程終止)。
A12: 2 | B12: ="這次購買的是安達人壽發行的保險商品-"&ProductName&"，此保單是透過"&資料輸入!E64&"為銷售通路。 以下我將說明本商品內容及重要事項，請聽完後逐一回答。" -> 這次購買的是安達人壽發行的保險商品-永富長紅美元分紅終身壽險，此保單是透過為銷售通路。 以下我將說明本商品內容及重要事項，請聽完後逐一回答。
A13: 3 | B13: ="此次投保本商品的目的及需求為"&_xlfn.TEXTJOIN("、",TRUE,IF(UPPER(資料輸入!E68:E71)="V",資料輸入!F68:F71,""),IF(UPPER(資料輸入!E72)="V",資料輸入!G72,""))&"，已完成且確認本商品有符合需求，請問是否正確?" -> 此次投保本商品的目的及需求為，已完成且確認本商品有符合需求，請問是否正確?
A14: 4 | B14: 您是否清楚本次繳交之保險費是用來購買保險商品，不是辦理定存?
A15: 5 | B15: ="選擇投保本商品繳費年期"&參數!B6&"年期，保障年期至被保險人於保險年齡達110歲，保額為"&TEXT(參數!B11,"###,###,##")&"美元，請問正確嗎?" -> 選擇投保本商品繳費年期7年期，保障年期至被保險人於保險年齡達110歲，保額為10,000,000美元，請問正確嗎?
A16: 6 | B16: ="選擇投保本商品的繳別為"&ChargeMode&"；本次繳交之折扣前保費約為 "&Currency& TEXT(GP_bf_disc," ###,###,##0.00")&"元，每年需繳交之折扣前保費總計為"& TEXT(參數!B28/IF(LEFT(ChargeMode,1)="月",2,1)*VLOOKUP(LEFT(ChargeMode,1),參數!$J$23:$L$27,3,FALSE),"###,###,##0.00")&"元。並且確認可以負擔此保費，請問正確嗎?" -> 選擇投保本商品的繳別為年繳；本次繳交之折扣前保費約為 美元 1,273,000.00元，每年需繳交之折扣前保費總計為1,273,000.00元。並且確認可以負擔此保費，請問正確嗎?
A17: 7 | B17: 本商品是以美元繳納保險費，給付各項保險金額也是以美元給付，如果自行以新臺幣兌換美元或以美元兌換新臺幣時匯率有可能漲或跌，這部份是由客戶自行承擔，請問您清楚嗎？
A18: 8 | B18: 紅利為非保證給付項目，紅利數值僅供參考，不能作為未來各年度實際分紅的保證或推論，請問清楚嗎？
A19: 9 | B19: 本商品若辦理保險契約終止(解約)，保險公司將給付解約金，解約金將可能低於所繳的保費，請問您清楚嗎?
A20: 10_1 | B20: 本商品重要條款內容及除外責任包括： (1) 就保單條款中除外責任(例如要保人故意致被保險人於死、被保險人故意自殺或自成完全失能、被保險人因犯罪處死或拒捕或越獄致死或完全失能等事項)，請問您清楚嗎?
A21: 10_2 | B21: (2) 就保單條款中重要條款內容(例如契約效力的停止、恢復及終止事由、告知義務與本契約的解除等事項)，請問您清楚嗎?
A22: 11 | B22: 本商品要保書上的健康詢問事項須由被保險人本人確認及勾選的，請問您清楚嗎？
A23: 12 | B23: 自簽收保單隔日起算，有10日撤銷契約的權益，請問您清楚嗎?
A24: 13 | B24: 指定受益人領取的死亡給付和確定年金給付，依照保險法是不得作為被保險人的遺產，但是如果有規避遺產稅之情形時，稽徵機關還是可依照實質課稅原則辦理。請問您清楚嗎？
A25: 14 | B25: ="最後請您唸出以下聲明文字以確認投保意願。(以下聲明業務人員請勿導讀，如果保戶具有多重身份，可以免唸重複文字。) " & IF(參數!H7>=65,CHAR(10) & "要保人請唸出：我，"& 參數!H8 &"已充分了解本商品且符合保險需求，所有文件都會由本人親自簽名投保。","") & IF(age>=65,CHAR(10) &"被保人請唸出：我，"&資料輸入!E8 &"已充分了解本商品且符合保險需求，所有文件都會由本人親自簽名投保。","")& IF(參數!H10>=65,CHAR(10) &"繳費人請唸出：我，"&參數!H11&"已充分了解所付款項是為繳付要保人購買本保險之應繳保險費。","") -> 最後請您唸出以下聲明文字以確認投保意願。(以下聲明業務人員請勿導讀，如果保戶具有多重身份，可以免唸重複文字。) 要保人請唸出：我，被保人已充分了解本商品且符合保險需求，所有文件都會由本人親自簽名投保。 被保人請唸出：我，被保人已充分了解本商品且符合保險需求，所有文件都會由本人親自簽名投保。 繳費人請唸出：我，被保人已充分了解所付款項是為繳付要保人購買本保險之應繳保險費。
A27: 保險公司專用欄
B28: 審核結果 | C28: □音檔內容與提示稿內容相符。 □第 點如上。 □此通音檔只錄第 點。 □其他： 。
A30: ※錄音提示稿的各項內容需與要保文件內容一致 ※錄音完成請記得按『＃』鍵產出錄音編號，並填入【業務員報告書】。

Sheet bonus_rate (hidden)
A1: Sex | B1: Age | C1: PPP | D1: x | E1: z1_min | F1: z1_max | G1: z2_min | H1: z2_max | I1: M | J1: N
A2: M | B2: 0 | C2: 7 | D2: 0.01 | E2: 0.13 | F2: 24.53 | G2: 0.1141 | H2: 31.4092 | I2: 0.14 | J2: 0.28
A3: M | B3: 1 | C3: 7 | D3: 0.01 | E3: 0.13 | F3: 24.26 | G3: 0.1155 | H3: 29.8585 | I3: 0.14 | J3: 0.28
A4: M | B4: 2 | C4: 7 | D4: 0.01 | E4: 0.13 | F4: 23.99 | G4: 0.1168 | H4: 28.3838 | I4: 0.14 | J4: 0.28
A5: M | B5: 3 | C5: 7 | D5: 0.01 | E5: 0.13 | F5: 23.72 | G5: 0.1174 | H5: 26.9257 | I5: 0.14 | J5: 0.28
A6: M | B6: 4 | C6: 7 | D6: 0.01 | E6: 0.13 | F6: 23.45 | G6: 0.1186 | H6: 25.596 | I6: 0.14 | J6: 0.28
A7: M | B7: 5 | C7: 7 | D7: 0.01 | E7: 0.11 | F7: 19.72 | G7: 0.1196 | H7: 24.3319 | I7: 0.12 | J7: 0.24
A8: M | B8: 6 | C8: 7 | D8: 0.01 | E8: 0.11 | F8: 19.49 | G8: 0.12 | H8: 23.0843 | I8: 0.12 | J8: 0.24
A9: M | B9: 7 | C9: 7 | D9: 0.01 | E9: 0.11 | F9: 19.26 | G9: 0.1209 | H9: 21.9449 | I9: 0.12 | J9: 0.24
A10: M | B10: 8 | C10: 7 | D10: 0.01 | E10: 0.11 | F10: 19.03 | G10: 0.1264 | H10: 21.1868 | I10: 0.12 | J10: 0.24
A11: M | B11: 9 | C11: 7 | D11: 0.01 | E11: 0.11 | F11: 18.8 | G11: 0.1272 | H11: 20.1379 | I11: 0.12 | J11: 0.24
A12: M | B12: 10 | C12: 7 | D12: 0.01 | E12: 0.11 | F12: 18.57 | G12: 0.1278 | H12: 19.1413 | I12: 0.12 | J12: 0.24
A13: M | B13: 11 | C13: 7 | D13: 0.01 | E13: 0.11 | F13: 18.34 | G13: 0.1278 | H13: 18.34 | I13: 0.12 | J13: 0.24
A14: M | B14: 12 | C14: 7 | D14: 0.01 | E14: 0.11 | F14: 18.11 | G14: 0.1283 | H14: 18.11 | I14: 0.12 | J14: 0.24
A15: M | B15: 13 | C15: 7 | D15: 0.01 | E15: 0.11 | F15: 17.88 | G15: 0.1335 | H15: 17.88 | I15: 0.12 | J15: 0.24
A16: M | B16: 14 | C16: 7 | D16: 0.01 | E16: 0.11 | F16: 17.65 | G16: 0.1338 | H16: 17.65 | I16: 0.12 | J16: 0.24
A17: M | B17: 15 | C17: 7 | D17: 0.01 | E17: 0.1 | F17: 15.89 | G17: 0.134 | H17: 15.89 | I17: 0.11 | J17: 0.22
A18: M | B18: 16 | C18: 7 | D18: 0.01 | E18: 0.1 | F18: 15.68 | G18: 0.1341 | H18: 15.68 | I18: 0.11 | J18: 0.22
A19: M | B19: 17 | C19: 7 | D19: 0.01 | E19: 0.1 | F19: 15.47 | G19: 0.1388 | H19: 15.47 | I19: 0.11 | J19: 0.22
A20: M | B20: 18 | C20: 7 | D20: 0.01 | E20: 0.1 | F20: 15.26 | G20: 0.1386 | H20: 15.26 | I20: 0.11 | J20: 0.22
A21: M | B21: 19 | C21: 7 | D21: 0.01 | E21: 0.1 | F21: 15.05 | G21: 0.1377 | H21: 15.05 | I21: 0.11 | J21: 0.22
A22: M | B22: 20 | C22: 7 | D22: 0.01 | E22: 0.1 | F22: 14.84 | G22: 0.1427 | H22: 14.84 | I22: 0.11 | J22: 0.22
A23: M | B23: 21 | C23: 7 | D23: 0.01 | E23: 0.1 | F23: 14.63 | G23: 0.1416 | H23: 14.63 | I23: 0.11 | J23: 0.22
A24: M | B24: 22 | C24: 7 | D24: 0.01 | E24: 0.1 | F24: 14.42 | G24: 0.1409 | H24: 14.42 | I24: 0.11 | J24: 0.22
A25: M | B25: 23 | C25: 7 | D25: 0.01 | E25: 0.1 | F25: 14.21 | G25: 0.1402 | H25: 14.21 | I25: 0.11 | J25: 0.22
A26: M | B26: 24 | C26: 7 | D26: 0.01 | E26: 0.1 | F26: 14 | G26: 0.144 | H26: 14 | I26: 0.11 | J26: 0.22
A27: M | B27: 25 | C27: 7 | D27: 0.01 | E27: 0.08 | F27: 11.13 | G27: 0.1431 | H27: 11.13 | I27: 0.09 | J27: 0.18
A28: M | B28: 26 | C28: 7 | D28: 0.01 | E28: 0.08 | F28: 10.96 | G28: 0.1414 | H28: 10.96 | I28: 0.09 | J28: 0.18
A29: M | B29: 27 | C29: 7 | D29: 0.01 | E29: 0.08 | F29: 10.79 | G29: 0.1402 | H29: 10.79 | I29: 0.09 | J29: 0.18
A30: M | B30: 28 | C30: 7 | D30: 0.01 | E30: 0.08 | F30: 10.62 | G30: 0.1437 | H30: 10.62 | I30: 0.09 | J30: 0.18
A31: M | B31: 29 | C31: 7 | D31: 0.01 | E31: 0.08 | F31: 10.45 | G31: 0.1423 | H31: 10.45 | I31: 0.09 | J31: 0.18
A32: M | B32: 30 | C32: 7 | D32: 0.01 | E32: 0.08 | F32: 10.28 | G32: 0.1407 | H32: 10.28 | I32: 0.09 | J32: 0.18
A33: M | B33: 31 | C33: 7 | D33: 0.01 | E33: 0.08 | F33: 10.11 | G33: 0.1438 | H33: 10.11 | I33: 0.09 | J33: 0.18
A34: M | B34: 32 | C34: 7 | D34: 0.01 | E34: 0.08 | F34: 9.94 | G34: 0.1421 | H34: 9.94 | I34: 0.09 | J34: 0.18
A35: M | B35: 33 | C35: 7 | D35: 0.01 | E35: 0.08 | F35: 9.77 | G35: 0.145 | H35: 9.77 | I35: 0.09 | J35: 0.18
A36: M | B36: 34 | C36: 7 | D36: 0.01 | E36: 0.08 | F36: 9.6 | G36: 0.1431 | H36: 9.6 | I36: 0.09 | J36: 0.18
A37: M | B37: 35 | C37: 7 | D37: 0.01 | E37: 0.06 | F37: 7.17 | G37: 0.1458 | H37: 7.17 | I37: 0.07 | J37: 0.14
A38: M | B38: 36 | C38: 7 | D38: 0.01 | E38: 0.06 | F38: 7.04 | G38: 0.1436 | H38: 7.04 | I38: 0.07 | J38: 0.14
A39: M | B39: 37 | C39: 7 | D39: 0.01 | E39: 0.06 | F39: 6.91 | G39: 0.1461 | H39: 6.91 | I39: 0.07 | J39: 0.14
A40: M | B40: 38 | C40: 7 | D40: 0.01 | E40: 0.06 | F40: 6.78 | G40: 0.1437 | H40: 6.78 | I40: 0.07 | J40: 0.14
A41: M | B41: 39 | C41: 7 | D41: 0.01 | E41: 0.06 | F41: 6.65 | G41: 0.146 | H41: 6.65 | I41: 0.07 | J41: 0.14
A42: M | B42: 40 | C42: 7 | D42: 0.01 | E42: 0.06 | F42: 6.52 | G42: 0.1435 | H42: 6.52 | I42: 0.07 | J42: 0.14
A43: M | B43: 41 | C43: 7 | D43: 0.01 | E43: 0.06 | F43: 6.39 | G43: 0.1463 | H43: 6.39 | I43: 0.07 | J43: 0.14
A44: M | B44: 42 | C44: 7 | D44: 0.01 | E44: 0.06 | F44: 6.26 | G44: 0.143 | H44: 6.26 | I44: 0.07 | J44: 0.14
A45: M | B45: 43 | C45: 7 | D45: 0.01 | E45: 0.06 | F45: 6.13 | G45: 0.1403 | H45: 6.13 | I45: 0.07 | J45: 0.14
A46: M | B46: 44 | C46: 7 | D46: 0.01 | E46: 0.06 | F46: 6 | G46: 0.1427 | H46: 6 | I46: 0.07 | J46: 0.14
A47: M | B47: 45 | C47: 7 | D47: 0.01 | E47: 0.04 | F47: 4.01 | G47: 0.1391 | H47: 4.01 | I47: 0.05 | J47: 0.1
A48: M | B48: 46 | C48: 7 | D48: 0.01 | E48: 0.04 | F48: 3.92 | G48: 0.1413 | H48: 3.92 | I48: 0.05 | J48: 0.1
A49: M | B49: 47 | C49: 7 | D49: 0.01 | E49: 0.04 | F49: 3.83 | G49: 0.1381 | H49: 3.83 | I49: 0.05 | J49: 0.1
A50: M | B50: 48 | C50: 7 | D50: 0.01 | E50: 0.04 | F50: 3.74 | G50: 0.1396 | H50: 3.74 | I50: 0.05 | J50: 0.1
A51: M | B51: 49 | C51: 7 | D51: 0.01 | E51: 0.04 | F51: 3.65 | G51: 0.1362 | H51: 3.65 | I51: 0.05 | J51: 0.1
A52: M | B52: 50 | C52: 7 | D52: 0.01 | E52: 0.04 | F52: 3.56 | G52: 0.1381 | H52: 3.56 | I52: 0.05 | J52: 0.1
A53: M | B53: 51 | C53: 7 | D53: 0.01 | E53: 0.04 | F53: 3.47 | G53: 0.134 | H53: 3.47 | I53: 0.05 | J53: 0.1
A54: M | B54: 52 | C54: 7 | D54: 0.01 | E54: 0.04 | F54: 3.38 | G54: 0.1357 | H54: 3.38 | I54: 0.05 | J54: 0.1
A55: M | B55: 53 | C55: 7 | D55: 0.01 | E55: 0.04 | F55: 3.29 | G55: 0.1374 | H55: 3.29 | I55: 0.05 | J55: 0.1
A56: M | B56: 54 | C56: 7 | D56: 0.01 | E56: 0.04 | F56: 3.2 | G56: 0.1331 | H56: 3.2 | I56: 0.05 | J56: 0.1
A57: M | B57: 55 | C57: 7 | D57: 0.01 | E57: 0.03 | F57: 2.38 | G57: 0.1347 | H57: 2.38 | I57: 0.04 | J57: 0.08
A58: M | B58: 56 | C58: 7 | D58: 0.01 | E58: 0.03 | F58: 2.31 | G58: 0.1362 | H58: 2.31 | I58: 0.04 | J58: 0.08
A59: M | B59: 57 | C59: 7 | D59: 0.01 | E59: 0.03 | F59: 2.24 | G59: 0.1324 | H59: 2.24 | I59: 0.04 | J59: 0.08
A60: M | B60: 58 | C60: 7 | D60: 0.01 | E60: 0.03 | F60: 2.17 | G60: 0.1339 | H60: 2.17 | I60: 0.04 | J60: 0.08
A61: M | B61: 59 | C61: 7 | D61: 0.01 | E61: 0.03 | F61: 2.1 | G61: 0.1347 | H61: 2.1 | I61: 0.04 | J61: 0.08
A62: M | B62: 60 | C62: 7 | D62: 0.01 | E62: 0.03 | F62: 2.03 | G62: 0.1309 | H62: 2.03 | I62: 0.04 | J62: 0.08
A63: M | B63: 61 | C63: 7 | D63: 0.01 | E63: 0.03 | F63: 1.96 | G63: 0.1218 | H63: 1.96 | I63: 0.04 | J63: 0.08
A64: M | B64: 62 | C64: 7 | D64: 0.01 | E64: 0.03 | F64: 1.89 | G64: 0.1127 | H64: 1.89 | I64: 0.04 | J64: 0.08
A65: M | B65: 63 | C65: 7 | D65: 0.01 | E65: 0.03 | F65: 1.82 | G65: 0.1035 | H65: 1.82 | I65: 0.04 | J65: 0.08
A66: M | B66: 64 | C66: 7 | D66: 0.01 | E66: 0.03 | F66: 1.75 | G66: 0.0948 | H66: 1.75 | I66: 0.04 | J66: 0.08
A67: M | B67: 65 | C67: 7 | D67: 0.01 | E67: 0.02 | F67: 1.15 | G67: 0.0857 | H67: 1.15 | I67: 0.03 | J67: 0.06
A68: M | B68: 66 | C68: 7 | D68: 0.01 | E68: 0.02 | F68: 1.1 | G68: 0.0766 | H68: 1.1 | I68: 0.03 | J68: 0.06
A69: M | B69: 67 | C69: 7 | D69: 0.01 | E69: 0.02 | F69: 1.05 | G69: 0.0682 | H69: 1.05 | I69: 0.03 | J69: 0.06
A70: M | B70: 68 | C70: 7 | D70: 0.01 | E70: 0.02 | F70: 1 | G70: 0.0597 | H70: 1 | I70: 0.03 | J70: 0.06
A71: M | B71: 69 | C71: 7 | D71: 0.01 | E71: 0.02 | F71: 0.95 | G71: 0.0513 | H71: 0.95 | I71: 0.03 | J71: 0.06
A72: M | B72: 70 | C72: 7 | D72: 0.01 | E72: 0.02 | F72: 0.9 | G72: 0.0422 | H72: 0.9 | I72: 0.03 | J72: 0.06
A73: M | B73: 71 | C73: 7 | D73: 0.01 | E73: 0.02 | F73: 0.85 | G73: 0.0464 | H73: 0.85 | I73: 0.03 | J73: 0.06
A74: M | B74: 72 | C74: 7 | D74: 0.01 | E74: 0.02 | F74: 0.8 | G74: 0.0468 | H74: 0.8 | I74: 0.03 | J74: 0.06
A75: M | B75: 73 | C75: 7 | D75: 0.01 | E75: 0.02 | F75: 0.78 | G75: 0.0449 | H75: 0.78 | I75: 0.03 | J75: 0.06
A76: M | B76: 0 | C76: 10 | D76: 0.01 | E76: 0.13 | F76: 24.53 | G76: 0.077 | H76: 24.53 | I76: 0.14 | J76: 0.28
A77: M | B77: 1 | C77: 10 | D77: 0.01 | E77: 0.13 | F77: 24.26 | G77: 0.0794 | H77: 24.26 | I77: 0.14 | J77: 0.28
A78: M | B78: 2 | C78: 10 | D78: 0.01 | E78: 0.13 | F78: 23.99 | G78: 0.0778 | H78: 23.99 | I78: 0.14 | J78: 0.28
A79: M | B79: 3 | C79: 10 | D79: 0.01 | E79: 0.13 | F79: 23.72 | G79: 0.0784 | H79: 23.72 | I79: 0.14 | J79: 0.28
A80: M | B80: 4 | C80: 10 | D80: 0.01 | E80: 0.13 | F80: 23.45 | G80: 0.0767 | H80: 23.45 | I80: 0.14 | J80: 0.28
A81: M | B81: 5 | C81: 10 | D81: 0.01 | E81: 0.11 | F81: 19.72 | G81: 0.0783 | H81: 19.72 | I81: 0.12 | J81: 0.24
A82: M | B82: 6 | C82: 10 | D82: 0.01 | E82: 0.11 | F82: 19.49 | G82: 0.0798 | H82: 19.49 | I82: 0.12 | J82: 0.24
A83: M | B83: 7 | C83: 10 | D83: 0.01 | E83: 0.11 | F83: 19.26 | G83: 0.0785 | H83: 19.26 | I83: 0.12 | J83: 0.24
A84: M | B84: 8 | C84: 10 | D84: 0.01 | E84: 0.11 | F84: 19.03 | G84: 0.0804 | H84: 19.03 | I84: 0.12 | J84: 0.24
A85: M | B85: 9 | C85: 10 | D85: 0.01 | E85: 0.11 | F85: 18.8 | G85: 0.0817 | H85: 18.8 | I85: 0.12 | J85: 0.24
A86: M | B86: 10 | C86: 10 | D86: 0.01 | E86: 0.11 | F86: 18.57 | G86: 0.0813 | H86: 18.57 | I86: 0.12 | J86: 0.24
A87: M | B87: 11 | C87: 10 | D87: 0.01 | E87: 0.11 | F87: 18.34 | G87: 0.0814 | H87: 18.34 | I87: 0.12 | J87: 0.24
A88: M | B88: 12 | C88: 10 | D88: 0.01 | E88: 0.11 | F88: 18.11 | G88: 0.0803 | H88: 18.11 | I88: 0.12 | J88: 0.24
A89: M | B89: 13 | C89: 10 | D89: 0.01 | E89: 0.11 | F89: 17.88 | G89: 0.0825 | H89: 17.88 | I89: 0.12 | J89: 0.24
A90: M | B90: 14 | C90: 10 | D90: 0.01 | E90: 0.11 | F90: 17.65 | G90: 0.0835 | H90: 17.65 | I90: 0.12 | J90: 0.24
A91: M | B91: 15 | C91: 10 | D91: 0.01 | E91: 0.1 | F91: 15.89 | G91: 0.081 | H91: 15.89 | I91: 0.11 | J91: 0.22
A92: M | B92: 16 | C92: 10 | D92: 0.01 | E92: 0.1 | F92: 15.68 | G92: 0.0818 | H92: 15.68 | I92: 0.11 | J92: 0.22
A93: M | B93: 17 | C93: 10 | D93: 0.01 | E93: 0.1 | F93: 15.47 | G93: 0.0824 | H93: 15.47 | I93: 0.11 | J93: 0.22
A94: M | B94: 18 | C94: 10 | D94: 0.01 | E94: 0.1 | F94: 15.26 | G94: 0.0829 | H94: 15.26 | I94: 0.11 | J94: 0.22
A95: M | B95: 19 | C95: 10 | D95: 0.01 | E95: 0.1 | F95: 15.05 | G95: 0.0839 | H95: 15.05 | I95: 0.11 | J95: 0.22
A96: M | B96: 20 | C96: 10 | D96: 0.01 | E96: 0.1 | F96: 14.84 | G96: 0.0847 | H96: 14.84 | I96: 0.11 | J96: 0.22
A97: M | B97: 21 | C97: 10 | D97: 0.01 | E97: 0.1 | F97: 14.63 | G97: 0.0812 | H97: 14.63 | I97: 0.11 | J97: 0.22
A98: M | B98: 22 | C98: 10 | D98: 0.01 | E98: 0.1 | F98: 14.42 | G98: 0.0824 | H98: 14.42 | I98: 0.11 | J98: 0.22
A99: M | B99: 23 | C99: 10 | D99: 0.01 | E99: 0.1 | F99: 14.21 | G99: 0.0824 | H99: 14.21 | I99: 0.11 | J99: 0.22
A100: M | B100: 24 | C100: 10 | D100: 0.01 | E100: 0.1 | F100: 14 | G100: 0.0818 | H100: 14 | I100: 0.11 | J100: 0.22
A101: M | B101: 25 | C101: 10 | D101: 0.01 | E101: 0.08 | F101: 11.13 | G101: 0.079 | H101: 11.13 | I101: 0.09 | J101: 0.18
A102: M | B102: 26 | C102: 10 | D102: 0.01 | E102: 0.08 | F102: 10.96 | G102: 0.0787 | H102: 10.96 | I102: 0.09 | J102: 0.18
A103: M | B103: 27 | C103: 10 | D103: 0.01 | E103: 0.08 | F103: 10.79 | G103: 0.0779 | H103: 10.79 | I103: 0.09 | J103: 0.18
A104: M | B104: 28 | C104: 10 | D104: 0.01 | E104: 0.08 | F104: 10.62 | G104: 0.0802 | H104: 10.62 | I104: 0.09 | J104: 0.18
A105: M | B105: 29 | C105: 10 | D105: 0.01 | E105: 0.08 | F105: 10.45 | G105: 0.0765 | H105: 10.45 | I105: 0.09 | J105: 0.18
A106: M | B106: 30 | C106: 10 | D106: 0.01 | E106: 0.08 | F106: 10.28 | G106: 0.0775 | H106: 10.28 | I106: 0.09 | J106: 0.18
A107: M | B107: 31 | C107: 10 | D107: 0.01 | E107: 0.08 | F107: 10.11 | G107: 0.0785 | H107: 10.11 | I107: 0.09 | J107: 0.18
A108: M | B108: 32 | C108: 10 | D108: 0.01 | E108: 0.08 | F108: 9.94 | G108: 0.0729 | H108: 9.94 | I108: 0.09 | J108: 0.18
A109: M | B109: 33 | C109: 10 | D109: 0.01 | E109: 0.08 | F109: 9.77 | G109: 0.0726 | H109: 9.77 | I109: 0.09 | J109: 0.18
A110: M | B110: 34 | C110: 10 | D110: 0.01 | E110: 0.08 | F110: 9.6 | G110: 0.0717 | H110: 9.6 | I110: 0.09 | J110: 0.18
A111: M | B111: 35 | C111: 10 | D111: 0.01 | E111: 0.06 | F111: 7.17 | G111: 0.0718 | H111: 7.17 | I111: 0.07 | J111: 0.14
A112: M | B112: 36 | C112: 10 | D112: 0.01 | E112: 0.06 | F112: 7.04 | G112: 0.0713 | H112: 7.04 | I112: 0.07 | J112: 0.14
A113: M | B113: 37 | C113: 10 | D113: 0.01 | E113: 0.06 | F113: 6.91 | G113: 0.068 | H113: 6.91 | I113: 0.07 | J113: 0.14
A114: M | B114: 38 | C114: 10 | D114: 0.01 | E114: 0.06 | F114: 6.78 | G114: 0.07 | H114: 6.78 | I114: 0.07 | J114: 0.14
A115: M | B115: 39 | C115: 10 | D115: 0.01 | E115: 0.06 | F115: 6.65 | G115: 0.0692 | H115: 6.65 | I115: 0.07 | J115: 0.14
A116: M | B116: 40 | C116: 10 | D116: 0.01 | E116: 0.06 | F116: 6.52 | G116: 0.0679 | H116: 6.52 | I116: 0.07 | J116: 0.14
A117: M | B117: 41 | C117: 10 | D117: 0.01 | E117: 0.06 | F117: 6.39 | G117: 0.0654 | H117: 6.39 | I117: 0.07 | J117: 0.14
A118: M | B118: 42 | C118: 10 | D118: 0.01 | E118: 0.06 | F118: 6.26 | G118: 0.065 | H118: 6.26 | I118: 0.07 | J118: 0.14
A119: M | B119: 43 | C119: 10 | D119: 0.01 | E119: 0.06 | F119: 6.13 | G119: 0.0651 | H119: 6.13 | I119: 0.07 | J119: 0.14
A120: M | B120: 44 | C120: 10 | D120: 0.01 | E120: 0.06 | F120: 6 | G120: 0.065 | H120: 6 | I120: 0.07 | J120: 0.14
A121: M | B121: 45 | C121: 10 | D121: 0.01 | E121: 0.04 | F121: 4.01 | G121: 0.0638 | H121: 4.01 | I121: 0.05 | J121: 0.1
A122: M | B122: 46 | C122: 10 | D122: 0.01 | E122: 0.04 | F122: 3.92 | G122: 0.0599 | H122: 3.92 | I122: 0.05 | J122: 0.1
A123: M | B123: 47 | C123: 10 | D123: 0.01 | E123: 0.04 | F123: 3.83 | G123: 0.0596 | H123: 3.83 | I123: 0.05 | J123: 0.1
A124: M | B124: 48 | C124: 10 | D124: 0.01 | E124: 0.04 | F124: 3.74 | G124: 0.0587 | H124: 3.74 | I124: 0.05 | J124: 0.1
A125: M | B125: 49 | C125: 10 | D125: 0.01 | E125: 0.04 | F125: 3.65 | G125: 0.0566 | H125: 3.65 | I125: 0.05 | J125: 0.1
A126: M | B126: 50 | C126: 10 | D126: 0.01 | E126: 0.04 | F126: 3.56 | G126: 0.053 | H126: 3.56 | I126: 0.05 | J126: 0.1
A127: M | B127: 51 | C127: 10 | D127: 0.01 | E127: 0.04 | F127: 3.47 | G127: 0.0484 | H127: 3.47 | I127: 0.05 | J127: 0.1
A128: M | B128: 52 | C128: 10 | D128: 0.01 | E128: 0.04 | F128: 3.38 | G128: 0.0432 | H128: 3.38 | I128: 0.05 | J128: 0.1
A129: M | B129: 53 | C129: 10 | D129: 0.01 | E129: 0.04 | F129: 3.29 | G129: 0.0384 | H129: 3.29 | I129: 0.05 | J129: 0.1
A130: M | B130: 54 | C130: 10 | D130: 0.01 | E130: 0.04 | F130: 3.2 | G130: 0.0339 | H130: 3.2 | I130: 0.05 | J130: 0.1
A131: M | B131: 55 | C131: 10 | D131: 0.01 | E131: 0.03 | F131: 2.38 | G131: 0.0295 | H131: 2.38 | I131: 0.04 | J131: 0.08
A132: M | B132: 56 | C132: 10 | D132: 0.01 | E132: 0.03 | F132: 2.31 | G132: 0.022 | H132: 2.31 | I132: 0.04 | J132: 0.08
A133: M | B133: 57 | C133: 10 | D133: 0.01 | E133: 0.03 | F133: 2.24 | G133: 0.0155 | H133: 2.24 | I133: 0.04 | J133: 0.08
A134: M | B134: 58 | C134: 10 | D134: 0.01 | E134: 0.03 | F134: 2.17 | G134: 0.0156 | H134: 2.17 | I134: 0.04 | J134: 0.08
A135: M | B135: 59 | C135: 10 | D135: 0.01 | E135: 0.03 | F135: 2.1 | G135: 0.0109 | H135: 2.1 | I135: 0.04 | J135: 0.08
A136: M | B136: 60 | C136: 10 | D136: 0.01 | E136: 0.03 | F136: 2.03 | G136: 0.0057 | H136: 2.03 | I136: 0.04 | J136: 0.08
A137: M | B137: 61 | C137: 10 | D137: 0.01 | E137: 0.03 | F137: 1.96 | G137: 0.0034 | H137: 1.96 | I137: 0.04 | J137: 0.08
A138: M | B138: 62 | C138: 10 | D138: 0.01 | E138: 0.03 | F138: 1.89 | G138: 0.0062 | H138: 1.89 | I138: 0.04 | J138: 0.08
A139: M | B139: 63 | C139: 10 | D139: 0.01 | E139: 0.03 | F139: 1.82 | G139: 0.0078 | H139: 1.82 | I139: 0.04 | J139: 0.08
A140: M | B140: 64 | C140: 10 | D140: 0.01 | E140: 0.03 | F140: 1.75 | G140: 0.0086 | H140: 1.75 | I140: 0.04 | J140: 0.08
A141: M | B141: 65 | C141: 10 | D141: 0.01 | E141: 0.02 | F141: 1.15 | G141: 0.0077 | H141: 1.15 | I141: 0.03 | J141: 0.06
A142: M | B142: 66 | C142: 10 | D142: 0.01 | E142: 0.02 | F142: 1.1 | G142: 0.0116 | H142: 1.1 | I142: 0.03 | J142: 0.06
A143: M | B143: 67 | C143: 10 | D143: 0.01 | E143: 0.02 | F143: 1.05 | G143: 0.0131 | H143: 1.05 | I143: 0.03 | J143: 0.06
A144: M | B144: 68 | C144: 10 | D144: 0.01 | E144: 0.02 | F144: 1 | G144: 0.0124 | H144: 1 | I144: 0.03 | J144: 0.06
A145: M | B145: 69 | C145: 10 | D145: 0.01 | E145: 0.02 | F145: 0.95 | G145: 0.0096 | H145: 0.95 | I145: 0.03 | J145: 0.06
A146: M | B146: 70 | C146: 10 | D146: 0.01 | E146: 0.02 | F146: 0.9 | G146: 0.0048 | H146: 0.9 | I146: 0.03 | J146: 0.06
A147: F | B147: 0 | C147: 7 | D147: 0.01 | E147: 0.13 | F147: 24.53 | G147: 0.1016 | H147: 30.8971 | I147: 0.14 | J147: 0.28
A148: F | B148: 1 | C148: 7 | D148: 0.01 | E148: 0.13 | F148: 24.26 | G148: 0.1029 | H148: 29.3092 | I148: 0.14 | J148: 0.28
A149: F | B149: 2 | C149: 7 | D149: 0.01 | E149: 0.13 | F149: 23.99 | G149: 0.1047 | H149: 27.8688 | I149: 0.14 | J149: 0.28
A150: F | B150: 3 | C150: 7 | D150: 0.01 | E150: 0.13 | F150: 23.72 | G150: 0.1011 | H150: 25.937 | I150: 0.14 | J150: 0.28
A151: F | B151: 4 | C151: 7 | D151: 0.01 | E151: 0.13 | F151: 23.45 | G151: 0.1027 | H151: 24.6667 | I151: 0.14 | J151: 0.28
A152: F | B152: 5 | C152: 7 | D152: 0.01 | E152: 0.11 | F152: 19.72 | G152: 0.1037 | H152: 23.4021 | I152: 0.12 | J152: 0.24
A153: F | B153: 6 | C153: 7 | D153: 0.01 | E153: 0.11 | F153: 19.49 | G153: 0.1052 | H153: 22.2532 | I153: 0.12 | J153: 0.24
A154: F | B154: 7 | C154: 7 | D154: 0.01 | E154: 0.11 | F154: 19.26 | G154: 0.1066 | H154: 21.1591 | I154: 0.12 | J154: 0.24
A155: F | B155: 8 | C155: 7 | D155: 0.01 | E155: 0.11 | F155: 19.03 | G155: 0.1073 | H155: 20.0728 | I155: 0.12 | J155: 0.24
A156: F | B156: 9 | C156: 7 | D156: 0.01 | E156: 0.11 | F156: 18.8 | G156: 0.1085 | H156: 19.0843 | I156: 0.12 | J156: 0.24
A157: F | B157: 10 | C157: 7 | D157: 0.01 | E157: 0.11 | F157: 18.57 | G157: 0.1097 | H157: 18.57 | I157: 0.12 | J157: 0.24
A158: F | B158: 11 | C158: 7 | D158: 0.01 | E158: 0.11 | F158: 18.34 | G158: 0.1102 | H158: 18.34 | I158: 0.12 | J158: 0.24
A159: F | B159: 12 | C159: 7 | D159: 0.01 | E159: 0.11 | F159: 18.11 | G159: 0.1112 | H159: 18.11 | I159: 0.12 | J159: 0.24
A160: F | B160: 13 | C160: 7 | D160: 0.01 | E160: 0.11 | F160: 17.88 | G160: 0.1121 | H160: 17.88 | I160: 0.12 | J160: 0.24
A161: F | B161: 14 | C161: 7 | D161: 0.01 | E161: 0.11 | F161: 17.65 | G161: 0.1177 | H161: 17.65 | I161: 0.12 | J161: 0.24
A162: F | B162: 15 | C162: 7 | D162: 0.01 | E162: 0.1 | F162: 15.89 | G162: 0.1184 | H162: 15.89 | I162: 0.11 | J162: 0.22
A163: F | B163: 16 | C163: 7 | D163: 0.01 | E163: 0.1 | F163: 15.68 | G163: 0.1184 | H163: 15.68 | I163: 0.11 | J163: 0.22
A164: F | B164: 17 | C164: 7 | D164: 0.01 | E164: 0.1 | F164: 15.47 | G164: 0.1189 | H164: 15.47 | I164: 0.11 | J164: 0.22
A165: F | B165: 18 | C165: 7 | D165: 0.01 | E165: 0.1 | F165: 15.26 | G165: 0.1193 | H165: 15.26 | I165: 0.11 | J165: 0.22
A166: F | B166: 19 | C166: 7 | D166: 0.01 | E166: 0.1 | F166: 15.05 | G166: 0.119 | H166: 15.05 | I166: 0.11 | J166: 0.22
A167: F | B167: 20 | C167: 7 | D167: 0.01 | E167: 0.1 | F167: 14.84 | G167: 0.1245 | H167: 14.84 | I167: 0.11 | J167: 0.22
A168: F | B168: 21 | C168: 7 | D168: 0.01 | E168: 0.1 | F168: 14.63 | G168: 0.124 | H168: 14.63 | I168: 0.11 | J168: 0.22
A169: F | B169: 22 | C169: 7 | D169: 0.01 | E169: 0.1 | F169: 14.42 | G169: 0.124 | H169: 14.42 | I169: 0.11 | J169: 0.22
A170: F | B170: 23 | C170: 7 | D170: 0.01 | E170: 0.1 | F170: 14.21 | G170: 0.1239 | H170: 14.21 | I170: 0.11 | J170: 0.22
A171: F | B171: 24 | C171: 7 | D171: 0.01 | E171: 0.1 | F171: 14 | G171: 0.1231 | H171: 14 | I171: 0.11 | J171: 0.22
A172: F | B172: 25 | C172: 7 | D172: 0.01 | E172: 0.08 | F172: 11.13 | G172: 0.1227 | H172: 11.13 | I172: 0.09 | J172: 0.18
A173: F | B173: 26 | C173: 7 | D173: 0.01 | E173: 0.08 | F173: 10.96 | G173: 0.1222 | H173: 10.96 | I173: 0.09 | J173: 0.18
A174: F | B174: 27 | C174: 7 | D174: 0.01 | E174: 0.08 | F174: 10.79 | G174: 0.121 | H174: 10.79 | I174: 0.09 | J174: 0.18
A175: F | B175: 28 | C175: 7 | D175: 0.01 | E175: 0.08 | F175: 10.62 | G175: 0.1203 | H175: 10.62 | I175: 0.09 | J175: 0.18
A176: F | B176: 29 | C176: 7 | D176: 0.01 | E176: 0.08 | F176: 10.45 | G176: 0.1243 | H176: 10.45 | I176: 0.09 | J176: 0.18
A177: F | B177: 30 | C177: 7 | D177: 0.01 | E177: 0.08 | F177: 10.28 | G177: 0.1233 | H177: 10.28 | I177: 0.09 | J177: 0.18
A178: F | B178: 31 | C178: 7 | D178: 0.01 | E178: 0.08 | F178: 10.11 | G178: 0.1223 | H178: 10.11 | I178: 0.09 | J178: 0.18
A179: F | B179: 32 | C179: 7 | D179: 0.01 | E179: 0.08 | F179: 9.94 | G179: 0.1258 | H179: 9.94 | I179: 0.09 | J179: 0.18
A180: F | B180: 33 | C180: 7 | D180: 0.01 | E180: 0.08 | F180: 9.77 | G180: 0.1245 | H180: 9.77 | I180: 0.09 | J180: 0.18
A181: F | B181: 34 | C181: 7 | D181: 0.01 | E181: 0.08 | F181: 9.6 | G181: 0.1231 | H181: 9.6 | I181: 0.09 | J181: 0.18
A182: F | B182: 35 | C182: 7 | D182: 0.01 | E182: 0.06 | F182: 7.17 | G182: 0.1263 | H182: 7.17 | I182: 0.07 | J182: 0.14
A183: F | B183: 36 | C183: 7 | D183: 0.01 | E183: 0.06 | F183: 7.04 | G183: 0.1246 | H183: 7.04 | I183: 0.07 | J183: 0.14
A184: F | B184: 37 | C184: 7 | D184: 0.01 | E184: 0.06 | F184: 6.91 | G184: 0.1221 | H184: 6.91 | I184: 0.07 | J184: 0.14
A185: F | B185: 38 | C185: 7 | D185: 0.01 | E185: 0.06 | F185: 6.78 | G185: 0.1255 | H185: 6.78 | I185: 0.07 | J185: 0.14
A186: F | B186: 39 | C186: 7 | D186: 0.01 | E186: 0.06 | F186: 6.65 | G186: 0.1229 | H186: 6.65 | I186: 0.07 | J186: 0.14
A187: F | B187: 40 | C187: 7 | D187: 0.01 | E187: 0.06 | F187: 6.52 | G187: 0.126 | H187: 6.52 | I187: 0.07 | J187: 0.14
A188: F | B188: 41 | C188: 7 | D188: 0.01 | E188: 0.06 | F188: 6.39 | G188: 0.1231 | H188: 6.39 | I188: 0.07 | J188: 0.14
A189: F | B189: 42 | C189: 7 | D189: 0.01 | E189: 0.06 | F189: 6.26 | G189: 0.1206 | H189: 6.26 | I189: 0.07 | J189: 0.14
A190: F | B190: 43 | C190: 7 | D190: 0.01 | E190: 0.06 | F190: 6.13 | G190: 0.1228 | H190: 6.13 | I190: 0.07 | J190: 0.14
A191: F | B191: 44 | C191: 7 | D191: 0.01 | E191: 0.06 | F191: 6 | G191: 0.12 | H191: 6 | I191: 0.07 | J191: 0.14
A192: F | B192: 45 | C192: 7 | D192: 0.01 | E192: 0.04 | F192: 4.01 | G192: 0.1171 | H192: 4.01 | I192: 0.05 | J192: 0.1
A193: F | B193: 46 | C193: 7 | D193: 0.01 | E193: 0.04 | F193: 3.92 | G193: 0.1188 | H193: 3.92 | I193: 0.05 | J193: 0.1
A194: F | B194: 47 | C194: 7 | D194: 0.01 | E194: 0.04 | F194: 3.83 | G194: 0.1156 | H194: 3.83 | I194: 0.05 | J194: 0.1
A195: F | B195: 48 | C195: 7 | D195: 0.01 | E195: 0.04 | F195: 3.74 | G195: 0.117 | H195: 3.74 | I195: 0.05 | J195: 0.1
A196: F | B196: 49 | C196: 7 | D196: 0.01 | E196: 0.04 | F196: 3.65 | G196: 0.1135 | H196: 3.65 | I196: 0.05 | J196: 0.1
A197: F | B197: 50 | C197: 7 | D197: 0.01 | E197: 0.04 | F197: 3.56 | G197: 0.1147 | H197: 3.56 | I197: 0.05 | J197: 0.1
A198: F | B198: 51 | C198: 7 | D198: 0.01 | E198: 0.04 | F198: 3.47 | G198: 0.111 | H198: 3.47 | I198: 0.05 | J198: 0.1
A199: F | B199: 52 | C199: 7 | D199: 0.01 | E199: 0.04 | F199: 3.38 | G199: 0.1124 | H199: 3.38 | I199: 0.05 | J199: 0.1
A200: F | B200: 53 | C200: 7 | D200: 0.01 | E200: 0.04 | F200: 3.29 | G200: 0.1078 | H200: 3.29 | I200: 0.05 | J200: 0.1
... 91 more rows

Sheet 商品揭露與注意事項 (hidden)
A1: 商品揭露及注意事項
A2: 商品名稱: 安達人壽美利如星美元分紅終身壽險 | J2: 列印
A3: 商品文號: 中華民國113.07.31安達精字第1130000105號函備查
A5: 給付項目: 身故保險金或喪葬費用保險金、完全失能保險金、祝壽保險金、生命末期提前給付保險金(保額)
J6: 回到資料輸入
A7: ※本契約於訂立契約前已提供要保人不低於三日之審閱期間。
A8: ※本保險為分紅保險單，保單紅利部分非本保險單之保證給付項目，安達人壽不保證其給付金額(保額)。
A9: ※本保險為以外幣收付之非投資型人身保險契約，不得與以新臺幣收付之人身保險契約辦理契約轉換。
A11: ║給付項目║
A12: ｢身故保險金或喪葬費用保險金、完全失能保險金｣:被保險人於本契約有效期間內身故或致成保單條款附表所列之完全失能程度之一者，安達人壽分別以保險金額及累計增額分紅保額為基礎各自計算所得金額後，依其加總之值給付「身故保險金」或「完全失能保險金」。 身故保險金或完全失能保險金為下列三者中之最大者： 1.身故日或完全失能診斷確定日對應之當年度保險金額。 2.身故日或完全失能診斷確定日對應之保單價值準備金乘以保單價值準備金比率。 3.身故日或完全失能診斷確定日對應之年繳保險費總和。 ■ 安達人壽除依前項給付外，另將當時有效之「終極紅利」合併給付。 ■ 訂立本契約時，以未滿十五足歲之未成年人為被保險人，除喪葬費用之給付外，其餘死亡給付之約定於被保險人滿十五足歲之日起發生效力； ■ 被保險人滿十五足歲前死亡者，其身故保險金變更為喪葬費用保險金。 ■ 訂立本契約時，以受監護宣告尚未撤銷者為被保險人，其身故保險金變更為喪葬費用保險金。 ■ 被保險人同時或先後致成保單條款附表所列兩項以上之完全失能程度者，安達人壽僅給付一項「完全失能保險金」。 ■ 安達人壽給付「身故保險金」或「喪葬費用保險金」後，本契約效力即行終止，不再負給付其餘保險金之責。但要保人有指定分期方式給付身故保險金者，改依保單條款約定辦理。
A13: ｢祝壽保險金｣: 被保險人於保險年齡達一百一十歲之保單週年日仍生存且本契約仍屬有效時，安達人壽分別以保險金額及累計增額分紅保額為基礎各自計算所得金額後，依其加總之值給付「祝壽保險金」。祝壽保險金為下列二款計算方式所得金額之較大者： 1. 保險年齡達一百一十歲之當年度保險金額。 2. 保險年齡達一百一十歲之年繳保險費總和。 安達人壽除依前項給付外，另將當時有效之「終極紅利」合併給付。安達人壽給付「祝壽保險金」後，本契約效力即行終止，不再負給付其餘保險金之責。
A14: ｢生命末期提前給付保險金｣:被保險人於本契約有效期間內，得因保單條款所約定之「生命末期」，且本契約未變更為減額繳清保險或展期定期保險者，向安達人壽申請一次「生命末期提前給付保險金」，安達人壽將在身故保險金範圍內，按被保險人所指定之比例，將該部分之身故保險金計算六個月貼現給付「生命末期提前給付保險金」。
A15: 『分期定期保險金』係指要保人與本分公司約定身故保險金分期給付者，自分期定期給付開始日起，本分公司依分期定期保險金給付期間及保單條款第二條定義之分期定期保險金預定利率將指定保險金換算成每月初應給付之金額，按約定將每期之分期定期保險金給付予受益人。分期定期保險金給付期間屆滿時，本契約即行終止。
A16: ║紅利給付項目-非保證給付║
A17: ｢保險單紅利的計算與給付(非保證給付)｣  本契約有效期間內，安達人壽每一會計年度終了，根據該會計年度分紅保險單的實際經營狀況，依保險單之分紅公式（如保單條款附表），計算該保單年度之保險單紅利，若該保單年度有可分配之保險單紅利，安達人壽依保單條款約定辦理。 ■ 週年紅利： 本契約有效期間且自第二保單週年日(即第三保單年度首日)起，安達人壽於每一保單週年日以增額分紅保額分配方式給付週年紅利。但保險期間屆滿當年度之週年紅利，將於保險期間屆滿時改以現金方式一併給付予祝壽保險金受益人。 ■ 終極紅利： 本契約有效期間且自第五保單週年日(即第六保單年度首日)起，依下列方式辦理： (一) 被保險人身故或致成保單條款附表所列完全失能程度之一者，安達人壽給付終極保額紅利予受益人。 (二) 要保人依保單條款約定終止本契約時，安達人壽給付終極現金紅利予要保人。 (三) 被保險人於保險年齡達一百一十歲之保單週年日仍生存者，安達人壽給付終極現金紅利予受益人。
A18: ║注意事項║
A19: 1.消費者投保前應審慎瞭解本保險商品承保範圍、除外不保事項及商品風險，安達人壽各商品承保範圍及除外不保事項請至https://life.chubb.com/tw-zh/footer/insurance-product.aspx 查詢。
A20: 2.本契約於訂立契約前已提供要保人不低於三日之審閱期間。
A21: 3.本商品經安達人壽合格簽署人員檢視其內容業已符合一般精算原則及保險法令，惟為確保權益，基於保險公司與消費者衡平對等原則，消費者仍應詳加閱讀保險單條款與相關文件，審慎選擇保險商品。本商品如有虛偽不實或違法情事，應由安達人壽及負責人依法負責。
A22: 4.本商品為保險商品，受人身保險安定基金保障，非屬存款，故不受存款保險之保障。
A23: 5.本保險為分紅保險單，保單紅利部分非本保險單之保證給付項目，安達人壽不保證其給付金額(保額)。
A24: 6.本保險為以外幣收付之非投資型人身保險契約，不得與以新臺幣收付之人身保險契約辦理契約轉換。
A25: 7.保險契約各項權利義務皆詳列於保單條款，消費者務必詳加閱讀了解，並把握保單契約撤銷之時效（收到保單翌日起算十日內）。
A26: 8.投保後解約或不繼續繳費可能不利消費者，請慎選符合需求之保險商品。
A27: 9.消費者於購買本商品前，應詳閱各種銷售文件，本商品之附加費用率最低16.3%、最高31.8%；如要詳細了解其他相關資訊，安達人壽財務、業務或本商品等公開資訊，歡迎至www.chubblife.com.tw查詢，或電洽免費服務及申訴電話：0800-011-709，或至安達人壽(台北市中正區中華路一段39號6樓)洽詢索取，以保障您的權益。
A28: 10.人壽保險之死亡給付及年金保險之確定年金給付於被保險人死亡後給付於指定受益人者，依保險法第一百十二條規定不得作為被保險人之遺產，惟如涉有規避遺產稅等稅捐情事者，稽徵機關仍得依據有關稅法規定或納稅者權利保護法第七條所定實質課稅原則辦理。相關例示性案例可至安達人壽網站(www.chubblife.com.tw)下載查詢。
A29: 11.本商品文件「僅供參考」，詳細內容依保單條款為準。
A30: 12.稅法相關規定之改變可能會影響本商品之相關稅賦。
A31: 13.商品保險之收取或返還、支付、年金給付及其他款項收付之幣別，皆以美元為貨幣單位，要保人及受益人須留意美元在未來兌換費成其他外幣將會因匯率不同而產生匯兌上的差異，此差異可能產生收益或造成損失，要保人及受益人需自行承擔該匯率之風險及該幣別所屬國家之政治、經濟變動風險。
A32: 14.本保險相關款項之收付，除另有約定外，若產生匯款相關費用時，由匯款人負擔匯款銀行及中間行所收取之相關費用，收款人負擔收款銀行收取之收款手續費。
A33: 15.各招攬單位備有本商品之保單條款及相關文件，要保人須詳細閱讀，商品詳細內容以保單條款為憑。
A34: 16.本商品銷售文件係由安達人壽核定後統一提供予各招攬單位，其上皆載有安達人壽審核編號。
A35: 17.本商品係由安達人壽所發行，並交由合作之保險代理人代為招攬，惟安達人壽與該保險代理人並無僱傭、合夥等關係存在。

Sheet 建議書摘要 (hidden)
B2: ="安達人壽"&ProductName & "-建議書摘要表" -> 安達人壽永富長紅美元分紅終身壽險-建議書摘要表
B3: 商品名稱: 安達人壽永富長紅美元分紅終身壽險 給付項目：身故保險金或喪葬費用保險金、完全失能保險金、祝壽保險金、生命末期提前給付保險金 ※本保險為分紅保險單，保單紅利部分非本保險單之保證給付項目，安達人壽不保證其給付金額(保額)。 ※本保險為以外幣收付之非投資型人身保險契約，不得與以新臺幣收付之人身保險契約辦理契約轉換。 ※本建議書係招攬人員於銷售過程中提供予要保人參考，當建議書所列投保資料與要保書填寫不同時，試算金額也將隨之異動，詳細金額仍須以要保書／保單面頁填寫內容為準。
B4: ="要保險人："&參數!H8 -> 要保險人：被保人 | E4: ="保險年齡: "&age & " 歲" -> 保險年齡: 70 歲 | F4: ="繳 別： "&ChargeMode -> 繳 別： 年繳 | G4: ="首期繳費方式 :"&PayMode1 -> 首期繳費方式 :金融機構自動轉帳 | I4: ="首期保費："&TEXT(GP_bf_disc,"###,###,###.00") & " 美元" -> 首期保費：1,273,000.00 美元 | K4: ="首期折扣後保費："&TEXT(GP_af_disc,"###,###,###.00") & " 美元" -> 首期折扣後保費：1,241,365.95 美元 | M4: ="基本保險金額："&TEXT(SA,"###,###,###.00")&" 美元" -> 基本保險金額：10,000,000.00 美元 | O4: ="高保費折扣:"&TEXT(Prem_disc,"0.00%") -> 高保費折扣:1.50% | W4: 列印
B5: ="被保險人："&InsName -> 被保險人：被保人 | E5: ="性 別： "&EntryGender -> 性 別： 女性 | F5: ="繳費年期: "&plan & " 年期" -> 繳費年期: 7 年期 | G5: ="續期繳費方式 :"&PayMode2 -> 續期繳費方式 :金融機構自動轉帳 | I5: ="續期保費："&TEXT(RP_bf_disc,"###,###,###.00") & " 美元" -> 續期保費：1,273,000.00 美元 | K5: ="續期折扣後保費："&TEXT(RP_af_disc,"###,###,###.00") & " 美元" -> 續期折扣後保費：1,241,365.95 美元 | M5: ="繳費方式折扣 : "&IF(PayModeDisc1=1%,TEXT(PayModeDisc1,"0.00%"),IF(PayModeDisc2=1%,TEXT(PayModeDisc2,"0.00%"),TEXT(0,"0.00%"))) -> 繳費方式折扣 : 1.00%
P7: (幣別/單位：美元/元) | W7: 回到資料輸入
B8: 保單年度末 | C8: 保險年齡 | D8: 每期折扣後 所繳保險費 | E8: 累計折扣後 所繳保險費 | F8: 保證給付項目 | H8: 【非保證給付項目】假設分紅-最可能紅利金額(保額)(中分紅) | O8: 身故/完全失能保障 (含假設紅利) | P8: 可能領取 總現金金額 (含假設紅利) | R8: (A+E+F)/ 折扣後累計 所繳保險費 (單位: % ) | V8: (B+H+I)/ 折扣後累計 所繳保險費 (單位: % )
F9: 身故/完全失能保障 | G9: 解約金 | H9: 分紅保額 | L9: 解約可領取之金額
H10: 增額分紅保額 | I10: 累計增額 分紅保額 | J10: 累計增額分紅保額 身故/完全失能保障 | K10: 終極 保額紅利 | L10: 當年度末增額分紅保額保單價值準備金 | M10: 累計增額 分紅保額保單價值準備金 | N10: 終極 現金紅利
F11: ( A ) | G11: ( B ) | H11: ( C ) | I11: ( D ) | J11: ( E ) | K11: ( F ) | L11: ( G ) | M11: ( H ) | N11: ( I ) | O11: (A)+(E)+(F) | P11: ( B )+( H )+( I )
B12: 1 | C12: =IF(B12="","",age+B12-1) -> 70 | D12: =IF(C12="","***以下空白***",IF($B12="","",IF($B12>plan,"",VLOOKUP($B12,formula!$A$15:$BI$124,formula!$AM$9,FALSE)))) -> 1241365.95 | E12: =IF($B12="","",VLOOKUP($B12,formula!$A$15:$BI$124,formula!$AN$9,FALSE)) -> 1241365.95 | F12: =IF($B12="","",VLOOKUP($B12,formula!$A$15:$AI$124,formula!$C$9,FALSE)) -> 10000000 | G12: =IF($B12="","",VLOOKUP($B12,formula!$A$15:$AI$124,formula!$E$9,FALSE)) -> 435590 | H12: =IF($B12="","",VLOOKUP($B12,formula!$A$15:$AI$124,formula!$J$9,FALSE)) -> 0 | I12: =IF($B12="","",VLOOKUP($B12,formula!$A$15:$AI$124,formula!$S$9,FALSE)) -> 0 | J12: =IF($B12="","",VLOOKUP($B12,formula!$A$15:$AI$124,formula!$V$9,FALSE)) -> 0 | K12: =IF($B12="","",VLOOKUP($B12,formula!$A$15:$AI$124,formula!$M$9,FALSE)) -> 0 | L12: =IF($B12="","",VLOOKUP($B12,formula!$A$15:$EA$124,formula!$DZ$9,FALSE)) -> 0 | M12: =IF($B12="","",VLOOKUP($B12,formula!$A$15:$AI$124,formula!$Y$9,FALSE)) -> 0 | N12: =IF($B12="","",VLOOKUP($B12,formula!$A$15:$AI$124,formula!$P$9,FALSE)) -> 0 | O12: =IF($B12="","",VLOOKUP($B12,formula!$A$15:$AI$124,formula!$AE$9,FALSE)) -> 10000000 | P12: =IF($B12="","",VLOOKUP($B12,formula!$A$15:$AI$124,formula!$AH$9,FALSE)) -> 435590 | R12: =IFERROR(O12/E12,"") -> 8.055642254 | V12: =IFERROR(P12/E12,"") -> 0.350895721
B13: =IF(B12>=109-age+1,"",B12+1) -> 2 | C13: 71 | D13: =IF(C12=MaxCoverageYear-1,"***以下空白***",IF($B13="","",IF($B13>plan,"",VLOOKUP($B13,formula!$A$15:$BI$124,formula!$AM$9,FALSE)))) -> 1241365.95 | E13: =IF($B13="","",VLOOKUP($B13,formula!$A$15:$BI$124,formula!$AN$9,FALSE)) -> 2482731.9 | F13: =IF($B13="","",VLOOKUP($B13,formula!$A$15:$AI$124,formula!$C$9,FALSE)) -> 10000000 | G13: =IF($B13="","",VLOOKUP($B13,formula!$A$15:$AI$124,formula!$E$9,FALSE)) -> 1230050 | H13: =IF($B13="","",VLOOKUP($B13,formula!$A$15:$AI$124,formula!$J$9,FALSE)) -> 0 | I13: =IF($B13="","",VLOOKUP($B13,formula!$A$15:$AI$124,formula!$S$9,FALSE)) -> 0 | J13: =IF($B13="","",VLOOKUP($B13,formula!$A$15:$AI$124,formula!$V$9,FALSE)) -> 0 | K13: =IF($B13="","",VLOOKUP($B13,formula!$A$15:$AI$124,formula!$M$9,FALSE)) -> 0 | L13: =IF($B13="","",VLOOKUP($B13,formula!$A$15:$EA$124,formula!$DZ$9,FALSE)) -> 0 | M13: =IF($B13="","",VLOOKUP($B13,formula!$A$15:$AI$124,formula!$Y$9,FALSE)) -> 0 | N13: =IF($B13="","",VLOOKUP($B13,formula!$A$15:$AI$124,formula!$P$9,FALSE)) -> 0 | O13: =IF($B13="","",VLOOKUP($B13,formula!$A$15:$AI$124,formula!$AE$9,FALSE)) -> 10000000 | P13: =IF($B13="","",VLOOKUP($B13,formula!$A$15:$AI$124,formula!$AH$9,FALSE)) -> 1230050 | R13: =IFERROR(O13/E13,"") -> 4.027821127 | V13: =IFERROR(P13/E13,"") -> 0.4954421378
B14: 3 | C14: 72 | D14: =IF(C13=MaxCoverageYear-1,"***以下空白***",IF($B14="","",IF($B14>plan,"",VLOOKUP($B14,formula!$A$15:$BI$124,formula!$AM$9,FALSE)))) -> 1241365.95 | E14: =IF($B14="","",VLOOKUP($B14,formula!$A$15:$BI$124,formula!$AN$9,FALSE)) -> 3724097.85 | F14: =IF($B14="","",VLOOKUP($B14,formula!$A$15:$AI$124,formula!$C$9,FALSE)) -> 10000000 | G14: =IF($B14="","",VLOOKUP($B14,formula!$A$15:$AI$124,formula!$E$9,FALSE)) -> 2044300 | H14: =IF($B14="","",VLOOKUP($B14,formula!$A$15:$AI$124,formula!$J$9,FALSE)) -> 100000 | I14: =IF($B14="","",VLOOKUP($B14,formula!$A$15:$AI$124,formula!$S$9,FALSE)) -> 100000 | J14: =IF($B14="","",VLOOKUP($B14,formula!$A$15:$AI$124,formula!$V$9,FALSE)) -> 100000 | K14: =IF($B14="","",VLOOKUP($B14,formula!$A$15:$AI$124,formula!$M$9,FALSE)) -> 0 | L14: =IF($B14="","",VLOOKUP($B14,formula!$A$15:$EA$124,formula!$DZ$9,FALSE)) -> 69409.7 | M14: =IF($B14="","",VLOOKUP($B14,formula!$A$15:$AI$124,formula!$Y$9,FALSE)) -> 69409.7 | N14: =IF($B14="","",VLOOKUP($B14,formula!$A$15:$AI$124,formula!$P$9,FALSE)) -> 0 | O14: =IF($B14="","",VLOOKUP($B14,formula!$A$15:$AI$124,formula!$AE$9,FALSE)) -> 10100000 | P14: =IF($B14="","",VLOOKUP($B14,formula!$A$15:$AI$124,formula!$AH$9,FALSE)) -> 2113709.7 | R14: =IFERROR(O14/E14,"") -> 2.712066226 | V14: =IFERROR(P14/E14,"") -> 0.5675763058
B15: 4 | C15: 73 | D15: =IF(C14=MaxCoverageYear-1,"***以下空白***",IF($B15="","",IF($B15>plan,"",VLOOKUP($B15,formula!$A$15:$BI$124,formula!$AM$9,FALSE)))) -> 1241365.95 | E15: =IF($B15="","",VLOOKUP($B15,formula!$A$15:$BI$124,formula!$AN$9,FALSE)) -> 4965463.8 | F15: =IF($B15="","",VLOOKUP($B15,formula!$A$15:$AI$124,formula!$C$9,FALSE)) -> 10000000 | G15: =IF($B15="","",VLOOKUP($B15,formula!$A$15:$AI$124,formula!$E$9,FALSE)) -> 3072330 | H15: =IF($B15="","",VLOOKUP($B15,formula!$A$15:$AI$124,formula!$J$9,FALSE)) -> 100000 | I15: =IF($B15="","",VLOOKUP($B15,formula!$A$15:$AI$124,formula!$S$9,FALSE)) -> 200000 | J15: =IF($B15="","",VLOOKUP($B15,formula!$A$15:$AI$124,formula!$V$9,FALSE)) -> 200000 | K15: =IF($B15="","",VLOOKUP($B15,formula!$A$15:$AI$124,formula!$M$9,FALSE)) -> 0 | L15: =IF($B15="","",VLOOKUP($B15,formula!$A$15:$EA$124,formula!$DZ$9,FALSE)) -> 70560.3 | M15: =IF($B15="","",VLOOKUP($B15,formula!$A$15:$AI$124,formula!$Y$9,FALSE)) -> 141120.6 | N15: =IF($B15="","",VLOOKUP($B15,formula!$A$15:$AI$124,formula!$P$9,FALSE)) -> 0 | O15: =IF($B15="","",VLOOKUP($B15,formula!$A$15:$AI$124,formula!$AE$9,FALSE)) -> 10200000 | P15: =IF($B15="","",VLOOKUP($B15,formula!$A$15:$AI$124,formula!$AH$9,FALSE)) -> 3213450.6 | R15: 2.054188775 | V15: 0.6471602109
B16: 5 | C16: 74 | D16: =IF(C15=MaxCoverageYear-1,"***以下空白***",IF($B16="","",IF($B16>plan,"",VLOOKUP($B16,formula!$A$15:$BI$124,formula!$AM$9,FALSE)))) -> 1241365.95 | E16: =IF($B16="","",VLOOKUP($B16,formula!$A$15:$BI$124,formula!$AN$9,FALSE)) -> 6206829.75 | F16: =IF($B16="","",VLOOKUP($B16,formula!$A$15:$AI$124,formula!$C$9,FALSE)) -> 10000000 | G16: =IF($B16="","",VLOOKUP($B16,formula!$A$15:$AI$124,formula!$E$9,FALSE)) -> 4488700 | H16: =IF($B16="","",VLOOKUP($B16,formula!$A$15:$AI$124,formula!$J$9,FALSE)) -> 100000 | I16: =IF($B16="","",VLOOKUP($B16,formula!$A$15:$AI$124,formula!$S$9,FALSE)) -> 300000 | J16: =IF($B16="","",VLOOKUP($B16,formula!$A$15:$AI$124,formula!$V$9,FALSE)) -> 300000 | K16: =IF($B16="","",VLOOKUP($B16,formula!$A$15:$AI$124,formula!$M$9,FALSE)) -> 0 | L16: =IF($B16="","",VLOOKUP($B16,formula!$A$15:$EA$124,formula!$DZ$9,FALSE)) -> 71705.5 | M16: =IF($B16="","",VLOOKUP($B16,formula!$A$15:$AI$124,formula!$Y$9,FALSE)) -> 215116.5 | N16: =IF($B16="","",VLOOKUP($B16,formula!$A$15:$AI$124,formula!$P$9,FALSE)) -> 0 | O16: =IF($B16="","",VLOOKUP($B16,formula!$A$15:$AI$124,formula!$AE$9,FALSE)) -> 10300000 | P16: =IF($B16="","",VLOOKUP($B16,formula!$A$15:$AI$124,formula!$AH$9,FALSE)) -> 4703816.5 | R16: 1.659462304 | V16: 0.7578452591
B17: 6 | C17: 75 | D17: =IF(C16=MaxCoverageYear-1,"***以下空白***",IF($B17="","",IF($B17>plan,"",VLOOKUP($B17,formula!$A$15:$BI$124,formula!$AM$9,FALSE)))) -> 1241365.95 | E17: =IF($B17="","",VLOOKUP($B17,formula!$A$15:$BI$124,formula!$AN$9,FALSE)) -> 7448195.7 | F17: =IF($B17="","",VLOOKUP($B17,formula!$A$15:$AI$124,formula!$C$9,FALSE)) -> 10000000 | G17: =IF($B17="","",VLOOKUP($B17,formula!$A$15:$AI$124,formula!$E$9,FALSE)) -> 6173050 | H17: =IF($B17="","",VLOOKUP($B17,formula!$A$15:$AI$124,formula!$J$9,FALSE)) -> 100000 | I17: =IF($B17="","",VLOOKUP($B17,formula!$A$15:$AI$124,formula!$S$9,FALSE)) -> 400000 | J17: =IF($B17="","",VLOOKUP($B17,formula!$A$15:$AI$124,formula!$V$9,FALSE)) -> 400000 | K17: =IF($B17="","",VLOOKUP($B17,formula!$A$15:$AI$124,formula!$M$9,FALSE)) -> 1400000 | L17: =IF($B17="","",VLOOKUP($B17,formula!$A$15:$EA$124,formula!$DZ$9,FALSE)) -> 72857.3 | M17: =IF($B17="","",VLOOKUP($B17,formula!$A$15:$AI$124,formula!$Y$9,FALSE)) -> 291429.2 | N17: =IF($B17="","",VLOOKUP($B17,formula!$A$15:$AI$124,formula!$P$9,FALSE)) -> 253570 | O17: =IF($B17="","",VLOOKUP($B17,formula!$A$15:$AI$124,formula!$AE$9,FALSE)) -> 11800000 | P17: =IF($B17="","",VLOOKUP($B17,formula!$A$15:$AI$124,formula!$AH$9,FALSE)) -> 6718049.2 | R17: 1.58427631 | V17: 0.9019700167
B18: 7 | C18: 76 | D18: =IF(C17=MaxCoverageYear-1,"***以下空白***",IF($B18="","",IF($B18>plan,"",VLOOKUP($B18,formula!$A$15:$BI$124,formula!$AM$9,FALSE)))) -> 1241365.95 | E18: =IF($B18="","",VLOOKUP($B18,formula!$A$15:$BI$124,formula!$AN$9,FALSE)) -> 8689561.65 | F18: =IF($B18="","",VLOOKUP($B18,formula!$A$15:$AI$124,formula!$C$9,FALSE)) -> 10000000 | G18: =IF($B18="","",VLOOKUP($B18,formula!$A$15:$AI$124,formula!$E$9,FALSE)) -> 7399990 | H18: =IF($B18="","",VLOOKUP($B18,formula!$A$15:$AI$124,formula!$J$9,FALSE)) -> 100000 | I18: =IF($B18="","",VLOOKUP($B18,formula!$A$15:$AI$124,formula!$S$9,FALSE)) -> 500000 | J18: =IF($B18="","",VLOOKUP($B18,formula!$A$15:$AI$124,formula!$V$9,FALSE)) -> 500000 | K18: =IF($B18="","",VLOOKUP($B18,formula!$A$15:$AI$124,formula!$M$9,FALSE)) -> 1600000 | L18: =IF($B18="","",VLOOKUP($B18,formula!$A$15:$EA$124,formula!$DZ$9,FALSE)) -> 73999.9 | M18: =IF($B18="","",VLOOKUP($B18,formula!$A$15:$AI$124,formula!$Y$9,FALSE)) -> 369999.5 | N18: =IF($B18="","",VLOOKUP($B18,formula!$A$15:$AI$124,formula!$P$9,FALSE)) -> 346980 | O18: =IF($B18="","",VLOOKUP($B18,formula!$A$15:$AI$124,formula!$AE$9,FALSE)) -> 12100000 | P18: =IF($B18="","",VLOOKUP($B18,formula!$A$15:$AI$124,formula!$AH$9,FALSE)) -> 8116969.5 | R18: 1.392475304 | V18: 0.9341057497
B19: 8 | C19: 77 | D19: =IF(C18=MaxCoverageYear-1,"***以下空白***",IF($B19="","",IF($B19>plan,"",VLOOKUP($B19,formula!$A$15:$BI$124,formula!$AM$9,FALSE)))) ->  | E19: =IF($B19="","",VLOOKUP($B19,formula!$A$15:$BI$124,formula!$AN$9,FALSE)) -> 8689561.65 | F19: =IF($B19="","",VLOOKUP($B19,formula!$A$15:$AI$124,formula!$C$9,FALSE)) -> 10000000 | G19: =IF($B19="","",VLOOKUP($B19,formula!$A$15:$AI$124,formula!$E$9,FALSE)) -> 7513120 | H19: =IF($B19="","",VLOOKUP($B19,formula!$A$15:$AI$124,formula!$J$9,FALSE)) -> 100000 | I19: =IF($B19="","",VLOOKUP($B19,formula!$A$15:$AI$124,formula!$S$9,FALSE)) -> 600000 | J19: =IF($B19="","",VLOOKUP($B19,formula!$A$15:$AI$124,formula!$V$9,FALSE)) -> 600000 | K19: =IF($B19="","",VLOOKUP($B19,formula!$A$15:$AI$124,formula!$M$9,FALSE)) -> 1800000 | L19: =IF($B19="","",VLOOKUP($B19,formula!$A$15:$EA$124,formula!$DZ$9,FALSE)) -> 75131.2 | M19: =IF($B19="","",VLOOKUP($B19,formula!$A$15:$AI$124,formula!$Y$9,FALSE)) -> 450787.2 | N19: =IF($B19="","",VLOOKUP($B19,formula!$A$15:$AI$124,formula!$P$9,FALSE)) -> 382390 | O19: =IF($B19="","",VLOOKUP($B19,formula!$A$15:$AI$124,formula!$AE$9,FALSE)) -> 12400000 | P19: =IF($B19="","",VLOOKUP($B19,formula!$A$15:$AI$124,formula!$AH$9,FALSE)) -> 8346297.2 | R19: 1.426999485 | V19: 0.9604969199
B20: 9 | C20: 78 | D20: =IF(C19=MaxCoverageYear-1,"***以下空白***",IF($B20="","",IF($B20>plan,"",VLOOKUP($B20,formula!$A$15:$BI$124,formula!$AM$9,FALSE)))) ->  | E20: =IF($B20="","",VLOOKUP($B20,formula!$A$15:$BI$124,formula!$AN$9,FALSE)) -> 8689561.65 | F20: =IF($B20="","",VLOOKUP($B20,formula!$A$15:$AI$124,formula!$C$9,FALSE)) -> 10000000 | G20: =IF($B20="","",VLOOKUP($B20,formula!$A$15:$AI$124,formula!$E$9,FALSE)) -> 7624930 | H20: =IF($B20="","",VLOOKUP($B20,formula!$A$15:$AI$124,formula!$J$9,FALSE)) -> 100000 | I20: =IF($B20="","",VLOOKUP($B20,formula!$A$15:$AI$124,formula!$S$9,FALSE)) -> 700000 | J20: =IF($B20="","",VLOOKUP($B20,formula!$A$15:$AI$124,formula!$V$9,FALSE)) -> 700000 | K20: =IF($B20="","",VLOOKUP($B20,formula!$A$15:$AI$124,formula!$M$9,FALSE)) -> 2000000 | L20: =IF($B20="","",VLOOKUP($B20,formula!$A$15:$EA$124,formula!$DZ$9,FALSE)) -> 76249.3 | M20: =IF($B20="","",VLOOKUP($B20,formula!$A$15:$AI$124,formula!$Y$9,FALSE)) -> 533745.1 | N20: =IF($B20="","",VLOOKUP($B20,formula!$A$15:$AI$124,formula!$P$9,FALSE)) -> 692330 | O20: =IF($B20="","",VLOOKUP($B20,formula!$A$15:$AI$124,formula!$AE$9,FALSE)) -> 12700000 | P20: =IF($B20="","",VLOOKUP($B20,formula!$A$15:$AI$124,formula!$AH$9,FALSE)) -> 8851005.1 | R20: 1.461523666 | V20: 1.01857901
B21: 10 | C21: 79 | D21: =IF(C20=MaxCoverageYear-1,"***以下空白***",IF($B21="","",IF($B21>plan,"",VLOOKUP($B21,formula!$A$15:$BI$124,formula!$AM$9,FALSE)))) ->  | E21: =IF($B21="","",VLOOKUP($B21,formula!$A$15:$BI$124,formula!$AN$9,FALSE)) -> 8689561.65 | F21: =IF($B21="","",VLOOKUP($B21,formula!$A$15:$AI$124,formula!$C$9,FALSE)) -> 10000000 | G21: =IF($B21="","",VLOOKUP($B21,formula!$A$15:$AI$124,formula!$E$9,FALSE)) -> 7735270 | H21: =IF($B21="","",VLOOKUP($B21,formula!$A$15:$AI$124,formula!$J$9,FALSE)) -> 100000 | I21: =IF($B21="","",VLOOKUP($B21,formula!$A$15:$AI$124,formula!$S$9,FALSE)) -> 800000 | J21: =IF($B21="","",VLOOKUP($B21,formula!$A$15:$AI$124,formula!$V$9,FALSE)) -> 800000 | K21: =IF($B21="","",VLOOKUP($B21,formula!$A$15:$AI$124,formula!$M$9,FALSE)) -> 2200000 | L21: =IF($B21="","",VLOOKUP($B21,formula!$A$15:$EA$124,formula!$DZ$9,FALSE)) -> 77352.7 | M21: =IF($B21="","",VLOOKUP($B21,formula!$A$15:$AI$124,formula!$Y$9,FALSE)) -> 618821.6 | N21: =IF($B21="","",VLOOKUP($B21,formula!$A$15:$AI$124,formula!$P$9,FALSE)) -> 741950 | O21: =IF($B21="","",VLOOKUP($B21,formula!$A$15:$AI$124,formula!$AE$9,FALSE)) -> 13000000 | P21: =IF($B21="","",VLOOKUP($B21,formula!$A$15:$AI$124,formula!$AH$9,FALSE)) -> 9096041.6 | R21: 1.496047847 | V21: 1.046777958
B22: 11 | C22: 80 | D22: =IF(C21=MaxCoverageYear-1,"***以下空白***",IF($B22="","",IF($B22>plan,"",VLOOKUP($B22,formula!$A$15:$BI$124,formula!$AM$9,FALSE)))) ->  | E22: =IF($B22="","",VLOOKUP($B22,formula!$A$15:$BI$124,formula!$AN$9,FALSE)) -> 8689561.65 | F22: =IF($B22="","",VLOOKUP($B22,formula!$A$15:$AI$124,formula!$C$9,FALSE)) -> 10000000 | G22: =IF($B22="","",VLOOKUP($B22,formula!$A$15:$AI$124,formula!$E$9,FALSE)) -> 7844030 | H22: =IF($B22="","",VLOOKUP($B22,formula!$A$15:$AI$124,formula!$J$9,FALSE)) -> 100000 | I22: =IF($B22="","",VLOOKUP($B22,formula!$A$15:$AI$124,formula!$S$9,FALSE)) -> 900000 | J22: =IF($B22="","",VLOOKUP($B22,formula!$A$15:$AI$124,formula!$V$9,FALSE)) -> 900000 | K22: =IF($B22="","",VLOOKUP($B22,formula!$A$15:$AI$124,formula!$M$9,FALSE)) -> 2400000 | L22: =IF($B22="","",VLOOKUP($B22,formula!$A$15:$EA$124,formula!$DZ$9,FALSE)) -> 78440.3 | M22: =IF($B22="","",VLOOKUP($B22,formula!$A$15:$AI$124,formula!$Y$9,FALSE)) -> 705962.7 | N22: =IF($B22="","",VLOOKUP($B22,formula!$A$15:$AI$124,formula!$P$9,FALSE)) -> 775910 | O22: =IF($B22="","",VLOOKUP($B22,formula!$A$15:$AI$124,formula!$AE$9,FALSE)) -> 13300000 | P22: =IF($B22="","",VLOOKUP($B22,formula!$A$15:$AI$124,formula!$AH$9,FALSE)) -> 9325902.7 | R22: 1.530572028 | V22: 1.073230512
B23: 12 | C23: 81 | D23: =IF(C22=MaxCoverageYear-1,"***以下空白***",IF($B23="","",IF($B23>plan,"",VLOOKUP($B23,formula!$A$15:$BI$124,formula!$AM$9,FALSE)))) ->  | E23: =IF($B23="","",VLOOKUP($B23,formula!$A$15:$BI$124,formula!$AN$9,FALSE)) -> 8689561.65 | F23: =IF($B23="","",VLOOKUP($B23,formula!$A$15:$AI$124,formula!$C$9,FALSE)) -> 10000000 | G23: =IF($B23="","",VLOOKUP($B23,formula!$A$15:$AI$124,formula!$E$9,FALSE)) -> 7951130 | H23: =IF($B23="","",VLOOKUP($B23,formula!$A$15:$AI$124,formula!$J$9,FALSE)) -> 100000 | I23: =IF($B23="","",VLOOKUP($B23,formula!$A$15:$AI$124,formula!$S$9,FALSE)) -> 1000000 | J23: =IF($B23="","",VLOOKUP($B23,formula!$A$15:$AI$124,formula!$V$9,FALSE)) -> 1000000 | K23: =IF($B23="","",VLOOKUP($B23,formula!$A$15:$AI$124,formula!$M$9,FALSE)) -> 2600000 | L23: =IF($B23="","",VLOOKUP($B23,formula!$A$15:$EA$124,formula!$DZ$9,FALSE)) -> 79511.3 | M23: =IF($B23="","",VLOOKUP($B23,formula!$A$15:$AI$124,formula!$Y$9,FALSE)) -> 795113 | N23: =IF($B23="","",VLOOKUP($B23,formula!$A$15:$AI$124,formula!$P$9,FALSE)) -> 1224870 | O23: =IF($B23="","",VLOOKUP($B23,formula!$A$15:$AI$124,formula!$AE$9,FALSE)) -> 13600000 | P23: =IF($B23="","",VLOOKUP($B23,formula!$A$15:$AI$124,formula!$AH$9,FALSE)) -> 9971113 | R23: 1.565096209 | V23: 1.147481703
B24: 13 | C24: 82 | D24: =IF(C23=MaxCoverageYear-1,"***以下空白***",IF($B24="","",IF($B24>plan,"",VLOOKUP($B24,formula!$A$15:$BI$124,formula!$AM$9,FALSE)))) ->  | E24: =IF($B24="","",VLOOKUP($B24,formula!$A$15:$BI$124,formula!$AN$9,FALSE)) -> 8689561.65 | F24: =IF($B24="","",VLOOKUP($B24,formula!$A$15:$AI$124,formula!$C$9,FALSE)) -> 10000000 | G24: =IF($B24="","",VLOOKUP($B24,formula!$A$15:$AI$124,formula!$E$9,FALSE)) -> 8056480 | H24: =IF($B24="","",VLOOKUP($B24,formula!$A$15:$AI$124,formula!$J$9,FALSE)) -> 100000 | I24: =IF($B24="","",VLOOKUP($B24,formula!$A$15:$AI$124,formula!$S$9,FALSE)) -> 1100000 | J24: =IF($B24="","",VLOOKUP($B24,formula!$A$15:$AI$124,formula!$V$9,FALSE)) -> 1100000 | K24: =IF($B24="","",VLOOKUP($B24,formula!$A$15:$AI$124,formula!$M$9,FALSE)) -> 2800000 | L24: =IF($B24="","",VLOOKUP($B24,formula!$A$15:$EA$124,formula!$DZ$9,FALSE)) -> 80564.8 | M24: =IF($B24="","",VLOOKUP($B24,formula!$A$15:$AI$124,formula!$Y$9,FALSE)) -> 886212.8 | N24: =IF($B24="","",VLOOKUP($B24,formula!$A$15:$AI$124,formula!$P$9,FALSE)) -> 1295390 | O24: =IF($B24="","",VLOOKUP($B24,formula!$A$15:$AI$124,formula!$AE$9,FALSE)) -> 13900000 | P24: =IF($B24="","",VLOOKUP($B24,formula!$A$15:$AI$124,formula!$AH$9,FALSE)) -> 10238082.8 | R24: 1.599620391 | V24: 1.178204749
B25: 14 | C25: 83 | D25: =IF(C24=MaxCoverageYear-1,"***以下空白***",IF($B25="","",IF($B25>plan,"",VLOOKUP($B25,formula!$A$15:$BI$124,formula!$AM$9,FALSE)))) ->  | E25: =IF($B25="","",VLOOKUP($B25,formula!$A$15:$BI$124,formula!$AN$9,FALSE)) -> 8689561.65 | F25: =IF($B25="","",VLOOKUP($B25,formula!$A$15:$AI$124,formula!$C$9,FALSE)) -> 10000000 | G25: =IF($B25="","",VLOOKUP($B25,formula!$A$15:$AI$124,formula!$E$9,FALSE)) -> 8159940 | H25: =IF($B25="","",VLOOKUP($B25,formula!$A$15:$AI$124,formula!$J$9,FALSE)) -> 100000 | I25: =IF($B25="","",VLOOKUP($B25,formula!$A$15:$AI$124,formula!$S$9,FALSE)) -> 1200000 | J25: =IF($B25="","",VLOOKUP($B25,formula!$A$15:$AI$124,formula!$V$9,FALSE)) -> 1200000 | K25: =IF($B25="","",VLOOKUP($B25,formula!$A$15:$AI$124,formula!$M$9,FALSE)) -> 3000000 | L25: =IF($B25="","",VLOOKUP($B25,formula!$A$15:$EA$124,formula!$DZ$9,FALSE)) -> 81599.4 | M25: =IF($B25="","",VLOOKUP($B25,formula!$A$15:$AI$124,formula!$Y$9,FALSE)) -> 979192.8 | N25: =IF($B25="","",VLOOKUP($B25,formula!$A$15:$AI$124,formula!$P$9,FALSE)) -> 1371540 | O25: =IF($B25="","",VLOOKUP($B25,formula!$A$15:$AI$124,formula!$AE$9,FALSE)) -> 14200000 | P25: =IF($B25="","",VLOOKUP($B25,formula!$A$15:$AI$124,formula!$AH$9,FALSE)) -> 10510672.8 | R25: 1.634144572 | V25: 1.20957457
B26: 15 | C26: 84 | D26: =IF(C25=MaxCoverageYear-1,"***以下空白***",IF($B26="","",IF($B26>plan,"",VLOOKUP($B26,formula!$A$15:$BI$124,formula!$AM$9,FALSE)))) ->  | E26: =IF($B26="","",VLOOKUP($B26,formula!$A$15:$BI$124,formula!$AN$9,FALSE)) -> 8689561.65 | F26: =IF($B26="","",VLOOKUP($B26,formula!$A$15:$AI$124,formula!$C$9,FALSE)) -> 10000000 | G26: =IF($B26="","",VLOOKUP($B26,formula!$A$15:$AI$124,formula!$E$9,FALSE)) -> 8261340 | H26: =IF($B26="","",VLOOKUP($B26,formula!$A$15:$AI$124,formula!$J$9,FALSE)) -> 100000 | I26: =IF($B26="","",VLOOKUP($B26,formula!$A$15:$AI$124,formula!$S$9,FALSE)) -> 1300000 | J26: =IF($B26="","",VLOOKUP($B26,formula!$A$15:$AI$124,formula!$V$9,FALSE)) -> 1300000 | K26: =IF($B26="","",VLOOKUP($B26,formula!$A$15:$AI$124,formula!$M$9,FALSE)) -> 3200000 | L26: =IF($B26="","",VLOOKUP($B26,formula!$A$15:$EA$124,formula!$DZ$9,FALSE)) -> 82613.4 | M26: =IF($B26="","",VLOOKUP($B26,formula!$A$15:$AI$124,formula!$Y$9,FALSE)) -> 1073974.2 | N26: =IF($B26="","",VLOOKUP($B26,formula!$A$15:$AI$124,formula!$P$9,FALSE)) -> 1449680 | O26: =IF($B26="","",VLOOKUP($B26,formula!$A$15:$AI$124,formula!$AE$9,FALSE)) -> 14500000 | P26: =IF($B26="","",VLOOKUP($B26,formula!$A$15:$AI$124,formula!$AH$9,FALSE)) -> 10784994.2 | R26: 1.668668753 | V26: 1.241143643
B27: 16 | C27: 85 | D27: =IF(C26=MaxCoverageYear-1,"***以下空白***",IF($B27="","",IF($B27>plan,"",VLOOKUP($B27,formula!$A$15:$BI$124,formula!$AM$9,FALSE)))) ->  | E27: =IF($B27="","",VLOOKUP($B27,formula!$A$15:$BI$124,formula!$AN$9,FALSE)) -> 8689561.65 | F27: =IF($B27="","",VLOOKUP($B27,formula!$A$15:$AI$124,formula!$C$9,FALSE)) -> 10000000 | G27: =IF($B27="","",VLOOKUP($B27,formula!$A$15:$AI$124,formula!$E$9,FALSE)) -> 8360460 | H27: =IF($B27="","",VLOOKUP($B27,formula!$A$15:$AI$124,formula!$J$9,FALSE)) -> 100000 | I27: =IF($B27="","",VLOOKUP($B27,formula!$A$15:$AI$124,formula!$S$9,FALSE)) -> 1400000 | J27: =IF($B27="","",VLOOKUP($B27,formula!$A$15:$AI$124,formula!$V$9,FALSE)) -> 1400000 | K27: =IF($B27="","",VLOOKUP($B27,formula!$A$15:$AI$124,formula!$M$9,FALSE)) -> 3400000 | L27: =IF($B27="","",VLOOKUP($B27,formula!$A$15:$EA$124,formula!$DZ$9,FALSE)) -> 83604.6 | M27: =IF($B27="","",VLOOKUP($B27,formula!$A$15:$AI$124,formula!$Y$9,FALSE)) -> 1170464.4 | N27: =IF($B27="","",VLOOKUP($B27,formula!$A$15:$AI$124,formula!$P$9,FALSE)) -> 1569620 | O27: =IF($B27="","",VLOOKUP($B27,formula!$A$15:$AI$124,formula!$AE$9,FALSE)) -> 14800000 | P27: =IF($B27="","",VLOOKUP($B27,formula!$A$15:$AI$124,formula!$AH$9,FALSE)) -> 11100544.4 | R27: 1.703192934 | V27: 1.27745735
B28: 17 | C28: 86 | D28: =IF(C27=MaxCoverageYear-1,"***以下空白***",IF($B28="","",IF($B28>plan,"",VLOOKUP($B28,formula!$A$15:$BI$124,formula!$AM$9,FALSE)))) ->  | E28: =IF($B28="","",VLOOKUP($B28,formula!$A$15:$BI$124,formula!$AN$9,FALSE)) -> 8689561.65 | F28: =IF($B28="","",VLOOKUP($B28,formula!$A$15:$AI$124,formula!$C$9,FALSE)) -> 10000000 | G28: =IF($B28="","",VLOOKUP($B28,formula!$A$15:$AI$124,formula!$E$9,FALSE)) -> 8457040 | H28: =IF($B28="","",VLOOKUP($B28,formula!$A$15:$AI$124,formula!$J$9,FALSE)) -> 100000 | I28: =IF($B28="","",VLOOKUP($B28,formula!$A$15:$AI$124,formula!$S$9,FALSE)) -> 1500000 | J28: =IF($B28="","",VLOOKUP($B28,formula!$A$15:$AI$124,formula!$V$9,FALSE)) -> 1500000 | K28: =IF($B28="","",VLOOKUP($B28,formula!$A$15:$AI$124,formula!$M$9,FALSE)) -> 3600000 | L28: =IF($B28="","",VLOOKUP($B28,formula!$A$15:$EA$124,formula!$DZ$9,FALSE)) -> 84570.4 | M28: =IF($B28="","",VLOOKUP($B28,formula!$A$15:$AI$124,formula!$Y$9,FALSE)) -> 1268556 | N28: =IF($B28="","",VLOOKUP($B28,formula!$A$15:$AI$124,formula!$P$9,FALSE)) -> 1708820 | O28: =IF($B28="","",VLOOKUP($B28,formula!$A$15:$AI$124,formula!$AE$9,FALSE)) -> 15100000 | P28: =IF($B28="","",VLOOKUP($B28,formula!$A$15:$AI$124,formula!$AH$9,FALSE)) -> 11434416 | R28: 1.737717115 | V28: 1.315879495
B29: 18 | C29: 87 | D29: =IF(C28=MaxCoverageYear-1,"***以下空白***",IF($B29="","",IF($B29>plan,"",VLOOKUP($B29,formula!$A$15:$BI$124,formula!$AM$9,FALSE)))) ->  | E29: =IF($B29="","",VLOOKUP($B29,formula!$A$15:$BI$124,formula!$AN$9,FALSE)) -> 8689561.65 | F29: =IF($B29="","",VLOOKUP($B29,formula!$A$15:$AI$124,formula!$C$9,FALSE)) -> 10000000 | G29: =IF($B29="","",VLOOKUP($B29,formula!$A$15:$AI$124,formula!$E$9,FALSE)) -> 8550830 | H29: =IF($B29="","",VLOOKUP($B29,formula!$A$15:$AI$124,formula!$J$9,FALSE)) -> 100000 | I29: =IF($B29="","",VLOOKUP($B29,formula!$A$15:$AI$124,formula!$S$9,FALSE)) -> 1600000 | J29: =IF($B29="","",VLOOKUP($B29,formula!$A$15:$AI$124,formula!$V$9,FALSE)) -> 1600000 | K29: =IF($B29="","",VLOOKUP($B29,formula!$A$15:$AI$124,formula!$M$9,FALSE)) -> 3800000 | L29: =IF($B29="","",VLOOKUP($B29,formula!$A$15:$EA$124,formula!$DZ$9,FALSE)) -> 85508.3 | M29: =IF($B29="","",VLOOKUP($B29,formula!$A$15:$AI$124,formula!$Y$9,FALSE)) -> 1368132.8 | N29: =IF($B29="","",VLOOKUP($B29,formula!$A$15:$AI$124,formula!$P$9,FALSE)) -> 1868740 | O29: =IF($B29="","",VLOOKUP($B29,formula!$A$15:$AI$124,formula!$AE$9,FALSE)) -> 15400000 | P29: =IF($B29="","",VLOOKUP($B29,formula!$A$15:$AI$124,formula!$AH$9,FALSE)) -> 11787702.8 | R29: 1.772241296 | V29: 1.356535954
B30: 19 | C30: 88 | D30: =IF(C29=MaxCoverageYear-1,"***以下空白***",IF($B30="","",IF($B30>plan,"",VLOOKUP($B30,formula!$A$15:$BI$124,formula!$AM$9,FALSE)))) ->  | E30: =IF($B30="","",VLOOKUP($B30,formula!$A$15:$BI$124,formula!$AN$9,FALSE)) -> 8689561.65 | F30: =IF($B30="","",VLOOKUP($B30,formula!$A$15:$AI$124,formula!$C$9,FALSE)) -> 10000000 | G30: =IF($B30="","",VLOOKUP($B30,formula!$A$15:$AI$124,formula!$E$9,FALSE)) -> 8641600 | H30: =IF($B30="","",VLOOKUP($B30,formula!$A$15:$AI$124,formula!$J$9,FALSE)) -> 100000 | I30: =IF($B30="","",VLOOKUP($B30,formula!$A$15:$AI$124,formula!$S$9,FALSE)) -> 1700000 | J30: =IF($B30="","",VLOOKUP($B30,formula!$A$15:$AI$124,formula!$V$9,FALSE)) -> 1700000 | K30: =IF($B30="","",VLOOKUP($B30,formula!$A$15:$AI$124,formula!$M$9,FALSE)) -> 4000000 | L30: =IF($B30="","",VLOOKUP($B30,formula!$A$15:$EA$124,formula!$DZ$9,FALSE)) -> 86416 | M30: =IF($B30="","",VLOOKUP($B30,formula!$A$15:$AI$124,formula!$Y$9,FALSE)) -> 1469072 | N30: =IF($B30="","",VLOOKUP($B30,formula!$A$15:$AI$124,formula!$P$9,FALSE)) -> 2037030 | O30: =IF($B30="","",VLOOKUP($B30,formula!$A$15:$AI$124,formula!$AE$9,FALSE)) -> 15700000 | P30: =IF($B30="","",VLOOKUP($B30,formula!$A$15:$AI$124,formula!$AH$9,FALSE)) -> 12147702 | R30: 1.806765477 | V30: 1.397964879
B31: 20 | C31: 89 | D31: =IF(C30=MaxCoverageYear-1,"***以下空白***",IF($B31="","",IF($B31>plan,"",VLOOKUP($B31,formula!$A$15:$BI$124,formula!$AM$9,FALSE)))) ->  | E31: =IF($B31="","",VLOOKUP($B31,formula!$A$15:$BI$124,formula!$AN$9,FALSE)) -> 8689561.65 | F31: =IF($B31="","",VLOOKUP($B31,formula!$A$15:$AI$124,formula!$C$9,FALSE)) -> 10000000 | G31: =IF($B31="","",VLOOKUP($B31,formula!$A$15:$AI$124,formula!$E$9,FALSE)) -> 8729180 | H31: =IF($B31="","",VLOOKUP($B31,formula!$A$15:$AI$124,formula!$J$9,FALSE)) -> 100000 | I31: =IF($B31="","",VLOOKUP($B31,formula!$A$15:$AI$124,formula!$S$9,FALSE)) -> 1800000 | J31: =IF($B31="","",VLOOKUP($B31,formula!$A$15:$AI$124,formula!$V$9,FALSE)) -> 1800000 | K31: =IF($B31="","",VLOOKUP($B31,formula!$A$15:$AI$124,formula!$M$9,FALSE)) -> 4200000 | L31: =IF($B31="","",VLOOKUP($B31,formula!$A$15:$EA$124,formula!$DZ$9,FALSE)) -> 87291.8 | M31: =IF($B31="","",VLOOKUP($B31,formula!$A$15:$AI$124,formula!$Y$9,FALSE)) -> 1571252.4 | N31: =IF($B31="","",VLOOKUP($B31,formula!$A$15:$AI$124,formula!$P$9,FALSE)) -> 2220910 | O31: =IF($B31="","",VLOOKUP($B31,formula!$A$15:$AI$124,formula!$AE$9,FALSE)) -> 16000000 | P31: =IF($B31="","",VLOOKUP($B31,formula!$A$15:$AI$124,formula!$AH$9,FALSE)) -> 12521342.4 | R31: 1.841289658 | V31: 1.440963642
B32: 21 | C32: 90 | D32: =IF(C31=MaxCoverageYear-1,"***以下空白***",IF($B32="","",IF($B32>plan,"",VLOOKUP($B32,formula!$A$15:$BI$124,formula!$AM$9,FALSE)))) ->  | E32: =IF($B32="","",VLOOKUP($B32,formula!$A$15:$BI$124,formula!$AN$9,FALSE)) -> 8689561.65 | F32: =IF($B32="","",VLOOKUP($B32,formula!$A$15:$AI$124,formula!$C$9,FALSE)) -> 10000000 | G32: =IF($B32="","",VLOOKUP($B32,formula!$A$15:$AI$124,formula!$E$9,FALSE)) -> 8813410 | H32: =IF($B32="","",VLOOKUP($B32,formula!$A$15:$AI$124,formula!$J$9,FALSE)) -> 100000 | I32: =IF($B32="","",VLOOKUP($B32,formula!$A$15:$AI$124,formula!$S$9,FALSE)) -> 1900000 | J32: =IF($B32="","",VLOOKUP($B32,formula!$A$15:$AI$124,formula!$V$9,FALSE)) -> 1900000 | K32: =IF($B32="","",VLOOKUP($B32,formula!$A$15:$AI$124,formula!$M$9,FALSE)) -> 4400000 | L32: =IF($B32="","",VLOOKUP($B32,formula!$A$15:$EA$124,formula!$DZ$9,FALSE)) -> 88134.1 | M32: =IF($B32="","",VLOOKUP($B32,formula!$A$15:$AI$124,formula!$Y$9,FALSE)) -> 1674547.9 | N32: =IF($B32="","",VLOOKUP($B32,formula!$A$15:$AI$124,formula!$P$9,FALSE)) -> 2418420 | O32: =IF($B32="","",VLOOKUP($B32,formula!$A$15:$AI$124,formula!$AE$9,FALSE)) -> 16300000 | P32: =IF($B32="","",VLOOKUP($B32,formula!$A$15:$AI$124,formula!$AH$9,FALSE)) -> 12906377.9 | R32: 1.875813839 | V32: 1.485273759
B33: 22 | C33: 91 | D33: =IF(C32=MaxCoverageYear-1,"***以下空白***",IF($B33="","",IF($B33>plan,"",VLOOKUP($B33,formula!$A$15:$BI$124,formula!$AM$9,FALSE)))) ->  | E33: =IF($B33="","",VLOOKUP($B33,formula!$A$15:$BI$124,formula!$AN$9,FALSE)) -> 8689561.65 | F33: =IF($B33="","",VLOOKUP($B33,formula!$A$15:$AI$124,formula!$C$9,FALSE)) -> 10000000 | G33: =IF($B33="","",VLOOKUP($B33,formula!$A$15:$AI$124,formula!$E$9,FALSE)) -> 8894210 | H33: =IF($B33="","",VLOOKUP($B33,formula!$A$15:$AI$124,formula!$J$9,FALSE)) -> 100000 | I33: =IF($B33="","",VLOOKUP($B33,formula!$A$15:$AI$124,formula!$S$9,FALSE)) -> 2000000 | J33: =IF($B33="","",VLOOKUP($B33,formula!$A$15:$AI$124,formula!$V$9,FALSE)) -> 2000000 | K33: =IF($B33="","",VLOOKUP($B33,formula!$A$15:$AI$124,formula!$M$9,FALSE)) -> 4600000 | L33: =IF($B33="","",VLOOKUP($B33,formula!$A$15:$EA$124,formula!$DZ$9,FALSE)) -> 88942.1 | M33: =IF($B33="","",VLOOKUP($B33,formula!$A$15:$AI$124,formula!$Y$9,FALSE)) -> 1778842 | N33: =IF($B33="","",VLOOKUP($B33,formula!$A$15:$AI$124,formula!$P$9,FALSE)) -> 2628420 | O33: =IF($B33="","",VLOOKUP($B33,formula!$A$15:$AI$124,formula!$AE$9,FALSE)) -> 16600000 | P33: =IF($B33="","",VLOOKUP($B33,formula!$A$15:$AI$124,formula!$AH$9,FALSE)) -> 13301472 | R33: 1.91033802 | V33: 1.530741427
B34: 23 | C34: 92 | D34: =IF(C33=MaxCoverageYear-1,"***以下空白***",IF($B34="","",IF($B34>plan,"",VLOOKUP($B34,formula!$A$15:$BI$124,formula!$AM$9,FALSE)))) ->  | E34: =IF($B34="","",VLOOKUP($B34,formula!$A$15:$BI$124,formula!$AN$9,FALSE)) -> 8689561.65 | F34: =IF($B34="","",VLOOKUP($B34,formula!$A$15:$AI$124,formula!$C$9,FALSE)) -> 10000000 | G34: =IF($B34="","",VLOOKUP($B34,formula!$A$15:$AI$124,formula!$E$9,FALSE)) -> 8971500 | H34: =IF($B34="","",VLOOKUP($B34,formula!$A$15:$AI$124,formula!$J$9,FALSE)) -> 100000 | I34: =IF($B34="","",VLOOKUP($B34,formula!$A$15:$AI$124,formula!$S$9,FALSE)) -> 2100000 | J34: =IF($B34="","",VLOOKUP($B34,formula!$A$15:$AI$124,formula!$V$9,FALSE)) -> 2100000 | K34: =IF($B34="","",VLOOKUP($B34,formula!$A$15:$AI$124,formula!$M$9,FALSE)) -> 4800000 | L34: =IF($B34="","",VLOOKUP($B34,formula!$A$15:$EA$124,formula!$DZ$9,FALSE)) -> 89715 | M34: =IF($B34="","",VLOOKUP($B34,formula!$A$15:$AI$124,formula!$Y$9,FALSE)) -> 1884015 | N34: =IF($B34="","",VLOOKUP($B34,formula!$A$15:$AI$124,formula!$P$9,FALSE)) -> 2835990 | O34: =IF($B34="","",VLOOKUP($B34,formula!$A$15:$AI$124,formula!$AE$9,FALSE)) -> 16900000 | P34: =IF($B34="","",VLOOKUP($B34,formula!$A$15:$AI$124,formula!$AH$9,FALSE)) -> 13691505 | R34: 1.944862201 | V34: 1.57562666
B35: 24 | C35: 93 | D35: =IF(C34=MaxCoverageYear-1,"***以下空白***",IF($B35="","",IF($B35>plan,"",VLOOKUP($B35,formula!$A$15:$BI$124,formula!$AM$9,FALSE)))) ->  | E35: =IF($B35="","",VLOOKUP($B35,formula!$A$15:$BI$124,formula!$AN$9,FALSE)) -> 8689561.65 | F35: =IF($B35="","",VLOOKUP($B35,formula!$A$15:$AI$124,formula!$C$9,FALSE)) -> 10000000 | G35: =IF($B35="","",VLOOKUP($B35,formula!$A$15:$AI$124,formula!$E$9,FALSE)) -> 9045220 | H35: =IF($B35="","",VLOOKUP($B35,formula!$A$15:$AI$124,formula!$J$9,FALSE)) -> 100000 | I35: =IF($B35="","",VLOOKUP($B35,formula!$A$15:$AI$124,formula!$S$9,FALSE)) -> 2200000 | J35: =IF($B35="","",VLOOKUP($B35,formula!$A$15:$AI$124,formula!$V$9,FALSE)) -> 2200000 | K35: =IF($B35="","",VLOOKUP($B35,formula!$A$15:$AI$124,formula!$M$9,FALSE)) -> 5000000 | L35: =IF($B35="","",VLOOKUP($B35,formula!$A$15:$EA$124,formula!$DZ$9,FALSE)) -> 90452.2 | M35: =IF($B35="","",VLOOKUP($B35,formula!$A$15:$AI$124,formula!$Y$9,FALSE)) -> 1989948.4 | N35: =IF($B35="","",VLOOKUP($B35,formula!$A$15:$AI$124,formula!$P$9,FALSE)) -> 3054190 | O35: =IF($B35="","",VLOOKUP($B35,formula!$A$15:$AI$124,formula!$AE$9,FALSE)) -> 17200000 | P35: =IF($B35="","",VLOOKUP($B35,formula!$A$15:$AI$124,formula!$AH$9,FALSE)) -> 14089358.4 | R35: 1.979386383 | V35: 1.621411869
B36: 25 | C36: 94 | D36: =IF(C35=MaxCoverageYear-1,"***以下空白***",IF($B36="","",IF($B36>plan,"",VLOOKUP($B36,formula!$A$15:$BI$124,formula!$AM$9,FALSE)))) ->  | E36: =IF($B36="","",VLOOKUP($B36,formula!$A$15:$BI$124,formula!$AN$9,FALSE)) -> 8689561.65 | F36: =IF($B36="","",VLOOKUP($B36,formula!$A$15:$AI$124,formula!$C$9,FALSE)) -> 10000000 | G36: =IF($B36="","",VLOOKUP($B36,formula!$A$15:$AI$124,formula!$E$9,FALSE)) -> 9115370 | H36: =IF($B36="","",VLOOKUP($B36,formula!$A$15:$AI$124,formula!$J$9,FALSE)) -> 100000 | I36: =IF($B36="","",VLOOKUP($B36,formula!$A$15:$AI$124,formula!$S$9,FALSE)) -> 2300000 | J36: =IF($B36="","",VLOOKUP($B36,formula!$A$15:$AI$124,formula!$V$9,FALSE)) -> 2300000 | K36: =IF($B36="","",VLOOKUP($B36,formula!$A$15:$AI$124,formula!$M$9,FALSE)) -> 5200000 | L36: =IF($B36="","",VLOOKUP($B36,formula!$A$15:$EA$124,formula!$DZ$9,FALSE)) -> 91153.7 | M36: =IF($B36="","",VLOOKUP($B36,formula!$A$15:$AI$124,formula!$Y$9,FALSE)) -> 2096535.1 | N36: =IF($B36="","",VLOOKUP($B36,formula!$A$15:$AI$124,formula!$P$9,FALSE)) -> 3285940 | O36: =IF($B36="","",VLOOKUP($B36,formula!$A$15:$AI$124,formula!$AE$9,FALSE)) -> 17500000 | P36: =IF($B36="","",VLOOKUP($B36,formula!$A$15:$AI$124,formula!$AH$9,FALSE)) -> 14497845.1 | R36: 2.013910564 | V36: 1.668420766
B37: 26 | C37: 95 | D37: =IF(C36=MaxCoverageYear-1,"***以下空白***",IF($B37="","",IF($B37>plan,"",VLOOKUP($B37,formula!$A$15:$BI$124,formula!$AM$9,FALSE)))) ->  | E37: =IF($B37="","",VLOOKUP($B37,formula!$A$15:$BI$124,formula!$AN$9,FALSE)) -> 8689561.65 | F37: =IF($B37="","",VLOOKUP($B37,formula!$A$15:$AI$124,formula!$C$9,FALSE)) -> 10000000 | G37: =IF($B37="","",VLOOKUP($B37,formula!$A$15:$AI$124,formula!$E$9,FALSE)) -> 9181920 | H37: =IF($B37="","",VLOOKUP($B37,formula!$A$15:$AI$124,formula!$J$9,FALSE)) -> 100000 | I37: =IF($B37="","",VLOOKUP($B37,formula!$A$15:$AI$124,formula!$S$9,FALSE)) -> 2400000 | J37: =IF($B37="","",VLOOKUP($B37,formula!$A$15:$AI$124,formula!$V$9,FALSE)) -> 2400000 | K37: =IF($B37="","",VLOOKUP($B37,formula!$A$15:$AI$124,formula!$M$9,FALSE)) -> 5400000 | L37: =IF($B37="","",VLOOKUP($B37,formula!$A$15:$EA$124,formula!$DZ$9,FALSE)) -> 91819.2 | M37: =IF($B37="","",VLOOKUP($B37,formula!$A$15:$AI$124,formula!$Y$9,FALSE)) -> 2203660.8 | N37: =IF($B37="","",VLOOKUP($B37,formula!$A$15:$AI$124,formula!$P$9,FALSE)) -> 3525290 | O37: =IF($B37="","",VLOOKUP($B37,formula!$A$15:$AI$124,formula!$AE$9,FALSE)) -> 17800000 | P37: =IF($B37="","",VLOOKUP($B37,formula!$A$15:$AI$124,formula!$AH$9,FALSE)) -> 14910870.8 | R37: 2.048434745 | V37: 1.715952012
B38: 27 | C38: 96 | D38: =IF(C37=MaxCoverageYear-1,"***以下空白***",IF($B38="","",IF($B38>plan,"",VLOOKUP($B38,formula!$A$15:$BI$124,formula!$AM$9,FALSE)))) ->  | E38: =IF($B38="","",VLOOKUP($B38,formula!$A$15:$BI$124,formula!$AN$9,FALSE)) -> 8689561.65 | F38: =IF($B38="","",VLOOKUP($B38,formula!$A$15:$AI$124,formula!$C$9,FALSE)) -> 10000000 | G38: =IF($B38="","",VLOOKUP($B38,formula!$A$15:$AI$124,formula!$E$9,FALSE)) -> 9244910 | H38: =IF($B38="","",VLOOKUP($B38,formula!$A$15:$AI$124,formula!$J$9,FALSE)) -> 100000 | I38: =IF($B38="","",VLOOKUP($B38,formula!$A$15:$AI$124,formula!$S$9,FALSE)) -> 2500000 | J38: =IF($B38="","",VLOOKUP($B38,formula!$A$15:$AI$124,formula!$V$9,FALSE)) -> 2500000 | K38: =IF($B38="","",VLOOKUP($B38,formula!$A$15:$AI$124,formula!$M$9,FALSE)) -> 5600000 | L38: =IF($B38="","",VLOOKUP($B38,formula!$A$15:$EA$124,formula!$DZ$9,FALSE)) -> 92449.1 | M38: =IF($B38="","",VLOOKUP($B38,formula!$A$15:$AI$124,formula!$Y$9,FALSE)) -> 2311227.5 | N38: =IF($B38="","",VLOOKUP($B38,formula!$A$15:$AI$124,formula!$P$9,FALSE)) -> 3781620 | O38: =IF($B38="","",VLOOKUP($B38,formula!$A$15:$AI$124,formula!$AE$9,FALSE)) -> 18100000 | P38: =IF($B38="","",VLOOKUP($B38,formula!$A$15:$AI$124,formula!$AH$9,FALSE)) -> 15337757.5 | R38: 2.082958926 | V38: 1.765078391
B39: 28 | C39: 97 | D39: =IF(C38=MaxCoverageYear-1,"***以下空白***",IF($B39="","",IF($B39>plan,"",VLOOKUP($B39,formula!$A$15:$BI$124,formula!$AM$9,FALSE)))) ->  | E39: =IF($B39="","",VLOOKUP($B39,formula!$A$15:$BI$124,formula!$AN$9,FALSE)) -> 8689561.65 | F39: =IF($B39="","",VLOOKUP($B39,formula!$A$15:$AI$124,formula!$C$9,FALSE)) -> 10000000 | G39: =IF($B39="","",VLOOKUP($B39,formula!$A$15:$AI$124,formula!$E$9,FALSE)) -> 9304370 | H39: =IF($B39="","",VLOOKUP($B39,formula!$A$15:$AI$124,formula!$J$9,FALSE)) -> 100000 | I39: =IF($B39="","",VLOOKUP($B39,formula!$A$15:$AI$124,formula!$S$9,FALSE)) -> 2600000 | J39: =IF($B39="","",VLOOKUP($B39,formula!$A$15:$AI$124,formula!$V$9,FALSE)) -> 2600000 | K39: =IF($B39="","",VLOOKUP($B39,formula!$A$15:$AI$124,formula!$M$9,FALSE)) -> 5800000 | L39: =IF($B39="","",VLOOKUP($B39,formula!$A$15:$EA$124,formula!$DZ$9,FALSE)) -> 93043.7 | M39: =IF($B39="","",VLOOKUP($B39,formula!$A$15:$AI$124,formula!$Y$9,FALSE)) -> 2419136.2 | N39: =IF($B39="","",VLOOKUP($B39,formula!$A$15:$AI$124,formula!$P$9,FALSE)) -> 4045940 | O39: =IF($B39="","",VLOOKUP($B39,formula!$A$15:$AI$124,formula!$AE$9,FALSE)) -> 18400000 | P39: =IF($B39="","",VLOOKUP($B39,formula!$A$15:$AI$124,formula!$AH$9,FALSE)) -> 15769446.2 | R39: 2.117483107 | V39: 1.814757388
B40: 29 | C40: 98 | D40: =IF(C39=MaxCoverageYear-1,"***以下空白***",IF($B40="","",IF($B40>plan,"",VLOOKUP($B40,formula!$A$15:$BI$124,formula!$AM$9,FALSE)))) ->  | E40: =IF($B40="","",VLOOKUP($B40,formula!$A$15:$BI$124,formula!$AN$9,FALSE)) -> 8689561.65 | F40: =IF($B40="","",VLOOKUP($B40,formula!$A$15:$AI$124,formula!$C$9,FALSE)) -> 10000000 | G40: =IF($B40="","",VLOOKUP($B40,formula!$A$15:$AI$124,formula!$E$9,FALSE)) -> 9360370 | H40: =IF($B40="","",VLOOKUP($B40,formula!$A$15:$AI$124,formula!$J$9,FALSE)) -> 100000 | I40: =IF($B40="","",VLOOKUP($B40,formula!$A$15:$AI$124,formula!$S$9,FALSE)) -> 2700000 | J40: =IF($B40="","",VLOOKUP($B40,formula!$A$15:$AI$124,formula!$V$9,FALSE)) -> 2700000 | K40: =IF($B40="","",VLOOKUP($B40,formula!$A$15:$AI$124,formula!$M$9,FALSE)) -> 6000000 | L40: =IF($B40="","",VLOOKUP($B40,formula!$A$15:$EA$124,formula!$DZ$9,FALSE)) -> 93603.7 | M40: =IF($B40="","",VLOOKUP($B40,formula!$A$15:$AI$124,formula!$Y$9,FALSE)) -> 2527299.9 | N40: =IF($B40="","",VLOOKUP($B40,formula!$A$15:$AI$124,formula!$P$9,FALSE)) -> 4324490 | O40: =IF($B40="","",VLOOKUP($B40,formula!$A$15:$AI$124,formula!$AE$9,FALSE)) -> 18700000 | P40: =IF($B40="","",VLOOKUP($B40,formula!$A$15:$AI$124,formula!$AH$9,FALSE)) -> 16212159.9 | R40: 2.152007288 | V40: 1.865705148
B41: 30 | C41: 99 | D41: =IF(C40=MaxCoverageYear-1,"***以下空白***",IF($B41="","",IF($B41>plan,"",VLOOKUP($B41,formula!$A$15:$BI$124,formula!$AM$9,FALSE)))) ->  | E41: =IF($B41="","",VLOOKUP($B41,formula!$A$15:$BI$124,formula!$AN$9,FALSE)) -> 8689561.65 | F41: =IF($B41="","",VLOOKUP($B41,formula!$A$15:$AI$124,formula!$C$9,FALSE)) -> 10000000 | G41: =IF($B41="","",VLOOKUP($B41,formula!$A$15:$AI$124,formula!$E$9,FALSE)) -> 9413010 | H41: =IF($B41="","",VLOOKUP($B41,formula!$A$15:$AI$124,formula!$J$9,FALSE)) -> 100000 | I41: =IF($B41="","",VLOOKUP($B41,formula!$A$15:$AI$124,formula!$S$9,FALSE)) -> 2800000 | J41: =IF($B41="","",VLOOKUP($B41,formula!$A$15:$AI$124,formula!$V$9,FALSE)) -> 2800000 | K41: =IF($B41="","",VLOOKUP($B41,formula!$A$15:$AI$124,formula!$M$9,FALSE)) -> 6200000 | L41: =IF($B41="","",VLOOKUP($B41,formula!$A$15:$EA$124,formula!$DZ$9,FALSE)) -> 94130.1 | M41: =IF($B41="","",VLOOKUP($B41,formula!$A$15:$AI$124,formula!$Y$9,FALSE)) -> 2635642.8 | N41: =IF($B41="","",VLOOKUP($B41,formula!$A$15:$AI$124,formula!$P$9,FALSE)) -> 4618620 | O41: =IF($B41="","",VLOOKUP($B41,formula!$A$15:$AI$124,formula!$AE$9,FALSE)) -> 19000000 | P41: =IF($B41="","",VLOOKUP($B41,formula!$A$15:$AI$124,formula!$AH$9,FALSE)) -> 16667272.8 | R41: 2.186531469 | V41: 1.918079815
B42: 31 | C42: 100 | D42: =IF(C41=MaxCoverageYear-1,"***以下空白***",IF($B42="","",IF($B42>plan,"",VLOOKUP($B42,formula!$A$15:$BI$124,formula!$AM$9,FALSE)))) ->  | E42: =IF($B42="","",VLOOKUP($B42,formula!$A$15:$BI$124,formula!$AN$9,FALSE)) -> 8689561.65 | F42: =IF($B42="","",VLOOKUP($B42,formula!$A$15:$AI$124,formula!$C$9,FALSE)) -> 10000000 | G42: =IF($B42="","",VLOOKUP($B42,formula!$A$15:$AI$124,formula!$E$9,FALSE)) -> 9462470 | H42: =IF($B42="","",VLOOKUP($B42,formula!$A$15:$AI$124,formula!$J$9,FALSE)) -> 100000 | I42: =IF($B42="","",VLOOKUP($B42,formula!$A$15:$AI$124,formula!$S$9,FALSE)) -> 2900000 | J42: =IF($B42="","",VLOOKUP($B42,formula!$A$15:$AI$124,formula!$V$9,FALSE)) -> 2900000 | K42: =IF($B42="","",VLOOKUP($B42,formula!$A$15:$AI$124,formula!$M$9,FALSE)) -> 6400000 | L42: =IF($B42="","",VLOOKUP($B42,formula!$A$15:$EA$124,formula!$DZ$9,FALSE)) -> 94624.7 | M42: =IF($B42="","",VLOOKUP($B42,formula!$A$15:$AI$124,formula!$Y$9,FALSE)) -> 2744116.3 | N42: =IF($B42="","",VLOOKUP($B42,formula!$A$15:$AI$124,formula!$P$9,FALSE)) -> 4955990 | O42: =IF($B42="","",VLOOKUP($B42,formula!$A$15:$AI$124,formula!$AE$9,FALSE)) -> 19300000 | P42: =IF($B42="","",VLOOKUP($B42,formula!$A$15:$AI$124,formula!$AH$9,FALSE)) -> 17162576.3 | R42: 2.22105565 | V42: 1.975079641
